Workbook

Sheet 1) INPUT BASE
B1: Business plan di un BED & BREAKFAST / AFFITTACAMERE v1.0 del Dott. Gabriele Leone
B4: INPUT DI BASE
B5: TIPO ATTIVITA' | C5: B&B NO IMPRENDITORIALE | F5: REDDITO LIMITE | G5: 50000
B6: NOME DITTA | C6: B&B LEONE | F6: % DI REDDITIVITA' | G6: 0.4
B7: NOME / COGNOME TITOLARE | C7: GABRIELE LEONE | F7: ALIQUOTA IMPOSTE | G7: 0.05
B8: CODICE FISCALE
B9: P.IVA
B10: REA
B11: ANNO INIZIO BUSINESS PLAN | C11: 2016
B12: MESE INIZIO BUSINESS PLAN | C12: 4
C14: PREZZI UNITARI SERVIZI
C15: N. STANZE | D15: ALTA STAGIONE | E15: MEDIA STAGIONE | F15: BASSA STAGIONE | G15: NOTE
B16: CAMERE QUADRUPLE | C16: 0 | D16: 0 | E16: 0 | F16: 0
B17: CAMERE TRIPLE | C17: 0 | D17: 0 | E17: 0 | F17: 0
B18: CAMERE DOPPIE | C18: 2 | D18: 90 | E18: 70 | F18: 50
B19: CAMERE SINGOLE
B20: VISITE GUIDATE
B21: Altri ricavi
B22: Altri ricavi
B23: Altri ricavi
B24: Altri ricavi
B25: Altri ricavi

Sheet 2) INPUT INVESTIMENTI
A1: =+'9) OUTPUT FLUSSI DI CASSA'!A1 -> BUSINESS PLAN PER L'EXTRALBERGHIERO
A4: PIANO INVESTIMENTI
A5: INVESTIMENTI | B5: ANNO 1 | F5: ANNO 2 | J5: ANNO 3
B7: N. | C7: Importo unitario | D7: Importo | E7: Ammort. annuo (euro) | F7: N. | G7: Importo unitario | H7: Importo | I7: Ammort. annuo (euro) | J7: N. | K7: Importo unitario | L7: Importo | M7: Ammort. annuo (euro)
A8: Investimenti immateriali
A9: Costi di costituzione | D9: 500 | E9: =+D9 -> 500 | H9: 0 | I9: =+H9 -> 0 | L9: 0 | M9: =+L9 -> 0
A10: Sito internet | D10: 600 | E10: =+D10 -> 600 | H10: 0 | I10: =+H10 -> 0 | L10: 0 | M10: =+L10 -> 0
A11: Elaborazione business plan | D11: 0 | E11: 0 | H11: 0 | I11: 0 | L11: 0 | M11: 0
A12: Promozione pre avvio | D12: 1000 | E12: 1000 | H12: 0 | I12: 0 | L12: 0 | M12: 0
A13: Altri investimenti immateriali | D13: 0 | E13: 0 | H13: 0 | I13: 0 | L13: 0 | M13: 0
A14: Altri investimenti immateriali | D14: 0 | E14: 0 | H14: 0 | I14: 0 | L14: 0 | M14: 0
A15: Altri investimenti immateriali | D15: 0 | E15: 0 | H15: 0 | I15: 0 | L15: 0 | M15: 0
A16: Altri investimenti immateriali | D16: 0 | E16: 0 | H16: 0 | I16: 0 | L16: 0 | M16: 0
A17: Altri investimenti immateriali | D17: 0 | E17: 0 | H17: 0 | I17: 0 | L17: 0 | M17: 0
A18: Altri investimenti immateriali | D18: 0 | E18: 0 | H18: 0 | I18: 0 | L18: 0 | M18: 0
A19: Altri investimenti immateriali | D19: 0 | E19: 0 | H19: 0 | I19: 0 | L19: 0 | M19: 0
A20: Investimenti materiali
A21: Insegne/targhe | B21: 1 | C21: 150 | D21: =+C21*B21 -> 150 | E21: =+D21 -> 150 | F21: 1 | G21: 0 | H21: =+G21*F21 -> 0 | I21: =+H21 -> 0 | J21: 1 | K21: 0 | L21: =+K21*J21 -> 0 | M21: =+L21 -> 0
A22: Ristrutturazioni | D22: 0 | E22: 0 | H22: 0 | I22: 0 | L22: 0 | M22: 0
A23: Impianto climatizzazione | D23: 2000 | E23: 2000 | H23: 0 | I23: 0 | L23: 0 | M23: 0
A24: Impianto riscaldamenti | D24: 0 | E24: 0 | H24: 0 | I24: 0 | L24: 0 | M24: 0
A25: Arredo camere | B25: 1 | C25: 2000 | D25: =+B25*C25 -> 2000 | E25: 2000 | F25: 3 | G25: 0 | H25: =+F25*G25 -> 0 | I25: 0 | J25: 3 | K25: 0 | L25: =+J25*K25 -> 0 | M25: 0
A26: Arredo salotto | D26: 0 | E26: 0 | H26: 0 | I26: 0 | L26: 0 | M26: 0
A27: Arredo cortile/area esterna | D27: 0 | E27: 0 | H27: 0 | I27: 0 | L27: 0 | M27: 0
A28: Arredo cucina | D28: 0 | E28: 0 | H28: 0 | I28: 0 | L28: 0 | M28: 0
A29: Arredo servizi igienici | B29: 1 | C29: 0 | D29: =+C29*B29 -> 0 | E29: 0 | F29: 2 | G29: 0 | H29: =+G29*F29 -> 0 | I29: 0 | J29: 2 | K29: 0 | L29: =+K29*J29 -> 0 | M29: 0
A30: Arredo ufficio/stanza titolare | D30: 0 | E30: 0 | H30: 0 | I30: 0 | L30: 0 | M30: 0
A31: Altro arredo locale | D31: 0 | E31: 0 | H31: 0 | I31: 0 | L31: 0 | M31: 0
A32: Cucina | D32: 0 | E32: 0 | H32: 0 | I32: 0 | L32: 0 | M32: 0
A33: Mobili cucina | D33: 0 | E33: 0 | H33: 0 | I33: 0 | L33: 0 | M33: 0
A34: Mobili cucina | D34: 0 | E34: 0 | H34: 0 | I34: 0 | L34: 0 | M34: 0
A35: Frigorifero | D35: 0 | E35: 0 | H35: 0 | I35: 0 | L35: 0 | M35: 0
A36: Altri elettrodomestici | D36: 0 | E36: 0 | H36: 0 | I36: 0 | L36: 0 | M36: 0
A37: Altri elettrodomestici | D37: 0 | E37: 0 | H37: 0 | I37: 0 | L37: 0 | M37: 0
A38: Altri elettrodomestici | D38: 0 | E38: 0 | H38: 0 | I38: 0 | L38: 0 | M38: 0
A39: Altri elettrodomestici | D39: 0 | E39: 0 | H39: 0 | I39: 0 | L39: 0 | M39: 0
A40: Utensili/Attrezzatura cucina | D40: 100 | E40: 100 | H40: 0 | I40: 0 | L40: 0 | M40: 0
A41: Biancheria per la casa | D41: 500 | E41: 500 | H41: 0 | I41: 0 | L41: 0 | M41: 0
A42: Strumenti per pulizia locali | B42: 1 | C42: 0 | D42: =+B42*C42 -> 0 | E42: 0 | F42: 0 | G42: 0 | H42: =+F42*G42 -> 0 | I42: 0 | J42: 0 | K42: 0 | L42: =+J42*K42 -> 0 | M42: 0
A43: Telefono fisso | C43: 0 | D43: =+B43*C43 -> 0 | E43: 0 | F43: 0 | G43: 0 | H43: =+F43*G43 -> 0 | I43: 0 | J43: 0 | K43: 0 | L43: =+J43*K43 -> 0 | M43: 0
A44: Telefoni cellulari | B44: 1 | C44: 0 | D44: =+B44*C44 -> 0 | E44: 0 | F44: 1 | G44: 0 | H44: =+F44*G44 -> 0 | I44: 0 | J44: 1 | K44: 0 | L44: =+J44*K44 -> 0 | M44: 0
A45: Segreteria telefonica | D45: 50 | E45: 50 | H45: 0 | I45: 0 | L45: 0 | M45: 0
A46: Fax | D46: 0 | E46: 0 | H46: 0 | I46: 0 | L46: 0 | M46: 0
A47: Computer | B47: 1 | C47: 500 | D47: =+B47*C47 -> 500 | E47: 500 | F47: 1 | G47: 0 | H47: =+F47*G47 -> 0 | I47: 0 | J47: 1 | K47: 0 | L47: =+J47*K47 -> 0 | M47: 0
A48: Software | B48: 1 | C48: 100 | D48: =+B48*C48 -> 100 | E48: 100 | F48: 1 | G48: 0 | H48: =+F48*G48 -> 0 | I48: 0 | J48: 1 | K48: 0 | L48: =+J48*K48 -> 0 | M48: 0
A49: Stampante | D49: 100 | E49: 100 | H49: 0 | I49: 0 | L49: 0 | M49: 0
A50: Altre attrezzature | D50: 0 | E50: 0 | H50: 0 | I50: 0 | L50: 0 | M50: 0
A51: Altre attrezzature | D51: 0 | E51: 0 | H51: 0 | I51: 0 | L51: 0 | M51: 0
A52: Altre attrezzature | D52: 0 | E52: 0 | H52: 0 | I52: 0 | L52: 0 | M52: 0
A53: Altri investimenti materiali | D53: 0 | E53: 0 | H53: 0 | I53: 0 | L53: 0 | M53: 0
A54: Altri investimenti materiali | D54: 0 | E54: 0 | H54: 0 | I54: 0 | L54: 0 | M54: 0
A55: Altri investimenti materiali | D55: 0 | E55: 0 | H55: 0 | I55: 0 | L55: 0 | M55: 0
A56: Altri investimenti materiali | D56: 0 | E56: 0 | H56: 0 | I56: 0 | L56: 0 | M56: 0
A57: Altri investimenti materiali | D57: 0 | E57: 0 | H57: 0 | I57: 0 | L57: 0 | M57: 0
A58: TOTALE INVESTIMENTI | D58: =SUM(D9:D57) -> 7600 | H58: =SUM(H9:H57) -> 0 | L58: =SUM(L9:L57) -> 0
A59: TOTALE AMMORT. ANNUI | E59: =SUM(E9:E57) -> 7600 | I59: =SUM(I9:I57) -> 0 | M59: =SUM(M9:M57) -> 0

Sheet 3) INPUT VENDITE
A1: INPUT VENDITE | B1: MESI | N1: ANNO 1 | P1: MESI | AB1: ANNO 2 | AD1: MESI | AP1: ANNO 3 | AT1: 1 | AU1: 2 | AV1: 3 | AW1: 4 | AX1: 5 | AY1: 6 | AZ1: 7 | BA1: 8 | BB1: 9 | BC1: 10 | BD1: 11 | BE1: 12 | BF1: 13 | BG1: 14 | BH1: 15 | BI1: 16 | BJ1: 17 | BK1: 18 | BL1: 19 | BM1: 20 | BN1: 21 | BO1: 22 | BP1: 23 | BQ1: 24 | BR1: 25 | BS1: 26 | BT1: 27 | BU1: 28 | BV1: 29 | BW1: 30 | BX1: 31 | BY1: 32 | BZ1: 33 | CA1: 34 | CB1: 35 | CC1: 36
A2: PIANO DEI RICAVI | B2: =EOMONTH(DATE('1) INPUT BASE'!C11,'1) INPUT BASE'!C12,1),0) -> 2016-04-30 | C2: =+EOMONTH(B2,1) -> 2016-05-31 | D2: =+EOMONTH(C2,1) -> 2016-06-30 | E2: 2016-07-31 | F2: 2016-08-31 | G2: 2016-09-30 | H2: 2016-10-31 | I2: 2016-11-30 | J2: 2016-12-31 | K2: 2017-01-31 | L2: 2017-02-28 | M2: 2017-03-31 | N2: TOTALE | P2: =+EOMONTH(M2,1) -> 2017-04-30 | Q2: =+EOMONTH(P2,1) -> 2017-05-31 | R2: =+EOMONTH(Q2,1) -> 2017-06-30 | S2: 2017-07-31 | T2: 2017-08-31 | U2: 2017-09-30 | V2: 2017-10-31 | W2: 2017-11-30 | X2: 2017-12-31 | Y2: 2018-01-31 | Z2: 2018-02-28 | AA2: =+EOMONTH(Z2,1) -> 2018-03-31 | AB2: TOTALE | AD2: =+EOMONTH(AA2,1) -> 2018-04-30 | AE2: =+EOMONTH(AD2,1) -> 2018-05-31 | AF2: =+EOMONTH(AE2,1) -> 2018-06-30 | AG2: 2018-07-31 | AH2: 2018-08-31 | AI2: 2018-09-30 | AJ2: 2018-10-31 | AK2: 2018-11-30 | AL2: 2018-12-31 | AM2: 2019-01-31 | AN2: 2019-02-28 | AO2: 2019-03-31 | AP2: TOTALE | AS2: mesi | AT2: =+B2 -> 2016-04-30 | AU2: =+C2 -> 2016-05-31 | AV2: 2016-06-30 | AW2: 2016-07-31 | AX2: 2016-08-31 | AY2: 2016-09-30 | AZ2: 2016-10-31 | BA2: =+I2 -> 2016-11-30 | BB2: =+J2 -> 2016-12-31 | BC2: =+K2 -> 2017-01-31 | BD2: =+L2 -> 2017-02-28 | BE2: =+M2 -> 2017-03-31 | BF2: =+P2 -> 2017-04-30 | BG2: =+Q2 -> 2017-05-31 | BH2: =+R2 -> 2017-06-30 | BI2: =+S2 -> 2017-07-31 | BJ2: =+T2 -> 2017-08-31 | BK2: =+U2 -> 2017-09-30 | BL2: =+V2 -> 2017-10-31 | BM2: =+W2 -> 2017-11-30 | BN2: =+X2 -> 2017-12-31 | BO2: =+Y2 -> 2018-01-31 | BP2: =+Z2 -> 2018-02-28 | BQ2: =+AA2 -> 2018-03-31 | BR2: =+AD2 -> 2018-04-30 | BS2: =+AE2 -> 2018-05-31 | BT2: =+AF2 -> 2018-06-30 | BU2: =+AG2 -> 2018-07-31 | BV2: =+AH2 -> 2018-08-31 | BW2: =+AI2 -> 2018-09-30 | BX2: =+AJ2 -> 2018-10-31 | BY2: =+AK2 -> 2018-11-30 | BZ2: =+AL2 -> 2018-12-31 | CA2: =+AM2 -> 2019-01-31 | CB2: =+AN2 -> 2019-02-28 | CC2: =+AO2 -> 2019-03-31
A3: STAGIONALITA' -> | B3: BASSA | C3: MEDIA | D3: ALTA | E3: ALTA | F3: ALTA | G3: MEDIA | H3: BASSA | I3: BASSA | J3: ALTA | K3: BASSA | L3: BASSA | M3: BASSA | P3: =+B3 -> BASSA | Q3: =+C3 -> MEDIA | R3: ALTA | S3: ALTA | T3: ALTA | U3: MEDIA | V3: BASSA | W3: BASSA | X3: ALTA | Y3: BASSA | Z3: BASSA | AA3: BASSA | AD3: =+P3 -> BASSA | AE3: =+Q3 -> MEDIA | AF3: ALTA | AG3: ALTA | AH3: ALTA | AI3: MEDIA | AJ3: BASSA | AK3: BASSA | AL3: ALTA | AM3: BASSA | AN3: BASSA | AO3: BASSA | AR3: ANNO | AS3: ricavi | AT3: =+B14 -> 600 | AU3: =+C14 -> 2170 | AV3: 4860 | AW3: 5022 | AX3: 5022 | AY3: 2100 | AZ3: 620 | BA3: 600 | BB3: 5022 | BC3: 620 | BD3: 560 | BE3: 620 | BF3: =+P14 -> 600 | BG3: 2170 | BH3: 4860 | BI3: 5022 | BJ3: 5022 | BK3: 2100 | BL3: 620 | BM3: 600 | BN3: 5022 | BO3: 620 | BP3: 560 | BQ3: 620 | BR3: =+AD14 -> 600 | BS3: 2170 | BT3: 4860 | BU3: 5022 | BV3: 5022 | BW3: 2100 | BX3: 620 | BY3: 600 | BZ3: 5022 | CA3: 620 | CB3: 560 | CC3: 620 | CD3: RICAVI
A4: =+'1) INPUT BASE'!B16 -> CAMERE QUADRUPLE | B4: =+B17*B40 -> 0 | C4: 0 | D4: 0 | E4: 0 | F4: 0 | G4: 0 | H4: 0 | I4: 0 | J4: 0 | K4: 0 | L4: 0 | M4: 0 | N4: =SUM(B4:M4) -> 0 | P4: =+P17*P40 -> 0 | Q4: 0 | R4: 0 | S4: 0 | T4: 0 | U4: 0 | V4: 0 | W4: 0 | X4: 0 | Y4: 0 | Z4: 0 | AA4: 0 | AB4: =SUM(P4:AA4) -> 0 | AD4: =+AD17*AD40 -> 0 | AE4: 0 | AF4: 0 | AG4: 0 | AH4: 0 | AI4: 0 | AJ4: 0 | AK4: 0 | AL4: 0 | AM4: 0 | AN4: 0 | AO4: 0 | AP4: =SUM(AD4:AO4) -> 0 | AR4: =+DATE('4) INPUT INPS'!C2,12,31) -> 2016-12-31 | AT4: =+IF(AT2<=$AR$4,AT3,0) -> 600 | AU4: 2170 | AV4: 4860 | AW4: 5022 | AX4: 5022 | AY4: 2100 | AZ4: 620 | BA4: 600 | BB4: 5022 | BC4: 0 | BD4: 0 | BE4: 0 | BF4: 0 | BG4: 0 | BH4: 0 | BI4: 0 | BJ4: 0 | BK4: 0 | BL4: 0 | BM4: 0 | BN4: 0 | BO4: 0 | BP4: 0 | BQ4: 0 | BR4: 0 | BS4: 0 | BT4: 0 | BU4: 0 | BV4: 0 | BW4: 0 | BX4: 0 | BY4: 0 | BZ4: 0 | CA4: 0 | CB4: 0 | CC4: 0 | CD4: =SUM(AT4:CC4) -> 26016
A5: =+'1) INPUT BASE'!B17 -> CAMERE TRIPLE | B5: =+B18*B41 -> 0 | C5: 0 | D5: 0 | E5: 0 | F5: 0 | G5: 0 | H5: 0 | I5: 0 | J5: 0 | K5: 0 | L5: 0 | M5: 0 | N5: =SUM(B5:M5) -> 0 | P5: =+P18*P41 -> 0 | Q5: 0 | R5: 0 | S5: 0 | T5: 0 | U5: 0 | V5: 0 | W5: 0 | X5: 0 | Y5: 0 | Z5: 0 | AA5: 0 | AB5: =SUM(P5:AA5) -> 0 | AD5: =+AD18*AD41 -> 0 | AE5: 0 | AF5: 0 | AG5: 0 | AH5: 0 | AI5: 0 | AJ5: 0 | AK5: 0 | AL5: 0 | AM5: 0 | AN5: 0 | AO5: 0 | AP5: =SUM(AD5:AO5) -> 0 | AR5: =+DATE('4) INPUT INPS'!D2,12,31) -> 2017-12-31 | AT5: =+IF(AT2>$AR$4,IF(AT2<=$AR$5,AT3,0),0) -> 0 | AU5: =+IF(AU2>$AR$4,IF(AU2<=$AR$5,AU3,0),0) -> 0 | AV5: 0 | AW5: 0 | AX5: 0 | AY5: 0 | AZ5: 0 | BA5: 0 | BB5: 0 | BC5: 620 | BD5: 560 | BE5: 620 | BF5: 600 | BG5: 2170 | BH5: 4860 | BI5: 5022 | BJ5: 5022 | BK5: 2100 | BL5: 620 | BM5: 600 | BN5: 5022 | BO5: 0 | BP5: 0 | BQ5: 0 | BR5: 0 | BS5: 0 | BT5: 0 | BU5: 0 | BV5: 0 | BW5: 0 | BX5: 0 | BY5: 0 | BZ5: 0 | CA5: 0 | CB5: 0 | CC5: 0 | CD5: =SUM(AT5:CC5) -> 27816
A6: =+'1) INPUT BASE'!B18 -> CAMERE DOPPIE | B6: =+B19*B42 -> 600 | C6: 2170 | D6: 4860 | E6: 5022 | F6: 5022 | G6: 2100 | H6: 620 | I6: 600 | J6: 5022 | K6: 620 | L6: 560 | M6: 620 | N6: 27816 | P6: =+P19*P42 -> 600 | Q6: 2170 | R6: 4860 | S6: 5022 | T6: 5022 | U6: 2100 | V6: 620 | W6: 600 | X6: 5022 | Y6: 620 | Z6: 560 | AA6: 620 | AB6: 27816 | AD6: =+AD19*AD42 -> 600 | AE6: 2170 | AF6: 4860 | AG6: 5022 | AH6: 5022 | AI6: 2100 | AJ6: 620 | AK6: 600 | AL6: 5022 | AM6: 620 | AN6: 560 | AO6: 620 | AP6: 27816 | AR6: =+DATE('4) INPUT INPS'!E2,12,31) -> 2018-12-31 | AT6: =+IF(AT2>$AR$5,IF(AT2<=$AR$6,AT3,0),0) -> 0 | AU6: =+IF(AU2>$AR$5,IF(AU2<=$AR$6,AU3,0),0) -> 0 | AV6: 0 | AW6: 0 | AX6: 0 | AY6: 0 | AZ6: 0 | BA6: 0 | BB6: 0 | BC6: 0 | BD6: 0 | BE6: 0 | BF6: 0 | BG6: 0 | BH6: 0 | BI6: 0 | BJ6: 0 | BK6: 0 | BL6: 0 | BM6: 0 | BN6: 0 | BO6: 620 | BP6: 560 | BQ6: 620 | BR6: 600 | BS6: 2170 | BT6: 4860 | BU6: 5022 | BV6: 5022 | BW6: 2100 | BX6: 620 | BY6: 600 | BZ6: 5022 | CA6: 0 | CB6: 0 | CC6: 0 | CD6: 27816
A7: =+'1) INPUT BASE'!B19 -> CAMERE SINGOLE | B7: =+B20*B43 -> 0 | C7: 0 | D7: 0 | E7: 0 | F7: 0 | G7: 0 | H7: 0 | I7: 0 | J7: 0 | K7: 0 | L7: 0 | M7: 0 | N7: 0 | P7: =+P20*P43 -> 0 | Q7: 0 | R7: 0 | S7: 0 | T7: 0 | U7: 0 | V7: 0 | W7: 0 | X7: 0 | Y7: 0 | Z7: 0 | AA7: 0 | AB7: 0 | AD7: =+AD20*AD43 -> 0 | AE7: 0 | AF7: 0 | AG7: 0 | AH7: 0 | AI7: 0 | AJ7: 0 | AK7: 0 | AL7: 0 | AM7: 0 | AN7: 0 | AO7: 0 | AP7: 0 | AR7: =+DATE('4) INPUT INPS'!F2,12,31) -> 2019-12-31 | AT7: =+IF(AT2>$AR$6,IF(AT2<=$AR$7,AT3,0),0) -> 0 | AU7: =+IF(AU2>$AR$6,IF(AU2<=$AR$7,AU3,0),0) -> 0 | AV7: 0 | AW7: 0 | AX7: 0 | AY7: 0 | AZ7: 0 | BA7: 0 | BB7: 0 | BC7: 0 | BD7: 0 | BE7: 0 | BF7: 0 | BG7: 0 | BH7: 0 | BI7: 0 | BJ7: 0 | BK7: 0 | BL7: 0 | BM7: 0 | BN7: 0 | BO7: 0 | BP7: 0 | BQ7: 0 | BR7: 0 | BS7: 0 | BT7: 0 | BU7: 0 | BV7: 0 | BW7: 0 | BX7: 0 | BY7: 0 | BZ7: 0 | CA7: 620 | CB7: 560 | CC7: 620 | CD7: 1800
A8: =+'1) INPUT BASE'!B20 -> VISITE GUIDATE | B8: =+B21*B44 -> 0 | C8: 0 | D8: 0 | E8: 0 | F8: 0 | G8: 0 | H8: 0 | I8: 0 | J8: 0 | K8: 0 | L8: 0 | M8: 0 | N8: 0 | P8: =+P21*P44 -> 0 | Q8: 0 | R8: 0 | S8: 0 | T8: 0 | U8: 0 | V8: 0 | W8: 0 | X8: 0 | Y8: 0 | Z8: 0 | AA8: 0 | AB8: 0 | AD8: =+AD21*AD44 -> 0 | AE8: 0 | AF8: 0 | AG8: 0 | AH8: 0 | AI8: 0 | AJ8: 0 | AK8: 0 | AL8: 0 | AM8: 0 | AN8: 0 | AO8: 0 | AP8: 0 | AR8: TOTALE | CD8: =SUM(CD4:CD7) -> 83448
A9: =+'1) INPUT BASE'!B21 -> Altri ricavi | B9: =+B22*B45 -> 0 | C9: 0 | D9: 0 | E9: 0 | F9: 0 | G9: 0 | H9: 0 | I9: 0 | J9: 0 | K9: 0 | L9: 0 | M9: 0 | N9: 0 | P9: =+P22*P45 -> 0 | Q9: 0 | R9: 0 | S9: 0 | T9: 0 | U9: 0 | V9: 0 | W9: 0 | X9: 0 | Y9: 0 | Z9: 0 | AA9: 0 | AB9: 0 | AD9: =+AD22*AD45 -> 0 | AE9: 0 | AF9: 0 | AG9: 0 | AH9: 0 | AI9: 0 | AJ9: 0 | AK9: 0 | AL9: 0 | AM9: 0 | AN9: 0 | AO9: 0 | AP9: 0
A10: =+'1) INPUT BASE'!B22 -> Altri ricavi | B10: =+B23*B46 -> 0 | C10: 0 | D10: 0 | E10: 0 | F10: 0 | G10: 0 | H10: 0 | I10: 0 | J10: 0 | K10: 0 | L10: 0 | M10: 0 | N10: 0 | P10: =+P23*P46 -> 0 | Q10: 0 | R10: 0 | S10: 0 | T10: 0 | U10: 0 | V10: 0 | W10: 0 | X10: 0 | Y10: 0 | Z10: 0 | AA10: 0 | AB10: 0 | AD10: =+AD23*AD46 -> 0 | AE10: 0 | AF10: 0 | AG10: 0 | AH10: 0 | AI10: 0 | AJ10: 0 | AK10: 0 | AL10: 0 | AM10: 0 | AN10: 0 | AO10: 0 | AP10: 0
A11: =+'1) INPUT BASE'!B23 -> Altri ricavi | B11: =+B24*B47 -> 0 | C11: 0 | D11: 0 | E11: 0 | F11: 0 | G11: 0 | H11: 0 | I11: 0 | J11: 0 | K11: 0 | L11: 0 | M11: 0 | N11: 0 | P11: =+P24*P47 -> 0 | Q11: 0 | R11: 0 | S11: 0 | T11: 0 | U11: 0 | V11: 0 | W11: 0 | X11: 0 | Y11: 0 | Z11: 0 | AA11: 0 | AB11: 0 | AD11: =+AD24*AD47 -> 0 | AE11: 0 | AF11: 0 | AG11: 0 | AH11: 0 | AI11: 0 | AJ11: 0 | AK11: 0 | AL11: 0 | AM11: 0 | AN11: 0 | AO11: 0 | AP11: 0
A12: =+'1) INPUT BASE'!B24 -> Altri ricavi | B12: =+B25*B48 -> 0 | C12: 0 | D12: 0 | E12: 0 | F12: 0 | G12: 0 | H12: 0 | I12: 0 | J12: 0 | K12: 0 | L12: 0 | M12: 0 | N12: 0 | P12: =+P25*P48 -> 0 | Q12: 0 | R12: 0 | S12: 0 | T12: 0 | U12: 0 | V12: 0 | W12: 0 | X12: 0 | Y12: 0 | Z12: 0 | AA12: 0 | AB12: 0 | AD12: =+AD25*AD48 -> 0 | AE12: 0 | AF12: 0 | AG12: 0 | AH12: 0 | AI12: 0 | AJ12: 0 | AK12: 0 | AL12: 0 | AM12: 0 | AN12: 0 | AO12: 0 | AP12: 0
A13: =+'1) INPUT BASE'!B25 -> Altri ricavi | B13: =+B26*B49 -> 0 | C13: 0 | D13: 0 | E13: 0 | F13: 0 | G13: 0 | H13: 0 | I13: 0 | J13: 0 | K13: 0 | L13: 0 | M13: 0 | N13: 0 | P13: =+P26*P49 -> 0 | Q13: 0 | R13: 0 | S13: 0 | T13: 0 | U13: 0 | V13: 0 | W13: 0 | X13: 0 | Y13: 0 | Z13: 0 | AA13: 0 | AB13: 0 | AD13: =+AD26*AD49 -> 0 | AE13: 0 | AF13: 0 | AG13: 0 | AH13: 0 | AI13: 0 | AJ13: 0 | AK13: 0 | AL13: 0 | AM13: 0 | AN13: 0 | AO13: 0 | AP13: 0
A14: TOTALE | B14: =SUM(B4:B13) -> 600 | C14: =SUM(C4:C13) -> 2170 | D14: 4860 | E14: 5022 | F14: 5022 | G14: 2100 | H14: 620 | I14: 600 | J14: 5022 | K14: 620 | L14: 560 | M14: 620 | N14: =SUM(N4:N13) -> 27816 | P14: =SUM(P4:P13) -> 600 | Q14: =SUM(Q4:Q13) -> 2170 | R14: 4860 | S14: 5022 | T14: 5022 | U14: 2100 | V14: 620 | W14: 600 | X14: 5022 | Y14: 620 | Z14: 560 | AA14: 620 | AB14: =SUM(AB4:AB13) -> 27816 | AC14: TOTALE | AD14: =SUM(AD4:AD13) -> 600 | AE14: =SUM(AE4:AE13) -> 2170 | AF14: 4860 | AG14: 5022 | AH14: 5022 | AI14: 2100 | AJ14: 620 | AK14: 600 | AL14: 5022 | AM14: 620 | AN14: 560 | AO14: 620 | AP14: =SUM(AP4:AP13) -> 27816
B15: MESI | N15: ANNO 1 | O15: RIPRISITNA | P15: MESI | AB15: ANNO 2 | AC15: RIPRISTINA | AD15: MESI | AP15: ANNO 3
A16: N. PRENOTAZIONI | B16: =+B2 -> 2016-04-30 | C16: =+EOMONTH(B16,1) -> 2016-05-31 | D16: =+EOMONTH(C16,1) -> 2016-06-30 | E16: 2016-07-31 | F16: 2016-08-31 | G16: 2016-09-30 | H16: 2016-10-31 | I16: 2016-11-30 | J16: 2016-12-31 | K16: 2017-01-31 | L16: 2017-02-28 | M16: 2017-03-31 | N16: TOTALE | O16: IPOTESI % | P16: =+EOMONTH(M16,1) -> 2017-04-30 | Q16: =+EOMONTH(P16,1) -> 2017-05-31 | R16: =+EOMONTH(Q16,1) -> 2017-06-30 | S16: 2017-07-31 | T16: 2017-08-31 | U16: 2017-09-30 | V16: 2017-10-31 | W16: 2017-11-30 | X16: 2017-12-31 | Y16: 2018-01-31 | Z16: 2018-02-28 | AA16: =+EOMONTH(Z16,1) -> 2018-03-31 | AB16: TOTALE | AC16: IPOTESI % | AD16: =+EOMONTH(AA16,1) -> 2018-04-30 | AE16: =+EOMONTH(AD16,1) -> 2018-05-31 | AF16: =+EOMONTH(AE16,1) -> 2018-06-30 | AG16: 2018-07-31 | AH16: 2018-08-31 | AI16: 2018-09-30 | AJ16: 2018-10-31 | AK16: 2018-11-30 | AL16: 2018-12-31 | AM16: 2019-01-31 | AN16: 2019-02-28 | AO16: 2019-03-31 | AP16: TOTALE
A17: =+A4 -> CAMERE QUADRUPLE | N17: =SUM(B17:M17) -> 0 | O17: 0 | P17: =+(1+$O17)*B17 -> 0 | Q17: =+(1+$O17)*C17 -> 0 | R17: =+(1+$O17)*D17 -> 0 | S17: =+(1+$O17)*E17 -> 0 | T17: =+(1+$O17)*F17 -> 0 | U17: =+(1+$O17)*G17 -> 0 | V17: =+(1+$O17)*H17 -> 0 | W17: =+(1+$O17)*I17 -> 0 | X17: =+(1+$O17)*J17 -> 0 | Y17: =+(1+$O17)*K17 -> 0 | Z17: =+(1+$O17)*L17 -> 0 | AA17: =+(1+$O17)*M17 -> 0 | AB17: =SUM(P17:AA17) -> 0 | AC17: 0 | AD17: =+(1+$AC17)*P17 -> 0 | AE17: =+(1+$AC17)*Q17 -> 0 | AF17: =+(1+$AC17)*R17 -> 0 | AG17: =+(1+$AC17)*S17 -> 0 | AH17: =+(1+$AC17)*T17 -> 0 | AI17: =+(1+$AC17)*U17 -> 0 | AJ17: =+(1+$AC17)*V17 -> 0 | AK17: =+(1+$AC17)*W17 -> 0 | AL17: =+(1+$AC17)*X17 -> 0 | AM17: =+(1+$AC17)*Y17 -> 0 | AN17: =+(1+$AC17)*Z17 -> 0 | AO17: =+(1+$AC17)*AA17 -> 0 | AP17: =SUM(AD17:AO17) -> 0
A18: CAMERE TRIPLE | N18: 0 | O18: 0 | P18: 0 | Q18: 0 | R18: 0 | S18: 0 | T18: 0 | U18: 0 | V18: 0 | W18: 0 | X18: 0 | Y18: 0 | Z18: 0 | AA18: 0 | AB18: =SUM(P18:AA18) -> 0 | AC18: 0 | AD18: 0 | AE18: 0 | AF18: 0 | AG18: 0 | AH18: 0 | AI18: 0 | AJ18: 0 | AK18: 0 | AL18: 0 | AM18: 0 | AN18: 0 | AO18: 0 | AP18: =SUM(AD18:AO18) -> 0
A19: CAMERE DOPPIE | B19: =+IF(B3="BASSA",B28*0.2,IF(B3="MEDIA",B28*0.5,IF(B3="ALTA",B28*0.9))) -> 12 | C19: =+IF(C3="BASSA",C28*0.2,IF(C3="MEDIA",C28*0.5,IF(C3="ALTA",C28*0.9))) -> 31 | D19: 54 | E19: 55.8 | F19: 55.8 | G19: 30 | H19: 12.4 | I19: 12 | J19: 55.8 | K19: 12.4 | L19: 11.2 | M19: 12.4 | N19: 354.8 | O19: 0 | P19: 12 | Q19: 31 | R19: 54 | S19: 55.8 | T19: 55.8 | U19: 30 | V19: 12.4 | W19: 12 | X19: 55.8 | Y19: 12.4 | Z19: 11.2 | AA19: 12.4 | AB19: 354.8 | AC19: 0 | AD19: 12 | AE19: 31 | AF19: 54 | AG19: 55.8 | AH19: 55.8 | AI19: 30 | AJ19: 12.4 | AK19: 12 | AL19: 55.8 | AM19: 12.4 | AN19: 11.2 | AO19: 12.4 | AP19: 354.8
A20: CAMERE SINGOLE | N20: 0 | O20: 0 | P20: 0 | Q20: 0 | R20: 0 | S20: 0 | T20: 0 | U20: 0 | V20: 0 | W20: 0 | X20: 0 | Y20: 0 | Z20: 0 | AA20: 0 | AB20: 0 | AC20: 0 | AD20: 0 | AE20: 0 | AF20: 0 | AG20: 0 | AH20: 0 | AI20: 0 | AJ20: 0 | AK20: 0 | AL20: 0 | AM20: 0 | AN20: 0 | AO20: 0 | AP20: 0
A21: VISITE GUIDATE | N21: 0 | O21: 0 | P21: 0 | Q21: 0 | R21: 0 | S21: 0 | T21: 0 | U21: 0 | V21: 0 | W21: 0 | X21: 0 | Y21: 0 | Z21: 0 | AA21: 0 | AB21: 0 | AC21: 0 | AD21: 0 | AE21: 0 | AF21: 0 | AG21: 0 | AH21: 0 | AI21: 0 | AJ21: 0 | AK21: 0 | AL21: 0 | AM21: 0 | AN21: 0 | AO21: 0 | AP21: 0
A22: Altri ricavi | N22: 0 | O22: 0 | P22: 0 | Q22: 0 | R22: 0 | S22: 0 | T22: 0 | U22: 0 | V22: 0 | W22: 0 | X22: 0 | Y22: 0 | Z22: 0 | AA22: 0 | AB22: 0 | AC22: 0 | AD22: 0 | AE22: 0 | AF22: 0 | AG22: 0 | AH22: 0 | AI22: 0 | AJ22: 0 | AK22: 0 | AL22: 0 | AM22: 0 | AN22: 0 | AO22: 0 | AP22: 0
A23: Altri ricavi | N23: 0 | O23: 0 | P23: 0 | Q23: 0 | R23: 0 | S23: 0 | T23: 0 | U23: 0 | V23: 0 | W23: 0 | X23: 0 | Y23: 0 | Z23: 0 | AA23: 0 | AB23: 0 | AC23: 0 | AD23: 0 | AE23: 0 | AF23: 0 | AG23: 0 | AH23: 0 | AI23: 0 | AJ23: 0 | AK23: 0 | AL23: 0 | AM23: 0 | AN23: 0 | AO23: 0 | AP23: 0
A24: Altri ricavi | N24: 0 | O24: 0 | P24: 0 | Q24: 0 | R24: 0 | S24: 0 | T24: 0 | U24: 0 | V24: 0 | W24: 0 | X24: 0 | Y24: 0 | Z24: 0 | AA24: 0 | AB24: 0 | AC24: 0 | AD24: 0 | AE24: 0 | AF24: 0 | AG24: 0 | AH24: 0 | AI24: 0 | AJ24: 0 | AK24: 0 | AL24: 0 | AM24: 0 | AN24: 0 | AO24: 0 | AP24: 0
A25: Altri ricavi | N25: 0 | O25: 0 | P25: 0 | Q25: 0 | R25: 0 | S25: 0 | T25: 0 | U25: 0 | V25: 0 | W25: 0 | X25: 0 | Y25: 0 | Z25: 0 | AA25: 0 | AB25: 0 | AC25: 0 | AD25: 0 | AE25: 0 | AF25: 0 | AG25: 0 | AH25: 0 | AI25: 0 | AJ25: 0 | AK25: 0 | AL25: 0 | AM25: 0 | AN25: 0 | AO25: 0 | AP25: 0
A26: Altri ricavi | N26: 0 | O26: 0 | P26: =+(1+$O26)*B26 -> 0 | Q26: =+(1+$O26)*C26 -> 0 | R26: =+(1+$O26)*D26 -> 0 | S26: =+(1+$O26)*E26 -> 0 | T26: =+(1+$O26)*F26 -> 0 | U26: =+(1+$O26)*G26 -> 0 | V26: =+(1+$O26)*H26 -> 0 | W26: =+(1+$O26)*I26 -> 0 | X26: =+(1+$O26)*J26 -> 0 | Y26: =+(1+$O26)*K26 -> 0 | Z26: =+(1+$O26)*L26 -> 0 | AA26: =+(1+$O26)*M26 -> 0 | AB26: 0 | AC26: 0 | AD26: =+(1+$AC26)*P26 -> 0 | AE26: =+(1+$AC26)*Q26 -> 0 | AF26: =+(1+$AC26)*R26 -> 0 | AG26: =+(1+$AC26)*S26 -> 0 | AH26: =+(1+$AC26)*T26 -> 0 | AI26: =+(1+$AC26)*U26 -> 0 | AJ26: =+(1+$AC26)*V26 -> 0 | AK26: =+(1+$AC26)*W26 -> 0 | AL26: =+(1+$AC26)*X26 -> 0 | AM26: =+(1+$AC26)*Y26 -> 0 | AN26: =+(1+$AC26)*Z26 -> 0 | AO26: =+(1+$AC26)*AA26 -> 0 | AP26: 0
A27: GG. MESE | B27: =+_xlfn.DAYS(B16,EOMONTH(B16-32,0)) -> 30 | C27: =+_xlfn.DAYS(C16,B16) -> 31 | D27: =+_xlfn.DAYS(D16,C16) -> 30 | E27: 31 | F27: 31 | G27: 30 | H27: 31 | I27: 30 | J27: =+_xlfn.DAYS(J16,I16) -> 31 | K27: 31 | L27: 28 | M27: =+_xlfn.DAYS(M16,L16) -> 31 | N27: =SUM(N17:N26) -> 354.8 | O27: GG. MESE | P27: =+_xlfn.DAYS(P16,M16) -> 30 | Q27: =+_xlfn.DAYS(Q16,P16) -> 31 | R27: 30 | S27: 31 | T27: 31 | U27: 30 | V27: 31 | W27: 30 | X27: 31 | Y27: 31 | Z27: 28 | AA27: 31 | AB27: =SUM(AB17:AB26) -> 354.8 | AC27: GG. MESE | AD27: =+_xlfn.DAYS(AD16,AA16) -> 30 | AE27: =+_xlfn.DAYS(AE16,AD16) -> 31 | AF27: 30 | AG27: 31 | AH27: 31 | AI27: 30 | AJ27: 31 | AK27: 30 | AL27: 31 | AM27: 31 | AN27: 28 | AO27: 31 | AP27: =SUM(AP17:AP26) -> 354.8
A28: Numero massimo notti prenotabili TOT | B28: =('1) INPUT BASE'!$C$16+'1) INPUT BASE'!$C$17+'1) INPUT BASE'!$C$18+'1) INPUT BASE'!$C$19)*B27 -> 60 | C28: =('1) INPUT BASE'!$C$16+'1) INPUT BASE'!$C$17+'1) INPUT BASE'!$C$18+'1) INPUT BASE'!$C$19)*C27 -> 62 | D28: =('1) INPUT BASE'!$C$16+'1) INPUT BASE'!$C$17+'1) INPUT BASE'!$C$18+'1) INPUT BASE'!$C$19)*D27 -> 60 | E28: =('1) INPUT BASE'!$C$16+'1) INPUT BASE'!$C$17+'1) INPUT BASE'!$C$18+'1) INPUT BASE'!$C$19)*E27 -> 62 | F28: =('1) INPUT BASE'!$C$16+'1) INPUT BASE'!$C$17+'1) INPUT BASE'!$C$18+'1) INPUT BASE'!$C$19)*F27 -> 62 | G28: =('1) INPUT BASE'!$C$16+'1) INPUT BASE'!$C$17+'1) INPUT BASE'!$C$18+'1) INPUT BASE'!$C$19)*G27 -> 60 | H28: =('1) INPUT BASE'!$C$16+'1) INPUT BASE'!$C$17+'1) INPUT BASE'!$C$18+'1) INPUT BASE'!$C$19)*H27 -> 62 | I28: =('1) INPUT BASE'!$C$16+'1) INPUT BASE'!$C$17+'1) INPUT BASE'!$C$18+'1) INPUT BASE'!$C$19)*I27 -> 60 | J28: =('1) INPUT BASE'!$C$16+'1) INPUT BASE'!$C$17+'1) INPUT BASE'!$C$18+'1) INPUT BASE'!$C$19)*J27 -> 62 | K28: =('1) INPUT BASE'!$C$16+'1) INPUT BASE'!$C$17+'1) INPUT BASE'!$C$18+'1) INPUT BASE'!$C$19)*K27 -> 62 | L28: =('1) INPUT BASE'!$C$16+'1) INPUT BASE'!$C$17+'1) INPUT BASE'!$C$18+'1) INPUT BASE'!$C$19)*L27 -> 56 | M28: =('1) INPUT BASE'!$C$16+'1) INPUT BASE'!$C$17+'1) INPUT BASE'!$C$18+'1) INPUT BASE'!$C$19)*M27 -> 62 | P28: =('1) INPUT BASE'!$C$16+'1) INPUT BASE'!$C$17+'1) INPUT BASE'!$C$18+'1) INPUT BASE'!$C$19)*P27 -> 60 | Q28: =('1) INPUT BASE'!$C$16+'1) INPUT BASE'!$C$17+'1) INPUT BASE'!$C$18+'1) INPUT BASE'!$C$19)*Q27 -> 62 | R28: =('1) INPUT BASE'!$C$16+'1) INPUT BASE'!$C$17+'1) INPUT BASE'!$C$18+'1) INPUT BASE'!$C$19)*R27 -> 60 | S28: =('1) INPUT BASE'!$C$16+'1) INPUT BASE'!$C$17+'1) INPUT BASE'!$C$18+'1) INPUT BASE'!$C$19)*S27 -> 62 | T28: =('1) INPUT BASE'!$C$16+'1) INPUT BASE'!$C$17+'1) INPUT BASE'!$C$18+'1) INPUT BASE'!$C$19)*T27 -> 62 | U28: =('1) INPUT BASE'!$C$16+'1) INPUT BASE'!$C$17+'1) INPUT BASE'!$C$18+'1) INPUT BASE'!$C$19)*U27 -> 60 | V28: =('1) INPUT BASE'!$C$16+'1) INPUT BASE'!$C$17+'1) INPUT BASE'!$C$18+'1) INPUT BASE'!$C$19)*V27 -> 62 | W28: =('1) INPUT BASE'!$C$16+'1) INPUT BASE'!$C$17+'1) INPUT BASE'!$C$18+'1) INPUT BASE'!$C$19)*W27 -> 60 | X28: =('1) INPUT BASE'!$C$16+'1) INPUT BASE'!$C$17+'1) INPUT BASE'!$C$18+'1) INPUT BASE'!$C$19)*X27 -> 62 | Y28: =('1) INPUT BASE'!$C$16+'1) INPUT BASE'!$C$17+'1) INPUT BASE'!$C$18+'1) INPUT BASE'!$C$19)*Y27 -> 62 | Z28: =('1) INPUT BASE'!$C$16+'1) INPUT BASE'!$C$17+'1) INPUT BASE'!$C$18+'1) INPUT BASE'!$C$19)*Z27 -> 56 | AA28: =('1) INPUT BASE'!$C$16+'1) INPUT BASE'!$C$17+'1) INPUT BASE'!$C$18+'1) INPUT BASE'!$C$19)*AA27 -> 62 | AD28: =('1) INPUT BASE'!$C$16+'1) INPUT BASE'!$C$17+'1) INPUT BASE'!$C$18+'1) INPUT BASE'!$C$19)*AD27 -> 60 | AE28: =('1) INPUT BASE'!$C$16+'1) INPUT BASE'!$C$17+'1) INPUT BASE'!$C$18+'1) INPUT BASE'!$C$19)*AE27 -> 62 | AF28: =('1) INPUT BASE'!$C$16+'1) INPUT BASE'!$C$17+'1) INPUT BASE'!$C$18+'1) INPUT BASE'!$C$19)*AF27 -> 60 | AG28: =('1) INPUT BASE'!$C$16+'1) INPUT BASE'!$C$17+'1) INPUT BASE'!$C$18+'1) INPUT BASE'!$C$19)*AG27 -> 62 | AH28: =('1) INPUT BASE'!$C$16+'1) INPUT BASE'!$C$17+'1) INPUT BASE'!$C$18+'1) INPUT BASE'!$C$19)*AH27 -> 62 | AI28: =('1) INPUT BASE'!$C$16+'1) INPUT BASE'!$C$17+'1) INPUT BASE'!$C$18+'1) INPUT BASE'!$C$19)*AI27 -> 60 | AJ28: =('1) INPUT BASE'!$C$16+'1) INPUT BASE'!$C$17+'1) INPUT BASE'!$C$18+'1) INPUT BASE'!$C$19)*AJ27 -> 62 | AK28: =('1) INPUT BASE'!$C$16+'1) INPUT BASE'!$C$17+'1) INPUT BASE'!$C$18+'1) INPUT BASE'!$C$19)*AK27 -> 60 | AL28: =('1) INPUT BASE'!$C$16+'1) INPUT BASE'!$C$17+'1) INPUT BASE'!$C$18+'1) INPUT BASE'!$C$19)*AL27 -> 62 | AM28: =('1) INPUT BASE'!$C$16+'1) INPUT BASE'!$C$17+'1) INPUT BASE'!$C$18+'1) INPUT BASE'!$C$19)*AM27 -> 62 | AN28: =('1) INPUT BASE'!$C$16+'1) INPUT BASE'!$C$17+'1) INPUT BASE'!$C$18+'1) INPUT BASE'!$C$19)*AN27 -> 56 | AO28: =('1) INPUT BASE'!$C$16+'1) INPUT BASE'!$C$17+'1) INPUT BASE'!$C$18+'1) INPUT BASE'!$C$19)*AO27 -> 62
A29: Numero massimo notti prenot. CAM. QUAD | B29: =+'1) INPUT BASE'!$C$16*'3) INPUT VENDITE'!B27 -> 0 | C29: =+'1) INPUT BASE'!$C$16*'3) INPUT VENDITE'!C27 -> 0 | D29: =+'1) INPUT BASE'!$C$16*'3) INPUT VENDITE'!D27 -> 0 | E29: =+'1) INPUT BASE'!$C$16*'3) INPUT VENDITE'!E27 -> 0 | F29: =+'1) INPUT BASE'!$C$16*'3) INPUT VENDITE'!F27 -> 0 | G29: =+'1) INPUT BASE'!$C$16*'3) INPUT VENDITE'!G27 -> 0 | H29: =+'1) INPUT BASE'!$C$16*'3) INPUT VENDITE'!H27 -> 0 | I29: =+'1) INPUT BASE'!$C$16*'3) INPUT VENDITE'!I27 -> 0 | J29: =+'1) INPUT BASE'!$C$16*'3) INPUT VENDITE'!J27 -> 0 | K29: =+'1) INPUT BASE'!$C$16*'3) INPUT VENDITE'!K27 -> 0 | L29: =+'1) INPUT BASE'!$C$16*'3) INPUT VENDITE'!L27 -> 0 | M29: =+'1) INPUT BASE'!$C$16*'3) INPUT VENDITE'!M27 -> 0 | P29: =+'1) INPUT BASE'!$C$16*'3) INPUT VENDITE'!P27 -> 0 | Q29: =+'1) INPUT BASE'!$C$16*'3) INPUT VENDITE'!Q27 -> 0 | R29: =+'1) INPUT BASE'!$C$16*'3) INPUT VENDITE'!R27 -> 0 | S29: =+'1) INPUT BASE'!$C$16*'3) INPUT VENDITE'!S27 -> 0 | T29: =+'1) INPUT BASE'!$C$16*'3) INPUT VENDITE'!T27 -> 0 | U29: =+'1) INPUT BASE'!$C$16*'3) INPUT VENDITE'!U27 -> 0 | V29: =+'1) INPUT BASE'!$C$16*'3) INPUT VENDITE'!V27 -> 0 | W29: =+'1) INPUT BASE'!$C$16*'3) INPUT VENDITE'!W27 -> 0 | X29: =+'1) INPUT BASE'!$C$16*'3) INPUT VENDITE'!X27 -> 0 | Y29: =+'1) INPUT BASE'!$C$16*'3) INPUT VENDITE'!Y27 -> 0 | Z29: =+'1) INPUT BASE'!$C$16*'3) INPUT VENDITE'!Z27 -> 0 | AA29: =+'1) INPUT BASE'!$C$16*'3) INPUT VENDITE'!AA27 -> 0 | AD29: =+'1) INPUT BASE'!$C$16*'3) INPUT VENDITE'!AD27 -> 0 | AE29: =+'1) INPUT BASE'!$C$16*'3) INPUT VENDITE'!AE27 -> 0 | AF29: =+'1) INPUT BASE'!$C$16*'3) INPUT VENDITE'!AF27 -> 0 | AG29: =+'1) INPUT BASE'!$C$16*'3) INPUT VENDITE'!AG27 -> 0 | AH29: =+'1) INPUT BASE'!$C$16*'3) INPUT VENDITE'!AH27 -> 0 | AI29: =+'1) INPUT BASE'!$C$16*'3) INPUT VENDITE'!AI27 -> 0 | AJ29: =+'1) INPUT BASE'!$C$16*'3) INPUT VENDITE'!AJ27 -> 0 | AK29: =+'1) INPUT BASE'!$C$16*'3) INPUT VENDITE'!AK27 -> 0 | AL29: =+'1) INPUT BASE'!$C$16*'3) INPUT VENDITE'!AL27 -> 0 | AM29: =+'1) INPUT BASE'!$C$16*'3) INPUT VENDITE'!AM27 -> 0 | AN29: =+'1) INPUT BASE'!$C$16*'3) INPUT VENDITE'!AN27 -> 0 | AO29: =+'1) INPUT BASE'!$C$16*'3) INPUT VENDITE'!AO27 -> 0
A30: Numero massimo notti prenot. CAM. TRIP. | B30: =B28*'1) INPUT BASE'!$C$17 -> 0 | C30: =C28*'1) INPUT BASE'!$C$17 -> 0 | D30: =D28*'1) INPUT BASE'!$C$17 -> 0 | E30: =E28*'1) INPUT BASE'!$C$17 -> 0 | F30: =F28*'1) INPUT BASE'!$C$17 -> 0 | G30: =G28*'1) INPUT BASE'!$C$17 -> 0 | H30: =H28*'1) INPUT BASE'!$C$17 -> 0 | I30: =I28*'1) INPUT BASE'!$C$17 -> 0 | J30: =J28*'1) INPUT BASE'!$C$17 -> 0 | K30: =K28*'1) INPUT BASE'!$C$17 -> 0 | L30: =L28*'1) INPUT BASE'!$C$17 -> 0 | M30: =M28*'1) INPUT BASE'!$C$17 -> 0 | P30: =P28*'1) INPUT BASE'!$C$17 -> 0 | Q30: =Q28*'1) INPUT BASE'!$C$17 -> 0 | R30: =R28*'1) INPUT BASE'!$C$17 -> 0 | S30: =S28*'1) INPUT BASE'!$C$17 -> 0 | T30: =T28*'1) INPUT BASE'!$C$17 -> 0 | U30: =U28*'1) INPUT BASE'!$C$17 -> 0 | V30: =V28*'1) INPUT BASE'!$C$17 -> 0 | W30: =W28*'1) INPUT BASE'!$C$17 -> 0 | X30: =X28*'1) INPUT BASE'!$C$17 -> 0 | Y30: =Y28*'1) INPUT BASE'!$C$17 -> 0 | Z30: =Z28*'1) INPUT BASE'!$C$17 -> 0 | AA30: =AA28*'1) INPUT BASE'!$C$17 -> 0 | AD30: =AD28*'1) INPUT BASE'!$C$17 -> 0 | AE30: =AE28*'1) INPUT BASE'!$C$17 -> 0 | AF30: =AF28*'1) INPUT BASE'!$C$17 -> 0 | AG30: =AG28*'1) INPUT BASE'!$C$17 -> 0 | AH30: =AH28*'1) INPUT BASE'!$C$17 -> 0 | AI30: =AI28*'1) INPUT BASE'!$C$17 -> 0 | AJ30: =AJ28*'1) INPUT BASE'!$C$17 -> 0 | AK30: =AK28*'1) INPUT BASE'!$C$17 -> 0 | AL30: =AL28*'1) INPUT BASE'!$C$17 -> 0 | AM30: =AM28*'1) INPUT BASE'!$C$17 -> 0 | AN30: =AN28*'1) INPUT BASE'!$C$17 -> 0 | AO30: =AO28*'1) INPUT BASE'!$C$17 -> 0
A31: Numero massimo notti prenot. CAM. DOP. | B31: =+B27*'1) INPUT BASE'!$C$18 -> 60 | C31: =+C27*'1) INPUT BASE'!$C$18 -> 62 | D31: =+D27*'1) INPUT BASE'!$C$18 -> 60 | E31: =+E27*'1) INPUT BASE'!$C$18 -> 62 | F31: =+F27*'1) INPUT BASE'!$C$18 -> 62 | G31: =+G27*'1) INPUT BASE'!$C$18 -> 60 | H31: =+H27*'1) INPUT BASE'!$C$18 -> 62 | I31: =+I27*'1) INPUT BASE'!$C$18 -> 60 | J31: =+J27*'1) INPUT BASE'!$C$18 -> 62 | K31: =+K27*'1) INPUT BASE'!$C$18 -> 62 | L31: =+L27*'1) INPUT BASE'!$C$18 -> 56 | M31: =+M27*'1) INPUT BASE'!$C$18 -> 62 | P31: =+P27*'1) INPUT BASE'!$C$18 -> 60 | Q31: =+Q27*'1) INPUT BASE'!$C$18 -> 62 | R31: =+R27*'1) INPUT BASE'!$C$18 -> 60 | S31: =+S27*'1) INPUT BASE'!$C$18 -> 62 | T31: =+T27*'1) INPUT BASE'!$C$18 -> 62 | U31: =+U27*'1) INPUT BASE'!$C$18 -> 60 | V31: =+V27*'1) INPUT BASE'!$C$18 -> 62 | W31: =+W27*'1) INPUT BASE'!$C$18 -> 60 | X31: =+X27*'1) INPUT BASE'!$C$18 -> 62 | Y31: =+Y27*'1) INPUT BASE'!$C$18 -> 62 | Z31: =+Z27*'1) INPUT BASE'!$C$18 -> 56 | AA31: =+AA27*'1) INPUT BASE'!$C$18 -> 62 | AD31: =+AD27*'1) INPUT BASE'!$C$18 -> 60 | AE31: =+AE27*'1) INPUT BASE'!$C$18 -> 62 | AF31: =+AF27*'1) INPUT BASE'!$C$18 -> 60 | AG31: =+AG27*'1) INPUT BASE'!$C$18 -> 62 | AH31: =+AH27*'1) INPUT BASE'!$C$18 -> 62 | AI31: =+AI27*'1) INPUT BASE'!$C$18 -> 60 | AJ31: =+AJ27*'1) INPUT BASE'!$C$18 -> 62 | AK31: =+AK27*'1) INPUT BASE'!$C$18 -> 60 | AL31: =+AL27*'1) INPUT BASE'!$C$18 -> 62 | AM31: =+AM27*'1) INPUT BASE'!$C$18 -> 62 | AN31: =+AN27*'1) INPUT BASE'!$C$18 -> 56 | AO31: =+AO27*'1) INPUT BASE'!$C$18 -> 62
A32: Numero massimo notti prenot. CAM. SING. | B32: =+B27*'1) INPUT BASE'!$C$19 -> 0 | C32: =+C27*'1) INPUT BASE'!$C$19 -> 0 | D32: =+D27*'1) INPUT BASE'!$C$19 -> 0 | E32: =+E27*'1) INPUT BASE'!$C$19 -> 0 | F32: =+F27*'1) INPUT BASE'!$C$19 -> 0 | G32: =+G27*'1) INPUT BASE'!$C$19 -> 0 | H32: =+H27*'1) INPUT BASE'!$C$19 -> 0 | I32: =+I27*'1) INPUT BASE'!$C$19 -> 0 | J32: =+J27*'1) INPUT BASE'!$C$19 -> 0 | K32: =+K27*'1) INPUT BASE'!$C$19 -> 0 | L32: =+L27*'1) INPUT BASE'!$C$19 -> 0 | M32: =+M27*'1) INPUT BASE'!$C$19 -> 0 | P32: =+P27*'1) INPUT BASE'!$C$19 -> 0 | Q32: =+Q27*'1) INPUT BASE'!$C$19 -> 0 | R32: =+R27*'1) INPUT BASE'!$C$19 -> 0 | S32: =+S27*'1) INPUT BASE'!$C$19 -> 0 | T32: =+T27*'1) INPUT BASE'!$C$19 -> 0 | U32: =+U27*'1) INPUT BASE'!$C$19 -> 0 | V32: =+V27*'1) INPUT BASE'!$C$19 -> 0 | W32: =+W27*'1) INPUT BASE'!$C$19 -> 0 | X32: =+X27*'1) INPUT BASE'!$C$19 -> 0 | Y32: =+Y27*'1) INPUT BASE'!$C$19 -> 0 | Z32: =+Z27*'1) INPUT BASE'!$C$19 -> 0 | AA32: =+AA27*'1) INPUT BASE'!$C$19 -> 0 | AD32: =+AD27*'1) INPUT BASE'!$C$19 -> 0 | AE32: =+AE27*'1) INPUT BASE'!$C$19 -> 0 | AF32: =+AF27*'1) INPUT BASE'!$C$19 -> 0 | AG32: =+AG27*'1) INPUT BASE'!$C$19 -> 0 | AH32: =+AH27*'1) INPUT BASE'!$C$19 -> 0 | AI32: =+AI27*'1) INPUT BASE'!$C$19 -> 0 | AJ32: =+AJ27*'1) INPUT BASE'!$C$19 -> 0 | AK32: =+AK27*'1) INPUT BASE'!$C$19 -> 0 | AL32: =+AL27*'1) INPUT BASE'!$C$19 -> 0 | AM32: =+AM27*'1) INPUT BASE'!$C$19 -> 0 | AN32: =+AN27*'1) INPUT BASE'!$C$19 -> 0 | AO32: =+AO27*'1) INPUT BASE'!$C$19 -> 0
A33: % prenotazioni totali | B33: =IFERROR(SUM(B17:B20)/B28,0) -> 0.2 | C33: =IFERROR(SUM(C17:C20)/C28,0) -> 0.5 | D33: =IFERROR(SUM(D17:D20)/D28,0) -> 0.9 | E33: 0.9 | F33: 0.9 | G33: 0.5 | H33: 0.2 | I33: 0.2 | J33: 0.9 | K33: =IFERROR(SUM(K17:K20)/K28,0) -> 0.2 | L33: 0.2 | M33: 0.2 | P33: =IFERROR(SUM(P17:P20)/P28,0) -> 0.2 | Q33: =IFERROR(SUM(Q17:Q20)/Q28,0) -> 0.5 | R33: 0.9 | S33: 0.9 | T33: 0.9 | U33: 0.5 | V33: 0.2 | W33: 0.2 | X33: 0.9 | Y33: =IFERROR(SUM(Y17:Y20)/Y28,0) -> 0.2 | Z33: 0.2 | AA33: 0.2 | AD33: =IFERROR(SUM(AD17:AD20)/AD28,0) -> 0.2 | AE33: =IFERROR(SUM(AE17:AE20)/AE28,0) -> 0.5 | AF33: 0.9 | AG33: 0.9 | AH33: 0.9 | AI33: 0.5 | AJ33: 0.2 | AK33: 0.2 | AL33: 0.9 | AM33: =IFERROR(SUM(AM17:AM20)/AM28,0) -> 0.2 | AN33: 0.2 | AO33: 0.2
A34: % prenotazioni quadruple | B34: =IFERROR(B17/B29,0) -> 0 | C34: =IFERROR(C17/C29,0) -> 0 | D34: 0 | E34: 0 | F34: 0 | G34: 0 | H34: 0 | I34: 0 | J34: 0 | K34: 0 | L34: 0 | M34: 0 | P34: =IFERROR(P17/P29,0) -> 0 | Q34: =IFERROR(Q17/Q29,0) -> 0 | R34: 0 | S34: 0 | T34: 0 | U34: 0 | V34: 0 | W34: 0 | X34: 0 | Y34: 0 | Z34: 0 | AA34: 0 | AD34: =IFERROR(AD17/AD29,0) -> 0 | AE34: =IFERROR(AE17/AE29,0) -> 0 | AF34: 0 | AG34: 0 | AH34: 0 | AI34: 0 | AJ34: 0 | AK34: 0 | AL34: 0 | AM34: 0 | AN34: 0 | AO34: 0
A35: % prenotazioni triple | B35: =IFERROR(B18/B30,0) -> 0 | C35: =IFERROR(C18/C30,0) -> 0 | D35: 0 | E35: 0 | F35: 0 | G35: 0 | H35: 0 | I35: 0 | J35: 0 | K35: 0 | L35: 0 | M35: 0 | P35: =IFERROR(P18/P30,0) -> 0 | Q35: =IFERROR(Q18/Q30,0) -> 0 | R35: 0 | S35: 0 | T35: 0 | U35: 0 | V35: 0 | W35: 0 | X35: 0 | Y35: 0 | Z35: 0 | AA35: 0 | AD35: =IFERROR(AD18/AD30,0) -> 0 | AE35: =IFERROR(AE18/AE30,0) -> 0 | AF35: 0 | AG35: 0 | AH35: 0 | AI35: 0 | AJ35: 0 | AK35: 0 | AL35: 0 | AM35: 0 | AN35: 0 | AO35: 0
A36: % prenotazioni doppie | B36: =IFERROR(B19/B31,0) -> 0.2 | C36: =IFERROR(C19/C31,0) -> 0.5 | D36: 0.9 | E36: 0.9 | F36: 0.9 | G36: 0.5 | H36: 0.2 | I36: 0.2 | J36: 0.9 | K36: 0.2 | L36: 0.2 | M36: 0.2 | P36: =IFERROR(P19/P31,0) -> 0.2 | Q36: =IFERROR(Q19/Q31,0) -> 0.5 | R36: 0.9 | S36: 0.9 | T36: 0.9 | U36: 0.5 | V36: 0.2 | W36: 0.2 | X36: 0.9 | Y36: 0.2 | Z36: 0.2 | AA36: 0.2 | AD36: =IFERROR(AD19/AD31,0) -> 0.2 | AE36: =IFERROR(AE19/AE31,0) -> 0.5 | AF36: 0.9 | AG36: 0.9 | AH36: 0.9 | AI36: 0.5 | AJ36: 0.2 | AK36: 0.2 | AL36: 0.9 | AM36: 0.2 | AN36: 0.2 | AO36: 0.2
A37: % prenotazioni singole | B37: =IFERROR(B20/B32,0) -> 0 | C37: =IFERROR(C20/C32,0) -> 0 | D37: 0 | E37: 0 | F37: 0 | G37: 0 | H37: 0 | I37: 0 | J37: 0 | K37: 0 | L37: 0 | M37: 0 | P37: =IFERROR(P20/P32,0) -> 0 | Q37: =IFERROR(Q20/Q32,0) -> 0 | R37: 0 | S37: 0 | T37: 0 | U37: 0 | V37: 0 | W37: 0 | X37: 0 | Y37: 0 | Z37: 0 | AA37: 0 | AD37: =IFERROR(AD20/AD32,0) -> 0 | AE37: =IFERROR(AE20/AE32,0) -> 0 | AF37: 0 | AG37: 0 | AH37: 0 | AI37: 0 | AJ37: 0 | AK37: 0 | AL37: 0 | AM37: 0 | AN37: 0 | AO37: 0
B38: MESI | N38: ANNO 1 | O38: =+O15 -> RIPRISITNA | P38: MESI | AB38: ANNO 2 | AC38: RIPRISTINA | AD38: MESI | AP38: ANNO 3
A39: PREZZI UNITARIO SERVIZIO | B39: =+B16 -> 2016-04-30 | C39: =+EOMONTH(B39,1) -> 2016-05-31 | D39: =+EOMONTH(C39,1) -> 2016-06-30 | E39: 2016-07-31 | F39: 2016-08-31 | G39: 2016-09-30 | H39: 2016-10-31 | I39: 2016-11-30 | J39: 2016-12-31 | K39: 2017-01-31 | L39: 2017-02-28 | M39: 2017-03-31 | O39: IPOTESI % | P39: =+EOMONTH(M39,1) -> 2017-04-30 | Q39: =+EOMONTH(P39,1) -> 2017-05-31 | R39: =+EOMONTH(Q39,1) -> 2017-06-30 | S39: 2017-07-31 | T39: 2017-08-31 | U39: 2017-09-30 | V39: 2017-10-31 | W39: 2017-11-30 | X39: 2017-12-31 | Y39: 2018-01-31 | Z39: 2018-02-28 | AA39: =+EOMONTH(Z39,1) -> 2018-03-31 | AC39: IPOTESI % | AD39: =+EOMONTH(AA39,1) -> 2018-04-30 | AE39: =+EOMONTH(AD39,1) -> 2018-05-31 | AF39: =+EOMONTH(AE39,1) -> 2018-06-30 | AG39: 2018-07-31 | AH39: 2018-08-31 | AI39: 2018-09-30 | AJ39: 2018-10-31 | AK39: 2018-11-30 | AL39: 2018-12-31 | AM39: 2019-01-31 | AN39: 2019-02-28 | AO39: 2019-03-31
A40: =+A17 -> CAMERE QUADRUPLE | B40: =+IF(B$3="ALTA",'1) INPUT BASE'!$D$16,IF(B$3="MEDIA",'1) INPUT BASE'!$E$16,IF(B$3="BASSA",'1) INPUT BASE'!$F$16,"ERRORE"))) -> 0 | C40: =+IF(C$3="ALTA",'1) INPUT BASE'!$D$16,IF(C$3="MEDIA",'1) INPUT BASE'!$E$16,IF(C$3="BASSA",'1) INPUT BASE'!$F$16,"ERRORE"))) -> 0 | D40: =+IF(D$3="ALTA",'1) INPUT BASE'!$D$16,IF(D$3="MEDIA",'1) INPUT BASE'!$E$16,IF(D$3="BASSA",'1) INPUT BASE'!$F$16,"ERRORE"))) -> 0 | E40: =+IF(E$3="ALTA",'1) INPUT BASE'!$D$16,IF(E$3="MEDIA",'1) INPUT BASE'!$E$16,IF(E$3="BASSA",'1) INPUT BASE'!$F$16,"ERRORE"))) -> 0 | F40: =+IF(F$3="ALTA",'1) INPUT BASE'!$D$16,IF(F$3="MEDIA",'1) INPUT BASE'!$E$16,IF(F$3="BASSA",'1) INPUT BASE'!$F$16,"ERRORE"))) -> 0 | G40: =+IF(G$3="ALTA",'1) INPUT BASE'!$D$16,IF(G$3="MEDIA",'1) INPUT BASE'!$E$16,IF(G$3="BASSA",'1) INPUT BASE'!$F$16,"ERRORE"))) -> 0 | H40: =+IF(H$3="ALTA",'1) INPUT BASE'!$D$16,IF(H$3="MEDIA",'1) INPUT BASE'!$E$16,IF(H$3="BASSA",'1) INPUT BASE'!$F$16,"ERRORE"))) -> 0 | I40: =+IF(I$3="ALTA",'1) INPUT BASE'!$D$16,IF(I$3="MEDIA",'1) INPUT BASE'!$E$16,IF(I$3="BASSA",'1) INPUT BASE'!$F$16,"ERRORE"))) -> 0 | J40: =+IF(J$3="ALTA",'1) INPUT BASE'!$D$16,IF(J$3="MEDIA",'1) INPUT BASE'!$E$16,IF(J$3="BASSA",'1) INPUT BASE'!$F$16,"ERRORE"))) -> 0 | K40: =+IF(K$3="ALTA",'1) INPUT BASE'!$D$16,IF(K$3="MEDIA",'1) INPUT BASE'!$E$16,IF(K$3="BASSA",'1) INPUT BASE'!$F$16,"ERRORE"))) -> 0 | L40: =+IF(L$3="ALTA",'1) INPUT BASE'!$D$16,IF(L$3="MEDIA",'1) INPUT BASE'!$E$16,IF(L$3="BASSA",'1) INPUT BASE'!$F$16,"ERRORE"))) -> 0 | M40: =+IF(M$3="ALTA",'1) INPUT BASE'!$D$16,IF(M$3="MEDIA",'1) INPUT BASE'!$E$16,IF(M$3="BASSA",'1) INPUT BASE'!$F$16,"ERRORE"))) -> 0 | O40: 0 | P40: =+(1+$O40)*B40 -> 0 | Q40: =+(1+$O40)*C40 -> 0 | R40: =+(1+$O40)*D40 -> 0 | S40: =+(1+$O40)*E40 -> 0 | T40: =+(1+$O40)*F40 -> 0 | U40: =+(1+$O40)*G40 -> 0 | V40: =+(1+$O40)*H40 -> 0 | W40: =+(1+$O40)*I40 -> 0 | X40: =+(1+$O40)*J40 -> 0 | Y40: =+(1+$O40)*K40 -> 0 | Z40: =+(1+$O40)*L40 -> 0 | AA40: =+(1+$O40)*M40 -> 0 | AC40: 0 | AD40: =+(1+$AC40)*P40 -> 0 | AE40: =+(1+$AC40)*Q40 -> 0 | AF40: =+(1+$AC40)*R40 -> 0 | AG40: =+(1+$AC40)*S40 -> 0 | AH40: =+(1+$AC40)*T40 -> 0 | AI40: =+(1+$AC40)*U40 -> 0 | AJ40: =+(1+$AC40)*V40 -> 0 | AK40: =+(1+$AC40)*W40 -> 0 | AL40: =+(1+$AC40)*X40 -> 0 | AM40: =+(1+$AC40)*Y40 -> 0 | AN40: =+(1+$AC40)*Z40 -> 0 | AO40: =+(1+$AC40)*AA40 -> 0
A41: CAMERE TRIPLE | B41: =+IF(B$3="ALTA",'1) INPUT BASE'!$D$17,IF(B$3="MEDIA",'1) INPUT BASE'!$E$17,IF(B$3="BASSA",'1) INPUT BASE'!$F$17,"ERRORE"))) -> 0 | C41: =+IF(C$3="ALTA",'1) INPUT BASE'!$D$17,IF(C$3="MEDIA",'1) INPUT BASE'!$E$17,IF(C$3="BASSA",'1) INPUT BASE'!$F$17,"ERRORE"))) -> 0 | D41: =+IF(D$3="ALTA",'1) INPUT BASE'!$D$17,IF(D$3="MEDIA",'1) INPUT BASE'!$E$17,IF(D$3="BASSA",'1) INPUT BASE'!$F$17,"ERRORE"))) -> 0 | E41: =+IF(E$3="ALTA",'1) INPUT BASE'!$D$17,IF(E$3="MEDIA",'1) INPUT BASE'!$E$17,IF(E$3="BASSA",'1) INPUT BASE'!$F$17,"ERRORE"))) -> 0 | F41: =+IF(F$3="ALTA",'1) INPUT BASE'!$D$17,IF(F$3="MEDIA",'1) INPUT BASE'!$E$17,IF(F$3="BASSA",'1) INPUT BASE'!$F$17,"ERRORE"))) -> 0 | G41: =+IF(G$3="ALTA",'1) INPUT BASE'!$D$17,IF(G$3="MEDIA",'1) INPUT BASE'!$E$17,IF(G$3="BASSA",'1) INPUT BASE'!$F$17,"ERRORE"))) -> 0 | H41: =+IF(H$3="ALTA",'1) INPUT BASE'!$D$17,IF(H$3="MEDIA",'1) INPUT BASE'!$E$17,IF(H$3="BASSA",'1) INPUT BASE'!$F$17,"ERRORE"))) -> 0 | I41: =+IF(I$3="ALTA",'1) INPUT BASE'!$D$17,IF(I$3="MEDIA",'1) INPUT BASE'!$E$17,IF(I$3="BASSA",'1) INPUT BASE'!$F$17,"ERRORE"))) -> 0 | J41: =+IF(J$3="ALTA",'1) INPUT BASE'!$D$17,IF(J$3="MEDIA",'1) INPUT BASE'!$E$17,IF(J$3="BASSA",'1) INPUT BASE'!$F$17,"ERRORE"))) -> 0 | K41: =+IF(K$3="ALTA",'1) INPUT BASE'!$D$17,IF(K$3="MEDIA",'1) INPUT BASE'!$E$17,IF(K$3="BASSA",'1) INPUT BASE'!$F$17,"ERRORE"))) -> 0 | L41: =+IF(L$3="ALTA",'1) INPUT BASE'!$D$17,IF(L$3="MEDIA",'1) INPUT BASE'!$E$17,IF(L$3="BASSA",'1) INPUT BASE'!$F$17,"ERRORE"))) -> 0 | M41: =+IF(M$3="ALTA",'1) INPUT BASE'!$D$17,IF(M$3="MEDIA",'1) INPUT BASE'!$E$17,IF(M$3="BASSA",'1) INPUT BASE'!$F$17,"ERRORE"))) -> 0 | O41: 0 | P41: 0 | Q41: 0 | R41: 0 | S41: 0 | T41: 0 | U41: 0 | V41: 0 | W41: 0 | X41: 0 | Y41: 0 | Z41: 0 | AA41: 0 | AC41: 0 | AD41: 0 | AE41: 0 | AF41: 0 | AG41: 0 | AH41: 0 | AI41: 0 | AJ41: 0 | AK41: 0 | AL41: 0 | AM41: 0 | AN41: 0 | AO41: 0
A42: CAMERE DOPPIE | B42: =+IF(B$3="ALTA",'1) INPUT BASE'!$D$18,IF(B$3="MEDIA",'1) INPUT BASE'!$E$18,IF(B$3="BASSA",'1) INPUT BASE'!$F$18,"ERRORE"))) -> 50 | C42: =+IF(C$3="ALTA",'1) INPUT BASE'!$D$18,IF(C$3="MEDIA",'1) INPUT BASE'!$E$18,IF(C$3="BASSA",'1) INPUT BASE'!$F$18,"ERRORE"))) -> 70 | D42: =+IF(D$3="ALTA",'1) INPUT BASE'!$D$18,IF(D$3="MEDIA",'1) INPUT BASE'!$E$18,IF(D$3="BASSA",'1) INPUT BASE'!$F$18,"ERRORE"))) -> 90 | E42: =+IF(E$3="ALTA",'1) INPUT BASE'!$D$18,IF(E$3="MEDIA",'1) INPUT BASE'!$E$18,IF(E$3="BASSA",'1) INPUT BASE'!$F$18,"ERRORE"))) -> 90 | F42: =+IF(F$3="ALTA",'1) INPUT BASE'!$D$18,IF(F$3="MEDIA",'1) INPUT BASE'!$E$18,IF(F$3="BASSA",'1) INPUT BASE'!$F$18,"ERRORE"))) -> 90 | G42: =+IF(G$3="ALTA",'1) INPUT BASE'!$D$18,IF(G$3="MEDIA",'1) INPUT BASE'!$E$18,IF(G$3="BASSA",'1) INPUT BASE'!$F$18,"ERRORE"))) -> 70 | H42: =+IF(H$3="ALTA",'1) INPUT BASE'!$D$18,IF(H$3="MEDIA",'1) INPUT BASE'!$E$18,IF(H$3="BASSA",'1) INPUT BASE'!$F$18,"ERRORE"))) -> 50 | I42: =+IF(I$3="ALTA",'1) INPUT BASE'!$D$18,IF(I$3="MEDIA",'1) INPUT BASE'!$E$18,IF(I$3="BASSA",'1) INPUT BASE'!$F$18,"ERRORE"))) -> 50 | J42: =+IF(J$3="ALTA",'1) INPUT BASE'!$D$18,IF(J$3="MEDIA",'1) INPUT BASE'!$E$18,IF(J$3="BASSA",'1) INPUT BASE'!$F$18,"ERRORE"))) -> 90 | K42: =+IF(K$3="ALTA",'1) INPUT BASE'!$D$18,IF(K$3="MEDIA",'1) INPUT BASE'!$E$18,IF(K$3="BASSA",'1) INPUT BASE'!$F$18,"ERRORE"))) -> 50 | L42: =+IF(L$3="ALTA",'1) INPUT BASE'!$D$18,IF(L$3="MEDIA",'1) INPUT BASE'!$E$18,IF(L$3="BASSA",'1) INPUT BASE'!$F$18,"ERRORE"))) -> 50 | M42: =+IF(M$3="ALTA",'1) INPUT BASE'!$D$18,IF(M$3="MEDIA",'1) INPUT BASE'!$E$18,IF(M$3="BASSA",'1) INPUT BASE'!$F$18,"ERRORE"))) -> 50 | O42: 0 | P42: 50 | Q42: 70 | R42: 90 | S42: 90 | T42: 90 | U42: 70 | V42: 50 | W42: 50 | X42: 90 | Y42: 50 | Z42: 50 | AA42: 50 | AC42: 0 | AD42: 50 | AE42: 70 | AF42: 90 | AG42: 90 | AH42: 90 | AI42: 70 | AJ42: 50 | AK42: 50 | AL42: 90 | AM42: 50 | AN42: 50 | AO42: 50
A43: CAMERE SINGOLE | B43: =+IF(B$3="ALTA",'1) INPUT BASE'!$D$19,IF(B$3="MEDIA",'1) INPUT BASE'!$E$19,IF(B$3="BASSA",'1) INPUT BASE'!$F$19,"ERRORE"))) -> 0 | C43: =+IF(C$3="ALTA",'1) INPUT BASE'!$D$19,IF(C$3="MEDIA",'1) INPUT BASE'!$E$19,IF(C$3="BASSA",'1) INPUT BASE'!$F$19,"ERRORE"))) -> 0 | D43: =+IF(D$3="ALTA",'1) INPUT BASE'!$D$19,IF(D$3="MEDIA",'1) INPUT BASE'!$E$19,IF(D$3="BASSA",'1) INPUT BASE'!$F$19,"ERRORE"))) -> 0 | E43: =+IF(E$3="ALTA",'1) INPUT BASE'!$D$19,IF(E$3="MEDIA",'1) INPUT BASE'!$E$19,IF(E$3="BASSA",'1) INPUT BASE'!$F$19,"ERRORE"))) -> 0 | F43: =+IF(F$3="ALTA",'1) INPUT BASE'!$D$19,IF(F$3="MEDIA",'1) INPUT BASE'!$E$19,IF(F$3="BASSA",'1) INPUT BASE'!$F$19,"ERRORE"))) -> 0 | G43: =+IF(G$3="ALTA",'1) INPUT BASE'!$D$19,IF(G$3="MEDIA",'1) INPUT BASE'!$E$19,IF(G$3="BASSA",'1) INPUT BASE'!$F$19,"ERRORE"))) -> 0 | H43: =+IF(H$3="ALTA",'1) INPUT BASE'!$D$19,IF(H$3="MEDIA",'1) INPUT BASE'!$E$19,IF(H$3="BASSA",'1) INPUT BASE'!$F$19,"ERRORE"))) -> 0 | I43: =+IF(I$3="ALTA",'1) INPUT BASE'!$D$19,IF(I$3="MEDIA",'1) INPUT BASE'!$E$19,IF(I$3="BASSA",'1) INPUT BASE'!$F$19,"ERRORE"))) -> 0 | J43: =+IF(J$3="ALTA",'1) INPUT BASE'!$D$19,IF(J$3="MEDIA",'1) INPUT BASE'!$E$19,IF(J$3="BASSA",'1) INPUT BASE'!$F$19,"ERRORE"))) -> 0 | K43: =+IF(K$3="ALTA",'1) INPUT BASE'!$D$19,IF(K$3="MEDIA",'1) INPUT BASE'!$E$19,IF(K$3="BASSA",'1) INPUT BASE'!$F$19,"ERRORE"))) -> 0 | L43: =+IF(L$3="ALTA",'1) INPUT BASE'!$D$19,IF(L$3="MEDIA",'1) INPUT BASE'!$E$19,IF(L$3="BASSA",'1) INPUT BASE'!$F$19,"ERRORE"))) -> 0 | M43: =+IF(M$3="ALTA",'1) INPUT BASE'!$D$19,IF(M$3="MEDIA",'1) INPUT BASE'!$E$19,IF(M$3="BASSA",'1) INPUT BASE'!$F$19,"ERRORE"))) -> 0 | O43: 0 | P43: 0 | Q43: 0 | R43: 0 | S43: 0 | T43: 0 | U43: 0 | V43: 0 | W43: 0 | X43: 0 | Y43: 0 | Z43: 0 | AA43: 0 | AC43: 0 | AD43: 0 | AE43: 0 | AF43: 0 | AG43: 0 | AH43: 0 | AI43: 0 | AJ43: 0 | AK43: 0 | AL43: 0 | AM43: 0 | AN43: 0 | AO43: 0
A44: VISITE GUIDATE | B44: =+IF(B$3="ALTA",'1) INPUT BASE'!$D$20,IF(B$3="MEDIA",'1) INPUT BASE'!$E$20,IF(B$3="BASSA",'1) INPUT BASE'!$F$20,"ERRORE"))) -> 0 | C44: =+IF(C$3="ALTA",'1) INPUT BASE'!$D$20,IF(C$3="MEDIA",'1) INPUT BASE'!$E$20,IF(C$3="BASSA",'1) INPUT BASE'!$F$20,"ERRORE"))) -> 0 | D44: =+IF(D$3="ALTA",'1) INPUT BASE'!$D$20,IF(D$3="MEDIA",'1) INPUT BASE'!$E$20,IF(D$3="BASSA",'1) INPUT BASE'!$F$20,"ERRORE"))) -> 0 | E44: =+IF(E$3="ALTA",'1) INPUT BASE'!$D$20,IF(E$3="MEDIA",'1) INPUT BASE'!$E$20,IF(E$3="BASSA",'1) INPUT BASE'!$F$20,"ERRORE"))) -> 0 | F44: =+IF(F$3="ALTA",'1) INPUT BASE'!$D$20,IF(F$3="MEDIA",'1) INPUT BASE'!$E$20,IF(F$3="BASSA",'1) INPUT BASE'!$F$20,"ERRORE"))) -> 0 | G44: =+IF(G$3="ALTA",'1) INPUT BASE'!$D$20,IF(G$3="MEDIA",'1) INPUT BASE'!$E$20,IF(G$3="BASSA",'1) INPUT BASE'!$F$20,"ERRORE"))) -> 0 | H44: =+IF(H$3="ALTA",'1) INPUT BASE'!$D$20,IF(H$3="MEDIA",'1) INPUT BASE'!$E$20,IF(H$3="BASSA",'1) INPUT BASE'!$F$20,"ERRORE"))) -> 0 | I44: =+IF(I$3="ALTA",'1) INPUT BASE'!$D$20,IF(I$3="MEDIA",'1) INPUT BASE'!$E$20,IF(I$3="BASSA",'1) INPUT BASE'!$F$20,"ERRORE"))) -> 0 | J44: =+IF(J$3="ALTA",'1) INPUT BASE'!$D$20,IF(J$3="MEDIA",'1) INPUT BASE'!$E$20,IF(J$3="BASSA",'1) INPUT BASE'!$F$20,"ERRORE"))) -> 0 | K44: =+IF(K$3="ALTA",'1) INPUT BASE'!$D$20,IF(K$3="MEDIA",'1) INPUT BASE'!$E$20,IF(K$3="BASSA",'1) INPUT BASE'!$F$20,"ERRORE"))) -> 0 | L44: =+IF(L$3="ALTA",'1) INPUT BASE'!$D$20,IF(L$3="MEDIA",'1) INPUT BASE'!$E$20,IF(L$3="BASSA",'1) INPUT BASE'!$F$20,"ERRORE"))) -> 0 | M44: =+IF(M$3="ALTA",'1) INPUT BASE'!$D$20,IF(M$3="MEDIA",'1) INPUT BASE'!$E$20,IF(M$3="BASSA",'1) INPUT BASE'!$F$20,"ERRORE"))) -> 0 | O44: 0 | P44: 0 | Q44: 0 | R44: 0 | S44: 0 | T44: 0 | U44: 0 | V44: 0 | W44: 0 | X44: 0 | Y44: 0 | Z44: 0 | AA44: 0 | AC44: 0 | AD44: 0 | AE44: 0 | AF44: 0 | AG44: 0 | AH44: 0 | AI44: 0 | AJ44: 0 | AK44: 0 | AL44: 0 | AM44: 0 | AN44: 0 | AO44: 0
A45: Altri ricavi | B45: =+IF(B$3="ALTA",'1) INPUT BASE'!$D$21,IF(B$3="MEDIA",'1) INPUT BASE'!$E$21,IF(B$3="BASSA",'1) INPUT BASE'!$F$21,"ERRORE"))) -> 0 | C45: =+IF(C$3="ALTA",'1) INPUT BASE'!$D$21,IF(C$3="MEDIA",'1) INPUT BASE'!$E$21,IF(C$3="BASSA",'1) INPUT BASE'!$F$21,"ERRORE"))) -> 0 | D45: =+IF(D$3="ALTA",'1) INPUT BASE'!$D$21,IF(D$3="MEDIA",'1) INPUT BASE'!$E$21,IF(D$3="BASSA",'1) INPUT BASE'!$F$21,"ERRORE"))) -> 0 | E45: =+IF(E$3="ALTA",'1) INPUT BASE'!$D$21,IF(E$3="MEDIA",'1) INPUT BASE'!$E$21,IF(E$3="BASSA",'1) INPUT BASE'!$F$21,"ERRORE"))) -> 0 | F45: =+IF(F$3="ALTA",'1) INPUT BASE'!$D$21,IF(F$3="MEDIA",'1) INPUT BASE'!$E$21,IF(F$3="BASSA",'1) INPUT BASE'!$F$21,"ERRORE"))) -> 0 | G45: =+IF(G$3="ALTA",'1) INPUT BASE'!$D$21,IF(G$3="MEDIA",'1) INPUT BASE'!$E$21,IF(G$3="BASSA",'1) INPUT BASE'!$F$21,"ERRORE"))) -> 0 | H45: =+IF(H$3="ALTA",'1) INPUT BASE'!$D$21,IF(H$3="MEDIA",'1) INPUT BASE'!$E$21,IF(H$3="BASSA",'1) INPUT BASE'!$F$21,"ERRORE"))) -> 0 | I45: =+IF(I$3="ALTA",'1) INPUT BASE'!$D$21,IF(I$3="MEDIA",'1) INPUT BASE'!$E$21,IF(I$3="BASSA",'1) INPUT BASE'!$F$21,"ERRORE"))) -> 0 | J45: =+IF(J$3="ALTA",'1) INPUT BASE'!$D$21,IF(J$3="MEDIA",'1) INPUT BASE'!$E$21,IF(J$3="BASSA",'1) INPUT BASE'!$F$21,"ERRORE"))) -> 0 | K45: =+IF(K$3="ALTA",'1) INPUT BASE'!$D$21,IF(K$3="MEDIA",'1) INPUT BASE'!$E$21,IF(K$3="BASSA",'1) INPUT BASE'!$F$21,"ERRORE"))) -> 0 | L45: =+IF(L$3="ALTA",'1) INPUT BASE'!$D$21,IF(L$3="MEDIA",'1) INPUT BASE'!$E$21,IF(L$3="BASSA",'1) INPUT BASE'!$F$21,"ERRORE"))) -> 0 | M45: =+IF(M$3="ALTA",'1) INPUT BASE'!$D$21,IF(M$3="MEDIA",'1) INPUT BASE'!$E$21,IF(M$3="BASSA",'1) INPUT BASE'!$F$21,"ERRORE"))) -> 0 | O45: 0 | P45: 0 | Q45: 0 | R45: 0 | S45: 0 | T45: 0 | U45: 0 | V45: 0 | W45: 0 | X45: 0 | Y45: 0 | Z45: 0 | AA45: 0 | AC45: 0 | AD45: 0 | AE45: 0 | AF45: 0 | AG45: 0 | AH45: 0 | AI45: 0 | AJ45: 0 | AK45: 0 | AL45: 0 | AM45: 0 | AN45: 0 | AO45: 0
A46: Altri ricavi | B46: =+IF(B$3="ALTA",'1) INPUT BASE'!$D$22,IF(B$3="MEDIA",'1) INPUT BASE'!$E$22,IF(B$3="BASSA",'1) INPUT BASE'!$F$22,"ERRORE"))) -> 0 | C46: =+IF(C$3="ALTA",'1) INPUT BASE'!$D$22,IF(C$3="MEDIA",'1) INPUT BASE'!$E$22,IF(C$3="BASSA",'1) INPUT BASE'!$F$22,"ERRORE"))) -> 0 | D46: =+IF(D$3="ALTA",'1) INPUT BASE'!$D$22,IF(D$3="MEDIA",'1) INPUT BASE'!$E$22,IF(D$3="BASSA",'1) INPUT BASE'!$F$22,"ERRORE"))) -> 0 | E46: =+IF(E$3="ALTA",'1) INPUT BASE'!$D$22,IF(E$3="MEDIA",'1) INPUT BASE'!$E$22,IF(E$3="BASSA",'1) INPUT BASE'!$F$22,"ERRORE"))) -> 0 | F46: =+IF(F$3="ALTA",'1) INPUT BASE'!$D$22,IF(F$3="MEDIA",'1) INPUT BASE'!$E$22,IF(F$3="BASSA",'1) INPUT BASE'!$F$22,"ERRORE"))) -> 0 | G46: =+IF(G$3="ALTA",'1) INPUT BASE'!$D$22,IF(G$3="MEDIA",'1) INPUT BASE'!$E$22,IF(G$3="BASSA",'1) INPUT BASE'!$F$22,"ERRORE"))) -> 0 | H46: =+IF(H$3="ALTA",'1) INPUT BASE'!$D$22,IF(H$3="MEDIA",'1) INPUT BASE'!$E$22,IF(H$3="BASSA",'1) INPUT BASE'!$F$22,"ERRORE"))) -> 0 | I46: =+IF(I$3="ALTA",'1) INPUT BASE'!$D$22,IF(I$3="MEDIA",'1) INPUT BASE'!$E$22,IF(I$3="BASSA",'1) INPUT BASE'!$F$22,"ERRORE"))) -> 0 | J46: =+IF(J$3="ALTA",'1) INPUT BASE'!$D$22,IF(J$3="MEDIA",'1) INPUT BASE'!$E$22,IF(J$3="BASSA",'1) INPUT BASE'!$F$22,"ERRORE"))) -> 0 | K46: =+IF(K$3="ALTA",'1) INPUT BASE'!$D$22,IF(K$3="MEDIA",'1) INPUT BASE'!$E$22,IF(K$3="BASSA",'1) INPUT BASE'!$F$22,"ERRORE"))) -> 0 | L46: =+IF(L$3="ALTA",'1) INPUT BASE'!$D$22,IF(L$3="MEDIA",'1) INPUT BASE'!$E$22,IF(L$3="BASSA",'1) INPUT BASE'!$F$22,"ERRORE"))) -> 0 | M46: =+IF(M$3="ALTA",'1) INPUT BASE'!$D$22,IF(M$3="MEDIA",'1) INPUT BASE'!$E$22,IF(M$3="BASSA",'1) INPUT BASE'!$F$22,"ERRORE"))) -> 0 | O46: 0 | P46: 0 | Q46: 0 | R46: 0 | S46: 0 | T46: 0 | U46: 0 | V46: 0 | W46: 0 | X46: 0 | Y46: 0 | Z46: 0 | AA46: 0 | AC46: 0 | AD46: 0 | AE46: 0 | AF46: 0 | AG46: 0 | AH46: 0 | AI46: 0 | AJ46: 0 | AK46: 0 | AL46: 0 | AM46: 0 | AN46: 0 | AO46: 0
A47: Altri ricavi | B47: =+IF(B$3="ALTA",'1) INPUT BASE'!$D$23,IF(B$3="MEDIA",'1) INPUT BASE'!$E$23,IF(B$3="BASSA",'1) INPUT BASE'!$F$23,"ERRORE"))) -> 0 | C47: =+IF(C$3="ALTA",'1) INPUT BASE'!$D$23,IF(C$3="MEDIA",'1) INPUT BASE'!$E$23,IF(C$3="BASSA",'1) INPUT BASE'!$F$23,"ERRORE"))) -> 0 | D47: =+IF(D$3="ALTA",'1) INPUT BASE'!$D$23,IF(D$3="MEDIA",'1) INPUT BASE'!$E$23,IF(D$3="BASSA",'1) INPUT BASE'!$F$23,"ERRORE"))) -> 0 | E47: =+IF(E$3="ALTA",'1) INPUT BASE'!$D$23,IF(E$3="MEDIA",'1) INPUT BASE'!$E$23,IF(E$3="BASSA",'1) INPUT BASE'!$F$23,"ERRORE"))) -> 0 | F47: =+IF(F$3="ALTA",'1) INPUT BASE'!$D$23,IF(F$3="MEDIA",'1) INPUT BASE'!$E$23,IF(F$3="BASSA",'1) INPUT BASE'!$F$23,"ERRORE"))) -> 0 | G47: =+IF(G$3="ALTA",'1) INPUT BASE'!$D$23,IF(G$3="MEDIA",'1) INPUT BASE'!$E$23,IF(G$3="BASSA",'1) INPUT BASE'!$F$23,"ERRORE"))) -> 0 | H47: =+IF(H$3="ALTA",'1) INPUT BASE'!$D$23,IF(H$3="MEDIA",'1) INPUT BASE'!$E$23,IF(H$3="BASSA",'1) INPUT BASE'!$F$23,"ERRORE"))) -> 0 | I47: =+IF(I$3="ALTA",'1) INPUT BASE'!$D$23,IF(I$3="MEDIA",'1) INPUT BASE'!$E$23,IF(I$3="BASSA",'1) INPUT BASE'!$F$23,"ERRORE"))) -> 0 | J47: =+IF(J$3="ALTA",'1) INPUT BASE'!$D$23,IF(J$3="MEDIA",'1) INPUT BASE'!$E$23,IF(J$3="BASSA",'1) INPUT BASE'!$F$23,"ERRORE"))) -> 0 | K47: =+IF(K$3="ALTA",'1) INPUT BASE'!$D$23,IF(K$3="MEDIA",'1) INPUT BASE'!$E$23,IF(K$3="BASSA",'1) INPUT BASE'!$F$23,"ERRORE"))) -> 0 | L47: =+IF(L$3="ALTA",'1) INPUT BASE'!$D$23,IF(L$3="MEDIA",'1) INPUT BASE'!$E$23,IF(L$3="BASSA",'1) INPUT BASE'!$F$23,"ERRORE"))) -> 0 | M47: =+IF(M$3="ALTA",'1) INPUT BASE'!$D$23,IF(M$3="MEDIA",'1) INPUT BASE'!$E$23,IF(M$3="BASSA",'1) INPUT BASE'!$F$23,"ERRORE"))) -> 0 | O47: 0 | P47: 0 | Q47: 0 | R47: 0 | S47: 0 | T47: 0 | U47: 0 | V47: 0 | W47: 0 | X47: 0 | Y47: 0 | Z47: 0 | AA47: 0 | AC47: 0 | AD47: 0 | AE47: 0 | AF47: 0 | AG47: 0 | AH47: 0 | AI47: 0 | AJ47: 0 | AK47: 0 | AL47: 0 | AM47: 0 | AN47: 0 | AO47: 0
A48: Altri ricavi | B48: =+IF(B$3="ALTA",'1) INPUT BASE'!$D$24,IF(B$3="MEDIA",'1) INPUT BASE'!$E$24,IF(B$3="BASSA",'1) INPUT BASE'!$F$24,"ERRORE"))) -> 0 | C48: =+IF(C$3="ALTA",'1) INPUT BASE'!$D$24,IF(C$3="MEDIA",'1) INPUT BASE'!$E$24,IF(C$3="BASSA",'1) INPUT BASE'!$F$24,"ERRORE"))) -> 0 | D48: =+IF(D$3="ALTA",'1) INPUT BASE'!$D$24,IF(D$3="MEDIA",'1) INPUT BASE'!$E$24,IF(D$3="BASSA",'1) INPUT BASE'!$F$24,"ERRORE"))) -> 0 | E48: =+IF(E$3="ALTA",'1) INPUT BASE'!$D$24,IF(E$3="MEDIA",'1) INPUT BASE'!$E$24,IF(E$3="BASSA",'1) INPUT BASE'!$F$24,"ERRORE"))) -> 0 | F48: =+IF(F$3="ALTA",'1) INPUT BASE'!$D$24,IF(F$3="MEDIA",'1) INPUT BASE'!$E$24,IF(F$3="BASSA",'1) INPUT BASE'!$F$24,"ERRORE"))) -> 0 | G48: =+IF(G$3="ALTA",'1) INPUT BASE'!$D$24,IF(G$3="MEDIA",'1) INPUT BASE'!$E$24,IF(G$3="BASSA",'1) INPUT BASE'!$F$24,"ERRORE"))) -> 0 | H48: =+IF(H$3="ALTA",'1) INPUT BASE'!$D$24,IF(H$3="MEDIA",'1) INPUT BASE'!$E$24,IF(H$3="BASSA",'1) INPUT BASE'!$F$24,"ERRORE"))) -> 0 | I48: =+IF(I$3="ALTA",'1) INPUT BASE'!$D$24,IF(I$3="MEDIA",'1) INPUT BASE'!$E$24,IF(I$3="BASSA",'1) INPUT BASE'!$F$24,"ERRORE"))) -> 0 | J48: =+IF(J$3="ALTA",'1) INPUT BASE'!$D$24,IF(J$3="MEDIA",'1) INPUT BASE'!$E$24,IF(J$3="BASSA",'1) INPUT BASE'!$F$24,"ERRORE"))) -> 0 | K48: =+IF(K$3="ALTA",'1) INPUT BASE'!$D$24,IF(K$3="MEDIA",'1) INPUT BASE'!$E$24,IF(K$3="BASSA",'1) INPUT BASE'!$F$24,"ERRORE"))) -> 0 | L48: =+IF(L$3="ALTA",'1) INPUT BASE'!$D$24,IF(L$3="MEDIA",'1) INPUT BASE'!$E$24,IF(L$3="BASSA",'1) INPUT BASE'!$F$24,"ERRORE"))) -> 0 | M48: =+IF(M$3="ALTA",'1) INPUT BASE'!$D$24,IF(M$3="MEDIA",'1) INPUT BASE'!$E$24,IF(M$3="BASSA",'1) INPUT BASE'!$F$24,"ERRORE"))) -> 0 | O48: 0 | P48: 0 | Q48: 0 | R48: 0 | S48: 0 | T48: 0 | U48: 0 | V48: 0 | W48: 0 | X48: 0 | Y48: 0 | Z48: 0 | AA48: 0 | AC48: 0 | AD48: 0 | AE48: 0 | AF48: 0 | AG48: 0 | AH48: 0 | AI48: 0 | AJ48: 0 | AK48: 0 | AL48: 0 | AM48: 0 | AN48: 0 | AO48: 0
A49: Altri ricavi | B49: =+IF(B$3="ALTA",'1) INPUT BASE'!$D$25,IF(B$3="MEDIA",'1) INPUT BASE'!$E$25,IF(B$3="BASSA",'1) INPUT BASE'!$F$25,"ERRORE"))) -> 0 | C49: =+IF(C$3="ALTA",'1) INPUT BASE'!$D$25,IF(C$3="MEDIA",'1) INPUT BASE'!$E$25,IF(C$3="BASSA",'1) INPUT BASE'!$F$25,"ERRORE"))) -> 0 | D49: =+IF(D$3="ALTA",'1) INPUT BASE'!$D$25,IF(D$3="MEDIA",'1) INPUT BASE'!$E$25,IF(D$3="BASSA",'1) INPUT BASE'!$F$25,"ERRORE"))) -> 0 | E49: =+IF(E$3="ALTA",'1) INPUT BASE'!$D$25,IF(E$3="MEDIA",'1) INPUT BASE'!$E$25,IF(E$3="BASSA",'1) INPUT BASE'!$F$25,"ERRORE"))) -> 0 | F49: =+IF(F$3="ALTA",'1) INPUT BASE'!$D$25,IF(F$3="MEDIA",'1) INPUT BASE'!$E$25,IF(F$3="BASSA",'1) INPUT BASE'!$F$25,"ERRORE"))) -> 0 | G49: =+IF(G$3="ALTA",'1) INPUT BASE'!$D$25,IF(G$3="MEDIA",'1) INPUT BASE'!$E$25,IF(G$3="BASSA",'1) INPUT BASE'!$F$25,"ERRORE"))) -> 0 | H49: =+IF(H$3="ALTA",'1) INPUT BASE'!$D$25,IF(H$3="MEDIA",'1) INPUT BASE'!$E$25,IF(H$3="BASSA",'1) INPUT BASE'!$F$25,"ERRORE"))) -> 0 | I49: =+IF(I$3="ALTA",'1) INPUT BASE'!$D$25,IF(I$3="MEDIA",'1) INPUT BASE'!$E$25,IF(I$3="BASSA",'1) INPUT BASE'!$F$25,"ERRORE"))) -> 0 | J49: =+IF(J$3="ALTA",'1) INPUT BASE'!$D$25,IF(J$3="MEDIA",'1) INPUT BASE'!$E$25,IF(J$3="BASSA",'1) INPUT BASE'!$F$25,"ERRORE"))) -> 0 | K49: =+IF(K$3="ALTA",'1) INPUT BASE'!$D$25,IF(K$3="MEDIA",'1) INPUT BASE'!$E$25,IF(K$3="BASSA",'1) INPUT BASE'!$F$25,"ERRORE"))) -> 0 | L49: =+IF(L$3="ALTA",'1) INPUT BASE'!$D$25,IF(L$3="MEDIA",'1) INPUT BASE'!$E$25,IF(L$3="BASSA",'1) INPUT BASE'!$F$25,"ERRORE"))) -> 0 | M49: =+IF(M$3="ALTA",'1) INPUT BASE'!$D$25,IF(M$3="MEDIA",'1) INPUT BASE'!$E$25,IF(M$3="BASSA",'1) INPUT BASE'!$F$25,"ERRORE"))) -> 0 | O49: 0 | P49: =+(1+$O49)*B49 -> 0 | Q49: =+(1+$O49)*C49 -> 0 | R49: =+(1+$O49)*D49 -> 0 | S49: =+(1+$O49)*E49 -> 0 | T49: =+(1+$O49)*F49 -> 0 | U49: =+(1+$O49)*G49 -> 0 | V49: =+(1+$O49)*H49 -> 0 | W49: =+(1+$O49)*I49 -> 0 | X49: =+(1+$O49)*J49 -> 0 | Y49: =+(1+$O49)*K49 -> 0 | Z49: =+(1+$O49)*L49 -> 0 | AA49: =+(1+$O49)*M49 -> 0 | AC49: 0 | AD49: =+(1+$AC49)*P49 -> 0 | AE49: =+(1+$AC49)*Q49 -> 0 | AF49: =+(1+$AC49)*R49 -> 0 | AG49: =+(1+$AC49)*S49 -> 0 | AH49: =+(1+$AC49)*T49 -> 0 | AI49: =+(1+$AC49)*U49 -> 0 | AJ49: =+(1+$AC49)*V49 -> 0 | AK49: =+(1+$AC49)*W49 -> 0 | AL49: =+(1+$AC49)*X49 -> 0 | AM49: =+(1+$AC49)*Y49 -> 0 | AN49: =+(1+$AC49)*Z49 -> 0 | AO49: =+(1+$AC49)*AA49 -> 0

Sheet 4) INPUT INPS
B1: INPUT INPS
B2: CONTRIBUTI | C2: =+'1) INPUT BASE'!C11 -> 2016 | D2: =+C2+1 -> 2017 | E2: =+D2+1 -> 2018 | F2: =+E2+1 -> 2019 | I2: RATE CONTRIBUTI FISSI | K2: =+R17 -> B&B NO IMPRENDITORIALE | R2: CONTRIBUTI A PERCENTUALE | W2: REDDITO IMPONIBILE N-1 | X2: REDDITO MINIMALE N-1 | Y2: CONTRIBUTI SU MINIMALE | Z2: IMPONIBILE II SCAGLIONE | AA2: CONTRIBUTI II SCAGLIONE | AB2: MASSIMALE | AC2: IMPONIBILE III SCAGLIONE | AD2: CONTRIBUTI III SCAGLIONE | AE2: DIVISORE | AF2: CONTRIBUTI DOVUTI | AG2: ACCONTI VERSATI | AH2: SALDO DA VERSARE | AI2: CREDITO | AJ2: ACC.TO DA VERSARE | AK2: USCITE | AL2: CREDITO RESIDUO
B3: ALIQUOTA ENTRO SCAGLIONE | C3: 0.2319 | D3: 0.2319 | E3: 0.2319 | F3: 0.2319 | L3: =+'4) INPUT INPS'!C2 -> 2016 | N3: TRIMESTRI | O3: MESI CONTRIBUZIONE
B4: ALIQUOTA OLTRE SCAGLIONE | C4: 0.2419 | D4: 0.2419 | E4: 0.2419 | F4: 0.2419 | I4: 16 | J4: MAGGIO | K4: =+DATE(L3,5,31) -> 2016-05-31 | L4: =IF(K2="AFFITTACAMERE",0,IF(O4=0,0,'4) INPUT INPS'!$C$14*'4) INPUT INPS'!O4)) -> 0 | N4: =+DATE(L3,3,31) -> 2016-03-31 | O4: =IFERROR(IF(DATEDIF(DATE($L$3,'1) INPUT BASE'!$C$12,1)-10,N4,"M")>3,3,DATEDIF(DATE($L$3,'1) INPUT BASE'!$C$12,1)-10,N4,"M")),0) -> 0 | R4: 16 | S4: GIUGNO | T4: =+L3 -> 2016 | U4: =+DATE(T4,12,31) -> 2016-12-31 | V4: =+DATE(L3,6,30) -> 2016-06-30 | W4: 0 | X4: 0 | Y4: 0 | Z4: =IF(W4>X4,W4-X4,0) -> 0 | AA4: 0 | AB4: 0 | AC4: 0 | AD4: 0
B5: LIMITE SCAGLIONE CONTRIBUTIVO | C5: 46123 | D5: =+C5 -> 46123 | E5: =+D5 -> 46123 | F5: =+E5 -> 46123 | I5: 20 | J5: AGOSTO | K5: =+DATE(L3,8,31) -> 2016-08-31 | L5: =IF(K2="AFFITTACAMERE",0,IF(O5=0,0,'4) INPUT INPS'!$C$14*'4) INPUT INPS'!O5)) -> 0 | N5: =+DATE(L3,6,30) -> 2016-06-30 | O5: =IFERROR(IF(DATEDIF(DATE($L$3,'1) INPUT BASE'!$C$12,1)-10,N5,"M")>3,3,DATEDIF(DATE($L$3,'1) INPUT BASE'!$C$12,1)-10,N5,"M")),0) -> 3 | R5: 30 | S5: NOVEMBRE | T5: =+T4 -> 2016 | U5: =+DATE(T5,12,31) -> 2016-12-31 | V5: =+DATE(L3,11,30) -> 2016-11-30
B6: REDDITO MINIMO CALCOLO IVS | C6: 15548 | D6: 15548 | E6: 15548 | F6: 15548 | I6: 16 | J6: NOVEMBRE | K6: =+DATE(L3,11,30) -> 2016-11-30 | L6: =IF(K2="AFFITTACAMERE",0,IF(O6=0,0,'4) INPUT INPS'!$C$14*'4) INPUT INPS'!O6)) -> 0 | N6: =+DATE(L3,9,30) -> 2016-09-30 | O6: =IFERROR(IF(DATEDIF(DATE($L$3,'1) INPUT BASE'!$C$12,1)-10,N6,"M")>3,3,DATEDIF(DATE($L$3,'1) INPUT BASE'!$C$12,1)-10,N6,"M")),0) -> 3
B7: CONTRIBUTO MATERNITA' | C7: 7.44 | D7: 7.44 | E7: 7.44 | F7: 7.44 | I7: 16 | J7: FEBBRAIO n+1 | K7: =+DATE(L3+1,2,28) -> 2017-02-28 | L7: =IF(K2="AFFITTACAMERE",0,IF('4) INPUT INPS'!C16-'4) INPUT INPS'!L4-'4) INPUT INPS'!L5-'4) INPUT INPS'!L6<0,0,'4) INPUT INPS'!C16-'4) INPUT INPS'!L4-'4) INPUT INPS'!L5-'4) INPUT INPS'!L6)) -> 0 | N7: =+DATE(L3,12,31) -> 2016-12-31 | O7: =IFERROR(IF(DATEDIF(DATE($L$3,'1) INPUT BASE'!$C$12,1)-10,N7,"M")>3,3,DATEDIF(DATE($L$3,'1) INPUT BASE'!$C$12,1)-10,N7,"M")),0) -> 3 | R7: 16 | S7: GIUGNO | T7: =+L8 -> 2017 | U7: =+DATE(T7,12,31) -> 2017-12-31 | V7: =+DATE(L8,6,30) -> 2017-06-30 | W7: =+'3) INPUT VENDITE'!$CD$4*'1) INPUT BASE'!G6 -> 10406.4 | X7: =+'4) INPUT INPS'!C6 -> 15548 | Y7: =+IF('1) INPUT BASE'!C5="AFFITTACAMERE",IF(X7<W7,'4) INPUT INPS'!X7*'4) INPUT INPS'!C10+C7/12*C15,'4) INPUT INPS'!W7*'4) INPUT INPS'!C10+C7/12*C15),0) -> 0 | Z7: =IF(W7>C5,C5-C6,IF(W7>X7,W7-X7,0)) -> 0 | AA7: =+Z7*C10 -> 0 | AB7: =+IF(C18="NO",C8,C9) -> 100324 | AC7: =+IF(W7>C5,IF(W7>AB7,AB7-Z7-X7,W7-C5),0) -> 0 | AD7: =+AC7*C17 -> 0 | AE7: =+IF(C19="SI",0.5,1) -> 1 | AF7: =(AD7+AA7+Y7)*AE7 -> 0 | AG7: 0 | AH7: =+AF7-AG7 -> 0 | AI7: =+IF(AH7<0,-AH7,0) -> 0 | AJ7: =+AF7*0.8/2 -> 0 | AK7: =+IF(AJ7<0,0,AJ7+AH7) -> 0
B8: MASSIMALE CONTRIBUTIVO SENZA ANZIANITA' | C8: 100324 | D8: 100324 | E8: 100324 | F8: 100324 | L8: =+'4) INPUT INPS'!D2 -> 2017 | R8: 30 | S8: NOVEMBRE | T8: =+T7 -> 2017 | U8: =+DATE(T8,12,31) -> 2017-12-31 | V8: =+DATE(L8,11,30) -> 2017-11-30 | AE8: =+AE7 -> 1 | AJ8: =+AJ7 -> 0 | AK8: =+IF(AJ8<0,0,AJ8+AH8) -> 0
B9: MASSIMALE CONTRIBUTIVO CON ANZIANITA' | C9: 76872 | D9: 76872 | E9: 76872 | F9: 76872 | I9: 16 | J9: MAGGIO | K9: =+DATE(L8,5,31) -> 2017-05-31 | L9: =IF(K2="AFFITTACAMERE",0,'4) INPUT INPS'!D$13/4) -> 0 | N9: DATA INZIO ATTIVITA' | O9: =+DATE(L3,'1) INPUT BASE'!C12,1) -> 2016-04-01
B10: ALIQUOTA ENTRO SCAGLIONE CON RIDUZIONE | C10: =+C3*(1-C12) -> 0.150735 | D10: =+D3*(1-D12) -> 0.150735 | E10: =+E3*(1-E12) -> 0.150735 | F10: =+F3*(1-F12) -> 0.150735 | I10: 20 | J10: AGOSTO | K10: =+DATE(L8,8,31) -> 2017-08-31 | L10: =+L9 -> 0 | N10: FINE ANNO | O10: =+DATE(L3,12,31) -> 2016-12-31 | R10: 16 | S10: GIUGNO | T10: =+L13 -> 2018 | U10: =+DATE(T10,12,31) -> 2018-12-31 | V10: =+DATE(L13,6,30) -> 2018-06-30 | W10: =+'3) INPUT VENDITE'!$CD$5*'1) INPUT BASE'!G6 -> 11126.4 | X10: =+'4) INPUT INPS'!D6 -> 15548 | Y10: =+IF('1) INPUT BASE'!C5="AFFITTACAMERE",IF(X10<W10,'4) INPUT INPS'!X10*'4) INPUT INPS'!D10+D7/12*D15,'4) INPUT INPS'!W10*'4) INPUT INPS'!D10+D7/12*D15),0) -> 0 | Z10: =+IF(W10>D5,D5-D6,IF(W10>X10,W10-X10,0)) -> 0 | AA10: =+Z10*D10 -> 0 | AB10: =+IF(D18="NO",D8,D9) -> 100324 | AC10: =+IF(W10>D5,IF(W10>AB10,AB10-Z10-X10,W10-D5),0) -> 0 | AD10: =+AC10*D17 -> 0 | AE10: =+IF(D19="SI",0.5,1) -> 1 | AF10: =(AD10+AA10+Y10)*AE10 -> 0 | AG10: =+AJ7+AJ8 -> 0 | AH10: =+AF10-AG10 -> 0 | AI10: =+IF(AH10<0,-AH10,0) -> 0 | AJ10: =+AF10*0.8/2 -> 0 | AK10: 0
B11: CONTRIBUZIONE MINIMA REGIME ORDINARIO | C11: =+C6*C3+7.44 -> 3613.0212 | D11: =+D6*D3+7.44 -> 3613.0212 | E11: =+E6*E3+7.44 -> 3613.0212 | F11: =+F6*F3+7.44 -> 3613.0212 | I11: 16 | J11: NOVEMBRE | K11: =+DATE(L8,11,30) -> 2017-11-30 | L11: =+L10 -> 0 | R11: 30 | S11: NOVEMBRE | T11: =+T10 -> 2018 | U11: =+DATE(T11,12,31) -> 2018-12-31 | V11: =+DATE(L13,11,30) -> 2018-11-30 | AJ11: =+AJ10 -> 0 | AK11: 0
B12: SCONTO PER REGIME FORFETTARIO | C12: 0.35 | D12: =+C12 -> 0.35 | E12: =+D12 -> 0.35 | F12: =+E12 -> 0.35 | I12: 16 | J12: FEBBRAIO n+1 | K12: =+DATE(L8+1,2,28) -> 2018-02-28 | L12: =+L11 -> 0
B13: CONTRIBUZIONE MINIMA SU BASE ANNUA | C13: =IF('1) INPUT BASE'!$C$5="B&B NO IMPRENDITORIALE",0,C10*C6+7.44) -> 0 | D13: =IF('1) INPUT BASE'!$C$5="B&B NO IMPRENDITORIALE",0,D10*D6+7.44) -> 0 | E13: =IF('1) INPUT BASE'!$C$5="B&B NO IMPRENDITORIALE",0,E10*E6+7.44) -> 0 | F13: =IF('1) INPUT BASE'!$C$5="B&B NO IMPRENDITORIALE",0,F10*F6+7.44) -> 0 | L13: =+'4) INPUT INPS'!E2 -> 2018 | R13: 16 | S13: GIUGNO | T13: =+L18 -> 2019 | U13: =+DATE(T13,12,31) -> 2019-12-31 | V13: =+DATE(L18,6,30) -> 2019-06-30 | W13: =+'3) INPUT VENDITE'!$CD$6*'1) INPUT BASE'!G6 -> 11126.4 | X13: =+'4) INPUT INPS'!E6 -> 15548 | Y13: =+IF('1) INPUT BASE'!C5="AFFITTACAMERE",IF(X13<W13,'4) INPUT INPS'!X13*'4) INPUT INPS'!E10+E7/12*E15,'4) INPUT INPS'!W13*'4) INPUT INPS'!E10+E7/12*E15),0) -> 0 | Z13: =IF(W13>E5,E5-E6,IF(W13>X13,W13-X13,0)) -> 0 | AA13: =+Z13*E10 -> 0 | AB13: =+IF(E18="NO",E8,E9) -> 100324 | AC13: =+IF(W13>E5,IF(W13>AB13,AB13-Z13-X13,W13-E5),0) -> 0 | AD13: =+AC13*E17 -> 0 | AE13: =+IF(E19="SI",0.5,1) -> 1 | AF13: 0 | AG13: =+AJ10+AJ11 -> 0 | AH13: =+AF13-AG13 -> 0 | AI13: 0 | AJ13: =+AF13*0.8/2 -> 0 | AK13: 0
B14: CONTRIBUZIONE MINIMA SU BASE MENSILE | C14: =IF('1) INPUT BASE'!$C$5="B&B NO IMPRENDITORIALE",0,C13/12) -> 0 | D14: =IF('1) INPUT BASE'!$C$5="B&B NO IMPRENDITORIALE",0,D13/12) -> 0 | E14: =IF('1) INPUT BASE'!$C$5="B&B NO IMPRENDITORIALE",0,E13/12) -> 0 | F14: =IF('1) INPUT BASE'!$C$5="B&B NO IMPRENDITORIALE",0,F13/12) -> 0 | I14: 16 | J14: MAGGIO | K14: =+DATE(L13,5,31) -> 2018-05-31 | L14: =IF(K2="AFFITTACAMERE",0,'4) INPUT INPS'!E$13/4) -> 0 | R14: 30 | S14: NOVEMBRE | T14: =+T13 -> 2019 | U14: =+DATE(T14,12,31) -> 2019-12-31 | V14: =+DATE(L18,11,30) -> 2019-11-30 | AJ14: =+AJ13 -> 0 | AK14: 0
B15: MESI ATTIVITA' | C15: =DATEDIF(DATE(C2,'1) INPUT BASE'!C12,1)-1,DATE(C2,12,31),"M") -> 9 | D15: 12 | E15: 12 | F15: 12 | I15: 20 | J15: AGOSTO | K15: =+DATE(L13,8,31) -> 2018-08-31 | L15: =+L14 -> 0
B16: CONTRIBUTI FISSI DOVUTI | C16: =IF('1) INPUT BASE'!$C$5="B&B NO IMPRENDITORIALE",0,C15*C14) -> 0 | D16: =IF('1) INPUT BASE'!$C$5="B&B NO IMPRENDITORIALE",0,D15*D14) -> 0 | E16: =IF('1) INPUT BASE'!$C$5="B&B NO IMPRENDITORIALE",0,E15*E14) -> 0 | F16: =IF('1) INPUT BASE'!$C$5="B&B NO IMPRENDITORIALE",0,F15*F14) -> 0 | I16: 16 | J16: NOVEMBRE | K16: =+DATE(L13,11,30) -> 2018-11-30 | L16: =+L15 -> 0
B17: ALIQUOTA OLTRE SCAGLIONE ALIQUOTA FORFET | C17: =+C4*(1-C12) -> 0.157235 | D17: =+D4*(1-D12) -> 0.157235 | E17: =+E4*(1-E12) -> 0.157235 | F17: =+F4*(1-F12) -> 0.157235 | I17: 16 | J17: FEBBRAIO n+1 | K17: =+DATE(L13+1,2,28) -> 2019-02-28 | L17: =+L16 -> 0 | R17: =+'1) INPUT BASE'!C5 -> B&B NO IMPRENDITORIALE
B18: IL TITOLARE HA ANZIANITA' CONTRIBUTIVA? | C18: NO | D18: =+C18 -> NO | E18: =+D18 -> NO | F18: NO | L18: =+L13+1 -> 2019 | R18: CONTRIBUTI VERSATI
B19: IL TITOLARE HA ALMENO 65 ANNI ED E' IN PENSIONE? | C19: NO | D19: =+C19 -> NO | E19: =+D19 -> NO | F19: NO | I19: 16 | J19: MAGGIO | K19: =+DATE(L18,5,31) -> 2019-05-31 | L19: =IF(K2="AFFITTACAMERE",0,'4) INPUT INPS'!F$13/4) -> 0 | R19: =+L3 -> 2016 | S19: =L4+L5+L6+AH4+AJ4+AJ5 -> 0
I20: 20 | J20: AGOSTO | K20: =+DATE(L18,8,31) -> 2019-08-31 | L20: =+L19 -> 0 | R20: =+L8 -> 2017 | S20: =L7+L9+L10+L11+AH7+AJ7+AJ8 -> 0
I21: 16 | J21: NOVEMBRE | K21: =+DATE(L18,11,30) -> 2019-11-30 | L21: =+L20 -> 0 | R21: =+L13 -> 2018 | S21: =AH10+AJ10+AJ11+L12+L14+L15+L16 -> 0
B22: Dati reperibili dal sito dell'inps. Fonte: http://www.inps.it/Circolari/Circolare%20numero%2015%20del%2029-01-2016.htm | I22: 16 | J22: FEBBRAIO n+1 | K22: =+DATE(L18+1,2,28) -> 2020-02-28 | L22: =+L21 -> 0 | R22: =+L18 -> 2019 | S22: =AH13+AJ13+AJ14+L17+L19+L20+L21 -> 0
B23: Dati da inserire solo se attività imprenditoriale, non per b&b non imprenditoriale.

Sheet 5) INPUT COSTI FISSI
A1: INPUT COSTI FISSI | B1: MESI | N1: ANNO 1 | P1: MESI | AB1: ANNO 2 | AD1: MESI | AP1: ANNO 3
A2: PIANO DEI COSTI FISSI | B2: =EOMONTH(DATE('1) INPUT BASE'!C11,'1) INPUT BASE'!C12,1),0) -> 2016-04-30 | C2: =+EOMONTH(B2,1) -> 2016-05-31 | D2: 2016-06-30 | E2: 2016-07-31 | F2: 2016-08-31 | G2: 2016-09-30 | H2: 2016-10-31 | I2: 2016-11-30 | J2: 2016-12-31 | K2: 2017-01-31 | L2: 2017-02-28 | M2: 2017-03-31 | N2: TOTALE | O2: IPOTESI % | P2: =+EOMONTH(M2,1) -> 2017-04-30 | Q2: =+EOMONTH(P2,1) -> 2017-05-31 | R2: 2017-06-30 | S2: 2017-07-31 | T2: 2017-08-31 | U2: 2017-09-30 | V2: 2017-10-31 | W2: 2017-11-30 | X2: 2017-12-31 | Y2: 2018-01-31 | Z2: 2018-02-28 | AA2: 2018-03-31 | AB2: TOTALE | AC2: IPOTESI % | AD2: =+EOMONTH(AA2,1) -> 2018-04-30 | AE2: =+EOMONTH(AD2,1) -> 2018-05-31 | AF2: 2018-06-30 | AG2: 2018-07-31 | AH2: 2018-08-31 | AI2: 2018-09-30 | AJ2: 2018-10-31 | AK2: 2018-11-30 | AL2: 2018-12-31 | AM2: 2019-01-31 | AN2: 2019-02-28 | AO2: 2019-03-31 | AP2: TOTALE
A3: Contributi | B3: =_xlfn.IFNA(VLOOKUP(B2,'4) INPUT INPS'!$K$4:$L$22,2,FALSE),0)+_xlfn.IFNA(VLOOKUP(B2,'4) INPUT INPS'!$V$4:$AK$14,16,FALSE),0) -> 0 | C3: =_xlfn.IFNA(VLOOKUP(C2,'4) INPUT INPS'!$K$4:$L$22,2,FALSE),0)+_xlfn.IFNA(VLOOKUP(C2,'4) INPUT INPS'!$V$4:$AK$14,16,FALSE),0) -> 0 | D3: =_xlfn.IFNA(VLOOKUP(D2,'4) INPUT INPS'!$K$4:$L$22,2,FALSE),0)+_xlfn.IFNA(VLOOKUP(D2,'4) INPUT INPS'!$V$4:$AK$14,16,FALSE),0) -> 0 | E3: =_xlfn.IFNA(VLOOKUP(E2,'4) INPUT INPS'!$K$4:$L$22,2,FALSE),0)+_xlfn.IFNA(VLOOKUP(E2,'4) INPUT INPS'!$V$4:$AK$14,16,FALSE),0) -> 0 | F3: =_xlfn.IFNA(VLOOKUP(F2,'4) INPUT INPS'!$K$4:$L$22,2,FALSE),0)+_xlfn.IFNA(VLOOKUP(F2,'4) INPUT INPS'!$V$4:$AK$14,16,FALSE),0) -> 0 | G3: =_xlfn.IFNA(VLOOKUP(G2,'4) INPUT INPS'!$K$4:$L$22,2,FALSE),0)+_xlfn.IFNA(VLOOKUP(G2,'4) INPUT INPS'!$V$4:$AK$14,16,FALSE),0) -> 0 | H3: =_xlfn.IFNA(VLOOKUP(H2,'4) INPUT INPS'!$K$4:$L$22,2,FALSE),0)+_xlfn.IFNA(VLOOKUP(H2,'4) INPUT INPS'!$V$4:$AK$14,16,FALSE),0) -> 0 | I3: =_xlfn.IFNA(VLOOKUP(I2,'4) INPUT INPS'!$K$4:$L$22,2,FALSE),0)+_xlfn.IFNA(VLOOKUP(I2,'4) INPUT INPS'!$V$4:$AK$14,16,FALSE),0) -> 0 | J3: =_xlfn.IFNA(VLOOKUP(J2,'4) INPUT INPS'!$K$4:$L$22,2,FALSE),0)+_xlfn.IFNA(VLOOKUP(J2,'4) INPUT INPS'!$V$4:$AK$14,16,FALSE),0) -> 0 | K3: =_xlfn.IFNA(VLOOKUP(K2,'4) INPUT INPS'!$K$4:$L$22,2,FALSE),0)+_xlfn.IFNA(VLOOKUP(K2,'4) INPUT INPS'!$V$4:$AK$14,16,FALSE),0) -> 0 | L3: =_xlfn.IFNA(VLOOKUP(L2,'4) INPUT INPS'!$K$4:$L$22,2,FALSE),0)+_xlfn.IFNA(VLOOKUP(L2,'4) INPUT INPS'!$V$4:$AK$14,16,FALSE),0) -> 0 | M3: =_xlfn.IFNA(VLOOKUP(M2,'4) INPUT INPS'!$K$4:$L$22,2,FALSE),0)+_xlfn.IFNA(VLOOKUP(M2,'4) INPUT INPS'!$V$4:$AK$14,16,FALSE),0) -> 0 | N3: =SUM(B3:M3) -> 0 | O3: =_xlfn.IFNA(VLOOKUP(O2,'4) INPUT INPS'!$K$4:$L$22,2,FALSE),0)+_xlfn.IFNA(VLOOKUP(O2,'4) INPUT INPS'!$V$4:$AK$14,16,FALSE),0) -> 0 | P3: =_xlfn.IFNA(VLOOKUP(P2,'4) INPUT INPS'!$K$4:$L$22,2,FALSE),0)+_xlfn.IFNA(VLOOKUP(P2,'4) INPUT INPS'!$V$4:$AK$14,16,FALSE),0) -> 0 | Q3: =_xlfn.IFNA(VLOOKUP(Q2,'4) INPUT INPS'!$K$4:$L$22,2,FALSE),0)+_xlfn.IFNA(VLOOKUP(Q2,'4) INPUT INPS'!$V$4:$AK$14,16,FALSE),0) -> 0 | R3: =_xlfn.IFNA(VLOOKUP(R2,'4) INPUT INPS'!$K$4:$L$22,2,FALSE),0)+_xlfn.IFNA(VLOOKUP(R2,'4) INPUT INPS'!$V$4:$AK$14,16,FALSE),0) -> 0 | S3: =_xlfn.IFNA(VLOOKUP(S2,'4) INPUT INPS'!$K$4:$L$22,2,FALSE),0)+_xlfn.IFNA(VLOOKUP(S2,'4) INPUT INPS'!$V$4:$AK$14,16,FALSE),0) -> 0 | T3: =_xlfn.IFNA(VLOOKUP(T2,'4) INPUT INPS'!$K$4:$L$22,2,FALSE),0)+_xlfn.IFNA(VLOOKUP(T2,'4) INPUT INPS'!$V$4:$AK$14,16,FALSE),0) -> 0 | U3: =_xlfn.IFNA(VLOOKUP(U2,'4) INPUT INPS'!$K$4:$L$22,2,FALSE),0)+_xlfn.IFNA(VLOOKUP(U2,'4) INPUT INPS'!$V$4:$AK$14,16,FALSE),0) -> 0 | V3: =_xlfn.IFNA(VLOOKUP(V2,'4) INPUT INPS'!$K$4:$L$22,2,FALSE),0)+_xlfn.IFNA(VLOOKUP(V2,'4) INPUT INPS'!$V$4:$AK$14,16,FALSE),0) -> 0 | W3: =_xlfn.IFNA(VLOOKUP(W2,'4) INPUT INPS'!$K$4:$L$22,2,FALSE),0)+_xlfn.IFNA(VLOOKUP(W2,'4) INPUT INPS'!$V$4:$AK$14,16,FALSE),0) -> 0 | X3: =_xlfn.IFNA(VLOOKUP(X2,'4) INPUT INPS'!$K$4:$L$22,2,FALSE),0)+_xlfn.IFNA(VLOOKUP(X2,'4) INPUT INPS'!$V$4:$AK$14,16,FALSE),0) -> 0 | Y3: =_xlfn.IFNA(VLOOKUP(Y2,'4) INPUT INPS'!$K$4:$L$22,2,FALSE),0)+_xlfn.IFNA(VLOOKUP(Y2,'4) INPUT INPS'!$V$4:$AK$14,16,FALSE),0) -> 0 | Z3: =_xlfn.IFNA(VLOOKUP(Z2,'4) INPUT INPS'!$K$4:$L$22,2,FALSE),0)+_xlfn.IFNA(VLOOKUP(Z2,'4) INPUT INPS'!$V$4:$AK$14,16,FALSE),0) -> 0 | AA3: =_xlfn.IFNA(VLOOKUP(AA2,'4) INPUT INPS'!$K$4:$L$22,2,FALSE),0)+_xlfn.IFNA(VLOOKUP(AA2,'4) INPUT INPS'!$V$4:$AK$14,16,FALSE),0) -> 0 | AB3: =SUM(O3:AA3) -> 0 | AC3: =_xlfn.IFNA(VLOOKUP(AC2,'4) INPUT INPS'!$K$4:$L$22,2,FALSE),0)+_xlfn.IFNA(VLOOKUP(AC2,'4) INPUT INPS'!$V$4:$AK$14,16,FALSE),0) -> 0 | AD3: =_xlfn.IFNA(VLOOKUP(AD2,'4) INPUT INPS'!$K$4:$L$22,2,FALSE),0)+_xlfn.IFNA(VLOOKUP(AD2,'4) INPUT INPS'!$V$4:$AK$14,16,FALSE),0) -> 0 | AE3: =_xlfn.IFNA(VLOOKUP(AE2,'4) INPUT INPS'!$K$4:$L$22,2,FALSE),0)+_xlfn.IFNA(VLOOKUP(AE2,'4) INPUT INPS'!$V$4:$AK$14,16,FALSE),0) -> 0 | AF3: =_xlfn.IFNA(VLOOKUP(AF2,'4) INPUT INPS'!$K$4:$L$22,2,FALSE),0)+_xlfn.IFNA(VLOOKUP(AF2,'4) INPUT INPS'!$V$4:$AK$14,16,FALSE),0) -> 0 | AG3: =_xlfn.IFNA(VLOOKUP(AG2,'4) INPUT INPS'!$K$4:$L$22,2,FALSE),0)+_xlfn.IFNA(VLOOKUP(AG2,'4) INPUT INPS'!$V$4:$AK$14,16,FALSE),0) -> 0 | AH3: =_xlfn.IFNA(VLOOKUP(AH2,'4) INPUT INPS'!$K$4:$L$22,2,FALSE),0)+_xlfn.IFNA(VLOOKUP(AH2,'4) INPUT INPS'!$V$4:$AK$14,16,FALSE),0) -> 0 | AI3: =_xlfn.IFNA(VLOOKUP(AI2,'4) INPUT INPS'!$K$4:$L$22,2,FALSE),0)+_xlfn.IFNA(VLOOKUP(AI2,'4) INPUT INPS'!$V$4:$AK$14,16,FALSE),0) -> 0 | AJ3: =_xlfn.IFNA(VLOOKUP(AJ2,'4) INPUT INPS'!$K$4:$L$22,2,FALSE),0)+_xlfn.IFNA(VLOOKUP(AJ2,'4) INPUT INPS'!$V$4:$AK$14,16,FALSE),0) -> 0 | AK3: =_xlfn.IFNA(VLOOKUP(AK2,'4) INPUT INPS'!$K$4:$L$22,2,FALSE),0)+_xlfn.IFNA(VLOOKUP(AK2,'4) INPUT INPS'!$V$4:$AK$14,16,FALSE),0) -> 0 | AL3: =_xlfn.IFNA(VLOOKUP(AL2,'4) INPUT INPS'!$K$4:$L$22,2,FALSE),0)+_xlfn.IFNA(VLOOKUP(AL2,'4) INPUT INPS'!$V$4:$AK$14,16,FALSE),0) -> 0 | AM3: =_xlfn.IFNA(VLOOKUP(AM2,'4) INPUT INPS'!$K$4:$L$22,2,FALSE),0)+_xlfn.IFNA(VLOOKUP(AM2,'4) INPUT INPS'!$V$4:$AK$14,16,FALSE),0) -> 0 | AN3: =_xlfn.IFNA(VLOOKUP(AN2,'4) INPUT INPS'!$K$4:$L$22,2,FALSE),0)+_xlfn.IFNA(VLOOKUP(AN2,'4) INPUT INPS'!$V$4:$AK$14,16,FALSE),0) -> 0 | AO3: =_xlfn.IFNA(VLOOKUP(AO2,'4) INPUT INPS'!$K$4:$L$22,2,FALSE),0)+_xlfn.IFNA(VLOOKUP(AO2,'4) INPUT INPS'!$V$4:$AK$14,16,FALSE),0) -> 0 | AP3: =SUM(AC3:AO3) -> 0
A4: Imposta di registro | B4: =+B5*12*0.02/2 -> 0 | N4: =SUM(B4:M4) -> 0 | P4: =+B4 -> 0 | AB4: =SUM(P4:AA4) -> 0 | AD4: =+P4 -> 0 | AE4: =+(1+$AC4)*Q4 -> 0 | AF4: 0 | AG4: 0 | AH4: 0 | AI4: 0 | AJ4: 0 | AK4: 0 | AL4: 0 | AM4: 0 | AN4: 0 | AO4: 0 | AP4: =SUM(AD4:AO4) -> 0
A5: Affitto | B5: 0 | C5: =+B5 -> 0 | D5: =+C5 -> 0 | E5: 0 | F5: 0 | G5: 0 | H5: 0 | I5: 0 | J5: 0 | K5: 0 | L5: 0 | M5: 0 | N5: =SUM(B5:M5) -> 0 | P5: =+M5 -> 0 | Q5: =+P5 -> 0 | R5: =+Q5 -> 0 | S5: 0 | T5: 0 | U5: 0 | V5: 0 | W5: 0 | X5: 0 | Y5: 0 | Z5: 0 | AA5: 0 | AB5: =SUM(P5:AA5) -> 0 | AD5: =+AA5 -> 0 | AE5: =+AD5 -> 0 | AF5: =+AE5 -> 0 | AG5: 0 | AH5: 0 | AI5: 0 | AJ5: 0 | AK5: 0 | AL5: 0 | AM5: 0 | AN5: 0 | AO5: 0 | AP5: =SUM(AD5:AO5) -> 0
A6: Condominio | B6: 100 | C6: 100 | D6: 100 | E6: 100 | F6: 100 | G6: 100 | H6: 100 | I6: 100 | J6: 100 | K6: 100 | L6: 100 | M6: 100 | N6: 1200 | O6: 0 | P6: =+(1+$O6)*B6 -> 100 | Q6: =+(1+$O6)*C6 -> 100 | R6: =+(1+$O6)*D6 -> 100 | S6: =+(1+$O6)*E6 -> 100 | T6: =+(1+$O6)*F6 -> 100 | U6: =+(1+$O6)*G6 -> 100 | V6: =+(1+$O6)*H6 -> 100 | W6: =+(1+$O6)*I6 -> 100 | X6: =+(1+$O6)*J6 -> 100 | Y6: =+(1+$O6)*K6 -> 100 | Z6: =+(1+$O6)*L6 -> 100 | AA6: =+(1+$O6)*M6 -> 100 | AB6: 1200 | AC6: 0 | AD6: =+(1+$AC6)*P6 -> 100 | AE6: =+(1+$AC6)*Q6 -> 100 | AF6: =+(1+$AC6)*R6 -> 100 | AG6: =+(1+$AC6)*S6 -> 100 | AH6: =+(1+$AC6)*T6 -> 100 | AI6: =+(1+$AC6)*U6 -> 100 | AJ6: =+(1+$AC6)*V6 -> 100 | AK6: =+(1+$AC6)*W6 -> 100 | AL6: =+(1+$AC6)*X6 -> 100 | AM6: =+(1+$AC6)*Y6 -> 100 | AN6: =+(1+$AC6)*Z6 -> 100 | AO6: =+(1+$AC6)*AA6 -> 100 | AP6: 1200
A7: Collaboratori occasionali/stagionali | N7: 0 | O7: 0 | P7: 0 | Q7: 0 | R7: 0 | S7: 0 | T7: 0 | U7: 0 | V7: 0 | W7: 0 | X7: 0 | Y7: 0 | Z7: 0 | AA7: 0 | AB7: 0 | AC7: 0 | AD7: 0 | AE7: 0 | AF7: 0 | AG7: 0 | AH7: 0 | AI7: 0 | AJ7: 0 | AK7: 0 | AL7: 0 | AM7: 0 | AN7: 0 | AO7: 0 | AP7: 0
A8: Commercialista, consulente del lavoro, legale | M8: 150 | N8: 150 | O8: 0 | P8: 0 | Q8: 0 | R8: 0 | S8: 0 | T8: 0 | U8: 0 | V8: 0 | W8: 0 | X8: 0 | Y8: 0 | Z8: 0 | AA8: 150 | AB8: 150 | AC8: 0 | AD8: 0 | AE8: 0 | AF8: 0 | AG8: 0 | AH8: 0 | AI8: 0 | AJ8: 0 | AK8: 0 | AL8: 0 | AM8: 0 | AN8: 0 | AO8: 150 | AP8: 150
A9: Promozione post avvio | B9: 100 | C9: 100 | D9: 100 | E9: 100 | F9: 100 | G9: 100 | H9: 100 | I9: 100 | J9: 100 | K9: 100 | L9: 100 | M9: 100 | N9: 1200 | O9: 0 | P9: 100 | Q9: 100 | R9: 100 | S9: 100 | T9: 100 | U9: 100 | V9: 100 | W9: 100 | X9: 100 | Y9: 100 | Z9: 100 | AA9: 100 | AB9: 1200 | AC9: 0 | AD9: 100 | AE9: 100 | AF9: 100 | AG9: 100 | AH9: 100 | AI9: 100 | AJ9: 100 | AK9: 100 | AL9: 100 | AM9: 100 | AN9: 100 | AO9: 100 | AP9: 1200
A10: Dominio, hosting e manutenzione sito internet | M10: 100 | N10: 100 | O10: 0 | P10: 0 | Q10: 0 | R10: 0 | S10: 0 | T10: 0 | U10: 0 | V10: 0 | W10: 0 | X10: 0 | Y10: 0 | Z10: 0 | AA10: 100 | AB10: 100 | AC10: 0 | AD10: 0 | AE10: 0 | AF10: 0 | AG10: 0 | AH10: 0 | AI10: 0 | AJ10: 0 | AK10: 0 | AL10: 0 | AM10: 0 | AN10: 0 | AO10: 100 | AP10: 100
A11: Noleggio POS | N11: 0 | O11: 0 | P11: 0 | Q11: 0 | R11: 0 | S11: 0 | T11: 0 | U11: 0 | V11: 0 | W11: 0 | X11: 0 | Y11: 0 | Z11: 0 | AA11: 0 | AB11: 0 | AC11: 0 | AD11: 0 | AE11: 0 | AF11: 0 | AG11: 0 | AH11: 0 | AI11: 0 | AJ11: 0 | AK11: 0 | AL11: 0 | AM11: 0 | AN11: 0 | AO11: 0 | AP11: 0
A12: Manutenzioni e riparazioni | M12: 500 | N12: 500 | O12: 0 | P12: 0 | Q12: 0 | R12: 0 | S12: 0 | T12: 0 | U12: 0 | V12: 0 | W12: 0 | X12: 0 | Y12: 0 | Z12: 0 | AA12: 500 | AB12: 500 | AC12: 0 | AD12: 0 | AE12: 0 | AF12: 0 | AG12: 0 | AH12: 0 | AI12: 0 | AJ12: 0 | AK12: 0 | AL12: 0 | AM12: 0 | AN12: 0 | AO12: 500 | AP12: 500
A13: Energia elettrica | C13: 100 | E13: 100 | G13: 100 | I13: 100 | K13: 100 | M13: 100 | N13: 600 | O13: 0 | P13: 0 | Q13: 100 | R13: 0 | S13: 100 | T13: 0 | U13: 100 | V13: 0 | W13: 100 | X13: 0 | Y13: 100 | Z13: 0 | AA13: 100 | AB13: 600 | AC13: 0 | AD13: 0 | AE13: 100 | AF13: 0 | AG13: 100 | AH13: 0 | AI13: 100 | AJ13: 0 | AK13: 100 | AL13: 0 | AM13: 100 | AN13: 0 | AO13: 100 | AP13: 600
A14: Spese telefoniche/Internet | B14: 30 | C14: 30 | D14: 30 | E14: 30 | F14: 30 | G14: 30 | H14: 30 | I14: 30 | J14: 30 | K14: 30 | L14: 30 | M14: 30 | N14: 360 | O14: 0 | P14: 30 | Q14: 30 | R14: 30 | S14: 30 | T14: 30 | U14: 30 | V14: 30 | W14: 30 | X14: 30 | Y14: 30 | Z14: 30 | AA14: 30 | AB14: 360 | AC14: 0 | AD14: 30 | AE14: 30 | AF14: 30 | AG14: 30 | AH14: 30 | AI14: 30 | AJ14: 30 | AK14: 30 | AL14: 30 | AM14: 30 | AN14: 30 | AO14: 30 | AP14: 360
A15: Acqua | C15: 60 | E15: 60 | G15: 60 | I15: 60 | K15: 60 | M15: 60 | N15: 360 | O15: 0 | P15: 0 | Q15: 60 | R15: 0 | S15: 60 | T15: 0 | U15: 60 | V15: 0 | W15: 60 | X15: 0 | Y15: 60 | Z15: 0 | AA15: 60 | AB15: 360 | AC15: 0 | AD15: 0 | AE15: 60 | AF15: 0 | AG15: 60 | AH15: 0 | AI15: 60 | AJ15: 0 | AK15: 60 | AL15: 0 | AM15: 60 | AN15: 0 | AO15: 60 | AP15: 360
A16: Metano/gas | N16: 0 | O16: 0 | P16: 0 | Q16: 0 | R16: 0 | S16: 0 | T16: 0 | U16: 0 | V16: 0 | W16: 0 | X16: 0 | Y16: 0 | Z16: 0 | AA16: 0 | AB16: 0 | AC16: 0 | AD16: 0 | AE16: 0 | AF16: 0 | AG16: 0 | AH16: 0 | AI16: 0 | AJ16: 0 | AK16: 0 | AL16: 0 | AM16: 0 | AN16: 0 | AO16: 0 | AP16: 0
A17: Condominio | N17: 0 | O17: 0 | P17: 0 | Q17: 0 | R17: 0 | S17: 0 | T17: 0 | U17: 0 | V17: 0 | W17: 0 | X17: 0 | Y17: 0 | Z17: 0 | AA17: 0 | AB17: 0 | AC17: 0 | AD17: 0 | AE17: 0 | AF17: 0 | AG17: 0 | AH17: 0 | AI17: 0 | AJ17: 0 | AK17: 0 | AL17: 0 | AM17: 0 | AN17: 0 | AO17: 0 | AP17: 0
A18: Marche da bollo | N18: 0 | O18: 0 | P18: 0 | Q18: 0 | R18: 0 | S18: 0 | T18: 0 | U18: 0 | V18: 0 | W18: 0 | X18: 0 | Y18: 0 | Z18: 0 | AA18: 0 | AB18: 0 | AC18: 0 | AD18: 0 | AE18: 0 | AF18: 0 | AG18: 0 | AH18: 0 | AI18: 0 | AJ18: 0 | AK18: 0 | AL18: 0 | AM18: 0 | AN18: 0 | AO18: 0 | AP18: 0
A19: Assicurazioni | B19: 150 | N19: 150 | O19: 0 | P19: 150 | Q19: 0 | R19: 0 | S19: 0 | T19: 0 | U19: 0 | V19: 0 | W19: 0 | X19: 0 | Y19: 0 | Z19: 0 | AA19: 0 | AB19: 150 | AC19: 0 | AD19: 150 | AE19: 0 | AF19: 0 | AG19: 0 | AH19: 0 | AI19: 0 | AJ19: 0 | AK19: 0 | AL19: 0 | AM19: 0 | AN19: 0 | AO19: 0 | AP19: 150
A20: Prodotti per la pulizia dei locali | B20: 50 | E20: 50 | H20: 50 | K20: 50 | N20: 200 | O20: 0 | P20: 50 | Q20: 0 | R20: 0 | S20: 50 | T20: 0 | U20: 0 | V20: 50 | W20: 0 | X20: 0 | Y20: 50 | Z20: 0 | AA20: 0 | AB20: 200 | AC20: 0 | AD20: 50 | AE20: 0 | AF20: 0 | AG20: 50 | AH20: 0 | AI20: 0 | AJ20: 50 | AK20: 0 | AL20: 0 | AM20: 50 | AN20: 0 | AO20: 0 | AP20: 200
A21: Pulizia | N21: 0 | O21: 0 | P21: 0 | Q21: 0 | R21: 0 | S21: 0 | T21: 0 | U21: 0 | V21: 0 | W21: 0 | X21: 0 | Y21: 0 | Z21: 0 | AA21: 0 | AB21: 0 | AC21: 0 | AD21: 0 | AE21: 0 | AF21: 0 | AG21: 0 | AH21: 0 | AI21: 0 | AJ21: 0 | AK21: 0 | AL21: 0 | AM21: 0 | AN21: 0 | AO21: 0 | AP21: 0
A22: Guardianaggio | N22: 0 | O22: 0 | P22: 0 | Q22: 0 | R22: 0 | S22: 0 | T22: 0 | U22: 0 | V22: 0 | W22: 0 | X22: 0 | Y22: 0 | Z22: 0 | AA22: 0 | AB22: 0 | AC22: 0 | AD22: 0 | AE22: 0 | AF22: 0 | AG22: 0 | AH22: 0 | AI22: 0 | AJ22: 0 | AK22: 0 | AL22: 0 | AM22: 0 | AN22: 0 | AO22: 0 | AP22: 0
A23: Cancelleria | B23: 100 | N23: 100 | O23: 0 | P23: 100 | Q23: 0 | R23: 0 | S23: 0 | T23: 0 | U23: 0 | V23: 0 | W23: 0 | X23: 0 | Y23: 0 | Z23: 0 | AA23: 0 | AB23: 100 | AC23: 0 | AD23: 100 | AE23: 0 | AF23: 0 | AG23: 0 | AH23: 0 | AI23: 0 | AJ23: 0 | AK23: 0 | AL23: 0 | AM23: 0 | AN23: 0 | AO23: 0 | AP23: 100
A24: Imposta sui rifiuti | N24: 0 | O24: 0 | P24: 0 | Q24: 0 | R24: 0 | S24: 0 | T24: 0 | U24: 0 | V24: 0 | W24: 0 | X24: 0 | Y24: 0 | Z24: 0 | AA24: 0 | AB24: 0 | AC24: 0 | AD24: 0 | AE24: 0 | AF24: 0 | AG24: 0 | AH24: 0 | AI24: 0 | AJ24: 0 | AK24: 0 | AL24: 0 | AM24: 0 | AN24: 0 | AO24: 0 | AP24: 0
A25: Imu | N25: 0 | O25: 0 | P25: 0 | Q25: 0 | R25: 0 | S25: 0 | T25: 0 | U25: 0 | V25: 0 | W25: 0 | X25: 0 | Y25: 0 | Z25: 0 | AA25: 0 | AB25: 0 | AC25: 0 | AD25: 0 | AE25: 0 | AF25: 0 | AG25: 0 | AH25: 0 | AI25: 0 | AJ25: 0 | AK25: 0 | AL25: 0 | AM25: 0 | AN25: 0 | AO25: 0 | AP25: 0
A26: Tasi | N26: 0 | O26: 0 | P26: 0 | Q26: 0 | R26: 0 | S26: 0 | T26: 0 | U26: 0 | V26: 0 | W26: 0 | X26: 0 | Y26: 0 | Z26: 0 | AA26: 0 | AB26: 0 | AC26: 0 | AD26: 0 | AE26: 0 | AF26: 0 | AG26: 0 | AH26: 0 | AI26: 0 | AJ26: 0 | AK26: 0 | AL26: 0 | AM26: 0 | AN26: 0 | AO26: 0 | AP26: 0
A27: Collaborazioni occasionali (stagionali) | N27: 0 | O27: 0 | P27: 0 | Q27: 0 | R27: 0 | S27: 0 | T27: 0 | U27: 0 | V27: 0 | W27: 0 | X27: 0 | Y27: 0 | Z27: 0 | AA27: 0 | AB27: 0 | AC27: 0 | AD27: 0 | AE27: 0 | AF27: 0 | AG27: 0 | AH27: 0 | AI27: 0 | AJ27: 0 | AK27: 0 | AL27: 0 | AM27: 0 | AN27: 0 | AO27: 0 | AP27: 0
A28: Altri costi fissi | N28: 0 | O28: 0 | P28: 0 | Q28: 0 | R28: 0 | S28: 0 | T28: 0 | U28: 0 | V28: 0 | W28: 0 | X28: 0 | Y28: 0 | Z28: 0 | AA28: 0 | AB28: 0 | AC28: 0 | AD28: 0 | AE28: 0 | AF28: 0 | AG28: 0 | AH28: 0 | AI28: 0 | AJ28: 0 | AK28: 0 | AL28: 0 | AM28: 0 | AN28: 0 | AO28: 0 | AP28: 0
A29: Altri costi fissi | N29: 0 | O29: 0 | P29: 0 | Q29: 0 | R29: 0 | S29: 0 | T29: 0 | U29: 0 | V29: 0 | W29: 0 | X29: 0 | Y29: 0 | Z29: 0 | AA29: 0 | AB29: 0 | AC29: 0 | AD29: 0 | AE29: 0 | AF29: 0 | AG29: 0 | AH29: 0 | AI29: 0 | AJ29: 0 | AK29: 0 | AL29: 0 | AM29: 0 | AN29: 0 | AO29: 0 | AP29: 0
A30: Altri costi fissi | N30: 0 | O30: 0 | P30: 0 | Q30: 0 | R30: 0 | S30: 0 | T30: 0 | U30: 0 | V30: 0 | W30: 0 | X30: 0 | Y30: 0 | Z30: 0 | AA30: 0 | AB30: 0 | AC30: 0 | AD30: 0 | AE30: 0 | AF30: 0 | AG30: 0 | AH30: 0 | AI30: 0 | AJ30: 0 | AK30: 0 | AL30: 0 | AM30: 0 | AN30: 0 | AO30: 0 | AP30: 0
A31: Altri costi fissi | N31: 0 | O31: 0 | P31: 0 | Q31: 0 | R31: 0 | S31: 0 | T31: 0 | U31: 0 | V31: 0 | W31: 0 | X31: 0 | Y31: 0 | Z31: 0 | AA31: 0 | AB31: 0 | AC31: 0 | AD31: 0 | AE31: 0 | AF31: 0 | AG31: 0 | AH31: 0 | AI31: 0 | AJ31: 0 | AK31: 0 | AL31: 0 | AM31: 0 | AN31: 0 | AO31: 0 | AP31: 0
A32: Altri costi fissi | N32: 0 | O32: 0 | P32: 0 | Q32: 0 | R32: 0 | S32: 0 | T32: 0 | U32: 0 | V32: 0 | W32: 0 | X32: 0 | Y32: 0 | Z32: 0 | AA32: 0 | AB32: 0 | AC32: 0 | AD32: 0 | AE32: 0 | AF32: 0 | AG32: 0 | AH32: 0 | AI32: 0 | AJ32: 0 | AK32: 0 | AL32: 0 | AM32: 0 | AN32: 0 | AO32: 0 | AP32: 0
A33: Altri costi fissi | N33: 0 | O33: 0 | P33: 0 | Q33: 0 | R33: 0 | S33: 0 | T33: 0 | U33: 0 | V33: 0 | W33: 0 | X33: 0 | Y33: 0 | Z33: 0 | AA33: 0 | AB33: 0 | AC33: 0 | AD33: 0 | AE33: 0 | AF33: 0 | AG33: 0 | AH33: 0 | AI33: 0 | AJ33: 0 | AK33: 0 | AL33: 0 | AM33: 0 | AN33: 0 | AO33: 0 | AP33: 0
A34: Altri costi fissi | N34: 0 | O34: 0 | P34: 0 | Q34: 0 | R34: 0 | S34: 0 | T34: 0 | U34: 0 | V34: 0 | W34: 0 | X34: 0 | Y34: 0 | Z34: 0 | AA34: 0 | AB34: 0 | AC34: 0 | AD34: 0 | AE34: 0 | AF34: 0 | AG34: 0 | AH34: 0 | AI34: 0 | AJ34: 0 | AK34: 0 | AL34: 0 | AM34: 0 | AN34: 0 | AO34: 0 | AP34: 0
A35: Altri costi fissi | N35: 0 | O35: 0 | P35: =+(1+$O35)*B35 -> 0 | Q35: =+(1+$O35)*C35 -> 0 | R35: =+(1+$O35)*D35 -> 0 | S35: =+(1+$O35)*E35 -> 0 | T35: =+(1+$O35)*F35 -> 0 | U35: =+(1+$O35)*G35 -> 0 | V35: =+(1+$O35)*H35 -> 0 | W35: =+(1+$O35)*I35 -> 0 | X35: =+(1+$O35)*J35 -> 0 | Y35: =+(1+$O35)*K35 -> 0 | Z35: =+(1+$O35)*L35 -> 0 | AA35: =+(1+$O35)*M35 -> 0 | AB35: 0 | AC35: 0 | AD35: =+(1+$AC35)*P35 -> 0 | AE35: =+(1+$AC35)*Q35 -> 0 | AF35: =+(1+$AC35)*R35 -> 0 | AG35: =+(1+$AC35)*S35 -> 0 | AH35: =+(1+$AC35)*T35 -> 0 | AI35: =+(1+$AC35)*U35 -> 0 | AJ35: =+(1+$AC35)*V35 -> 0 | AK35: =+(1+$AC35)*W35 -> 0 | AL35: =+(1+$AC35)*X35 -> 0 | AM35: =+(1+$AC35)*Y35 -> 0 | AN35: =+(1+$AC35)*Z35 -> 0 | AO35: =+(1+$AC35)*AA35 -> 0 | AP35: 0
A36: TOTALE | B36: =SUM(B3:B34) -> 530 | C36: =SUM(C3:C34) -> 390 | D36: 230 | E36: 440 | F36: 230 | G36: 390 | H36: 280 | I36: 390 | J36: 230 | K36: 440 | L36: 230 | M36: 1140 | N36: =SUM(N3:N35) -> 4920 | AA36: TOTALE | AB36: =SUM(AB3:AB35) -> 4920 | AO36: TOTALE | AP36: =SUM(AP3:AP35) -> 4920

Sheet 6) INPUT COSTI VARIABILI
B1: INPUT COSTI VARIABILI
B2: VOCI | C2: COSTO UNITARIO / INCIDENZA % | E2: € / % | F2: VARIABILI | I2: PARAMETRO | K2: TOTALE ANNO 1 | L2: check | Q2: VOCI | R2: COSTO UNITARIO / INCIDENZA % | T2: € / % | U2: VARIABILI | X2: PARAMETRO | Z2: TOTALE ANNO 2 | AA2: check | AF2: VOCI | AG2: COSTO UNITARIO / INCIDENZA % | AI2: € / % | AJ2: VARIABILI | AM2: PARAMETRO | AO2: TOTALE ANNO 2 | AP2: check
B3: Materie prime colazione | C3: 1.5 | E3: 1 | F3: TOTALE CAMERE | I3: N. PRESENZE | K3: =+IF(I3="N. PRESENZE",C3*VLOOKUP(F3,$B$22:$H$33,6,FALSE)/E3,IF(I3="FATTURATO",C3/E3*VLOOKUP(F3,$B$22:$H$33,4,FALSE),IF(I3="PRENOTAZIONI",C3/E3*VLOOKUP(F3,$B$22:$H$33,5,FALSE),0))) -> 1064.4 | L3: =+IF(K3=O40,"ok","errore") -> ok | Q3: =+B3 -> Materie prime colazione | R3: =+M21 -> 1.5 | T3: =+E3 -> 1 | U3: =+F3 -> TOTALE CAMERE | X3: =+I3 -> N. PRESENZE | Z3: =+IF(X3="N. PRESENZE",R3*VLOOKUP(U3,$Q$22:$W$33,6,FALSE)/T3,IF(X3="FATTURATO",R3/T3*VLOOKUP(U3,$Q$22:$W$33,4,FALSE),IF(X3="PRENOTAZIONI",R3/T3*VLOOKUP(U3,$Q$22:$W$33,5,FALSE),0))) -> 1064.4 | AA3: =+IF(Z3=AD40,"ok","errore") -> ok | AF3: =+Q3 -> Materie prime colazione | AG3: =+N21 -> 1.5 | AI3: =+T3 -> 1 | AJ3: =+U3 -> TOTALE CAMERE | AM3: =+X3 -> N. PRESENZE | AO3: =+IF(AM3="N. PRESENZE",AG3*VLOOKUP(AJ3,$AF$22:$AL$33,6,FALSE)/AI3,IF(AM3="FATTURATO",AG3/AI3*VLOOKUP(AJ3,$AF$22:$AL$33,4,FALSE),IF(AM3="PRENOTAZIONI",AG3/AI3*VLOOKUP(AJ3,$AF$22:$AL$33,5,FALSE),0))) -> 1064.4 | AP3: =+IF(AO3=AS40,"ok","errore") -> ok
B4: Materiale di consumo ospiti | C4: 1 | E4: 100 | F4: TOTALE CAMERE | I4: FATTURATO | K4: 278.16 | L4: ok | Q4: =+B4 -> Materiale di consumo ospiti | R4: =+M22 -> 1 | T4: =+E4 -> 100 | U4: =+F4 -> TOTALE CAMERE | X4: =+I4 -> FATTURATO | Z4: =+IF(X4="N. PRESENZE",R4*VLOOKUP(U4,$Q$22:$W$33,6,FALSE)/T4,IF(X4="FATTURATO",R4/T4*VLOOKUP(U4,$Q$22:$W$33,4,FALSE),IF(X4="PRENOTAZIONI",R4/T4*VLOOKUP(U4,$Q$22:$W$33,5,FALSE),0))) -> 278.16 | AA4: ok | AF4: =+Q4 -> Materiale di consumo ospiti | AG4: =+N22 -> 1 | AI4: =+T4 -> 100 | AJ4: =+U4 -> TOTALE CAMERE | AM4: =+X4 -> FATTURATO | AO4: =+IF(AM4="N. PRESENZE",AG4*VLOOKUP(AJ4,$AF$22:$AL$33,6,FALSE)/AI4,IF(AM4="FATTURATO",AG4/AI4*VLOOKUP(AJ4,$AF$22:$AL$33,4,FALSE),IF(AM4="PRENOTAZIONI",AG4/AI4*VLOOKUP(AJ4,$AF$22:$AL$33,5,FALSE),0))) -> 278.16 | AP4: ok
B5: Materiale di consumo pulizia | C5: 1 | E5: 100 | F5: TOTALE CAMERE | I5: FATTURATO | K5: =+IF(I5="N. PRESENZE",C5*VLOOKUP(F5,$B$22:$H$33,6,FALSE)/E5,IF(I5="FATTURATO",C5/E5*VLOOKUP(F5,$B$22:$H$33,4,FALSE),IF(I5="PRENOTAZIONI",C5/E5*VLOOKUP(F5,$B$22:$H$33,5,FALSE),0))) -> 278.16 | L5: ok | Q5: Materiale di consumo pulizia | R5: 1 | T5: 100 | U5: TOTALE CAMERE | X5: FATTURATO | Z5: =+IF(X5="N. PRESENZE",R5*VLOOKUP(U5,$Q$22:$W$33,6,FALSE)/T5,IF(X5="FATTURATO",R5/T5*VLOOKUP(U5,$Q$22:$W$33,4,FALSE),IF(X5="PRENOTAZIONI",R5/T5*VLOOKUP(U5,$Q$22:$W$33,5,FALSE),0))) -> 278.16 | AA5: ok | AF5: Materiale di consumo pulizia | AG5: 1 | AI5: 100 | AJ5: TOTALE CAMERE | AM5: FATTURATO | AO5: 278.16 | AP5: ok
B6: Servizi di lavanderia | C6: 5 | E6: 100 | F6: TOTALE CAMERE | I6: FATTURATO | K6: 1390.8 | L6: ok | Q6: Servizi di lavanderia | R6: 5 | T6: 100 | U6: TOTALE CAMERE | X6: FATTURATO | Z6: =+IF(X6="N. PRESENZE",R6*VLOOKUP(U6,$Q$22:$W$33,6,FALSE)/T6,IF(X6="FATTURATO",R6/T6*VLOOKUP(U6,$Q$22:$W$33,4,FALSE),IF(X6="PRENOTAZIONI",R6/T6*VLOOKUP(U6,$Q$22:$W$33,5,FALSE),0))) -> 1390.8 | AA6: ok | AF6: Servizi di lavanderia | AG6: 5 | AI6: 100 | AJ6: TOTALE CAMERE | AM6: FATTURATO | AO6: 1390.8 | AP6: ok
B7: Visite guidate | C7: 0 | E7: 1 | F7: VISITE GUIDATE | I7: PRENOTAZIONI | K7: 0 | L7: ok | Q7: Visite guidate | R7: 20 | T7: 1 | U7: VISITE GUIDATE | X7: PRENOTAZIONI | Z7: 0 | AA7: ok | AF7: Visite guidate | AG7: 20 | AI7: 1 | AJ7: VISITE GUIDATE | AM7: PRENOTAZIONI | AO7: 0 | AP7: ok
B8: Altri costi variabili | K8: 0 | L8: ok | Q8: Altri costi variabili | R8: 0 | T8: 0 | U8: 0 | X8: 0 | Z8: 0 | AA8: ok | AF8: Altri costi variabili | AG8: 0 | AI8: 0 | AJ8: 0 | AM8: 0 | AO8: 0 | AP8: ok
B9: Altri costi variabili | K9: 0 | L9: ok | Q9: Altri costi variabili | R9: 0 | T9: 0 | U9: 0 | X9: 0 | Z9: 0 | AA9: ok | AF9: Altri costi variabili | AG9: 0 | AI9: 0 | AJ9: 0 | AM9: 0 | AO9: 0 | AP9: ok
B10: Altri costi variabili | K10: 0 | L10: ok | Q10: Altri costi variabili | R10: 0 | T10: 0 | U10: 0 | X10: 0 | Z10: 0 | AA10: ok | AF10: Altri costi variabili | AG10: 0 | AI10: 0 | AJ10: 0 | AM10: 0 | AO10: 0 | AP10: ok
B11: Altri costi variabili | K11: 0 | L11: ok | Q11: Altri costi variabili | R11: 0 | T11: 0 | U11: 0 | X11: 0 | Z11: 0 | AA11: ok | AF11: Altri costi variabili | AG11: 0 | AI11: 0 | AJ11: 0 | AM11: 0 | AO11: 0 | AP11: ok
B12: Altri costi variabili | K12: 0 | L12: ok | Q12: Altri costi variabili | R12: 0 | T12: 0 | U12: 0 | X12: 0 | Z12: 0 | AA12: ok | AF12: Altri costi variabili | AG12: 0 | AI12: 0 | AJ12: 0 | AM12: 0 | AO12: 0 | AP12: ok
B13: Altri costi variabili | K13: 0 | L13: ok | Q13: Altri costi variabili | R13: 0 | T13: 0 | U13: 0 | X13: 0 | Z13: 0 | AA13: ok | AF13: Altri costi variabili | AG13: 0 | AI13: 0 | AJ13: 0 | AM13: 0 | AO13: 0 | AP13: ok
B14: Altri costi variabili | K14: 0 | L14: ok | Q14: Altri costi variabili | R14: 0 | T14: 0 | U14: 0 | X14: 0 | Z14: 0 | AA14: ok | AF14: Altri costi variabili | AG14: 0 | AI14: 0 | AJ14: 0 | AM14: 0 | AO14: =+IF(AM14="N. PRESENZE",AG14*VLOOKUP(AJ14,$AF$22:$AL$33,6,FALSE)/AI14,IF(AM14="FATTURATO",AG14/AI14*VLOOKUP(AJ14,$AF$22:$AL$33,4,FALSE),IF(AM14="PRENOTAZIONI",AG14/AI14*VLOOKUP(AJ14,$AF$22:$AL$33,5,FALSE),0))) -> 0 | AP14: ok
B15: Altri costi variabili | K15: 0 | L15: ok | Q15: Altri costi variabili | R15: 0 | T15: 0 | U15: 0 | X15: 0 | Z15: 0 | AA15: ok | AF15: Altri costi variabili | AG15: 0 | AI15: 0 | AJ15: 0 | AM15: 0 | AO15: 0 | AP15: ok
B16: Altri costi variabili | K16: 0 | L16: ok | Q16: Altri costi variabili | R16: 0 | T16: 0 | U16: 0 | X16: 0 | Z16: 0 | AA16: ok | AF16: Altri costi variabili | AG16: 0 | AI16: 0 | AJ16: 0 | AM16: 0 | AO16: 0 | AP16: ok
B17: Altri costi variabili | K17: 0 | L17: ok | Q17: Altri costi variabili | R17: 0 | T17: 0 | U17: 0 | X17: 0 | Z17: 0 | AA17: ok | AF17: Altri costi variabili | AG17: 0 | AI17: 0 | AJ17: 0 | AM17: 0 | AO17: 0 | AP17: ok
J19: IPOTESI VARIZIAZIONI COSTI
L20: ANNO 1 | M20: ANNO 2 | N20: ANNO3
B21: VARIABILI | J21: =+B3 -> Materie prime colazione | L21: =+C3 -> 1.5 | M21: 1.5 | N21: =+M21 -> 1.5 | Q21: VARIABILI | AF21: VARIABILI
B22: VOCI RICAVI | E22: Fatturato | F22: Prenotazioni | G22: N. PRESENZE | J22: Materiale di consumo ospiti | L22: =+C4 -> 1 | M22: 1 | N22: =+M22 -> 1 | Q22: VOCI RICAVI | T22: Fatturato | U22: Prenotazioni | V22: N. PRESENZE | AF22: VOCI RICAVI | AI22: Fatturato | AJ22: Prenotazioni | AK22: N. PRESENZE
B23: =+'1) INPUT BASE'!B16 -> CAMERE QUADRUPLE | E23: =+O58 -> 0 | F23: =+O71 -> 0 | G23: =+F23*4 -> 0 | J23: Materiale di consumo pulizia | L23: 1 | M23: 1 | N23: =+M23 -> 1 | Q23: =+B23 -> CAMERE QUADRUPLE | T23: =+AD58 -> 0 | U23: =+AD71 -> 0 | V23: =+U23*4 -> 0 | AF23: =+Q23 -> CAMERE QUADRUPLE | AI23: =+AS58 -> 0 | AJ23: =+AS71 -> 0 | AK23: =+AJ23*4 -> 0
B24: =+'1) INPUT BASE'!B17 -> CAMERE TRIPLE | E24: =+O59 -> 0 | F24: =+'3) INPUT VENDITE'!N18 -> 0 | G24: =+F24*3 -> 0 | J24: Servizi di lavanderia | L24: 5 | M24: 5 | N24: =+M24 -> 5 | Q24: =+B24 -> CAMERE TRIPLE | T24: =+AD59 -> 0 | U24: =+AD72 -> 0 | V24: =+U24*3 -> 0 | AF24: =+Q24 -> CAMERE TRIPLE | AI24: =+AS59 -> 0 | AJ24: =+AS72 -> 0 | AK24: =+AJ24*3 -> 0
B25: =+'1) INPUT BASE'!B18 -> CAMERE DOPPIE | E25: 27816 | F25: =+'3) INPUT VENDITE'!N19 -> 354.8 | G25: =+F25*2 -> 709.6 | J25: Visite guidate | L25: 0 | M25: 20 | N25: =+M25 -> 20 | Q25: CAMERE DOPPIE | T25: 27816 | U25: 354.8 | V25: =+U25*2 -> 709.6 | AF25: CAMERE DOPPIE | AI25: 27816 | AJ25: 354.8 | AK25: =+AJ25*2 -> 709.6
B26: =+'1) INPUT BASE'!B19 -> CAMERE SINGOLE | E26: 0 | F26: =+'3) INPUT VENDITE'!N20 -> 0 | G26: =+F26*1 -> 0 | J26: Altri costi variabili | L26: 0 | M26: 0 | N26: =+M26 -> 0 | Q26: CAMERE SINGOLE | T26: 0 | U26: 0 | V26: =+U26*1 -> 0 | AF26: CAMERE SINGOLE | AI26: 0 | AJ26: 0 | AK26: =+AJ26*1 -> 0
B27: =+'1) INPUT BASE'!B20 -> VISITE GUIDATE | E27: 0 | F27: =+'3) INPUT VENDITE'!N21 -> 0 | J27: Altri costi variabili | L27: 0 | M27: =+L27 -> 0 | N27: 0 | Q27: VISITE GUIDATE | T27: 0 | U27: 0 | AF27: VISITE GUIDATE | AI27: 0 | AJ27: 0
B28: =+'1) INPUT BASE'!B21 -> Altri ricavi | E28: 0 | F28: =+'3) INPUT VENDITE'!N22 -> 0 | J28: Altri costi variabili | L28: 0 | M28: =+L28 -> 0 | N28: 0 | Q28: Altri ricavi | T28: 0 | U28: 0 | AF28: Altri ricavi | AI28: 0 | AJ28: 0
B29: =+'1) INPUT BASE'!B22 -> Altri ricavi | E29: 0 | F29: =+'3) INPUT VENDITE'!N23 -> 0 | J29: Altri costi variabili | L29: 0 | M29: =+L29 -> 0 | N29: 0 | Q29: Altri ricavi | T29: 0 | U29: 0 | AF29: Altri ricavi | AI29: 0 | AJ29: 0
B30: =+'1) INPUT BASE'!B23 -> Altri ricavi | E30: 0 | F30: =+'3) INPUT VENDITE'!N24 -> 0 | J30: Altri costi variabili | L30: 0 | M30: =+L30 -> 0 | N30: 0 | Q30: Altri ricavi | T30: 0 | U30: 0 | AF30: Altri ricavi | AI30: 0 | AJ30: 0
B31: =+'1) INPUT BASE'!B24 -> Altri ricavi | E31: 0 | F31: =+'3) INPUT VENDITE'!N25 -> 0 | J31: Altri costi variabili | L31: 0 | M31: =+L31 -> 0 | N31: 0 | Q31: Altri ricavi | T31: 0 | U31: 0 | AF31: Altri ricavi | AI31: 0 | AJ31: 0
B32: =+'1) INPUT BASE'!B25 -> Altri ricavi | E32: 0 | F32: =+'3) INPUT VENDITE'!N26 -> 0 | J32: Altri costi variabili | L32: 0 | M32: =+L32 -> 0 | N32: 0 | Q32: Altri ricavi | T32: 0 | U32: 0 | AF32: Altri ricavi | AI32: 0 | AJ32: 0
B33: TOTALE CAMERE | E33: =SUM(E23:E26) -> 27816 | F33: =+'3) INPUT VENDITE'!N27 -> 354.8 | G33: =SUM(G23:G32) -> 709.6 | J33: Altri costi variabili | L33: 0 | M33: =+L33 -> 0 | N33: 0 | Q33: TOTALE CAMERE | T33: =SUM(T23:T26) -> 27816 | U33: =+U23+U24+U25+U26 -> 354.8 | V33: =SUM(V23:V32) -> 709.6 | AF33: TOTALE CAMERE | AI33: =SUM(AI23:AI26) -> 27816 | AJ33: =+AJ23+AJ24+AJ25+AJ26 -> 354.8 | AK33: =SUM(AK23:AK32) -> 709.6
J34: Altri costi variabili | L34: 0 | M34: =+L34 -> 0 | N34: 0
J35: Altri costi variabili | L35: 0 | M35: =+L35 -> 0 | N35: 0
B37: 1 | C37: 2 | D37: 3 | E37: 4 | F37: 5 | G37: 6 | H37: 7 | I37: 8 | J37: 9 | K37: 10 | L37: 11 | M37: 12 | N37: 13 | Q37: 1 | R37: 2 | S37: 3 | T37: 4 | U37: 5 | V37: 6 | W37: 7 | X37: 8 | Y37: 9 | Z37: 10 | AA37: 11 | AB37: 12 | AC37: 13 | AF37: 1 | AG37: 2 | AH37: 3 | AI37: 4 | AJ37: 5 | AK37: 6 | AL37: 7 | AM37: 8 | AN37: 9 | AO37: 10 | AP37: 11 | AQ37: 12 | AR37: 13
B38: PIANO DEI COSTI VARIABILI | C38: MESI | O38: ANNO 1 | Q38: PIANO DEI COSTI VARIABILI | R38: MESI | AD38: ANNO 2 | AF38: PIANO DEI COSTI VARIABILI | AG38: MESI | AS38: ANNO3
C39: =+'5) INPUT COSTI FISSI'!B2 -> 2016-04-30 | D39: =+EOMONTH(C39,1) -> 2016-05-31 | E39: =+EOMONTH(D39,1) -> 2016-06-30 | F39: 2016-07-31 | G39: 2016-08-31 | H39: 2016-09-30 | I39: 2016-10-31 | J39: 2016-11-30 | K39: 2016-12-31 | L39: =+EOMONTH(K39,1) -> 2017-01-31 | M39: 2017-02-28 | N39: 2017-03-31 | O39: TOTALE | R39: =+R57 -> 2017-04-30 | S39: =+EOMONTH(R39,1) -> 2017-05-31 | T39: =+EOMONTH(S39,1) -> 2017-06-30 | U39: =+EOMONTH(T39,1) -> 2017-07-31 | V39: =+EOMONTH(U39,1) -> 2017-08-31 | W39: =+EOMONTH(V39,1) -> 2017-09-30 | X39: =+EOMONTH(W39,1) -> 2017-10-31 | Y39: =+EOMONTH(X39,1) -> 2017-11-30 | Z39: =+EOMONTH(Y39,1) -> 2017-12-31 | AA39: =+EOMONTH(Z39,1) -> 2018-01-31 | AB39: =+EOMONTH(AA39,1) -> 2018-02-28 | AC39: =+EOMONTH(AB39,1) -> 2018-03-31 | AD39: TOTALE | AG39: =+AG57 -> 2018-04-30 | AH39: =+EOMONTH(AG39,1) -> 2018-05-31 | AI39: =+EOMONTH(AH39,1) -> 2018-06-30 | AJ39: =+EOMONTH(AI39,1) -> 2018-07-31 | AK39: =+EOMONTH(AJ39,1) -> 2018-08-31 | AL39: =+EOMONTH(AK39,1) -> 2018-09-30 | AM39: =+EOMONTH(AL39,1) -> 2018-10-31 | AN39: =+EOMONTH(AM39,1) -> 2018-11-30 | AO39: =+EOMONTH(AN39,1) -> 2018-12-31 | AP39: =+EOMONTH(AO39,1) -> 2019-01-31 | AQ39: =+EOMONTH(AP39,1) -> 2019-02-28 | AR39: =+EOMONTH(AQ39,1) -> 2019-03-31 | AS39: TOTALE
B40: =+B3 -> Materie prime colazione | C40: =+IF($I3="N. PRESENZE",$C3*VLOOKUP($F3,$B$83:$O$88,$C$37,FALSE)/$E3,IF($I3="FATTURATO",$C3/$E3*VLOOKUP($F3,$B$58:$N$68,$C$37,FALSE),IF($I3="PRENOTAZIONI",$C3/$E3*VLOOKUP($F3,$B$71:$N$81,$C$37,FALSE),0))) -> 36 | D40: =+IF($I3="N. PRESENZE",$C3*VLOOKUP($F3,$B$83:$O$88,$D$37,FALSE)/$E3,IF($I3="FATTURATO",$C3/$E3*VLOOKUP($F3,$B$58:$N$68,$D$37,FALSE),IF($I3="PRENOTAZIONI",$C3/$E3*VLOOKUP($F3,$B$71:$N$81,$D$37,FALSE),0))) -> 93 | E40: =+IF($I3="N. PRESENZE",$C3*VLOOKUP($F3,$B$83:$O$88,$E$37,FALSE)/$E3,IF($I3="FATTURATO",$C3/$E3*VLOOKUP($F3,$B$58:$N$68,$E$37,FALSE),IF($I3="PRENOTAZIONI",$C3/$E3*VLOOKUP($F3,$B$71:$N$81,$E$37,FALSE),0))) -> 162 | F40: =+IF($I3="N. PRESENZE",$C3*VLOOKUP($F3,$B$83:$O$88,$F$37,FALSE)/$E3,IF($I3="FATTURATO",$C3/$E3*VLOOKUP($F3,$B$58:$N$68,$F$37,FALSE),IF($I3="PRENOTAZIONI",$C3/$E3*VLOOKUP($F3,$B$71:$N$81,$F$37,FALSE),0))) -> 167.4 | G40: =+IF($I3="N. PRESENZE",$C3*VLOOKUP($F3,$B$83:$O$88,$G$37,FALSE)/$E3,IF($I3="FATTURATO",$C3/$E3*VLOOKUP($F3,$B$58:$N$68,$G$37,FALSE),IF($I3="PRENOTAZIONI",$C3/$E3*VLOOKUP($F3,$B$71:$N$81,$G$37,FALSE),0))) -> 167.4 | H40: =+IF($I3="N. PRESENZE",$C3*VLOOKUP($F3,$B$83:$O$88,$H$37,FALSE)/$E3,IF($I3="FATTURATO",$C3/$E3*VLOOKUP($F3,$B$58:$N$68,$H$37,FALSE),IF($I3="PRENOTAZIONI",$C3/$E3*VLOOKUP($F3,$B$71:$N$81,$H$37,FALSE),0))) -> 90 | I40: =+IF($I3="N. PRESENZE",$C3*VLOOKUP($F3,$B$83:$O$88,$I$37,FALSE)/$E3,IF($I3="FATTURATO",$C3/$E3*VLOOKUP($F3,$B$58:$N$68,$I$37,FALSE),IF($I3="PRENOTAZIONI",$C3/$E3*VLOOKUP($F3,$B$71:$N$81,$I$37,FALSE),0))) -> 37.2 | J40: =+IF($I3="N. PRESENZE",$C3*VLOOKUP($F3,$B$83:$O$88,$J$37,FALSE)/$E3,IF($I3="FATTURATO",$C3/$E3*VLOOKUP($F3,$B$58:$N$68,$J$37,FALSE),IF($I3="PRENOTAZIONI",$C3/$E3*VLOOKUP($F3,$B$71:$N$81,$J$37,FALSE),0))) -> 36 | K40: =+IF($I3="N. PRESENZE",$C3*VLOOKUP($F3,$B$83:$O$88,$K$37,FALSE)/$E3,IF($I3="FATTURATO",$C3/$E3*VLOOKUP($F3,$B$58:$N$68,$K$37,FALSE),IF($I3="PRENOTAZIONI",$C3/$E3*VLOOKUP($F3,$B$71:$N$81,$K$37,FALSE),0))) -> 167.4 | L40: =+IF($I3="N. PRESENZE",$C3*VLOOKUP($F3,$B$83:$O$88,$L$37,FALSE)/$E3,IF($I3="FATTURATO",$C3/$E3*VLOOKUP($F3,$B$58:$N$68,$L$37,FALSE),IF($I3="PRENOTAZIONI",$C3/$E3*VLOOKUP($F3,$B$71:$N$81,$L$37,FALSE),0))) -> 37.2 | M40: =+IF($I3="N. PRESENZE",$C3*VLOOKUP($F3,$B$83:$O$88,$M$37,FALSE)/$E3,IF($I3="FATTURATO",$C3/$E3*VLOOKUP($F3,$B$58:$N$68,$M$37,FALSE),IF($I3="PRENOTAZIONI",$C3/$E3*VLOOKUP($F3,$B$71:$N$81,$M$37,FALSE),0))) -> 33.6 | N40: =+IF($I3="N. PRESENZE",$C3*VLOOKUP($F3,$B$83:$O$88,$N$37,FALSE)/$E3,IF($I3="FATTURATO",$C3/$E3*VLOOKUP($F3,$B$58:$N$68,$N$37,FALSE),IF($I3="PRENOTAZIONI",$C3/$E3*VLOOKUP($F3,$B$71:$N$81,$N$37,FALSE),0))) -> 37.2 | O40: =SUM(C40:N40) -> 1064.4 | Q40: =+Q3 -> Materie prime colazione | R40: =+IF($X3="N. PRESENZE",$R3*VLOOKUP($U3,$Q$83:$AD$88,$C$37,FALSE)/$T3,IF($X3="FATTURATO",$R3/$T3*VLOOKUP($U3,$Q$58:$AC$68,$C$37,FALSE),IF($X3="PRENOTAZIONI",$R3/$T3*VLOOKUP($U3,$Q$71:$AC$81,$C$37,FALSE),0))) -> 36 | S40: =+IF($X3="N. PRESENZE",$R3*VLOOKUP($U3,$Q$83:$AD$88,$D$37,FALSE)/$T3,IF($X3="FATTURATO",$R3/$T3*VLOOKUP($U3,$Q$58:$AC$68,$D$37,FALSE),IF($X3="PRENOTAZIONI",$R3/$T3*VLOOKUP($U3,$Q$71:$AC$81,$D$37,FALSE),0))) -> 93 | T40: =+IF($X3="N. PRESENZE",$R3*VLOOKUP($U3,$Q$83:$AD$88,$E$37,FALSE)/$T3,IF($X3="FATTURATO",$R3/$T3*VLOOKUP($U3,$Q$58:$AC$68,$E$37,FALSE),IF($X3="PRENOTAZIONI",$R3/$T3*VLOOKUP($U3,$Q$71:$AC$81,$E$37,FALSE),0))) -> 162 | U40: =+IF($X3="N. PRESENZE",$R3*VLOOKUP($U3,$Q$83:$AD$88,$F$37,FALSE)/$T3,IF($X3="FATTURATO",$R3/$T3*VLOOKUP($U3,$Q$58:$AC$68,$F$37,FALSE),IF($X3="PRENOTAZIONI",$R3/$T3*VLOOKUP($U3,$Q$71:$AC$81,$F$37,FALSE),0))) -> 167.4 | V40: =+IF($X3="N. PRESENZE",$R3*VLOOKUP($U3,$Q$83:$AD$88,$G$37,FALSE)/$T3,IF($X3="FATTURATO",$R3/$T3*VLOOKUP($U3,$Q$58:$AC$68,$G$37,FALSE),IF($X3="PRENOTAZIONI",$R3/$T3*VLOOKUP($U3,$Q$71:$AC$81,$G$37,FALSE),0))) -> 167.4 | W40: =+IF($X3="N. PRESENZE",$R3*VLOOKUP($U3,$Q$83:$AD$88,$H$37,FALSE)/$T3,IF($X3="FATTURATO",$R3/$T3*VLOOKUP($U3,$Q$58:$AC$68,$H$37,FALSE),IF($X3="PRENOTAZIONI",$R3/$T3*VLOOKUP($U3,$Q$71:$AC$81,$H$37,FALSE),0))) -> 90 | X40: =+IF($X3="N. PRESENZE",$R3*VLOOKUP($U3,$Q$83:$AD$88,$I$37,FALSE)/$T3,IF($X3="FATTURATO",$R3/$T3*VLOOKUP($U3,$Q$58:$AC$68,$I$37,FALSE),IF($X3="PRENOTAZIONI",$R3/$T3*VLOOKUP($U3,$Q$71:$AC$81,$I$37,FALSE),0))) -> 37.2 | Y40: =+IF($X3="N. PRESENZE",$R3*VLOOKUP($U3,$Q$83:$AD$88,$J$37,FALSE)/$T3,IF($X3="FATTURATO",$R3/$T3*VLOOKUP($U3,$Q$58:$AC$68,$J$37,FALSE),IF($X3="PRENOTAZIONI",$R3/$T3*VLOOKUP($U3,$Q$71:$AC$81,$J$37,FALSE),0))) -> 36 | Z40: =+IF($X3="N. PRESENZE",$R3*VLOOKUP($U3,$Q$83:$AD$88,$K$37,FALSE)/$T3,IF($X3="FATTURATO",$R3/$T3*VLOOKUP($U3,$Q$58:$AC$68,$K$37,FALSE),IF($X3="PRENOTAZIONI",$R3/$T3*VLOOKUP($U3,$Q$71:$AC$81,$K$37,FALSE),0))) -> 167.4 | AA40: =+IF($X3="N. PRESENZE",$R3*VLOOKUP($U3,$Q$83:$AD$88,$L$37,FALSE)/$T3,IF($X3="FATTURATO",$R3/$T3*VLOOKUP($U3,$Q$58:$AC$68,$L$37,FALSE),IF($X3="PRENOTAZIONI",$R3/$T3*VLOOKUP($U3,$Q$71:$AC$81,$L$37,FALSE),0))) -> 37.2 | AB40: =+IF($X3="N. PRESENZE",$R3*VLOOKUP($U3,$Q$83:$AD$88,$M$37,FALSE)/$T3,IF($X3="FATTURATO",$R3/$T3*VLOOKUP($U3,$Q$58:$AC$68,$M$37,FALSE),IF($X3="PRENOTAZIONI",$R3/$T3*VLOOKUP($U3,$Q$71:$AC$81,$M$37,FALSE),0))) -> 33.6 | AC40: =+IF($X3="N. PRESENZE",$R3*VLOOKUP($U3,$Q$83:$AD$88,$N$37,FALSE)/$T3,IF($X3="FATTURATO",$R3/$T3*VLOOKUP($U3,$Q$58:$AC$68,$N$37,FALSE),IF($X3="PRENOTAZIONI",$R3/$T3*VLOOKUP($U3,$Q$71:$AC$81,$N$37,FALSE),0))) -> 37.2 | AD40: =SUM(R40:AC40) -> 1064.4 | AF40: =+AF3 -> Materie prime colazione | AG40: =+IF($AM3="N. PRESENZE",$AG3*VLOOKUP($AJ3,$AF$84:$AS$89,$C$37,FALSE)/$AI3,IF($AM3="FATTURATO",$AG3/$AI3*VLOOKUP($AJ3,$AF$58:$AR$68,$C$37,FALSE),IF($AM3="PRENOTAZIONI",$AG3/$AI3*VLOOKUP($AJ3,$AF$71:$AR$81,$C$37,FALSE),0))) -> 36 | AH40: =+IF($AM3="N. PRESENZE",$AG3*VLOOKUP($AJ3,$AF$83:$AS$88,$D$37,FALSE)/$AI3,IF($AM3="FATTURATO",$AG3/$AI3*VLOOKUP($AJ3,$AF$58:$AR$68,$D$37,FALSE),IF($AM3="PRENOTAZIONI",$AG3/$AI3*VLOOKUP($AJ3,$AF$71:$AR$81,$D$37,FALSE),0))) -> 93 | AI40: =+IF($AM3="N. PRESENZE",$AG3*VLOOKUP($AJ3,$AF$83:$AS$88,$E$37,FALSE)/$AI3,IF($AM3="FATTURATO",$AG3/$AI3*VLOOKUP($AJ3,$AF$58:$AR$68,$E$37,FALSE),IF($AM3="PRENOTAZIONI",$AG3/$AI3*VLOOKUP($AJ3,$AF$71:$AR$81,$E$37,FALSE),0))) -> 162 | AJ40: =+IF($AM3="N. PRESENZE",$AG3*VLOOKUP($AJ3,$AF$84:$AS$89,$F$37,FALSE)/$AI3,IF($AM3="FATTURATO",$AG3/$AI3*VLOOKUP($AJ3,$AF$58:$AR$68,$F$37,FALSE),IF($AM3="PRENOTAZIONI",$AG3/$AI3*VLOOKUP($AJ3,$AF$71:$AR$81,$F$37,FALSE),0))) -> 167.4 | AK40: =+IF($AM3="N. PRESENZE",$AG3*VLOOKUP($AJ3,$AF$84:$AS$89,$G$37,FALSE)/$AI3,IF($AM3="FATTURATO",$AG3/$AI3*VLOOKUP($AJ3,$AF$58:$AR$68,$G$37,FALSE),IF($AM3="PRENOTAZIONI",$AG3/$AI3*VLOOKUP($AJ3,$AF$71:$AR$81,$G$37,FALSE),0))) -> 167.4 | AL40: =+IF($AM3="N. PRESENZE",$AG3*VLOOKUP($AJ3,$AF$84:$AS$89,$H$37,FALSE)/$AI3,IF($AM3="FATTURATO",$AG3/$AI3*VLOOKUP($AJ3,$AF$58:$AR$68,$H$37,FALSE),IF($AM3="PRENOTAZIONI",$AG3/$AI3*VLOOKUP($AJ3,$AF$71:$AR$81,$H$37,FALSE),0))) -> 90 | AM40: =+IF($AM3="N. PRESENZE",$AG3*VLOOKUP($AJ3,$AF$83:$AS$88,$I$37,FALSE)/$AI3,IF($AM3="FATTURATO",$AG3/$AI3*VLOOKUP($AJ3,$AF$58:$AR$68,$I$37,FALSE),IF($AM3="PRENOTAZIONI",$AG3/$AI3*VLOOKUP($AJ3,$AF$71:$AR$81,$I$37,FALSE),0))) -> 37.2 | AN40: =+IF($AM3="N. PRESENZE",$AG3*VLOOKUP($AJ3,$AF$83:$AS$88,$J$37,FALSE)/$AI3,IF($AM3="FATTURATO",$AG3/$AI3*VLOOKUP($AJ3,$AF$58:$AR$68,$J$37,FALSE),IF($AM3="PRENOTAZIONI",$AG3/$AI3*VLOOKUP($AJ3,$AF$71:$AR$81,$J$37,FALSE),0))) -> 36 | AO40: =+IF($AM3="N. PRESENZE",$AG3*VLOOKUP($AJ3,$AF$83:$AS$88,$K$37,FALSE)/$AI3,IF($AM3="FATTURATO",$AG3/$AI3*VLOOKUP($AJ3,$AF$58:$AR$68,$K$37,FALSE),IF($AM3="PRENOTAZIONI",$AG3/$AI3*VLOOKUP($AJ3,$AF$71:$AR$81,$K$37,FALSE),0))) -> 167.4 | AP40: =+IF($AM3="N. PRESENZE",$AG3*VLOOKUP($AJ3,$AF$83:$AS$88,$L$37,FALSE)/$AI3,IF($AM3="FATTURATO",$AG3/$AI3*VLOOKUP($AJ3,$AF$58:$AR$68,$L$37,FALSE),IF($AM3="PRENOTAZIONI",$AG3/$AI3*VLOOKUP($AJ3,$AF$71:$AR$81,$L$37,FALSE),0))) -> 37.2 | AQ40: =+IF($AM3="N. PRESENZE",$AG3*VLOOKUP($AJ3,$AF$84:$AS$89,$M$37,FALSE)/$AI3,IF($AM3="FATTURATO",$AG3/$AI3*VLOOKUP($AJ3,$AF$58:$AR$68,$M$37,FALSE),IF($AM3="PRENOTAZIONI",$AG3/$AI3*VLOOKUP($AJ3,$AF$71:$AR$81,$M$37,FALSE),0))) -> 33.6 | AR40: =+IF($AM3="N. PRESENZE",$AG3*VLOOKUP($AJ3,$AF$84:$AS$89,$N$37,FALSE)/$AI3,IF($AM3="FATTURATO",$AG3/$AI3*VLOOKUP($AJ3,$AF$58:$AR$68,$N$37,FALSE),IF($AM3="PRENOTAZIONI",$AG3/$AI3*VLOOKUP($AJ3,$AF$71:$AR$81,$N$37,FALSE),0))) -> 37.2 | AS40: =SUM(AG40:AR40) -> 1064.4
B41: Materiale di consumo ospiti | C41: 6 | D41: 21.7 | E41: 48.6 | F41: 50.22 | G41: 50.22 | H41: 21 | I41: 6.2 | J41: 6 | K41: 50.22 | L41: 6.2 | M41: 5.6 | N41: 6.2 | O41: 278.16 | Q41: Materiale di consumo ospiti | R41: =+IF($X4="N. PRESENZE",$R4*VLOOKUP($U4,$Q$83:$AD$88,$C$37,FALSE)/$T4,IF($X4="FATTURATO",$R4/$T4*VLOOKUP($U4,$Q$58:$AC$68,$C$37,FALSE),IF($X4="PRENOTAZIONI",$R4/$T4*VLOOKUP($U4,$Q$71:$AC$81,$C$37,FALSE),0))) -> 6 | S41: =+IF($X4="N. PRESENZE",$R4*VLOOKUP($U4,$Q$83:$AD$88,$D$37,FALSE)/$T4,IF($X4="FATTURATO",$R4/$T4*VLOOKUP($U4,$Q$58:$AC$68,$D$37,FALSE),IF($X4="PRENOTAZIONI",$R4/$T4*VLOOKUP($U4,$Q$71:$AC$81,$D$37,FALSE),0))) -> 21.7 | T41: =+IF($X4="N. PRESENZE",$R4*VLOOKUP($U4,$Q$83:$AD$88,$E$37,FALSE)/$T4,IF($X4="FATTURATO",$R4/$T4*VLOOKUP($U4,$Q$58:$AC$68,$E$37,FALSE),IF($X4="PRENOTAZIONI",$R4/$T4*VLOOKUP($U4,$Q$71:$AC$81,$E$37,FALSE),0))) -> 48.6 | U41: =+IF($X4="N. PRESENZE",$R4*VLOOKUP($U4,$Q$83:$AD$88,$F$37,FALSE)/$T4,IF($X4="FATTURATO",$R4/$T4*VLOOKUP($U4,$Q$58:$AC$68,$F$37,FALSE),IF($X4="PRENOTAZIONI",$R4/$T4*VLOOKUP($U4,$Q$71:$AC$81,$F$37,FALSE),0))) -> 50.22 | V41: =+IF($X4="N. PRESENZE",$R4*VLOOKUP($U4,$Q$83:$AD$88,$G$37,FALSE)/$T4,IF($X4="FATTURATO",$R4/$T4*VLOOKUP($U4,$Q$58:$AC$68,$G$37,FALSE),IF($X4="PRENOTAZIONI",$R4/$T4*VLOOKUP($U4,$Q$71:$AC$81,$G$37,FALSE),0))) -> 50.22 | W41: =+IF($X4="N. PRESENZE",$R4*VLOOKUP($U4,$Q$83:$AD$88,$H$37,FALSE)/$T4,IF($X4="FATTURATO",$R4/$T4*VLOOKUP($U4,$Q$58:$AC$68,$H$37,FALSE),IF($X4="PRENOTAZIONI",$R4/$T4*VLOOKUP($U4,$Q$71:$AC$81,$H$37,FALSE),0))) -> 21 | X41: =+IF($X4="N. PRESENZE",$R4*VLOOKUP($U4,$Q$83:$AD$88,$I$37,FALSE)/$T4,IF($X4="FATTURATO",$R4/$T4*VLOOKUP($U4,$Q$58:$AC$68,$I$37,FALSE),IF($X4="PRENOTAZIONI",$R4/$T4*VLOOKUP($U4,$Q$71:$AC$81,$I$37,FALSE),0))) -> 6.2 | Y41: =+IF($X4="N. PRESENZE",$R4*VLOOKUP($U4,$Q$83:$AD$88,$J$37,FALSE)/$T4,IF($X4="FATTURATO",$R4/$T4*VLOOKUP($U4,$Q$58:$AC$68,$J$37,FALSE),IF($X4="PRENOTAZIONI",$R4/$T4*VLOOKUP($U4,$Q$71:$AC$81,$J$37,FALSE),0))) -> 6 | Z41: =+IF($X4="N. PRESENZE",$R4*VLOOKUP($U4,$Q$83:$AD$88,$K$37,FALSE)/$T4,IF($X4="FATTURATO",$R4/$T4*VLOOKUP($U4,$Q$58:$AC$68,$K$37,FALSE),IF($X4="PRENOTAZIONI",$R4/$T4*VLOOKUP($U4,$Q$71:$AC$81,$K$37,FALSE),0))) -> 50.22 | AA41: =+IF($X4="N. PRESENZE",$R4*VLOOKUP($U4,$Q$83:$AD$88,$L$37,FALSE)/$T4,IF($X4="FATTURATO",$R4/$T4*VLOOKUP($U4,$Q$58:$AC$68,$L$37,FALSE),IF($X4="PRENOTAZIONI",$R4/$T4*VLOOKUP($U4,$Q$71:$AC$81,$L$37,FALSE),0))) -> 6.2 | AB41: =+IF($X4="N. PRESENZE",$R4*VLOOKUP($U4,$Q$83:$AD$88,$M$37,FALSE)/$T4,IF($X4="FATTURATO",$R4/$T4*VLOOKUP($U4,$Q$58:$AC$68,$M$37,FALSE),IF($X4="PRENOTAZIONI",$R4/$T4*VLOOKUP($U4,$Q$71:$AC$81,$M$37,FALSE),0))) -> 5.6 | AC41: =+IF($X4="N. PRESENZE",$R4*VLOOKUP($U4,$Q$83:$AD$88,$N$37,FALSE)/$T4,IF($X4="FATTURATO",$R4/$T4*VLOOKUP($U4,$Q$58:$AC$68,$N$37,FALSE),IF($X4="PRENOTAZIONI",$R4/$T4*VLOOKUP($U4,$Q$71:$AC$81,$N$37,FALSE),0))) -> 6.2 | AD41: 278.16 | AF41: Materiale di consumo ospiti | AG41: =+IF($AM4="N. PRESENZE",$AG4*VLOOKUP($AJ4,$AF$84:$AS$89,$C$37,FALSE)/$AI4,IF($AM4="FATTURATO",$AG4/$AI4*VLOOKUP($AJ4,$AF$58:$AR$68,$C$37,FALSE),IF($AM4="PRENOTAZIONI",$AG4/$AI4*VLOOKUP($AJ4,$AF$71:$AR$81,$C$37,FALSE),0))) -> 6 | AH41: =+IF($AM4="N. PRESENZE",$AG4*VLOOKUP($AJ4,$AF$83:$AS$88,$D$37,FALSE)/$AI4,IF($AM4="FATTURATO",$AG4/$AI4*VLOOKUP($AJ4,$AF$58:$AR$68,$D$37,FALSE),IF($AM4="PRENOTAZIONI",$AG4/$AI4*VLOOKUP($AJ4,$AF$71:$AR$81,$D$37,FALSE),0))) -> 21.7 | AI41: =+IF($AM4="N. PRESENZE",$AG4*VLOOKUP($AJ4,$AF$83:$AS$88,$E$37,FALSE)/$AI4,IF($AM4="FATTURATO",$AG4/$AI4*VLOOKUP($AJ4,$AF$58:$AR$68,$E$37,FALSE),IF($AM4="PRENOTAZIONI",$AG4/$AI4*VLOOKUP($AJ4,$AF$71:$AR$81,$E$37,FALSE),0))) -> 48.6 | AJ41: =+IF($AM4="N. PRESENZE",$AG4*VLOOKUP($AJ4,$AF$84:$AS$89,$F$37,FALSE)/$AI4,IF($AM4="FATTURATO",$AG4/$AI4*VLOOKUP($AJ4,$AF$58:$AR$68,$F$37,FALSE),IF($AM4="PRENOTAZIONI",$AG4/$AI4*VLOOKUP($AJ4,$AF$71:$AR$81,$F$37,FALSE),0))) -> 50.22 | AK41: =+IF($AM4="N. PRESENZE",$AG4*VLOOKUP($AJ4,$AF$84:$AS$89,$G$37,FALSE)/$AI4,IF($AM4="FATTURATO",$AG4/$AI4*VLOOKUP($AJ4,$AF$58:$AR$68,$G$37,FALSE),IF($AM4="PRENOTAZIONI",$AG4/$AI4*VLOOKUP($AJ4,$AF$71:$AR$81,$G$37,FALSE),0))) -> 50.22 | AL41: =+IF($AM4="N. PRESENZE",$AG4*VLOOKUP($AJ4,$AF$84:$AS$89,$H$37,FALSE)/$AI4,IF($AM4="FATTURATO",$AG4/$AI4*VLOOKUP($AJ4,$AF$58:$AR$68,$H$37,FALSE),IF($AM4="PRENOTAZIONI",$AG4/$AI4*VLOOKUP($AJ4,$AF$71:$AR$81,$H$37,FALSE),0))) -> 21 | AM41: =+IF($AM4="N. PRESENZE",$AG4*VLOOKUP($AJ4,$AF$83:$AS$88,$I$37,FALSE)/$AI4,IF($AM4="FATTURATO",$AG4/$AI4*VLOOKUP($AJ4,$AF$58:$AR$68,$I$37,FALSE),IF($AM4="PRENOTAZIONI",$AG4/$AI4*VLOOKUP($AJ4,$AF$71:$AR$81,$I$37,FALSE),0))) -> 6.2 | AN41: =+IF($AM4="N. PRESENZE",$AG4*VLOOKUP($AJ4,$AF$83:$AS$88,$J$37,FALSE)/$AI4,IF($AM4="FATTURATO",$AG4/$AI4*VLOOKUP($AJ4,$AF$58:$AR$68,$J$37,FALSE),IF($AM4="PRENOTAZIONI",$AG4/$AI4*VLOOKUP($AJ4,$AF$71:$AR$81,$J$37,FALSE),0))) -> 6 | AO41: =+IF($AM4="N. PRESENZE",$AG4*VLOOKUP($AJ4,$AF$83:$AS$88,$K$37,FALSE)/$AI4,IF($AM4="FATTURATO",$AG4/$AI4*VLOOKUP($AJ4,$AF$58:$AR$68,$K$37,FALSE),IF($AM4="PRENOTAZIONI",$AG4/$AI4*VLOOKUP($AJ4,$AF$71:$AR$81,$K$37,FALSE),0))) -> 50.22 | AP41: =+IF($AM4="N. PRESENZE",$AG4*VLOOKUP($AJ4,$AF$83:$AS$88,$L$37,FALSE)/$AI4,IF($AM4="FATTURATO",$AG4/$AI4*VLOOKUP($AJ4,$AF$58:$AR$68,$L$37,FALSE),IF($AM4="PRENOTAZIONI",$AG4/$AI4*VLOOKUP($AJ4,$AF$71:$AR$81,$L$37,FALSE),0))) -> 6.2 | AQ41: =+IF($AM4="N. PRESENZE",$AG4*VLOOKUP($AJ4,$AF$84:$AS$89,$M$37,FALSE)/$AI4,IF($AM4="FATTURATO",$AG4/$AI4*VLOOKUP($AJ4,$AF$58:$AR$68,$M$37,FALSE),IF($AM4="PRENOTAZIONI",$AG4/$AI4*VLOOKUP($AJ4,$AF$71:$AR$81,$M$37,FALSE),0))) -> 5.6 | AR41: =+IF($AM4="N. PRESENZE",$AG4*VLOOKUP($AJ4,$AF$84:$AS$89,$N$37,FALSE)/$AI4,IF($AM4="FATTURATO",$AG4/$AI4*VLOOKUP($AJ4,$AF$58:$AR$68,$N$37,FALSE),IF($AM4="PRENOTAZIONI",$AG4/$AI4*VLOOKUP($AJ4,$AF$71:$AR$81,$N$37,FALSE),0))) -> 6.2 | AS41: 278.16
B42: Materiale di consumo pulizia | C42: 6 | D42: 21.7 | E42: 48.6 | F42: 50.22 | G42: 50.22 | H42: 21 | I42: 6.2 | J42: 6 | K42: 50.22 | L42: 6.2 | M42: 5.6 | N42: 6.2 | O42: 278.16 | Q42: Materiale di consumo pulizia | R42: 6 | S42: 21.7 | T42: 48.6 | U42: 50.22 | V42: 50.22 | W42: 21 | X42: 6.2 | Y42: 6 | Z42: 50.22 | AA42: 6.2 | AB42: 5.6 | AC42: 6.2 | AD42: 278.16 | AF42: Materiale di consumo pulizia | AG42: 6 | AH42: 21.7 | AI42: 48.6 | AJ42: 50.22 | AK42: 50.22 | AL42: 21 | AM42: 6.2 | AN42: 6 | AO42: 50.22 | AP42: 6.2 | AQ42: 5.6 | AR42: 6.2 | AS42: 278.16
B43: Servizi di lavanderia | C43: 30 | D43: 108.5 | E43: 243 | F43: 251.1 | G43: 251.1 | H43: 105 | I43: 31 | J43: 30 | K43: 251.1 | L43: 31 | M43: 28 | N43: 31 | O43: 1390.8 | Q43: Servizi di lavanderia | R43: 30 | S43: 108.5 | T43: 243 | U43: 251.1 | V43: 251.1 | W43: 105 | X43: 31 | Y43: 30 | Z43: 251.1 | AA43: 31 | AB43: 28 | AC43: 31 | AD43: 1390.8 | AF43: Servizi di lavanderia | AG43: 30 | AH43: 108.5 | AI43: 243 | AJ43: 251.1 | AK43: 251.1 | AL43: 105 | AM43: 31 | AN43: 30 | AO43: 251.1 | AP43: 31 | AQ43: 28 | AR43: 31 | AS43: 1390.8
B44: Visite guidate | C44: 0 | D44: 0 | E44: 0 | F44: 0 | G44: 0 | H44: 0 | I44: 0 | J44: 0 | K44: 0 | L44: 0 | M44: 0 | N44: 0 | O44: 0 | Q44: Visite guidate | R44: 0 | S44: 0 | T44: 0 | U44: 0 | V44: 0 | W44: 0 | X44: 0 | Y44: 0 | Z44: 0 | AA44: 0 | AB44: 0 | AC44: 0 | AD44: 0 | AF44: Visite guidate | AG44: 0 | AH44: 0 | AI44: 0 | AJ44: 0 | AK44: 0 | AL44: 0 | AM44: 0 | AN44: 0 | AO44: 0 | AP44: 0 | AQ44: 0 | AR44: 0 | AS44: 0
B45: Altri costi variabili | C45: 0 | D45: 0 | E45: 0 | F45: 0 | G45: 0 | H45: 0 | I45: 0 | J45: 0 | K45: 0 | L45: 0 | M45: 0 | N45: 0 | O45: 0 | Q45: Altri costi variabili | R45: 0 | S45: 0 | T45: 0 | U45: 0 | V45: 0 | W45: 0 | X45: 0 | Y45: 0 | Z45: 0 | AA45: 0 | AB45: 0 | AC45: 0 | AD45: 0 | AF45: Altri costi variabili | AG45: 0 | AH45: 0 | AI45: 0 | AJ45: 0 | AK45: 0 | AL45: 0 | AM45: 0 | AN45: 0 | AO45: 0 | AP45: 0 | AQ45: 0 | AR45: 0 | AS45: 0
B46: Altri costi variabili | C46: 0 | D46: 0 | E46: 0 | F46: 0 | G46: 0 | H46: 0 | I46: 0 | J46: 0 | K46: 0 | L46: 0 | M46: 0 | N46: 0 | O46: 0 | Q46: Altri costi variabili | R46: 0 | S46: 0 | T46: 0 | U46: 0 | V46: 0 | W46: 0 | X46: 0 | Y46: 0 | Z46: 0 | AA46: 0 | AB46: 0 | AC46: 0 | AD46: 0 | AF46: Altri costi variabili | AG46: 0 | AH46: 0 | AI46: 0 | AJ46: 0 | AK46: 0 | AL46: 0 | AM46: 0 | AN46: 0 | AO46: 0 | AP46: 0 | AQ46: 0 | AR46: 0 | AS46: 0
B47: Altri costi variabili | C47: 0 | D47: 0 | E47: 0 | F47: 0 | G47: 0 | H47: 0 | I47: 0 | J47: 0 | K47: 0 | L47: 0 | M47: 0 | N47: 0 | O47: 0 | Q47: Altri costi variabili | R47: 0 | S47: 0 | T47: 0 | U47: 0 | V47: 0 | W47: 0 | X47: 0 | Y47: 0 | Z47: 0 | AA47: 0 | AB47: 0 | AC47: 0 | AD47: 0 | AF47: Altri costi variabili | AG47: 0 | AH47: 0 | AI47: 0 | AJ47: 0 | AK47: 0 | AL47: 0 | AM47: 0 | AN47: 0 | AO47: 0 | AP47: 0 | AQ47: 0 | AR47: 0 | AS47: 0
B48: Altri costi variabili | C48: 0 | D48: 0 | E48: 0 | F48: 0 | G48: 0 | H48: 0 | I48: 0 | J48: 0 | K48: 0 | L48: 0 | M48: 0 | N48: 0 | O48: 0 | Q48: Altri costi variabili | R48: 0 | S48: 0 | T48: 0 | U48: 0 | V48: 0 | W48: 0 | X48: 0 | Y48: 0 | Z48: 0 | AA48: 0 | AB48: 0 | AC48: 0 | AD48: 0 | AF48: Altri costi variabili | AG48: 0 | AH48: 0 | AI48: 0 | AJ48: 0 | AK48: 0 | AL48: 0 | AM48: 0 | AN48: 0 | AO48: 0 | AP48: 0 | AQ48: 0 | AR48: 0 | AS48: 0
B49: Altri costi variabili | C49: 0 | D49: 0 | E49: 0 | F49: 0 | G49: 0 | H49: 0 | I49: 0 | J49: 0 | K49: 0 | L49: 0 | M49: 0 | N49: 0 | O49: 0 | Q49: Altri costi variabili | R49: 0 | S49: 0 | T49: 0 | U49: 0 | V49: 0 | W49: 0 | X49: 0 | Y49: 0 | Z49: 0 | AA49: 0 | AB49: 0 | AC49: 0 | AD49: 0 | AF49: Altri costi variabili | AG49: 0 | AH49: 0 | AI49: 0 | AJ49: 0 | AK49: 0 | AL49: 0 | AM49: 0 | AN49: 0 | AO49: 0 | AP49: 0 | AQ49: 0 | AR49: 0 | AS49: 0
B50: Altri costi variabili | C50: 0 | D50: 0 | E50: 0 | F50: 0 | G50: 0 | H50: 0 | I50: 0 | J50: 0 | K50: 0 | L50: 0 | M50: 0 | N50: 0 | O50: 0 | Q50: Altri costi variabili | R50: 0 | S50: 0 | T50: 0 | U50: 0 | V50: 0 | W50: 0 | X50: 0 | Y50: 0 | Z50: 0 | AA50: 0 | AB50: 0 | AC50: 0 | AD50: 0 | AF50: Altri costi variabili | AG50: 0 | AH50: 0 | AI50: 0 | AJ50: 0 | AK50: 0 | AL50: 0 | AM50: 0 | AN50: 0 | AO50: 0 | AP50: 0 | AQ50: 0 | AR50: 0 | AS50: 0
B51: Altri costi variabili | C51: 0 | D51: 0 | E51: 0 | F51: 0 | G51: 0 | H51: 0 | I51: 0 | J51: 0 | K51: 0 | L51: 0 | M51: 0 | N51: 0 | O51: 0 | Q51: Altri costi variabili | R51: 0 | S51: 0 | T51: 0 | U51: 0 | V51: 0 | W51: 0 | X51: 0 | Y51: 0 | Z51: 0 | AA51: 0 | AB51: 0 | AC51: 0 | AD51: 0 | AF51: Altri costi variabili | AG51: 0 | AH51: 0 | AI51: 0 | AJ51: 0 | AK51: 0 | AL51: 0 | AM51: 0 | AN51: 0 | AO51: 0 | AP51: 0 | AQ51: 0 | AR51: 0 | AS51: 0
B52: Altri costi variabili | C52: 0 | D52: 0 | E52: 0 | F52: 0 | G52: 0 | H52: 0 | I52: 0 | J52: 0 | K52: 0 | L52: 0 | M52: 0 | N52: 0 | O52: 0 | Q52: Altri costi variabili | R52: 0 | S52: 0 | T52: 0 | U52: 0 | V52: 0 | W52: 0 | X52: 0 | Y52: 0 | Z52: 0 | AA52: 0 | AB52: 0 | AC52: 0 | AD52: 0 | AF52: Altri costi variabili | AG52: 0 | AH52: 0 | AI52: 0 | AJ52: 0 | AK52: 0 | AL52: 0 | AM52: 0 | AN52: 0 | AO52: 0 | AP52: 0 | AQ52: 0 | AR52: 0 | AS52: 0
B53: Altri costi variabili | C53: 0 | D53: 0 | E53: 0 | F53: 0 | G53: 0 | H53: 0 | I53: 0 | J53: 0 | K53: 0 | L53: 0 | M53: 0 | N53: 0 | O53: 0 | Q53: Altri costi variabili | R53: 0 | S53: 0 | T53: 0 | U53: 0 | V53: 0 | W53: 0 | X53: 0 | Y53: 0 | Z53: 0 | AA53: 0 | AB53: 0 | AC53: 0 | AD53: 0 | AF53: Altri costi variabili | AG53: 0 | AH53: 0 | AI53: 0 | AJ53: 0 | AK53: 0 | AL53: 0 | AM53: 0 | AN53: 0 | AO53: 0 | AP53: 0 | AQ53: 0 | AR53: 0 | AS53: 0
B54: Altri costi variabili | C54: 0 | D54: 0 | E54: 0 | F54: 0 | G54: 0 | H54: 0 | I54: 0 | J54: 0 | K54: 0 | L54: 0 | M54: 0 | N54: 0 | O54: 0 | Q54: Altri costi variabili | R54: 0 | S54: 0 | T54: 0 | U54: 0 | V54: 0 | W54: 0 | X54: 0 | Y54: 0 | Z54: 0 | AA54: 0 | AB54: 0 | AC54: 0 | AD54: 0 | AF54: Altri costi variabili | AG54: 0 | AH54: 0 | AI54: 0 | AJ54: 0 | AK54: 0 | AL54: 0 | AM54: 0 | AN54: 0 | AO54: 0 | AP54: 0 | AQ54: 0 | AR54: 0 | AS54: 0
B55: TOTALE | C55: =SUM(C40:C54) -> 78 | D55: =SUM(D40:D54) -> 244.9 | E55: 502.2 | F55: 518.94 | G55: 518.94 | H55: 237 | I55: 80.6 | J55: 78 | K55: 518.94 | L55: 80.6 | M55: 72.8 | N55: 80.6 | O55: =SUM(O40:O54) -> 3011.52 | AC55: TOTALE | AD55: =SUM(AD40:AD54) -> 3011.52 | AR55: TOTALE | AS55: =SUM(AS40:AS54) -> 3011.52
B56: FATTURATO | C56: MESI | O56: ANNO 1 | R56: MESI | AD56: ANNO 2 | AG56: MESI | AS56: ANNO 3
C57: =+C39 -> 2016-04-30 | D57: =+EOMONTH(C57,1) -> 2016-05-31 | E57: =+EOMONTH(D57,1) -> 2016-06-30 | F57: =+EOMONTH(E57,1) -> 2016-07-31 | G57: =+EOMONTH(F57,1) -> 2016-08-31 | H57: =+EOMONTH(G57,1) -> 2016-09-30 | I57: =+EOMONTH(H57,1) -> 2016-10-31 | J57: =+EOMONTH(I57,1) -> 2016-11-30 | K57: =+EOMONTH(J57,1) -> 2016-12-31 | L57: =+EOMONTH(K57,1) -> 2017-01-31 | M57: =+EOMONTH(L57,1) -> 2017-02-28 | N57: =+EOMONTH(M57,1) -> 2017-03-31 | O57: TOTALE | P57: IPOTESI % | Q57: =+B56 -> FATTURATO | R57: =+EOMONTH(N57,1) -> 2017-04-30 | S57: =+EOMONTH(R57,1) -> 2017-05-31 | T57: =+EOMONTH(S57,1) -> 2017-06-30 | U57: =+EOMONTH(T57,1) -> 2017-07-31 | V57: =+EOMONTH(U57,1) -> 2017-08-31 | W57: =+EOMONTH(V57,1) -> 2017-09-30 | X57: =+EOMONTH(W57,1) -> 2017-10-31 | Y57: =+EOMONTH(X57,1) -> 2017-11-30 | Z57: =+EOMONTH(Y57,1) -> 2017-12-31 | AA57: =+EOMONTH(Z57,1) -> 2018-01-31 | AB57: =+EOMONTH(AA57,1) -> 2018-02-28 | AC57: =+EOMONTH(AB57,1) -> 2018-03-31 | AD57: TOTALE | AE57: IPOTESI % | AF57: =+Q56 -> 0 | AG57: =+EOMONTH(AC57,1) -> 2018-04-30 | AH57: =+EOMONTH(AG57,1) -> 2018-05-31 | AI57: =+EOMONTH(AH57,1) -> 2018-06-30 | AJ57: =+EOMONTH(AI57,1) -> 2018-07-31 | AK57: =+EOMONTH(AJ57,1) -> 2018-08-31 | AL57: =+EOMONTH(AK57,1) -> 2018-09-30 | AM57: =+EOMONTH(AL57,1) -> 2018-10-31 | AN57: =+EOMONTH(AM57,1) -> 2018-11-30 | AO57: =+EOMONTH(AN57,1) -> 2018-12-31 | AP57: =+EOMONTH(AO57,1) -> 2019-01-31 | AQ57: =+EOMONTH(AP57,1) -> 2019-02-28 | AR57: =+EOMONTH(AQ57,1) -> 2019-03-31 | AS57: TOTALE
B58: =+'3) INPUT VENDITE'!A4 -> CAMERE QUADRUPLE | C58: =+'3) INPUT VENDITE'!B4 -> 0 | D58: =+'3) INPUT VENDITE'!C4 -> 0 | E58: =+'3) INPUT VENDITE'!D4 -> 0 | F58: =+'3) INPUT VENDITE'!E4 -> 0 | G58: =+'3) INPUT VENDITE'!F4 -> 0 | H58: =+'3) INPUT VENDITE'!G4 -> 0 | I58: =+'3) INPUT VENDITE'!H4 -> 0 | J58: =+'3) INPUT VENDITE'!I4 -> 0 | K58: =+'3) INPUT VENDITE'!J4 -> 0 | L58: =+'3) INPUT VENDITE'!K4 -> 0 | M58: =+'3) INPUT VENDITE'!L4 -> 0 | N58: =+'3) INPUT VENDITE'!M4 -> 0 | O58: =+'3) INPUT VENDITE'!N4 -> 0 | P58: =+'3) INPUT VENDITE'!O4 -> 0 | Q58: =+B58 -> CAMERE QUADRUPLE | R58: =+'3) INPUT VENDITE'!P4 -> 0 | S58: =+'3) INPUT VENDITE'!Q4 -> 0 | T58: =+'3) INPUT VENDITE'!R4 -> 0 | U58: =+'3) INPUT VENDITE'!S4 -> 0 | V58: =+'3) INPUT VENDITE'!T4 -> 0 | W58: =+'3) INPUT VENDITE'!U4 -> 0 | X58: =+'3) INPUT VENDITE'!V4 -> 0 | Y58: =+'3) INPUT VENDITE'!W4 -> 0 | Z58: =+'3) INPUT VENDITE'!X4 -> 0 | AA58: =+'3) INPUT VENDITE'!Y4 -> 0 | AB58: =+'3) INPUT VENDITE'!Z4 -> 0 | AC58: =+'3) INPUT VENDITE'!AA4 -> 0 | AD58: =+'3) INPUT VENDITE'!AB4 -> 0 | AE58: =+'3) INPUT VENDITE'!AC4 -> 0 | AF58: =+Q58 -> CAMERE QUADRUPLE | AG58: =+'3) INPUT VENDITE'!AD4 -> 0 | AH58: =+'3) INPUT VENDITE'!AE4 -> 0 | AI58: =+'3) INPUT VENDITE'!AF4 -> 0 | AJ58: =+'3) INPUT VENDITE'!AG4 -> 0 | AK58: =+'3) INPUT VENDITE'!AH4 -> 0 | AL58: =+'3) INPUT VENDITE'!AI4 -> 0 | AM58: =+'3) INPUT VENDITE'!AJ4 -> 0 | AN58: =+'3) INPUT VENDITE'!AK4 -> 0 | AO58: =+'3) INPUT VENDITE'!AL4 -> 0 | AP58: =+'3) INPUT VENDITE'!AM4 -> 0 | AQ58: =+'3) INPUT VENDITE'!AN4 -> 0 | AR58: =+'3) INPUT VENDITE'!AO4 -> 0 | AS58: =+'3) INPUT VENDITE'!AP4 -> 0
B59: =+'3) INPUT VENDITE'!A5 -> CAMERE TRIPLE | C59: =+'3) INPUT VENDITE'!B5 -> 0 | D59: =+'3) INPUT VENDITE'!C5 -> 0 | E59: =+'3) INPUT VENDITE'!D5 -> 0 | F59: =+'3) INPUT VENDITE'!E5 -> 0 | G59: =+'3) INPUT VENDITE'!F5 -> 0 | H59: =+'3) INPUT VENDITE'!G5 -> 0 | I59: =+'3) INPUT VENDITE'!H5 -> 0 | J59: =+'3) INPUT VENDITE'!I5 -> 0 | K59: =+'3) INPUT VENDITE'!J5 -> 0 | L59: =+'3) INPUT VENDITE'!K5 -> 0 | M59: =+'3) INPUT VENDITE'!L5 -> 0 | N59: =+'3) INPUT VENDITE'!M5 -> 0 | O59: =+'3) INPUT VENDITE'!N5 -> 0 | P59: =+'3) INPUT VENDITE'!O5 -> 0 | Q59: =+B59 -> CAMERE TRIPLE | R59: =+'3) INPUT VENDITE'!P5 -> 0 | S59: =+'3) INPUT VENDITE'!Q5 -> 0 | T59: =+'3) INPUT VENDITE'!R5 -> 0 | U59: =+'3) INPUT VENDITE'!S5 -> 0 | V59: =+'3) INPUT VENDITE'!T5 -> 0 | W59: =+'3) INPUT VENDITE'!U5 -> 0 | X59: =+'3) INPUT VENDITE'!V5 -> 0 | Y59: =+'3) INPUT VENDITE'!W5 -> 0 | Z59: =+'3) INPUT VENDITE'!X5 -> 0 | AA59: =+'3) INPUT VENDITE'!Y5 -> 0 | AB59: =+'3) INPUT VENDITE'!Z5 -> 0 | AC59: =+'3) INPUT VENDITE'!AA5 -> 0 | AD59: =+'3) INPUT VENDITE'!AB5 -> 0 | AE59: =+'3) INPUT VENDITE'!AC5 -> 0 | AF59: =+Q59 -> CAMERE TRIPLE | AG59: =+'3) INPUT VENDITE'!AD5 -> 0 | AH59: =+'3) INPUT VENDITE'!AE5 -> 0 | AI59: =+'3) INPUT VENDITE'!AF5 -> 0 | AJ59: =+'3) INPUT VENDITE'!AG5 -> 0 | AK59: =+'3) INPUT VENDITE'!AH5 -> 0 | AL59: =+'3) INPUT VENDITE'!AI5 -> 0 | AM59: =+'3) INPUT VENDITE'!AJ5 -> 0 | AN59: =+'3) INPUT VENDITE'!AK5 -> 0 | AO59: =+'3) INPUT VENDITE'!AL5 -> 0 | AP59: =+'3) INPUT VENDITE'!AM5 -> 0 | AQ59: =+'3) INPUT VENDITE'!AN5 -> 0 | AR59: =+'3) INPUT VENDITE'!AO5 -> 0 | AS59: =+'3) INPUT VENDITE'!AP5 -> 0
B60: =+'3) INPUT VENDITE'!A6 -> CAMERE DOPPIE | C60: =+'3) INPUT VENDITE'!B6 -> 600 | D60: =+'3) INPUT VENDITE'!C6 -> 2170 | E60: =+'3) INPUT VENDITE'!D6 -> 4860 | F60: =+'3) INPUT VENDITE'!E6 -> 5022 | G60: =+'3) INPUT VENDITE'!F6 -> 5022 | H60: =+'3) INPUT VENDITE'!G6 -> 2100 | I60: =+'3) INPUT VENDITE'!H6 -> 620 | J60: =+'3) INPUT VENDITE'!I6 -> 600 | K60: =+'3) INPUT VENDITE'!J6 -> 5022 | L60: =+'3) INPUT VENDITE'!K6 -> 620 | M60: =+'3) INPUT VENDITE'!L6 -> 560 | N60: =+'3) INPUT VENDITE'!M6 -> 620 | O60: =+'3) INPUT VENDITE'!N6 -> 27816 | P60: =+'3) INPUT VENDITE'!O6 -> 0 | Q60: CAMERE DOPPIE | R60: =+'3) INPUT VENDITE'!P6 -> 600 | S60: =+'3) INPUT VENDITE'!Q6 -> 2170 | T60: =+'3) INPUT VENDITE'!R6 -> 4860 | U60: =+'3) INPUT VENDITE'!S6 -> 5022 | V60: =+'3) INPUT VENDITE'!T6 -> 5022 | W60: =+'3) INPUT VENDITE'!U6 -> 2100 | X60: =+'3) INPUT VENDITE'!V6 -> 620 | Y60: =+'3) INPUT VENDITE'!W6 -> 600 | Z60: =+'3) INPUT VENDITE'!X6 -> 5022 | AA60: =+'3) INPUT VENDITE'!Y6 -> 620 | AB60: =+'3) INPUT VENDITE'!Z6 -> 560 | AC60: =+'3) INPUT VENDITE'!AA6 -> 620 | AD60: =+'3) INPUT VENDITE'!AB6 -> 27816 | AE60: =+'3) INPUT VENDITE'!AC6 -> 0 | AF60: CAMERE DOPPIE | AG60: =+'3) INPUT VENDITE'!AD6 -> 600 | AH60: =+'3) INPUT VENDITE'!AE6 -> 2170 | AI60: =+'3) INPUT VENDITE'!AF6 -> 4860 | AJ60: =+'3) INPUT VENDITE'!AG6 -> 5022 | AK60: =+'3) INPUT VENDITE'!AH6 -> 5022 | AL60: =+'3) INPUT VENDITE'!AI6 -> 2100 | AM60: =+'3) INPUT VENDITE'!AJ6 -> 620 | AN60: =+'3) INPUT VENDITE'!AK6 -> 600 | AO60: =+'3) INPUT VENDITE'!AL6 -> 5022 | AP60: =+'3) INPUT VENDITE'!AM6 -> 620 | AQ60: =+'3) INPUT VENDITE'!AN6 -> 560 | AR60: =+'3) INPUT VENDITE'!AO6 -> 620 | AS60: =+'3) INPUT VENDITE'!AP6 -> 27816
B61: =+'3) INPUT VENDITE'!A7 -> CAMERE SINGOLE | C61: =+'3) INPUT VENDITE'!B7 -> 0 | D61: =+'3) INPUT VENDITE'!C7 -> 0 | E61: =+'3) INPUT VENDITE'!D7 -> 0 | F61: =+'3) INPUT VENDITE'!E7 -> 0 | G61: =+'3) INPUT VENDITE'!F7 -> 0 | H61: =+'3) INPUT VENDITE'!G7 -> 0 | I61: =+'3) INPUT VENDITE'!H7 -> 0 | J61: =+'3) INPUT VENDITE'!I7 -> 0 | K61: =+'3) INPUT VENDITE'!J7 -> 0 | L61: =+'3) INPUT VENDITE'!K7 -> 0 | M61: =+'3) INPUT VENDITE'!L7 -> 0 | N61: =+'3) INPUT VENDITE'!M7 -> 0 | O61: =+'3) INPUT VENDITE'!N7 -> 0 | P61: =+'3) INPUT VENDITE'!O7 -> 0 | Q61: CAMERE SINGOLE | R61: =+'3) INPUT VENDITE'!P7 -> 0 | S61: =+'3) INPUT VENDITE'!Q7 -> 0 | T61: =+'3) INPUT VENDITE'!R7 -> 0 | U61: =+'3) INPUT VENDITE'!S7 -> 0 | V61: =+'3) INPUT VENDITE'!T7 -> 0 | W61: =+'3) INPUT VENDITE'!U7 -> 0 | X61: =+'3) INPUT VENDITE'!V7 -> 0 | Y61: =+'3) INPUT VENDITE'!W7 -> 0 | Z61: =+'3) INPUT VENDITE'!X7 -> 0 | AA61: =+'3) INPUT VENDITE'!Y7 -> 0 | AB61: =+'3) INPUT VENDITE'!Z7 -> 0 | AC61: =+'3) INPUT VENDITE'!AA7 -> 0 | AD61: =+'3) INPUT VENDITE'!AB7 -> 0 | AE61: =+'3) INPUT VENDITE'!AC7 -> 0 | AF61: CAMERE SINGOLE | AG61: =+'3) INPUT VENDITE'!AD7 -> 0 | AH61: =+'3) INPUT VENDITE'!AE7 -> 0 | AI61: =+'3) INPUT VENDITE'!AF7 -> 0 | AJ61: =+'3) INPUT VENDITE'!AG7 -> 0 | AK61: =+'3) INPUT VENDITE'!AH7 -> 0 | AL61: =+'3) INPUT VENDITE'!AI7 -> 0 | AM61: =+'3) INPUT VENDITE'!AJ7 -> 0 | AN61: =+'3) INPUT VENDITE'!AK7 -> 0 | AO61: =+'3) INPUT VENDITE'!AL7 -> 0 | AP61: =+'3) INPUT VENDITE'!AM7 -> 0 | AQ61: =+'3) INPUT VENDITE'!AN7 -> 0 | AR61: =+'3) INPUT VENDITE'!AO7 -> 0 | AS61: =+'3) INPUT VENDITE'!AP7 -> 0
B62: =+'3) INPUT VENDITE'!A8 -> VISITE GUIDATE | C62: =+'3) INPUT VENDITE'!B8 -> 0 | D62: =+'3) INPUT VENDITE'!C8 -> 0 | E62: =+'3) INPUT VENDITE'!D8 -> 0 | F62: =+'3) INPUT VENDITE'!E8 -> 0 | G62: =+'3) INPUT VENDITE'!F8 -> 0 | H62: =+'3) INPUT VENDITE'!G8 -> 0 | I62: =+'3) INPUT VENDITE'!H8 -> 0 | J62: =+'3) INPUT VENDITE'!I8 -> 0 | K62: =+'3) INPUT VENDITE'!J8 -> 0 | L62: =+'3) INPUT VENDITE'!K8 -> 0 | M62: =+'3) INPUT VENDITE'!L8 -> 0 | N62: =+'3) INPUT VENDITE'!M8 -> 0 | O62: =+'3) INPUT VENDITE'!N8 -> 0 | P62: =+'3) INPUT VENDITE'!O8 -> 0 | Q62: VISITE GUIDATE | R62: =+'3) INPUT VENDITE'!P8 -> 0 | S62: =+'3) INPUT VENDITE'!Q8 -> 0 | T62: =+'3) INPUT VENDITE'!R8 -> 0 | U62: =+'3) INPUT VENDITE'!S8 -> 0 | V62: =+'3) INPUT VENDITE'!T8 -> 0 | W62: =+'3) INPUT VENDITE'!U8 -> 0 | X62: =+'3) INPUT VENDITE'!V8 -> 0 | Y62: =+'3) INPUT VENDITE'!W8 -> 0 | Z62: =+'3) INPUT VENDITE'!X8 -> 0 | AA62: =+'3) INPUT VENDITE'!Y8 -> 0 | AB62: =+'3) INPUT VENDITE'!Z8 -> 0 | AC62: =+'3) INPUT VENDITE'!AA8 -> 0 | AD62: =+'3) INPUT VENDITE'!AB8 -> 0 | AE62: =+'3) INPUT VENDITE'!AC8 -> 0 | AF62: VISITE GUIDATE | AG62: =+'3) INPUT VENDITE'!AD8 -> 0 | AH62: =+'3) INPUT VENDITE'!AE8 -> 0 | AI62: =+'3) INPUT VENDITE'!AF8 -> 0 | AJ62: =+'3) INPUT VENDITE'!AG8 -> 0 | AK62: =+'3) INPUT VENDITE'!AH8 -> 0 | AL62: =+'3) INPUT VENDITE'!AI8 -> 0 | AM62: =+'3) INPUT VENDITE'!AJ8 -> 0 | AN62: =+'3) INPUT VENDITE'!AK8 -> 0 | AO62: =+'3) INPUT VENDITE'!AL8 -> 0 | AP62: =+'3) INPUT VENDITE'!AM8 -> 0 | AQ62: =+'3) INPUT VENDITE'!AN8 -> 0 | AR62: =+'3) INPUT VENDITE'!AO8 -> 0 | AS62: =+'3) INPUT VENDITE'!AP8 -> 0
B63: =+'3) INPUT VENDITE'!A9 -> Altri ricavi | C63: =+'3) INPUT VENDITE'!B9 -> 0 | D63: =+'3) INPUT VENDITE'!C9 -> 0 | E63: =+'3) INPUT VENDITE'!D9 -> 0 | F63: =+'3) INPUT VENDITE'!E9 -> 0 | G63: =+'3) INPUT VENDITE'!F9 -> 0 | H63: =+'3) INPUT VENDITE'!G9 -> 0 | I63: =+'3) INPUT VENDITE'!H9 -> 0 | J63: =+'3) INPUT VENDITE'!I9 -> 0 | K63: =+'3) INPUT VENDITE'!J9 -> 0 | L63: =+'3) INPUT VENDITE'!K9 -> 0 | M63: =+'3) INPUT VENDITE'!L9 -> 0 | N63: =+'3) INPUT VENDITE'!M9 -> 0 | O63: =+'3) INPUT VENDITE'!N9 -> 0 | P63: =+'3) INPUT VENDITE'!O9 -> 0 | Q63: Altri ricavi | R63: =+'3) INPUT VENDITE'!P9 -> 0 | S63: =+'3) INPUT VENDITE'!Q9 -> 0 | T63: =+'3) INPUT VENDITE'!R9 -> 0 | U63: =+'3) INPUT VENDITE'!S9 -> 0 | V63: =+'3) INPUT VENDITE'!T9 -> 0 | W63: =+'3) INPUT VENDITE'!U9 -> 0 | X63: =+'3) INPUT VENDITE'!V9 -> 0 | Y63: =+'3) INPUT VENDITE'!W9 -> 0 | Z63: =+'3) INPUT VENDITE'!X9 -> 0 | AA63: =+'3) INPUT VENDITE'!Y9 -> 0 | AB63: =+'3) INPUT VENDITE'!Z9 -> 0 | AC63: =+'3) INPUT VENDITE'!AA9 -> 0 | AD63: =+'3) INPUT VENDITE'!AB9 -> 0 | AE63: =+'3) INPUT VENDITE'!AC9 -> 0 | AF63: Altri ricavi | AG63: =+'3) INPUT VENDITE'!AD9 -> 0 | AH63: =+'3) INPUT VENDITE'!AE9 -> 0 | AI63: =+'3) INPUT VENDITE'!AF9 -> 0 | AJ63: =+'3) INPUT VENDITE'!AG9 -> 0 | AK63: =+'3) INPUT VENDITE'!AH9 -> 0 | AL63: =+'3) INPUT VENDITE'!AI9 -> 0 | AM63: =+'3) INPUT VENDITE'!AJ9 -> 0 | AN63: =+'3) INPUT VENDITE'!AK9 -> 0 | AO63: =+'3) INPUT VENDITE'!AL9 -> 0 | AP63: =+'3) INPUT VENDITE'!AM9 -> 0 | AQ63: =+'3) INPUT VENDITE'!AN9 -> 0 | AR63: =+'3) INPUT VENDITE'!AO9 -> 0 | AS63: =+'3) INPUT VENDITE'!AP9 -> 0
B64: =+'3) INPUT VENDITE'!A10 -> Altri ricavi | C64: =+'3) INPUT VENDITE'!B10 -> 0 | D64: =+'3) INPUT VENDITE'!C10 -> 0 | E64: =+'3) INPUT VENDITE'!D10 -> 0 | F64: =+'3) INPUT VENDITE'!E10 -> 0 | G64: =+'3) INPUT VENDITE'!F10 -> 0 | H64: =+'3) INPUT VENDITE'!G10 -> 0 | I64: =+'3) INPUT VENDITE'!H10 -> 0 | J64: =+'3) INPUT VENDITE'!I10 -> 0 | K64: =+'3) INPUT VENDITE'!J10 -> 0 | L64: =+'3) INPUT VENDITE'!K10 -> 0 | M64: =+'3) INPUT VENDITE'!L10 -> 0 | N64: =+'3) INPUT VENDITE'!M10 -> 0 | O64: =+'3) INPUT VENDITE'!N10 -> 0 | P64: =+'3) INPUT VENDITE'!O10 -> 0 | Q64: Altri ricavi | R64: =+'3) INPUT VENDITE'!P10 -> 0 | S64: =+'3) INPUT VENDITE'!Q10 -> 0 | T64: =+'3) INPUT VENDITE'!R10 -> 0 | U64: =+'3) INPUT VENDITE'!S10 -> 0 | V64: =+'3) INPUT VENDITE'!T10 -> 0 | W64: =+'3) INPUT VENDITE'!U10 -> 0 | X64: =+'3) INPUT VENDITE'!V10 -> 0 | Y64: =+'3) INPUT VENDITE'!W10 -> 0 | Z64: =+'3) INPUT VENDITE'!X10 -> 0 | AA64: =+'3) INPUT VENDITE'!Y10 -> 0 | AB64: =+'3) INPUT VENDITE'!Z10 -> 0 | AC64: =+'3) INPUT VENDITE'!AA10 -> 0 | AD64: =+'3) INPUT VENDITE'!AB10 -> 0 | AE64: =+'3) INPUT VENDITE'!AC10 -> 0 | AF64: Altri ricavi | AG64: =+'3) INPUT VENDITE'!AD10 -> 0 | AH64: =+'3) INPUT VENDITE'!AE10 -> 0 | AI64: =+'3) INPUT VENDITE'!AF10 -> 0 | AJ64: =+'3) INPUT VENDITE'!AG10 -> 0 | AK64: =+'3) INPUT VENDITE'!AH10 -> 0 | AL64: =+'3) INPUT VENDITE'!AI10 -> 0 | AM64: =+'3) INPUT VENDITE'!AJ10 -> 0 | AN64: =+'3) INPUT VENDITE'!AK10 -> 0 | AO64: =+'3) INPUT VENDITE'!AL10 -> 0 | AP64: =+'3) INPUT VENDITE'!AM10 -> 0 | AQ64: =+'3) INPUT VENDITE'!AN10 -> 0 | AR64: =+'3) INPUT VENDITE'!AO10 -> 0 | AS64: =+'3) INPUT VENDITE'!AP10 -> 0
B65: =+'3) INPUT VENDITE'!A11 -> Altri ricavi | C65: =+'3) INPUT VENDITE'!B11 -> 0 | D65: =+'3) INPUT VENDITE'!C11 -> 0 | E65: =+'3) INPUT VENDITE'!D11 -> 0 | F65: =+'3) INPUT VENDITE'!E11 -> 0 | G65: =+'3) INPUT VENDITE'!F11 -> 0 | H65: =+'3) INPUT VENDITE'!G11 -> 0 | I65: =+'3) INPUT VENDITE'!H11 -> 0 | J65: =+'3) INPUT VENDITE'!I11 -> 0 | K65: =+'3) INPUT VENDITE'!J11 -> 0 | L65: =+'3) INPUT VENDITE'!K11 -> 0 | M65: =+'3) INPUT VENDITE'!L11 -> 0 | N65: =+'3) INPUT VENDITE'!M11 -> 0 | O65: =+'3) INPUT VENDITE'!N11 -> 0 | P65: =+'3) INPUT VENDITE'!O11 -> 0 | Q65: Altri ricavi | R65: =+'3) INPUT VENDITE'!P11 -> 0 | S65: =+'3) INPUT VENDITE'!Q11 -> 0 | T65: =+'3) INPUT VENDITE'!R11 -> 0 | U65: =+'3) INPUT VENDITE'!S11 -> 0 | V65: =+'3) INPUT VENDITE'!T11 -> 0 | W65: =+'3) INPUT VENDITE'!U11 -> 0 | X65: =+'3) INPUT VENDITE'!V11 -> 0 | Y65: =+'3) INPUT VENDITE'!W11 -> 0 | Z65: =+'3) INPUT VENDITE'!X11 -> 0 | AA65: =+'3) INPUT VENDITE'!Y11 -> 0 | AB65: =+'3) INPUT VENDITE'!Z11 -> 0 | AC65: =+'3) INPUT VENDITE'!AA11 -> 0 | AD65: =+'3) INPUT VENDITE'!AB11 -> 0 | AE65: =+'3) INPUT VENDITE'!AC11 -> 0 | AF65: Altri ricavi | AG65: =+'3) INPUT VENDITE'!AD11 -> 0 | AH65: =+'3) INPUT VENDITE'!AE11 -> 0 | AI65: =+'3) INPUT VENDITE'!AF11 -> 0 | AJ65: =+'3) INPUT VENDITE'!AG11 -> 0 | AK65: =+'3) INPUT VENDITE'!AH11 -> 0 | AL65: =+'3) INPUT VENDITE'!AI11 -> 0 | AM65: =+'3) INPUT VENDITE'!AJ11 -> 0 | AN65: =+'3) INPUT VENDITE'!AK11 -> 0 | AO65: =+'3) INPUT VENDITE'!AL11 -> 0 | AP65: =+'3) INPUT VENDITE'!AM11 -> 0 | AQ65: =+'3) INPUT VENDITE'!AN11 -> 0 | AR65: =+'3) INPUT VENDITE'!AO11 -> 0 | AS65: =+'3) INPUT VENDITE'!AP11 -> 0
B66: =+'3) INPUT VENDITE'!A12 -> Altri ricavi | C66: =+'3) INPUT VENDITE'!B12 -> 0 | D66: =+'3) INPUT VENDITE'!C12 -> 0 | E66: =+'3) INPUT VENDITE'!D12 -> 0 | F66: =+'3) INPUT VENDITE'!E12 -> 0 | G66: =+'3) INPUT VENDITE'!F12 -> 0 | H66: =+'3) INPUT VENDITE'!G12 -> 0 | I66: =+'3) INPUT VENDITE'!H12 -> 0 | J66: =+'3) INPUT VENDITE'!I12 -> 0 | K66: =+'3) INPUT VENDITE'!J12 -> 0 | L66: =+'3) INPUT VENDITE'!K12 -> 0 | M66: =+'3) INPUT VENDITE'!L12 -> 0 | N66: =+'3) INPUT VENDITE'!M12 -> 0 | O66: =+'3) INPUT VENDITE'!N12 -> 0 | P66: =+'3) INPUT VENDITE'!O12 -> 0 | Q66: Altri ricavi | R66: =+'3) INPUT VENDITE'!P12 -> 0 | S66: =+'3) INPUT VENDITE'!Q12 -> 0 | T66: =+'3) INPUT VENDITE'!R12 -> 0 | U66: =+'3) INPUT VENDITE'!S12 -> 0 | V66: =+'3) INPUT VENDITE'!T12 -> 0 | W66: =+'3) INPUT VENDITE'!U12 -> 0 | X66: =+'3) INPUT VENDITE'!V12 -> 0 | Y66: =+'3) INPUT VENDITE'!W12 -> 0 | Z66: =+'3) INPUT VENDITE'!X12 -> 0 | AA66: =+'3) INPUT VENDITE'!Y12 -> 0 | AB66: =+'3) INPUT VENDITE'!Z12 -> 0 | AC66: =+'3) INPUT VENDITE'!AA12 -> 0 | AD66: =+'3) INPUT VENDITE'!AB12 -> 0 | AE66: =+'3) INPUT VENDITE'!AC12 -> 0 | AF66: Altri ricavi | AG66: =+'3) INPUT VENDITE'!AD12 -> 0 | AH66: =+'3) INPUT VENDITE'!AE12 -> 0 | AI66: =+'3) INPUT VENDITE'!AF12 -> 0 | AJ66: =+'3) INPUT VENDITE'!AG12 -> 0 | AK66: =+'3) INPUT VENDITE'!AH12 -> 0 | AL66: =+'3) INPUT VENDITE'!AI12 -> 0 | AM66: =+'3) INPUT VENDITE'!AJ12 -> 0 | AN66: =+'3) INPUT VENDITE'!AK12 -> 0 | AO66: =+'3) INPUT VENDITE'!AL12 -> 0 | AP66: =+'3) INPUT VENDITE'!AM12 -> 0 | AQ66: =+'3) INPUT VENDITE'!AN12 -> 0 | AR66: =+'3) INPUT VENDITE'!AO12 -> 0 | AS66: =+'3) INPUT VENDITE'!AP12 -> 0
B67: =+'3) INPUT VENDITE'!A13 -> Altri ricavi | C67: =+'3) INPUT VENDITE'!B13 -> 0 | D67: =+'3) INPUT VENDITE'!C13 -> 0 | E67: =+'3) INPUT VENDITE'!D13 -> 0 | F67: =+'3) INPUT VENDITE'!E13 -> 0 | G67: =+'3) INPUT VENDITE'!F13 -> 0 | H67: =+'3) INPUT VENDITE'!G13 -> 0 | I67: =+'3) INPUT VENDITE'!H13 -> 0 | J67: =+'3) INPUT VENDITE'!I13 -> 0 | K67: =+'3) INPUT VENDITE'!J13 -> 0 | L67: =+'3) INPUT VENDITE'!K13 -> 0 | M67: =+'3) INPUT VENDITE'!L13 -> 0 | N67: =+'3) INPUT VENDITE'!M13 -> 0 | O67: =+'3) INPUT VENDITE'!N13 -> 0 | P67: =+'3) INPUT VENDITE'!O13 -> 0 | Q67: Altri ricavi | R67: =+'3) INPUT VENDITE'!P13 -> 0 | S67: =+'3) INPUT VENDITE'!Q13 -> 0 | T67: =+'3) INPUT VENDITE'!R13 -> 0 | U67: =+'3) INPUT VENDITE'!S13 -> 0 | V67: =+'3) INPUT VENDITE'!T13 -> 0 | W67: =+'3) INPUT VENDITE'!U13 -> 0 | X67: =+'3) INPUT VENDITE'!V13 -> 0 | Y67: =+'3) INPUT VENDITE'!W13 -> 0 | Z67: =+'3) INPUT VENDITE'!X13 -> 0 | AA67: =+'3) INPUT VENDITE'!Y13 -> 0 | AB67: =+'3) INPUT VENDITE'!Z13 -> 0 | AC67: =+'3) INPUT VENDITE'!AA13 -> 0 | AD67: =+'3) INPUT VENDITE'!AB13 -> 0 | AE67: =+'3) INPUT VENDITE'!AC13 -> 0 | AF67: Altri ricavi | AG67: =+'3) INPUT VENDITE'!AD13 -> 0 | AH67: =+'3) INPUT VENDITE'!AE13 -> 0 | AI67: =+'3) INPUT VENDITE'!AF13 -> 0 | AJ67: =+'3) INPUT VENDITE'!AG13 -> 0 | AK67: =+'3) INPUT VENDITE'!AH13 -> 0 | AL67: =+'3) INPUT VENDITE'!AI13 -> 0 | AM67: =+'3) INPUT VENDITE'!AJ13 -> 0 | AN67: =+'3) INPUT VENDITE'!AK13 -> 0 | AO67: =+'3) INPUT VENDITE'!AL13 -> 0 | AP67: =+'3) INPUT VENDITE'!AM13 -> 0 | AQ67: =+'3) INPUT VENDITE'!AN13 -> 0 | AR67: =+'3) INPUT VENDITE'!AO13 -> 0 | AS67: =+'3) INPUT VENDITE'!AP13 -> 0
B68: =+B33 -> TOTALE CAMERE | C68: =SUM(C58:C61) -> 600 | D68: =SUM(D58:D61) -> 2170 | E68: 4860 | F68: 5022 | G68: 5022 | H68: 2100 | I68: 620 | J68: 600 | K68: 5022 | L68: 620 | M68: 560 | N68: =SUM(N58:N61) -> 620 | O68: =SUM(C68:N68) -> 27816 | Q68: TOTALE CAMERE | R68: =SUM(R58:R61) -> 600 | S68: =SUM(S58:S61) -> 2170 | T68: 4860 | U68: 5022 | V68: 5022 | W68: 2100 | X68: 620 | Y68: 600 | Z68: 5022 | AA68: 620 | AB68: 560 | AC68: 620 | AD68: =SUM(R68:AC68) -> 27816 | AF68: TOTALE CAMERE | AG68: =SUM(AG58:AG61) -> 600 | AH68: =SUM(AH58:AH61) -> 2170 | AI68: 4860 | AJ68: 5022 | AK68: 5022 | AL68: 2100 | AM68: 620 | AN68: 600 | AO68: 5022 | AP68: 620 | AQ68: 560 | AR68: 620 | AS68: =SUM(AG68:AR68) -> 27816
B69: PRENOTAZIONI | C69: MESI | O69: ANNO 1 | R69: MESI | AD69: ANNO 2 | AG69: MESI | AS69: ANNO3
C70: =+C57 -> 2016-04-30 | D70: =+EOMONTH(C70,1) -> 2016-05-31 | E70: =+EOMONTH(D70,1) -> 2016-06-30 | F70: =+EOMONTH(E70,1) -> 2016-07-31 | G70: =+EOMONTH(F70,1) -> 2016-08-31 | H70: =+EOMONTH(G70,1) -> 2016-09-30 | I70: =+EOMONTH(H70,1) -> 2016-10-31 | J70: =+EOMONTH(I70,1) -> 2016-11-30 | K70: =+EOMONTH(J70,1) -> 2016-12-31 | L70: =+EOMONTH(K70,1) -> 2017-01-31 | M70: =+EOMONTH(L70,1) -> 2017-02-28 | N70: =+EOMONTH(M70,1) -> 2017-03-31 | O70: TOTALE | P70: IPOTESI % | Q70: =+B69 -> PRENOTAZIONI | R70: =+EOMONTH(N70,1) -> 2017-04-30 | S70: =+EOMONTH(R70,1) -> 2017-05-31 | T70: =+EOMONTH(S70,1) -> 2017-06-30 | U70: =+EOMONTH(T70,1) -> 2017-07-31 | V70: =+EOMONTH(U70,1) -> 2017-08-31 | W70: =+EOMONTH(V70,1) -> 2017-09-30 | X70: =+EOMONTH(W70,1) -> 2017-10-31 | Y70: =+EOMONTH(X70,1) -> 2017-11-30 | Z70: =+EOMONTH(Y70,1) -> 2017-12-31 | AA70: =+EOMONTH(Z70,1) -> 2018-01-31 | AB70: =+EOMONTH(AA70,1) -> 2018-02-28 | AC70: =+EOMONTH(AB70,1) -> 2018-03-31 | AD70: TOTALE | AE70: IPOTESI % | AF70: =+Q69 -> 0 | AG70: =+EOMONTH(AC70,1) -> 2018-04-30 | AH70: =+EOMONTH(AG70,1) -> 2018-05-31 | AI70: =+EOMONTH(AH70,1) -> 2018-06-30 | AJ70: =+EOMONTH(AI70,1) -> 2018-07-31 | AK70: =+EOMONTH(AJ70,1) -> 2018-08-31 | AL70: =+EOMONTH(AK70,1) -> 2018-09-30 | AM70: =+EOMONTH(AL70,1) -> 2018-10-31 | AN70: =+EOMONTH(AM70,1) -> 2018-11-30 | AO70: =+EOMONTH(AN70,1) -> 2018-12-31 | AP70: =+EOMONTH(AO70,1) -> 2019-01-31 | AQ70: =+EOMONTH(AP70,1) -> 2019-02-28 | AR70: =+EOMONTH(AQ70,1) -> 2019-03-31 | AS70: TOTALE
B71: =+'3) INPUT VENDITE'!A17 -> CAMERE QUADRUPLE | C71: =+'3) INPUT VENDITE'!B17 -> 0 | D71: =+'3) INPUT VENDITE'!C17 -> 0 | E71: =+'3) INPUT VENDITE'!D17 -> 0 | F71: =+'3) INPUT VENDITE'!E17 -> 0 | G71: =+'3) INPUT VENDITE'!F17 -> 0 | H71: =+'3) INPUT VENDITE'!G17 -> 0 | I71: =+'3) INPUT VENDITE'!H17 -> 0 | J71: =+'3) INPUT VENDITE'!I17 -> 0 | K71: =+'3) INPUT VENDITE'!J17 -> 0 | L71: =+'3) INPUT VENDITE'!K17 -> 0 | M71: =+'3) INPUT VENDITE'!L17 -> 0 | N71: =+'3) INPUT VENDITE'!M17 -> 0 | O71: =+'3) INPUT VENDITE'!N17 -> 0 | P71: =+'3) INPUT VENDITE'!O17 -> 0 | Q71: =+B71 -> CAMERE QUADRUPLE | R71: =+'3) INPUT VENDITE'!P17 -> 0 | S71: =+'3) INPUT VENDITE'!Q17 -> 0 | T71: =+'3) INPUT VENDITE'!R17 -> 0 | U71: =+'3) INPUT VENDITE'!S17 -> 0 | V71: =+'3) INPUT VENDITE'!T17 -> 0 | W71: =+'3) INPUT VENDITE'!U17 -> 0 | X71: =+'3) INPUT VENDITE'!V17 -> 0 | Y71: =+'3) INPUT VENDITE'!W17 -> 0 | Z71: =+'3) INPUT VENDITE'!X17 -> 0 | AA71: =+'3) INPUT VENDITE'!Y17 -> 0 | AB71: =+'3) INPUT VENDITE'!Z17 -> 0 | AC71: =+'3) INPUT VENDITE'!AA17 -> 0 | AD71: =+'3) INPUT VENDITE'!AB17 -> 0 | AE71: =+'3) INPUT VENDITE'!AC17 -> 0 | AF71: =+Q71 -> CAMERE QUADRUPLE | AG71: =+'3) INPUT VENDITE'!AD17 -> 0 | AH71: =+'3) INPUT VENDITE'!AE17 -> 0 | AI71: =+'3) INPUT VENDITE'!AF17 -> 0 | AJ71: =+'3) INPUT VENDITE'!AG17 -> 0 | AK71: =+'3) INPUT VENDITE'!AH17 -> 0 | AL71: =+'3) INPUT VENDITE'!AI17 -> 0 | AM71: =+'3) INPUT VENDITE'!AJ17 -> 0 | AN71: =+'3) INPUT VENDITE'!AK17 -> 0 | AO71: =+'3) INPUT VENDITE'!AL17 -> 0 | AP71: =+'3) INPUT VENDITE'!AM17 -> 0 | AQ71: =+'3) INPUT VENDITE'!AN17 -> 0 | AR71: =+'3) INPUT VENDITE'!AO17 -> 0 | AS71: =+'3) INPUT VENDITE'!AP17 -> 0
B72: =+'3) INPUT VENDITE'!A18 -> CAMERE TRIPLE | C72: =+'3) INPUT VENDITE'!B18 -> 0 | D72: =+'3) INPUT VENDITE'!C18 -> 0 | E72: =+'3) INPUT VENDITE'!D18 -> 0 | F72: =+'3) INPUT VENDITE'!E18 -> 0 | G72: =+'3) INPUT VENDITE'!F18 -> 0 | H72: =+'3) INPUT VENDITE'!G18 -> 0 | I72: =+'3) INPUT VENDITE'!H18 -> 0 | J72: =+'3) INPUT VENDITE'!I18 -> 0 | K72: =+'3) INPUT VENDITE'!J18 -> 0 | L72: =+'3) INPUT VENDITE'!K18 -> 0 | M72: =+'3) INPUT VENDITE'!L18 -> 0 | N72: =+'3) INPUT VENDITE'!M18 -> 0 | O72: =+'3) INPUT VENDITE'!N18 -> 0 | P72: =+'3) INPUT VENDITE'!O18 -> 0 | Q72: =+B72 -> CAMERE TRIPLE | R72: =+'3) INPUT VENDITE'!P18 -> 0 | S72: =+'3) INPUT VENDITE'!Q18 -> 0 | T72: =+'3) INPUT VENDITE'!R18 -> 0 | U72: =+'3) INPUT VENDITE'!S18 -> 0 | V72: =+'3) INPUT VENDITE'!T18 -> 0 | W72: =+'3) INPUT VENDITE'!U18 -> 0 | X72: =+'3) INPUT VENDITE'!V18 -> 0 | Y72: =+'3) INPUT VENDITE'!W18 -> 0 | Z72: =+'3) INPUT VENDITE'!X18 -> 0 | AA72: =+'3) INPUT VENDITE'!Y18 -> 0 | AB72: =+'3) INPUT VENDITE'!Z18 -> 0 | AC72: =+'3) INPUT VENDITE'!AA18 -> 0 | AD72: =+'3) INPUT VENDITE'!AB18 -> 0 | AE72: =+'3) INPUT VENDITE'!AC18 -> 0 | AF72: =+Q72 -> CAMERE TRIPLE | AG72: =+'3) INPUT VENDITE'!AD18 -> 0 | AH72: =+'3) INPUT VENDITE'!AE18 -> 0 | AI72: =+'3) INPUT VENDITE'!AF18 -> 0 | AJ72: =+'3) INPUT VENDITE'!AG18 -> 0 | AK72: =+'3) INPUT VENDITE'!AH18 -> 0 | AL72: =+'3) INPUT VENDITE'!AI18 -> 0 | AM72: =+'3) INPUT VENDITE'!AJ18 -> 0 | AN72: =+'3) INPUT VENDITE'!AK18 -> 0 | AO72: =+'3) INPUT VENDITE'!AL18 -> 0 | AP72: =+'3) INPUT VENDITE'!AM18 -> 0 | AQ72: =+'3) INPUT VENDITE'!AN18 -> 0 | AR72: =+'3) INPUT VENDITE'!AO18 -> 0 | AS72: =+'3) INPUT VENDITE'!AP18 -> 0
B73: =+'3) INPUT VENDITE'!A19 -> CAMERE DOPPIE | C73: =+'3) INPUT VENDITE'!B19 -> 12 | D73: =+'3) INPUT VENDITE'!C19 -> 31 | E73: =+'3) INPUT VENDITE'!D19 -> 54 | F73: =+'3) INPUT VENDITE'!E19 -> 55.8 | G73: =+'3) INPUT VENDITE'!F19 -> 55.8 | H73: =+'3) INPUT VENDITE'!G19 -> 30 | I73: =+'3) INPUT VENDITE'!H19 -> 12.4 | J73: =+'3) INPUT VENDITE'!I19 -> 12 | K73: =+'3) INPUT VENDITE'!J19 -> 55.8 | L73: =+'3) INPUT VENDITE'!K19 -> 12.4 | M73: =+'3) INPUT VENDITE'!L19 -> 11.2 | N73: =+'3) INPUT VENDITE'!M19 -> 12.4 | O73: =+'3) INPUT VENDITE'!N19 -> 354.8 | P73: =+'3) INPUT VENDITE'!O19 -> 0 | Q73: CAMERE DOPPIE | R73: =+'3) INPUT VENDITE'!P19 -> 12 | S73: =+'3) INPUT VENDITE'!Q19 -> 31 | T73: =+'3) INPUT VENDITE'!R19 -> 54 | U73: =+'3) INPUT VENDITE'!S19 -> 55.8 | V73: =+'3) INPUT VENDITE'!T19 -> 55.8 | W73: =+'3) INPUT VENDITE'!U19 -> 30 | X73: =+'3) INPUT VENDITE'!V19 -> 12.4 | Y73: =+'3) INPUT VENDITE'!W19 -> 12 | Z73: =+'3) INPUT VENDITE'!X19 -> 55.8 | AA73: =+'3) INPUT VENDITE'!Y19 -> 12.4 | AB73: =+'3) INPUT VENDITE'!Z19 -> 11.2 | AC73: =+'3) INPUT VENDITE'!AA19 -> 12.4 | AD73: =+'3) INPUT VENDITE'!AB19 -> 354.8 | AE73: =+'3) INPUT VENDITE'!AC19 -> 0 | AF73: CAMERE DOPPIE | AG73: =+'3) INPUT VENDITE'!AD19 -> 12 | AH73: =+'3) INPUT VENDITE'!AE19 -> 31 | AI73: =+'3) INPUT VENDITE'!AF19 -> 54 | AJ73: =+'3) INPUT VENDITE'!AG19 -> 55.8 | AK73: =+'3) INPUT VENDITE'!AH19 -> 55.8 | AL73: =+'3) INPUT VENDITE'!AI19 -> 30 | AM73: =+'3) INPUT VENDITE'!AJ19 -> 12.4 | AN73: =+'3) INPUT VENDITE'!AK19 -> 12 | AO73: =+'3) INPUT VENDITE'!AL19 -> 55.8 | AP73: =+'3) INPUT VENDITE'!AM19 -> 12.4 | AQ73: =+'3) INPUT VENDITE'!AN19 -> 11.2 | AR73: =+'3) INPUT VENDITE'!AO19 -> 12.4 | AS73: =+'3) INPUT VENDITE'!AP19 -> 354.8
B74: =+'3) INPUT VENDITE'!A20 -> CAMERE SINGOLE | C74: =+'3) INPUT VENDITE'!B20 -> 0 | D74: =+'3) INPUT VENDITE'!C20 -> 0 | E74: =+'3) INPUT VENDITE'!D20 -> 0 | F74: =+'3) INPUT VENDITE'!E20 -> 0 | G74: =+'3) INPUT VENDITE'!F20 -> 0 | H74: =+'3) INPUT VENDITE'!G20 -> 0 | I74: =+'3) INPUT VENDITE'!H20 -> 0 | J74: =+'3) INPUT VENDITE'!I20 -> 0 | K74: =+'3) INPUT VENDITE'!J20 -> 0 | L74: =+'3) INPUT VENDITE'!K20 -> 0 | M74: =+'3) INPUT VENDITE'!L20 -> 0 | N74: =+'3) INPUT VENDITE'!M20 -> 0 | O74: =+'3) INPUT VENDITE'!N20 -> 0 | P74: =+'3) INPUT VENDITE'!O20 -> 0 | Q74: CAMERE SINGOLE | R74: =+'3) INPUT VENDITE'!P20 -> 0 | S74: =+'3) INPUT VENDITE'!Q20 -> 0 | T74: =+'3) INPUT VENDITE'!R20 -> 0 | U74: =+'3) INPUT VENDITE'!S20 -> 0 | V74: =+'3) INPUT VENDITE'!T20 -> 0 | W74: =+'3) INPUT VENDITE'!U20 -> 0 | X74: =+'3) INPUT VENDITE'!V20 -> 0 | Y74: =+'3) INPUT VENDITE'!W20 -> 0 | Z74: =+'3) INPUT VENDITE'!X20 -> 0 | AA74: =+'3) INPUT VENDITE'!Y20 -> 0 | AB74: =+'3) INPUT VENDITE'!Z20 -> 0 | AC74: =+'3) INPUT VENDITE'!AA20 -> 0 | AD74: =+'3) INPUT VENDITE'!AB20 -> 0 | AE74: =+'3) INPUT VENDITE'!AC20 -> 0 | AF74: CAMERE SINGOLE | AG74: =+'3) INPUT VENDITE'!AD20 -> 0 | AH74: =+'3) INPUT VENDITE'!AE20 -> 0 | AI74: =+'3) INPUT VENDITE'!AF20 -> 0 | AJ74: =+'3) INPUT VENDITE'!AG20 -> 0 | AK74: =+'3) INPUT VENDITE'!AH20 -> 0 | AL74: =+'3) INPUT VENDITE'!AI20 -> 0 | AM74: =+'3) INPUT VENDITE'!AJ20 -> 0 | AN74: =+'3) INPUT VENDITE'!AK20 -> 0 | AO74: =+'3) INPUT VENDITE'!AL20 -> 0 | AP74: =+'3) INPUT VENDITE'!AM20 -> 0 | AQ74: =+'3) INPUT VENDITE'!AN20 -> 0 | AR74: =+'3) INPUT VENDITE'!AO20 -> 0 | AS74: =+'3) INPUT VENDITE'!AP20 -> 0
B75: =+'3) INPUT VENDITE'!A21 -> VISITE GUIDATE | C75: =+'3) INPUT VENDITE'!B21 -> 0 | D75: =+'3) INPUT VENDITE'!C21 -> 0 | E75: =+'3) INPUT VENDITE'!D21 -> 0 | F75: =+'3) INPUT VENDITE'!E21 -> 0 | G75: =+'3) INPUT VENDITE'!F21 -> 0 | H75: =+'3) INPUT VENDITE'!G21 -> 0 | I75: =+'3) INPUT VENDITE'!H21 -> 0 | J75: =+'3) INPUT VENDITE'!I21 -> 0 | K75: =+'3) INPUT VENDITE'!J21 -> 0 | L75: =+'3) INPUT VENDITE'!K21 -> 0 | M75: =+'3) INPUT VENDITE'!L21 -> 0 | N75: =+'3) INPUT VENDITE'!M21 -> 0 | O75: =+'3) INPUT VENDITE'!N21 -> 0 | P75: =+'3) INPUT VENDITE'!O21 -> 0 | Q75: VISITE GUIDATE | R75: =+'3) INPUT VENDITE'!P21 -> 0 | S75: =+'3) INPUT VENDITE'!Q21 -> 0 | T75: =+'3) INPUT VENDITE'!R21 -> 0 | U75: =+'3) INPUT VENDITE'!S21 -> 0 | V75: =+'3) INPUT VENDITE'!T21 -> 0 | W75: =+'3) INPUT VENDITE'!U21 -> 0 | X75: =+'3) INPUT VENDITE'!V21 -> 0 | Y75: =+'3) INPUT VENDITE'!W21 -> 0 | Z75: =+'3) INPUT VENDITE'!X21 -> 0 | AA75: =+'3) INPUT VENDITE'!Y21 -> 0 | AB75: =+'3) INPUT VENDITE'!Z21 -> 0 | AC75: =+'3) INPUT VENDITE'!AA21 -> 0 | AD75: =+'3) INPUT VENDITE'!AB21 -> 0 | AE75: =+'3) INPUT VENDITE'!AC21 -> 0 | AF75: VISITE GUIDATE | AG75: =+'3) INPUT VENDITE'!AD21 -> 0 | AH75: =+'3) INPUT VENDITE'!AE21 -> 0 | AI75: =+'3) INPUT VENDITE'!AF21 -> 0 | AJ75: =+'3) INPUT VENDITE'!AG21 -> 0 | AK75: =+'3) INPUT VENDITE'!AH21 -> 0 | AL75: =+'3) INPUT VENDITE'!AI21 -> 0 | AM75: =+'3) INPUT VENDITE'!AJ21 -> 0 | AN75: =+'3) INPUT VENDITE'!AK21 -> 0 | AO75: =+'3) INPUT VENDITE'!AL21 -> 0 | AP75: =+'3) INPUT VENDITE'!AM21 -> 0 | AQ75: =+'3) INPUT VENDITE'!AN21 -> 0 | AR75: =+'3) INPUT VENDITE'!AO21 -> 0 | AS75: =+'3) INPUT VENDITE'!AP21 -> 0
B76: =+'3) INPUT VENDITE'!A22 -> Altri ricavi | C76: =+'3) INPUT VENDITE'!B22 -> 0 | D76: =+'3) INPUT VENDITE'!C22 -> 0 | E76: =+'3) INPUT VENDITE'!D22 -> 0 | F76: =+'3) INPUT VENDITE'!E22 -> 0 | G76: =+'3) INPUT VENDITE'!F22 -> 0 | H76: =+'3) INPUT VENDITE'!G22 -> 0 | I76: =+'3) INPUT VENDITE'!H22 -> 0 | J76: =+'3) INPUT VENDITE'!I22 -> 0 | K76: =+'3) INPUT VENDITE'!J22 -> 0 | L76: =+'3) INPUT VENDITE'!K22 -> 0 | M76: =+'3) INPUT VENDITE'!L22 -> 0 | N76: =+'3) INPUT VENDITE'!M22 -> 0 | O76: =+'3) INPUT VENDITE'!N22 -> 0 | P76: =+'3) INPUT VENDITE'!O22 -> 0 | Q76: Altri ricavi | R76: =+'3) INPUT VENDITE'!P22 -> 0 | S76: =+'3) INPUT VENDITE'!Q22 -> 0 | T76: =+'3) INPUT VENDITE'!R22 -> 0 | U76: =+'3) INPUT VENDITE'!S22 -> 0 | V76: =+'3) INPUT VENDITE'!T22 -> 0 | W76: =+'3) INPUT VENDITE'!U22 -> 0 | X76: =+'3) INPUT VENDITE'!V22 -> 0 | Y76: =+'3) INPUT VENDITE'!W22 -> 0 | Z76: =+'3) INPUT VENDITE'!X22 -> 0 | AA76: =+'3) INPUT VENDITE'!Y22 -> 0 | AB76: =+'3) INPUT VENDITE'!Z22 -> 0 | AC76: =+'3) INPUT VENDITE'!AA22 -> 0 | AD76: =+'3) INPUT VENDITE'!AB22 -> 0 | AE76: =+'3) INPUT VENDITE'!AC22 -> 0 | AF76: Altri ricavi | AG76: =+'3) INPUT VENDITE'!AD22 -> 0 | AH76: =+'3) INPUT VENDITE'!AE22 -> 0 | AI76: =+'3) INPUT VENDITE'!AF22 -> 0 | AJ76: =+'3) INPUT VENDITE'!AG22 -> 0 | AK76: =+'3) INPUT VENDITE'!AH22 -> 0 | AL76: =+'3) INPUT VENDITE'!AI22 -> 0 | AM76: =+'3) INPUT VENDITE'!AJ22 -> 0 | AN76: =+'3) INPUT VENDITE'!AK22 -> 0 | AO76: =+'3) INPUT VENDITE'!AL22 -> 0 | AP76: =+'3) INPUT VENDITE'!AM22 -> 0 | AQ76: =+'3) INPUT VENDITE'!AN22 -> 0 | AR76: =+'3) INPUT VENDITE'!AO22 -> 0 | AS76: =+'3) INPUT VENDITE'!AP22 -> 0
B77: =+'3) INPUT VENDITE'!A23 -> Altri ricavi | C77: =+'3) INPUT VENDITE'!B23 -> 0 | D77: =+'3) INPUT VENDITE'!C23 -> 0 | E77: =+'3) INPUT VENDITE'!D23 -> 0 | F77: =+'3) INPUT VENDITE'!E23 -> 0 | G77: =+'3) INPUT VENDITE'!F23 -> 0 | H77: =+'3) INPUT VENDITE'!G23 -> 0 | I77: =+'3) INPUT VENDITE'!H23 -> 0 | J77: =+'3) INPUT VENDITE'!I23 -> 0 | K77: =+'3) INPUT VENDITE'!J23 -> 0 | L77: =+'3) INPUT VENDITE'!K23 -> 0 | M77: =+'3) INPUT VENDITE'!L23 -> 0 | N77: =+'3) INPUT VENDITE'!M23 -> 0 | O77: =+'3) INPUT VENDITE'!N23 -> 0 | P77: =+'3) INPUT VENDITE'!O23 -> 0 | Q77: Altri ricavi | R77: =+'3) INPUT VENDITE'!P23 -> 0 | S77: =+'3) INPUT VENDITE'!Q23 -> 0 | T77: =+'3) INPUT VENDITE'!R23 -> 0 | U77: =+'3) INPUT VENDITE'!S23 -> 0 | V77: =+'3) INPUT VENDITE'!T23 -> 0 | W77: =+'3) INPUT VENDITE'!U23 -> 0 | X77: =+'3) INPUT VENDITE'!V23 -> 0 | Y77: =+'3) INPUT VENDITE'!W23 -> 0 | Z77: =+'3) INPUT VENDITE'!X23 -> 0 | AA77: =+'3) INPUT VENDITE'!Y23 -> 0 | AB77: =+'3) INPUT VENDITE'!Z23 -> 0 | AC77: =+'3) INPUT VENDITE'!AA23 -> 0 | AD77: =+'3) INPUT VENDITE'!AB23 -> 0 | AE77: =+'3) INPUT VENDITE'!AC23 -> 0 | AF77: Altri ricavi | AG77: =+'3) INPUT VENDITE'!AD23 -> 0 | AH77: =+'3) INPUT VENDITE'!AE23 -> 0 | AI77: =+'3) INPUT VENDITE'!AF23 -> 0 | AJ77: =+'3) INPUT VENDITE'!AG23 -> 0 | AK77: =+'3) INPUT VENDITE'!AH23 -> 0 | AL77: =+'3) INPUT VENDITE'!AI23 -> 0 | AM77: =+'3) INPUT VENDITE'!AJ23 -> 0 | AN77: =+'3) INPUT VENDITE'!AK23 -> 0 | AO77: =+'3) INPUT VENDITE'!AL23 -> 0 | AP77: =+'3) INPUT VENDITE'!AM23 -> 0 | AQ77: =+'3) INPUT VENDITE'!AN23 -> 0 | AR77: =+'3) INPUT VENDITE'!AO23 -> 0 | AS77: =+'3) INPUT VENDITE'!AP23 -> 0
B78: =+'3) INPUT VENDITE'!A24 -> Altri ricavi | C78: =+'3) INPUT VENDITE'!B24 -> 0 | D78: =+'3) INPUT VENDITE'!C24 -> 0 | E78: =+'3) INPUT VENDITE'!D24 -> 0 | F78: =+'3) INPUT VENDITE'!E24 -> 0 | G78: =+'3) INPUT VENDITE'!F24 -> 0 | H78: =+'3) INPUT VENDITE'!G24 -> 0 | I78: =+'3) INPUT VENDITE'!H24 -> 0 | J78: =+'3) INPUT VENDITE'!I24 -> 0 | K78: =+'3) INPUT VENDITE'!J24 -> 0 | L78: =+'3) INPUT VENDITE'!K24 -> 0 | M78: =+'3) INPUT VENDITE'!L24 -> 0 | N78: =+'3) INPUT VENDITE'!M24 -> 0 | O78: =+'3) INPUT VENDITE'!N24 -> 0 | P78: =+'3) INPUT VENDITE'!O24 -> 0 | Q78: Altri ricavi | R78: =+'3) INPUT VENDITE'!P24 -> 0 | S78: =+'3) INPUT VENDITE'!Q24 -> 0 | T78: =+'3) INPUT VENDITE'!R24 -> 0 | U78: =+'3) INPUT VENDITE'!S24 -> 0 | V78: =+'3) INPUT VENDITE'!T24 -> 0 | W78: =+'3) INPUT VENDITE'!U24 -> 0 | X78: =+'3) INPUT VENDITE'!V24 -> 0 | Y78: =+'3) INPUT VENDITE'!W24 -> 0 | Z78: =+'3) INPUT VENDITE'!X24 -> 0 | AA78: =+'3) INPUT VENDITE'!Y24 -> 0 | AB78: =+'3) INPUT VENDITE'!Z24 -> 0 | AC78: =+'3) INPUT VENDITE'!AA24 -> 0 | AD78: =+'3) INPUT VENDITE'!AB24 -> 0 | AE78: =+'3) INPUT VENDITE'!AC24 -> 0 | AF78: Altri ricavi | AG78: =+'3) INPUT VENDITE'!AD24 -> 0 | AH78: =+'3) INPUT VENDITE'!AE24 -> 0 | AI78: =+'3) INPUT VENDITE'!AF24 -> 0 | AJ78: =+'3) INPUT VENDITE'!AG24 -> 0 | AK78: =+'3) INPUT VENDITE'!AH24 -> 0 | AL78: =+'3) INPUT VENDITE'!AI24 -> 0 | AM78: =+'3) INPUT VENDITE'!AJ24 -> 0 | AN78: =+'3) INPUT VENDITE'!AK24 -> 0 | AO78: =+'3) INPUT VENDITE'!AL24 -> 0 | AP78: =+'3) INPUT VENDITE'!AM24 -> 0 | AQ78: =+'3) INPUT VENDITE'!AN24 -> 0 | AR78: =+'3) INPUT VENDITE'!AO24 -> 0 | AS78: =+'3) INPUT VENDITE'!AP24 -> 0
B79: =+'3) INPUT VENDITE'!A25 -> Altri ricavi | C79: =+'3) INPUT VENDITE'!B25 -> 0 | D79: =+'3) INPUT VENDITE'!C25 -> 0 | E79: =+'3) INPUT VENDITE'!D25 -> 0 | F79: =+'3) INPUT VENDITE'!E25 -> 0 | G79: =+'3) INPUT VENDITE'!F25 -> 0 | H79: =+'3) INPUT VENDITE'!G25 -> 0 | I79: =+'3) INPUT VENDITE'!H25 -> 0 | J79: =+'3) INPUT VENDITE'!I25 -> 0 | K79: =+'3) INPUT VENDITE'!J25 -> 0 | L79: =+'3) INPUT VENDITE'!K25 -> 0 | M79: =+'3) INPUT VENDITE'!L25 -> 0 | N79: =+'3) INPUT VENDITE'!M25 -> 0 | O79: =+'3) INPUT VENDITE'!N25 -> 0 | P79: =+'3) INPUT VENDITE'!O25 -> 0 | Q79: Altri ricavi | R79: =+'3) INPUT VENDITE'!P25 -> 0 | S79: =+'3) INPUT VENDITE'!Q25 -> 0 | T79: =+'3) INPUT VENDITE'!R25 -> 0 | U79: =+'3) INPUT VENDITE'!S25 -> 0 | V79: =+'3) INPUT VENDITE'!T25 -> 0 | W79: =+'3) INPUT VENDITE'!U25 -> 0 | X79: =+'3) INPUT VENDITE'!V25 -> 0 | Y79: =+'3) INPUT VENDITE'!W25 -> 0 | Z79: =+'3) INPUT VENDITE'!X25 -> 0 | AA79: =+'3) INPUT VENDITE'!Y25 -> 0 | AB79: =+'3) INPUT VENDITE'!Z25 -> 0 | AC79: =+'3) INPUT VENDITE'!AA25 -> 0 | AD79: =+'3) INPUT VENDITE'!AB25 -> 0 | AE79: =+'3) INPUT VENDITE'!AC25 -> 0 | AF79: Altri ricavi | AG79: =+'3) INPUT VENDITE'!AD25 -> 0 | AH79: =+'3) INPUT VENDITE'!AE25 -> 0 | AI79: =+'3) INPUT VENDITE'!AF25 -> 0 | AJ79: =+'3) INPUT VENDITE'!AG25 -> 0 | AK79: =+'3) INPUT VENDITE'!AH25 -> 0 | AL79: =+'3) INPUT VENDITE'!AI25 -> 0 | AM79: =+'3) INPUT VENDITE'!AJ25 -> 0 | AN79: =+'3) INPUT VENDITE'!AK25 -> 0 | AO79: =+'3) INPUT VENDITE'!AL25 -> 0 | AP79: =+'3) INPUT VENDITE'!AM25 -> 0 | AQ79: =+'3) INPUT VENDITE'!AN25 -> 0 | AR79: =+'3) INPUT VENDITE'!AO25 -> 0 | AS79: =+'3) INPUT VENDITE'!AP25 -> 0
B80: =+'3) INPUT VENDITE'!A26 -> Altri ricavi | C80: =+'3) INPUT VENDITE'!B26 -> 0 | D80: =+'3) INPUT VENDITE'!C26 -> 0 | E80: =+'3) INPUT VENDITE'!D26 -> 0 | F80: =+'3) INPUT VENDITE'!E26 -> 0 | G80: =+'3) INPUT VENDITE'!F26 -> 0 | H80: =+'3) INPUT VENDITE'!G26 -> 0 | I80: =+'3) INPUT VENDITE'!H26 -> 0 | J80: =+'3) INPUT VENDITE'!I26 -> 0 | K80: =+'3) INPUT VENDITE'!J26 -> 0 | L80: =+'3) INPUT VENDITE'!K26 -> 0 | M80: =+'3) INPUT VENDITE'!L26 -> 0 | N80: =+'3) INPUT VENDITE'!M26 -> 0 | O80: =+'3) INPUT VENDITE'!N26 -> 0 | P80: =+'3) INPUT VENDITE'!O26 -> 0 | Q80: Altri ricavi | R80: =+'3) INPUT VENDITE'!P26 -> 0 | S80: =+'3) INPUT VENDITE'!Q26 -> 0 | T80: =+'3) INPUT VENDITE'!R26 -> 0 | U80: =+'3) INPUT VENDITE'!S26 -> 0 | V80: =+'3) INPUT VENDITE'!T26 -> 0 | W80: =+'3) INPUT VENDITE'!U26 -> 0 | X80: =+'3) INPUT VENDITE'!V26 -> 0 | Y80: =+'3) INPUT VENDITE'!W26 -> 0 | Z80: =+'3) INPUT VENDITE'!X26 -> 0 | AA80: =+'3) INPUT VENDITE'!Y26 -> 0 | AB80: =+'3) INPUT VENDITE'!Z26 -> 0 | AC80: =+'3) INPUT VENDITE'!AA26 -> 0 | AD80: =+'3) INPUT VENDITE'!AB26 -> 0 | AE80: =+'3) INPUT VENDITE'!AC26 -> 0 | AF80: Altri ricavi | AG80: =+'3) INPUT VENDITE'!AD26 -> 0 | AH80: =+'3) INPUT VENDITE'!AE26 -> 0 | AI80: =+'3) INPUT VENDITE'!AF26 -> 0 | AJ80: =+'3) INPUT VENDITE'!AG26 -> 0 | AK80: =+'3) INPUT VENDITE'!AH26 -> 0 | AL80: =+'3) INPUT VENDITE'!AI26 -> 0 | AM80: =+'3) INPUT VENDITE'!AJ26 -> 0 | AN80: =+'3) INPUT VENDITE'!AK26 -> 0 | AO80: =+'3) INPUT VENDITE'!AL26 -> 0 | AP80: =+'3) INPUT VENDITE'!AM26 -> 0 | AQ80: =+'3) INPUT VENDITE'!AN26 -> 0 | AR80: =+'3) INPUT VENDITE'!AO26 -> 0 | AS80: =+'3) INPUT VENDITE'!AP26 -> 0
B81: =+B68 -> TOTALE CAMERE | C81: =SUM(C71:C80) -> 12 | D81: =SUM(D71:D80) -> 31 | E81: 54 | F81: 55.8 | G81: 55.8 | H81: 30 | I81: 12.4 | J81: 12 | K81: 55.8 | L81: 12.4 | M81: 11.2 | N81: 12.4 | O81: =SUM(C81:N81) -> 354.8 | Q81: TOTALE CAMERE | R81: =+R71+R72+R73+R74 -> 12 | S81: =+S71+S72+S73+S74 -> 31 | T81: 54 | U81: 55.8 | V81: 55.8 | W81: 30 | X81: 12.4 | Y81: 12 | Z81: 55.8 | AA81: 12.4 | AB81: 11.2 | AC81: 12.4 | AD81: =SUM(R81:AC81) -> 354.8 | AF81: TOTALE CAMERE | AG81: =+AG71+AG72+AG73+AG74 -> 12 | AH81: =+AH71+AH72+AH73+AH74 -> 31 | AI81: 54 | AJ81: 55.8 | AK81: 55.8 | AL81: 30 | AM81: 12.4 | AN81: 12 | AO81: 55.8 | AP81: 12.4 | AQ81: 11.2 | AR81: 12.4 | AS81: =SUM(AG81:AR81) -> 354.8
C82: MESI | O82: ANNO 1 | R82: MESI | AD82: ANNO 2 | AG82: MESI | AS82: ANNO 3
B83: N. PRESENZE | C83: =+C70 -> 2016-04-30 | D83: =+EOMONTH(C83,1) -> 2016-05-31 | E83: =+EOMONTH(D83,1) -> 2016-06-30 | F83: =+EOMONTH(E83,1) -> 2016-07-31 | G83: =+EOMONTH(F83,1) -> 2016-08-31 | H83: =+EOMONTH(G83,1) -> 2016-09-30 | I83: =+EOMONTH(H83,1) -> 2016-10-31 | J83: =+EOMONTH(I83,1) -> 2016-11-30 | K83: =+EOMONTH(J83,1) -> 2016-12-31 | L83: =+EOMONTH(K83,1) -> 2017-01-31 | M83: =+EOMONTH(L83,1) -> 2017-02-28 | N83: =+EOMONTH(M83,1) -> 2017-03-31 | O83: TOTALE | P83: IPOTESI % | Q83: =+B83 -> N. PRESENZE | R83: =+EOMONTH(N83,1) -> 2017-04-30 | S83: =+EOMONTH(R83,1) -> 2017-05-31 | T83: =+EOMONTH(S83,1) -> 2017-06-30 | U83: =+EOMONTH(T83,1) -> 2017-07-31 | V83: =+EOMONTH(U83,1) -> 2017-08-31 | W83: =+EOMONTH(V83,1) -> 2017-09-30 | X83: =+EOMONTH(W83,1) -> 2017-10-31 | Y83: =+EOMONTH(X83,1) -> 2017-11-30 | Z83: =+EOMONTH(Y83,1) -> 2017-12-31 | AA83: =+EOMONTH(Z83,1) -> 2018-01-31 | AB83: =+EOMONTH(AA83,1) -> 2018-02-28 | AC83: =+EOMONTH(AB83,1) -> 2018-03-31 | AD83: TOTALE | AE83: IPOTESI % | AF83: =+Q83 -> N. PRESENZE | AG83: =+EOMONTH(AC83,1) -> 2018-04-30 | AH83: =+EOMONTH(AG83,1) -> 2018-05-31 | AI83: =+EOMONTH(AH83,1) -> 2018-06-30 | AJ83: =+EOMONTH(AI83,1) -> 2018-07-31 | AK83: =+EOMONTH(AJ83,1) -> 2018-08-31 | AL83: =+EOMONTH(AK83,1) -> 2018-09-30 | AM83: =+EOMONTH(AL83,1) -> 2018-10-31 | AN83: =+EOMONTH(AM83,1) -> 2018-11-30 | AO83: =+EOMONTH(AN83,1) -> 2018-12-31 | AP83: =+EOMONTH(AO83,1) -> 2019-01-31 | AQ83: =+EOMONTH(AP83,1) -> 2019-02-28 | AR83: =+EOMONTH(AQ83,1) -> 2019-03-31 | AS83: TOTALE
B84: =+B71 -> CAMERE QUADRUPLE | C84: =+C71*4 -> 0 | D84: =+D71*4 -> 0 | E84: 0 | F84: 0 | G84: 0 | H84: 0 | I84: 0 | J84: 0 | K84: 0 | L84: 0 | M84: 0 | N84: 0 | O84: 0 | P84: 0 | Q84: =+B84 -> CAMERE QUADRUPLE | R84: 0 | S84: 0 | T84: 0 | U84: 0 | V84: 0 | W84: 0 | X84: 0 | Y84: 0 | Z84: 0 | AA84: 0 | AB84: 0 | AC84: 0 | AD84: 0 | AE84: 0 | AF84: =+Q84 -> CAMERE QUADRUPLE | AG84: =+AG71*4 -> 0 | AH84: 0 | AI84: 0 | AJ84: 0 | AK84: 0 | AL84: 0 | AM84: 0 | AN84: 0 | AO84: 0 | AP84: 0 | AQ84: 0 | AR84: 0 | AS84: 0
B85: =+B72 -> CAMERE TRIPLE | C85: =+C72*3 -> 0 | D85: =+D72*3 -> 0 | E85: 0 | F85: 0 | G85: 0 | H85: 0 | I85: 0 | J85: 0 | K85: 0 | L85: 0 | M85: 0 | N85: 0 | O85: 0 | P85: 0 | Q85: =+B85 -> CAMERE TRIPLE | R85: 0 | S85: 0 | T85: 0 | U85: 0 | V85: 0 | W85: 0 | X85: 0 | Y85: 0 | Z85: 0 | AA85: 0 | AB85: 0 | AC85: 0 | AD85: 0 | AE85: 0 | AF85: =+Q85 -> CAMERE TRIPLE | AG85: =+AG72*3 -> 0 | AH85: 0 | AI85: 0 | AJ85: 0 | AK85: 0 | AL85: 0 | AM85: 0 | AN85: 0 | AO85: 0 | AP85: 0 | AQ85: 0 | AR85: 0 | AS85: 0
B86: CAMERE DOPPIE | C86: =+C73*2 -> 24 | D86: =+D73*2 -> 62 | E86: 108 | F86: 111.6 | G86: 111.6 | H86: 60 | I86: 24.8 | J86: 24 | K86: 111.6 | L86: 24.8 | M86: 22.4 | N86: 24.8 | O86: 709.6 | P86: 0 | Q86: CAMERE DOPPIE | R86: 24 | S86: 62 | T86: 108 | U86: 111.6 | V86: 111.6 | W86: 60 | X86: 24.8 | Y86: 24 | Z86: 111.6 | AA86: 24.8 | AB86: 22.4 | AC86: 24.8 | AD86: 709.6 | AE86: 0 | AF86: CAMERE DOPPIE | AG86: =+AG73*2 -> 24 | AH86: =+AH73*2 -> 62 | AI86: 108 | AJ86: 111.6 | AK86: 111.6 | AL86: 60 | AM86: 24.8 | AN86: 24 | AO86: 111.6 | AP86: 24.8 | AQ86: 22.4 | AR86: 24.8 | AS86: 709.6
B87: CAMERE SINGOLE | C87: =+C74 -> 0 | D87: =+D74 -> 0 | E87: 0 | F87: 0 | G87: 0 | H87: 0 | I87: 0 | J87: 0 | K87: 0 | L87: 0 | M87: 0 | N87: 0 | O87: 0 | P87: 0 | Q87: CAMERE SINGOLE | R87: 0 | S87: 0 | T87: 0 | U87: 0 | V87: 0 | W87: 0 | X87: 0 | Y87: 0 | Z87: 0 | AA87: 0 | AB87: 0 | AC87: 0 | AD87: 0 | AE87: 0 | AF87: CAMERE SINGOLE | AG87: =+AG74 -> 0 | AH87: 0 | AI87: 0 | AJ87: 0 | AK87: 0 | AL87: 0 | AM87: 0 | AN87: 0 | AO87: 0 | AP87: 0 | AQ87: 0 | AR87: 0 | AS87: 0
B88: =+B81 -> TOTALE CAMERE | C88: =SUM(C84:C87) -> 24 | D88: =SUM(D84:D87) -> 62 | E88: 108 | F88: 111.6 | G88: 111.6 | H88: 60 | I88: 24.8 | J88: 24 | K88: 111.6 | L88: 24.8 | M88: 22.4 | N88: =SUM(N84:N87) -> 24.8 | O88: =SUM(C88:N88) -> 709.6 | Q88: TOTALE CAMERE | R88: =SUM(R84:R87) -> 24 | S88: =SUM(S84:S87) -> 62 | T88: 108 | U88: 111.6 | V88: 111.6 | W88: 60 | X88: 24.8 | Y88: 24 | Z88: 111.6 | AA88: 24.8 | AB88: 22.4 | AC88: 24.8 | AD88: =SUM(R88:AC88) -> 709.6 | AF88: TOTALE CAMERE | AG88: =SUM(AG84:AG87) -> 24 | AH88: =SUM(AH84:AH87) -> 62 | AI88: 108 | AJ88: 111.6 | AK88: 111.6 | AL88: 60 | AM88: 24.8 | AN88: 24 | AO88: 111.6 | AP88: 24.8 | AQ88: 22.4 | AR88: 24.8 | AS88: =SUM(AG88:AR88) -> 709.6

Sheet 7) INPUT FINANZIAMENTO
A1: INPUT FINANZIAMENTI | B1: mese 1 | C1: ANNO 1 | D1: % su entrate | E1: ANNO 2 | F1: =+D1 -> % su entrate | G1: ANNO 3 | H1: =+F1 -> % su entrate
A2: TOTALE ENTRATE | B2: =+'3) INPUT VENDITE'!B14 -> 600 | C2: =+'3) INPUT VENDITE'!N14 -> 27816 | D2: =+C2/$C$2 -> 1 | E2: =+'3) INPUT VENDITE'!AB14 -> 27816 | F2: =+E2/$E$2 -> 1 | G2: =+'3) INPUT VENDITE'!AP14 -> 27816 | H2: =+G2/$G$2 -> 1
A3: TOTALE INVESTIMENTI | B3: =+'2) INPUT INVESTIMENTI'!D58 -> 7600 | C3: =+'2) INPUT INVESTIMENTI'!E59 -> 7600 | D3: =+C3/$C$2 -> 0.2732240437 | E3: =+'2) INPUT INVESTIMENTI'!I59 -> 0 | F3: =+E3/$E$2 -> 0 | G3: =+'2) INPUT INVESTIMENTI'!M59 -> 0 | H3: =+G3/$G$2 -> 0
A4: TOTALE USCITE FISSE | B4: =+'5) INPUT COSTI FISSI'!B36 -> 530 | C4: =+'5) INPUT COSTI FISSI'!N36 -> 4920 | D4: =+C4/$C$2 -> 0.1768766178 | E4: =+'5) INPUT COSTI FISSI'!AB36 -> 4920 | F4: =+E4/$E$2 -> 0.1768766178 | G4: =+'5) INPUT COSTI FISSI'!AP36 -> 4920 | H4: =+G4/$G$2 -> 0.1768766178
A5: TOTALE USCITE VARIABILI | B5: =+'6) INPUT COSTI VARIABILI'!C55 -> 78 | C5: =+'6) INPUT COSTI VARIABILI'!O55 -> 3011.52 | D5: =+C5/$C$2 -> 0.1082657463 | E5: =+'6) INPUT COSTI VARIABILI'!AD55 -> 3011.52 | F5: =+E5/$E$2 -> 0.1082657463 | G5: =+'6) INPUT COSTI VARIABILI'!AS55 -> 3011.52 | H5: =+G5/$G$2 -> 0.1082657463
A7: CASH FLOW UNLEVERED | B7: =+B2-B3-B4-B5 -> -7608 | C7: =+C2-C3-C4-C5 -> 12284.48 | E7: =+E2-E3-E4-E5 -> 19884.48 | G7: =+G2-G3-G4-G5 -> 19884.48
A9: Data versamento/finanziamento | B9: =+'5) INPUT COSTI FISSI'!B2 -> 2016-04-30
A10: Versamento capitale | B10: =IF(-B7-B11<0,0,-B7-B11) -> 0
A11: Finanziamento terzi | B11: 10000
A13: INPUT FINANZIAMENTO
A14: capitale | B14: =+B11 -> 10000
A15: data stipula | B15: =+B9 -> 2016-04-30
A16: periodicità | B16: mensile | M16: =+IF(B16="mensile",1,IF(B16="trimestrale",3,IF(B16="semestrale",6,0))) -> 1 | N16: =12/M16 -> 12
A17: data prima rata | B17: =+EOMONTH(B15,M16) -> 2016-05-31
A18: tan | B18: 0.03
A19: tasso periodale | B19: =+B18/N16 -> 0.0025
A20: numero rate | B20: 30
A21: spesa per rata | B21: 2.5
A22: spese all'erogazione | B22: 300
A23: Estinzione anticipata | B23: 0.01 | C23: sul tot. rate residue
A24: DATA ESTINZIONE | J24: TEG | K24: =+XIRR(K27:K387,A27:A387,0) -> 0.08650310059
A26: DATA | B26: N. RATA | C26: QT. CAPITALE | D26: QUOTA INT. | E26: RATA | F26: SPESE | G26: PENALE ESTINZIONE | H26: CAPITALE DA RESTITUIRE | I26: DEBITO RESIDUO | J26: TOT. RATE RESIDUE | K26: FLUSSO | M26: rate
A27: =+B15 -> 2016-04-30 | B27: EROGAZIONE | F27: =+B22 -> 300 | G27: =+IF(B27="ESTINZIONE",IF($C$23="sul cap.residuo",I27*$B$23,J27*$B$23),0) -> 0 | H27: =+IF(B27="ESTINZIONE",I27,0) -> 0 | I27: =+B14 -> 10000 | J27: =+SUM(M28:M387) -> 10738.58188 | K27: =+B14-F27 -> 9700
A28: =+B17 -> 2016-05-31 | B28: 1 | C28: =+E28-D28 -> 321.405867 | D28: =+I27*$B$19 -> 25 | E28: =IF(B28=0,0,-PMT(B19,B20,B14,0)) -> 346.405867 | F28: =+B21 -> 2.5 | G28: =+IF(B28="ESTINZIONE",IF($C$23="sul cap.residuo",I28*$B$23,J28*$B$23),0) -> 0 | H28: =IF(B28=0,0,IF(B28="ESTINZIONE",I28,0)) -> 0 | I28: =IF(B30=0,0,I27-C28) -> 9678.594133 | J28: =+SUM(M29:M388) -> 10392.17601 | K28: =-E28-F28-G28-H28 -> -348.905867 | M28: =IF(B28=0,0,$E$28) -> 346.405867
A29: =+EOMONTH(A28,$M$16) -> 2016-06-30 | B29: =IF(B28=0,0,IF(B28>$B$20,0,IF(B28="ESTINZIONE",0,IF(A29=$B$24,"ESTINZIONE",B28+1)))) -> 2 | C29: =IF(B29=0,0,E29-D29) -> 322.2093817 | D29: =IF(B29=0,0,I28*$B$19) -> 24.19648533 | E29: =+IF(B29=0,0,E28) -> 346.405867 | F29: =+IF(B29=0,0,F28) -> 2.5 | G29: 0 | H29: 0 | I29: =IF(B31=0,0,I28-C29) -> 9356.384751 | J29: 10045.77014 | K29: -348.905867 | M29: =IF(B29=0,0,$E$28) -> 346.405867
A30: =+EOMONTH(A29,$M$16) -> 2016-07-31 | B30: =IF(B29=0,0,IF(B29>$B$20,0,IF(B29="ESTINZIONE",0,IF(A30=$B$24,"ESTINZIONE",B29+1)))) -> 3 | C30: 323.0149051 | D30: 23.39096188 | E30: 346.405867 | F30: 2.5 | G30: 0 | H30: 0 | I30: 9033.369846 | J30: 9699.364277 | K30: -348.905867 | M30: 346.405867
A31: 2016-08-31 | B31: 4 | C31: 323.8224424 | D31: 22.58342462 | E31: 346.405867 | F31: 2.5 | G31: 0 | H31: 0 | I31: 8709.547404 | J31: 9352.95841 | K31: -348.905867 | M31: 346.405867
A32: 2016-09-30 | B32: 5 | C32: 324.6319985 | D32: 21.77386851 | E32: 346.405867 | F32: 2.5 | G32: 0 | H32: 0 | I32: 8384.915405 | J32: 9006.552543 | K32: -348.905867 | M32: 346.405867
A33: 2016-10-31 | B33: 6 | C33: 325.4435785 | D33: 20.96228851 | E33: 346.405867 | F33: 2.5 | G33: 0 | H33: 0 | I33: 8059.471827 | J33: 8660.146676 | K33: -348.905867 | M33: 346.405867
A34: 2016-11-30 | B34: 7 | C34: 326.2571875 | D34: 20.14867957 | E34: 346.405867 | F34: 2.5 | G34: 0 | H34: 0 | I34: 7733.214639 | J34: 8313.740809 | K34: -348.905867 | M34: 346.405867
A35: 2016-12-31 | B35: 8 | C35: 327.0728304 | D35: 19.3330366 | E35: 346.405867 | F35: 2.5 | G35: 0 | H35: 0 | I35: 7406.141809 | J35: 7967.334942 | K35: -348.905867 | M35: 346.405867
A36: 2017-01-31 | B36: 9 | C36: 327.8905125 | D36: 18.51535452 | E36: 346.405867 | F36: 2.5 | G36: 0 | H36: 0 | I36: 7078.251296 | J36: 7620.929075 | K36: -348.905867 | M36: 346.405867
A37: 2017-02-28 | B37: 10 | C37: 328.7102388 | D37: 17.69562824 | E37: 346.405867 | F37: 2.5 | G37: 0 | H37: 0 | I37: 6749.541058 | J37: 7274.523208 | K37: -348.905867 | M37: 346.405867
A38: 2017-03-31 | B38: 11 | C38: 329.5320144 | D38: 16.87385264 | E38: 346.405867 | F38: 2.5 | G38: 0 | H38: 0 | I38: 6420.009043 | J38: 6928.117341 | K38: -348.905867 | M38: 346.405867
A39: 2017-04-30 | B39: 12 | C39: 330.3558444 | D39: 16.05002261 | E39: 346.405867 | F39: 2.5 | G39: 0 | H39: 0 | I39: 6089.653199 | J39: 6581.711473 | K39: -348.905867 | M39: 346.405867
A40: 2017-05-31 | B40: 13 | C40: 331.181734 | D40: 15.224133 | E40: 346.405867 | F40: 2.5 | G40: 0 | H40: 0 | I40: 5758.471465 | J40: 6235.305606 | K40: -348.905867 | M40: 346.405867
A41: 2017-06-30 | B41: 14 | C41: 332.0096884 | D41: 14.39617866 | E41: 346.405867 | F41: 2.5 | G41: 0 | H41: 0 | I41: 5426.461776 | J41: 5888.899739 | K41: -348.905867 | M41: 346.405867
A42: 2017-07-31 | B42: 15 | C42: 332.8397126 | D42: 13.56615444 | E42: 346.405867 | F42: 2.5 | G42: 0 | H42: 0 | I42: 5093.622064 | J42: 5542.493872 | K42: -348.905867 | M42: 346.405867
A43: 2017-08-31 | B43: 16 | C43: 333.6718119 | D43: 12.73405516 | E43: 346.405867 | F43: 2.5 | G43: 0 | H43: 0 | I43: 4759.950252 | J43: 5196.088005 | K43: -348.905867 | M43: 346.405867
A44: 2017-09-30 | B44: 17 | C44: 334.5059914 | D44: 11.89987563 | E44: 346.405867 | F44: 2.5 | G44: 0 | H44: 0 | I44: 4425.44426 | J44: 4849.682138 | K44: -348.905867 | M44: 346.405867
A45: 2017-10-31 | B45: 18 | C45: 335.3422564 | D45: 11.06361065 | E45: 346.405867 | F45: 2.5 | G45: 0 | H45: 0 | I45: 4090.102004 | J45: 4503.276271 | K45: -348.905867 | M45: 346.405867
A46: 2017-11-30 | B46: 19 | C46: 336.180612 | D46: 10.22525501 | E46: 346.405867 | F46: 2.5 | G46: 0 | H46: 0 | I46: 3753.921392 | J46: 4156.870404 | K46: -348.905867 | M46: 346.405867
A47: 2017-12-31 | B47: 20 | C47: 337.0210635 | D47: 9.38480348 | E47: 346.405867 | F47: 2.5 | G47: 0 | H47: 0 | I47: 3416.900329 | J47: 3810.464537 | K47: -348.905867 | M47: 346.405867
A48: 2018-01-31 | B48: 21 | C48: 337.8636162 | D48: 8.542250821 | E48: 346.405867 | F48: 2.5 | G48: 0 | H48: 0 | I48: 3079.036712 | J48: 3464.05867 | K48: -348.905867 | M48: 346.405867
A49: 2018-02-28 | B49: 22 | C49: 338.7082752 | D49: 7.697591781 | E49: 346.405867 | F49: 2.5 | G49: 0 | H49: 0 | I49: 2740.328437 | J49: 3117.652803 | K49: -348.905867 | M49: 346.405867
A50: 2018-03-31 | B50: 23 | C50: 339.5550459 | D50: 6.850821093 | E50: 346.405867 | F50: 2.5 | G50: 0 | H50: 0 | I50: 2400.773391 | J50: 2771.246936 | K50: -348.905867 | M50: 346.405867
A51: 2018-04-30 | B51: 24 | C51: 340.4039335 | D51: 6.001933478 | E51: 346.405867 | F51: 2.5 | G51: 0 | H51: 0 | I51: 2060.369458 | J51: 2424.841069 | K51: -348.905867 | M51: 346.405867
A52: 2018-05-31 | B52: 25 | C52: 341.2549434 | D52: 5.150923644 | E52: 346.405867 | F52: 2.5 | G52: 0 | H52: 0 | I52: 1719.114514 | J52: 2078.435202 | K52: -348.905867 | M52: 346.405867
A53: 2018-06-30 | B53: 26 | C53: 342.1080807 | D53: 4.297786286 | E53: 346.405867 | F53: 2.5 | G53: 0 | H53: 0 | I53: 1377.006433 | J53: 1732.029335 | K53: -348.905867 | M53: 346.405867
A54: 2018-07-31 | B54: 27 | C54: 342.9633509 | D54: 3.442516084 | E54: 346.405867 | F54: 2.5 | G54: 0 | H54: 0 | I54: 1034.043083 | J54: 1385.623468 | K54: -348.905867 | M54: 346.405867
A55: 2018-08-31 | B55: 28 | C55: 343.8207593 | D55: 2.585107706 | E55: 346.405867 | F55: 2.5 | G55: 0 | H55: 0 | I55: 690.2223232 | J55: 1039.217601 | K55: -348.905867 | M55: 346.405867
A56: 2018-09-30 | B56: 29 | C56: 344.6803112 | D56: 1.725555808 | E56: 346.405867 | F56: 2.5 | G56: 0 | H56: 0 | I56: 345.542012 | J56: 692.8117341 | K56: -348.905867 | M56: 346.405867
A57: 2018-10-31 | B57: 30 | C57: 345.542012 | D57: 0.86385503 | E57: 346.405867 | F57: 2.5 | G57: 0 | H57: 0 | I57: 0 | J57: 346.405867 | K57: -348.905867 | M57: 346.405867
A58: 2018-11-30 | B58: 31 | C58: 346.405867 | D58: 0 | E58: 346.405867 | F58: 2.5 | G58: 0 | H58: 0 | I58: 0 | J58: 0 | K58: -348.905867 | M58: 346.405867
A59: 2018-12-31 | B59: 0 | C59: 0 | D59: 0 | E59: 0 | F59: 0 | G59: 0 | H59: 0 | I59: 0 | J59: 0 | K59: 0 | M59: 0
A60: 2019-01-31 | B60: 0 | C60: 0 | D60: 0 | E60: 0 | F60: 0 | G60: 0 | H60: =IF(B60=0,0,IF(B60="ESTINZIONE",I60,0)) -> 0 | I60: 0 | J60: 0 | K60: =-E60-F60-G60-H60 -> 0 | M60: 0
A61: 2019-02-28 | B61: 0 | C61: =IF(B61=0,0,E61-D61) -> 0 | D61: 0 | E61: =+IF(B61=0,0,E60) -> 0 | F61: =+IF(B61=0,0,F60) -> 0 | G61: 0 | H61: 0 | I61: 0 | J61: 0 | K61: 0 | M61: 0
A62: 2019-03-31 | B62: 0 | C62: 0 | D62: 0 | E62: 0 | F62: 0 | G62: 0 | H62: 0 | I62: 0 | J62: 0 | K62: 0 | M62: 0
A63: 2019-04-30 | B63: 0 | C63: 0 | D63: 0 | E63: 0 | F63: 0 | G63: 0 | H63: 0 | I63: 0 | J63: 0 | K63: 0 | M63: 0
A64: 2019-05-31 | B64: 0 | C64: 0 | D64: 0 | E64: 0 | F64: 0 | G64: 0 | H64: 0 | I64: 0 | J64: 0 | K64: 0 | M64: 0
A65: 2019-06-30 | B65: 0 | C65: 0 | D65: 0 | E65: 0 | F65: 0 | G65: 0 | H65: 0 | I65: 0 | J65: 0 | K65: 0 | M65: 0
A66: 2019-07-31 | B66: 0 | C66: 0 | D66: 0 | E66: 0 | F66: 0 | G66: 0 | H66: 0 | I66: 0 | J66: 0 | K66: 0 | M66: 0
A67: 2019-08-31 | B67: 0 | C67: 0 | D67: 0 | E67: 0 | F67: 0 | G67: 0 | H67: 0 | I67: 0 | J67: 0 | K67: 0 | M67: 0
A68: 2019-09-30 | B68: 0 | C68: 0 | D68: 0 | E68: 0 | F68: 0 | G68: 0 | H68: 0 | I68: 0 | J68: 0 | K68: 0 | M68: 0
A69: 2019-10-31 | B69: 0 | C69: 0 | D69: 0 | E69: 0 | F69: 0 | G69: 0 | H69: 0 | I69: 0 | J69: 0 | K69: 0 | M69: 0
A70: 2019-11-30 | B70: 0 | C70: 0 | D70: 0 | E70: 0 | F70: 0 | G70: 0 | H70: 0 | I70: 0 | J70: 0 | K70: 0 | M70: 0
A71: 2019-12-31 | B71: 0 | C71: 0 | D71: 0 | E71: 0 | F71: 0 | G71: 0 | H71: 0 | I71: 0 | J71: 0 | K71: 0 | M71: 0
A72: 2020-01-31 | B72: 0 | C72: 0 | D72: 0 | E72: 0 | F72: 0 | G72: 0 | H72: 0 | I72: 0 | J72: 0 | K72: 0 | M72: 0
A73: 2020-02-29 | B73: 0 | C73: 0 | D73: 0 | E73: 0 | F73: 0 | G73: 0 | H73: 0 | I73: 0 | J73: 0 | K73: 0 | M73: 0
A74: 2020-03-31 | B74: 0 | C74: 0 | D74: 0 | E74: 0 | F74: 0 | G74: 0 | H74: 0 | I74: 0 | J74: 0 | K74: 0 | M74: 0
A75: 2020-04-30 | B75: 0 | C75: 0 | D75: 0 | E75: 0 | F75: 0 | G75: 0 | H75: 0 | I75: 0 | J75: 0 | K75: 0 | M75: 0
A76: 2020-05-31 | B76: 0 | C76: 0 | D76: 0 | E76: 0 | F76: 0 | G76: 0 | H76: 0 | I76: 0 | J76: 0 | K76: 0 | M76: 0
A77: 2020-06-30 | B77: 0 | C77: 0 | D77: 0 | E77: 0 | F77: 0 | G77: 0 | H77: 0 | I77: 0 | J77: 0 | K77: 0 | M77: 0
A78: 2020-07-31 | B78: 0 | C78: 0 | D78: 0 | E78: 0 | F78: 0 | G78: 0 | H78: 0 | I78: 0 | J78: 0 | K78: 0 | M78: 0
A79: 2020-08-31 | B79: 0 | C79: 0 | D79: 0 | E79: 0 | F79: 0 | G79: 0 | H79: 0 | I79: 0 | J79: 0 | K79: 0 | M79: 0
A80: 2020-09-30 | B80: 0 | C80: 0 | D80: 0 | E80: 0 | F80: 0 | G80: 0 | H80: 0 | I80: 0 | J80: 0 | K80: 0 | M80: 0
A81: 2020-10-31 | B81: 0 | C81: 0 | D81: 0 | E81: 0 | F81: 0 | G81: 0 | H81: 0 | I81: 0 | J81: 0 | K81: 0 | M81: 0
A82: 2020-11-30 | B82: 0 | C82: 0 | D82: 0 | E82: 0 | F82: 0 | G82: 0 | H82: 0 | I82: 0 | J82: 0 | K82: 0 | M82: 0
A83: 2020-12-31 | B83: 0 | C83: 0 | D83: 0 | E83: 0 | F83: 0 | G83: 0 | H83: 0 | I83: 0 | J83: 0 | K83: 0 | M83: 0
A84: 2021-01-31 | B84: 0 | C84: 0 | D84: 0 | E84: 0 | F84: 0 | G84: 0 | H84: 0 | I84: 0 | J84: 0 | K84: 0 | M84: 0
A85: 2021-02-28 | B85: 0 | C85: 0 | D85: 0 | E85: 0 | F85: 0 | G85: 0 | H85: 0 | I85: 0 | J85: 0 | K85: 0 | M85: 0
A86: 2021-03-31 | B86: 0 | C86: 0 | D86: 0 | E86: 0 | F86: 0 | G86: 0 | H86: 0 | I86: 0 | J86: 0 | K86: 0 | M86: 0
A87: 2021-04-30 | B87: 0 | C87: 0 | D87: 0 | E87: 0 | F87: 0 | G87: 0 | H87: 0 | I87: 0 | J87: 0 | K87: 0 | M87: 0
A88: 2021-05-31 | B88: 0 | C88: 0 | D88: 0 | E88: 0 | F88: 0 | G88: 0 | H88: 0 | I88: 0 | J88: 0 | K88: 0 | M88: 0
A89: 2021-06-30 | B89: 0 | C89: 0 | D89: 0 | E89: 0 | F89: 0 | G89: 0 | H89: 0 | I89: 0 | J89: 0 | K89: 0 | M89: 0
A90: 2021-07-31 | B90: 0 | C90: 0 | D90: 0 | E90: 0 | F90: 0 | G90: 0 | H90: 0 | I90: 0 | J90: 0 | K90: 0 | M90: 0
A91: 2021-08-31 | B91: 0 | C91: 0 | D91: 0 | E91: 0 | F91: 0 | G91: 0 | H91: 0 | I91: 0 | J91: 0 | K91: 0 | M91: 0
A92: 2021-09-30 | B92: 0 | C92: 0 | D92: 0 | E92: 0 | F92: 0 | G92: =+IF(B92="ESTINZIONE",IF($C$23="sul cap.residuo",I92*$B$23,J92*$B$23),0) -> 0 | H92: =IF(B92=0,0,IF(B92="ESTINZIONE",I92,0)) -> 0 | I92: 0 | J92: =+SUM(M93:M452) -> 0 | K92: =-E92-F92-G92-H92 -> 0 | M92: 0
A93: 2021-10-31 | B93: 0 | C93: =IF(B93=0,0,E93-D93) -> 0 | D93: =IF(B93=0,0,I92*$B$19) -> 0 | E93: =+IF(B93=0,0,E92) -> 0 | F93: =+IF(B93=0,0,F92) -> 0 | G93: 0 | H93: 0 | I93: =IF(B95=0,0,I92-C93) -> 0 | J93: 0 | K93: 0 | M93: =IF(B93=0,0,$E$28) -> 0
A94: =+EOMONTH(A93,$M$16) -> 2021-11-30 | B94: =IF(B93=0,0,IF(B93>$B$20,0,IF(B93="ESTINZIONE",0,IF(A94=$B$24,"ESTINZIONE",B93+1)))) -> 0 | C94: 0 | D94: 0 | E94: 0 | F94: 0 | G94: 0 | H94: 0 | I94: 0 | J94: 0 | K94: 0 | M94: 0
A95: 2021-12-31 | B95: 0 | C95: 0 | D95: 0 | E95: 0 | F95: 0 | G95: 0 | H95: 0 | I95: 0 | J95: 0 | K95: 0 | M95: 0
A96: 2022-01-31 | B96: 0 | C96: 0 | D96: 0 | E96: 0 | F96: 0 | G96: 0 | H96: 0 | I96: 0 | J96: 0 | K96: 0 | M96: 0
A97: 2022-02-28 | B97: 0 | C97: 0 | D97: 0 | E97: 0 | F97: 0 | G97: 0 | H97: 0 | I97: 0 | J97: 0 | K97: 0 | M97: 0
A98: 2022-03-31 | B98: 0 | C98: 0 | D98: 0 | E98: 0 | F98: 0 | G98: 0 | H98: 0 | I98: 0 | J98: 0 | K98: 0 | M98: 0
A99: 2022-04-30 | B99: 0 | C99: 0 | D99: 0 | E99: 0 | F99: 0 | G99: 0 | H99: 0 | I99: 0 | J99: 0 | K99: 0 | M99: 0
A100: 2022-05-31 | B100: 0 | C100: 0 | D100: 0 | E100: 0 | F100: 0 | G100: 0 | H100: 0 | I100: 0 | J100: 0 | K100: 0 | M100: 0
A101: 2022-06-30 | B101: 0 | C101: 0 | D101: 0 | E101: 0 | F101: 0 | G101: 0 | H101: 0 | I101: 0 | J101: 0 | K101: 0 | M101: 0
A102: 2022-07-31 | B102: 0 | C102: 0 | D102: 0 | E102: 0 | F102: 0 | G102: 0 | H102: 0 | I102: 0 | J102: 0 | K102: 0 | M102: 0
A103: 2022-08-31 | B103: 0 | C103: 0 | D103: 0 | E103: 0 | F103: 0 | G103: 0 | H103: 0 | I103: 0 | J103: 0 | K103: 0 | M103: 0
A104: 2022-09-30 | B104: 0 | C104: 0 | D104: 0 | E104: 0 | F104: 0 | G104: 0 | H104: 0 | I104: 0 | J104: 0 | K104: 0 | M104: 0
A105: 2022-10-31 | B105: 0 | C105: 0 | D105: 0 | E105: 0 | F105: 0 | G105: 0 | H105: 0 | I105: 0 | J105: 0 | K105: 0 | M105: 0
A106: 2022-11-30 | B106: 0 | C106: 0 | D106: 0 | E106: 0 | F106: 0 | G106: 0 | H106: 0 | I106: 0 | J106: 0 | K106: 0 | M106: 0
A107: 2022-12-31 | B107: 0 | C107: 0 | D107: 0 | E107: 0 | F107: 0 | G107: 0 | H107: 0 | I107: 0 | J107: 0 | K107: 0 | M107: 0
A108: 2023-01-31 | B108: 0 | C108: 0 | D108: 0 | E108: 0 | F108: 0 | G108: 0 | H108: 0 | I108: 0 | J108: 0 | K108: 0 | M108: 0
A109: 2023-02-28 | B109: 0 | C109: 0 | D109: 0 | E109: 0 | F109: 0 | G109: 0 | H109: 0 | I109: 0 | J109: 0 | K109: 0 | M109: 0
A110: 2023-03-31 | B110: 0 | C110: 0 | D110: 0 | E110: 0 | F110: 0 | G110: 0 | H110: 0 | I110: 0 | J110: 0 | K110: 0 | M110: 0
A111: 2023-04-30 | B111: 0 | C111: 0 | D111: 0 | E111: 0 | F111: 0 | G111: 0 | H111: 0 | I111: 0 | J111: 0 | K111: 0 | M111: 0
A112: 2023-05-31 | B112: 0 | C112: 0 | D112: 0 | E112: 0 | F112: 0 | G112: 0 | H112: 0 | I112: 0 | J112: 0 | K112: 0 | M112: 0
A113: 2023-06-30 | B113: 0 | C113: 0 | D113: 0 | E113: 0 | F113: 0 | G113: 0 | H113: 0 | I113: 0 | J113: 0 | K113: 0 | M113: 0
A114: 2023-07-31 | B114: 0 | C114: 0 | D114: 0 | E114: 0 | F114: 0 | G114: 0 | H114: 0 | I114: 0 | J114: 0 | K114: 0 | M114: 0
A115: 2023-08-31 | B115: 0 | C115: 0 | D115: 0 | E115: 0 | F115: 0 | G115: 0 | H115: 0 | I115: 0 | J115: 0 | K115: 0 | M115: 0
A116: 2023-09-30 | B116: 0 | C116: 0 | D116: 0 | E116: 0 | F116: 0 | G116: 0 | H116: 0 | I116: 0 | J116: 0 | K116: 0 | M116: 0
A117: 2023-10-31 | B117: 0 | C117: 0 | D117: 0 | E117: 0 | F117: 0 | G117: 0 | H117: 0 | I117: 0 | J117: 0 | K117: 0 | M117: 0
A118: 2023-11-30 | B118: 0 | C118: 0 | D118: 0 | E118: 0 | F118: 0 | G118: 0 | H118: 0 | I118: 0 | J118: 0 | K118: 0 | M118: 0
A119: 2023-12-31 | B119: 0 | C119: 0 | D119: 0 | E119: 0 | F119: 0 | G119: 0 | H119: 0 | I119: 0 | J119: 0 | K119: 0 | M119: 0
A120: 2024-01-31 | B120: 0 | C120: 0 | D120: 0 | E120: 0 | F120: 0 | G120: 0 | H120: 0 | I120: 0 | J120: 0 | K120: 0 | M120: 0
A121: 2024-02-29 | B121: 0 | C121: 0 | D121: 0 | E121: 0 | F121: 0 | G121: 0 | H121: 0 | I121: 0 | J121: 0 | K121: 0 | M121: 0
A122: 2024-03-31 | B122: 0 | C122: 0 | D122: 0 | E122: 0 | F122: 0 | G122: 0 | H122: 0 | I122: 0 | J122: 0 | K122: 0 | M122: 0
A123: 2024-04-30 | B123: 0 | C123: 0 | D123: 0 | E123: 0 | F123: 0 | G123: 0 | H123: 0 | I123: 0 | J123: 0 | K123: 0 | M123: 0
A124: 2024-05-31 | B124: 0 | C124: 0 | D124: 0 | E124: 0 | F124: 0 | G124: 0 | H124: =IF(B124=0,0,IF(B124="ESTINZIONE",I124,0)) -> 0 | I124: 0 | J124: 0 | K124: =-E124-F124-G124-H124 -> 0 | M124: 0
A125: 2024-06-30 | B125: 0 | C125: =IF(B125=0,0,E125-D125) -> 0 | D125: 0 | E125: =+IF(B125=0,0,E124) -> 0 | F125: =+IF(B125=0,0,F124) -> 0 | G125: 0 | H125: 0 | I125: 0 | J125: 0 | K125: 0 | M125: 0
A126: 2024-07-31 | B126: 0 | C126: 0 | D126: 0 | E126: 0 | F126: 0 | G126: 0 | H126: 0 | I126: 0 | J126: 0 | K126: 0 | M126: 0
A127: 2024-08-31 | B127: 0 | C127: 0 | D127: 0 | E127: 0 | F127: 0 | G127: 0 | H127: 0 | I127: 0 | J127: 0 | K127: 0 | M127: 0
A128: 2024-09-30 | B128: 0 | C128: 0 | D128: 0 | E128: 0 | F128: 0 | G128: 0 | H128: 0 | I128: 0 | J128: 0 | K128: 0 | M128: 0
A129: 2024-10-31 | B129: 0 | C129: 0 | D129: 0 | E129: 0 | F129: 0 | G129: 0 | H129: 0 | I129: 0 | J129: 0 | K129: 0 | M129: 0
A130: 2024-11-30 | B130: 0 | C130: 0 | D130: 0 | E130: 0 | F130: 0 | G130: 0 | H130: 0 | I130: 0 | J130: 0 | K130: 0 | M130: 0
A131: 2024-12-31 | B131: 0 | C131: 0 | D131: 0 | E131: 0 | F131: 0 | G131: 0 | H131: 0 | I131: 0 | J131: 0 | K131: 0 | M131: 0
A132: 2025-01-31 | B132: 0 | C132: 0 | D132: 0 | E132: 0 | F132: 0 | G132: 0 | H132: 0 | I132: 0 | J132: 0 | K132: 0 | M132: 0
A133: 2025-02-28 | B133: 0 | C133: 0 | D133: 0 | E133: 0 | F133: 0 | G133: 0 | H133: 0 | I133: 0 | J133: 0 | K133: 0 | M133: 0
A134: 2025-03-31 | B134: 0 | C134: 0 | D134: 0 | E134: 0 | F134: 0 | G134: 0 | H134: 0 | I134: 0 | J134: 0 | K134: 0 | M134: 0
A135: 2025-04-30 | B135: 0 | C135: 0 | D135: 0 | E135: 0 | F135: 0 | G135: 0 | H135: 0 | I135: 0 | J135: 0 | K135: 0 | M135: 0
A136: 2025-05-31 | B136: 0 | C136: 0 | D136: 0 | E136: 0 | F136: 0 | G136: 0 | H136: 0 | I136: 0 | J136: 0 | K136: 0 | M136: 0
A137: 2025-06-30 | B137: 0 | C137: 0 | D137: 0 | E137: 0 | F137: 0 | G137: 0 | H137: 0 | I137: 0 | J137: 0 | K137: 0 | M137: 0
A138: 2025-07-31 | B138: 0 | C138: 0 | D138: 0 | E138: 0 | F138: 0 | G138: 0 | H138: 0 | I138: 0 | J138: 0 | K138: 0 | M138: 0
A139: 2025-08-31 | B139: 0 | C139: 0 | D139: 0 | E139: 0 | F139: 0 | G139: 0 | H139: 0 | I139: 0 | J139: 0 | K139: 0 | M139: 0
A140: 2025-09-30 | B140: 0 | C140: 0 | D140: 0 | E140: 0 | F140: 0 | G140: 0 | H140: 0 | I140: 0 | J140: 0 | K140: 0 | M140: 0
A141: 2025-10-31 | B141: 0 | C141: 0 | D141: 0 | E141: 0 | F141: 0 | G141: 0 | H141: 0 | I141: 0 | J141: 0 | K141: 0 | M141: 0
A142: 2025-11-30 | B142: 0 | C142: 0 | D142: 0 | E142: 0 | F142: 0 | G142: 0 | H142: 0 | I142: 0 | J142: 0 | K142: 0 | M142: 0
A143: 2025-12-31 | B143: 0 | C143: 0 | D143: 0 | E143: 0 | F143: 0 | G143: 0 | H143: 0 | I143: 0 | J143: 0 | K143: 0 | M143: 0
A144: 2026-01-31 | B144: 0 | C144: 0 | D144: 0 | E144: 0 | F144: 0 | G144: 0 | H144: 0 | I144: 0 | J144: 0 | K144: 0 | M144: 0
A145: 2026-02-28 | B145: 0 | C145: 0 | D145: 0 | E145: 0 | F145: 0 | G145: 0 | H145: 0 | I145: 0 | J145: 0 | K145: 0 | M145: 0
A146: 2026-03-31 | B146: 0 | C146: 0 | D146: 0 | E146: 0 | F146: 0 | G146: 0 | H146: 0 | I146: 0 | J146: 0 | K146: 0 | M146: 0
A147: 2026-04-30 | B147: 0 | C147: 0 | D147: 0 | E147: 0 | F147: 0 | G147: 0 | H147: 0 | I147: 0 | J147: 0 | K147: 0 | M147: 0
A148: 2026-05-31 | B148: 0 | C148: 0 | D148: 0 | E148: 0 | F148: 0 | G148: 0 | H148: 0 | I148: 0 | J148: 0 | K148: 0 | M148: 0
A149: 2026-06-30 | B149: 0 | C149: 0 | D149: 0 | E149: 0 | F149: 0 | G149: 0 | H149: 0 | I149: 0 | J149: 0 | K149: 0 | M149: 0
A150: 2026-07-31 | B150: 0 | C150: 0 | D150: 0 | E150: 0 | F150: 0 | G150: 0 | H150: 0 | I150: 0 | J150: 0 | K150: 0 | M150: 0
A151: 2026-08-31 | B151: 0 | C151: 0 | D151: 0 | E151: 0 | F151: 0 | G151: 0 | H151: 0 | I151: 0 | J151: 0 | K151: 0 | M151: 0
A152: 2026-09-30 | B152: 0 | C152: 0 | D152: 0 | E152: 0 | F152: 0 | G152: 0 | H152: 0 | I152: 0 | J152: 0 | K152: 0 | M152: 0
A153: 2026-10-31 | B153: 0 | C153: 0 | D153: 0 | E153: 0 | F153: 0 | G153: 0 | H153: 0 | I153: 0 | J153: 0 | K153: 0 | M153: 0
A154: 2026-11-30 | B154: 0 | C154: 0 | D154: 0 | E154: 0 | F154: 0 | G154: 0 | H154: 0 | I154: 0 | J154: 0 | K154: 0 | M154: 0
A155: 2026-12-31 | B155: 0 | C155: 0 | D155: 0 | E155: 0 | F155: 0 | G155: 0 | H155: 0 | I155: 0 | J155: 0 | K155: 0 | M155: 0
A156: 2027-01-31 | B156: 0 | C156: 0 | D156: 0 | E156: 0 | F156: 0 | G156: =+IF(B156="ESTINZIONE",IF($C$23="sul cap.residuo",I156*$B$23,J156*$B$23),0) -> 0 | H156: =IF(B156=0,0,IF(B156="ESTINZIONE",I156,0)) -> 0 | I156: 0 | J156: =+SUM(M157:M516) -> 0 | K156: =-E156-F156-G156-H156 -> 0 | M156: 0
A157: 2027-02-28 | B157: 0 | C157: =IF(B157=0,0,E157-D157) -> 0 | D157: =IF(B157=0,0,I156*$B$19) -> 0 | E157: =+IF(B157=0,0,E156) -> 0 | F157: =+IF(B157=0,0,F156) -> 0 | G157: 0 | H157: 0 | I157: =IF(B159=0,0,I156-C157) -> 0 | J157: 0 | K157: 0 | M157: =IF(B157=0,0,$E$28) -> 0
A158: =+EOMONTH(A157,$M$16) -> 2027-03-31 | B158: =IF(B157=0,0,IF(B157>$B$20,0,IF(B157="ESTINZIONE",0,IF(A158=$B$24,"ESTINZIONE",B157+1)))) -> 0 | C158: 0 | D158: 0 | E158: 0 | F158: 0 | G158: 0 | H158: 0 | I158: 0 | J158: 0 | K158: 0 | M158: 0
A159: 2027-04-30 | B159: 0 | C159: 0 | D159: 0 | E159: 0 | F159: 0 | G159: 0 | H159: 0 | I159: 0 | J159: 0 | K159: 0 | M159: 0
A160: 2027-05-31 | B160: 0 | C160: 0 | D160: 0 | E160: 0 | F160: 0 | G160: 0 | H160: 0 | I160: 0 | J160: 0 | K160: 0 | M160: 0
A161: 2027-06-30 | B161: 0 | C161: 0 | D161: 0 | E161: 0 | F161: 0 | G161: 0 | H161: 0 | I161: 0 | J161: 0 | K161: 0 | M161: 0
A162: 2027-07-31 | B162: 0 | C162: 0 | D162: 0 | E162: 0 | F162: 0 | G162: 0 | H162: 0 | I162: 0 | J162: 0 | K162: 0 | M162: 0
A163: 2027-08-31 | B163: 0 | C163: 0 | D163: 0 | E163: 0 | F163: 0 | G163: 0 | H163: 0 | I163: 0 | J163: 0 | K163: 0 | M163: 0
A164: 2027-09-30 | B164: 0 | C164: 0 | D164: 0 | E164: 0 | F164: 0 | G164: 0 | H164: 0 | I164: 0 | J164: 0 | K164: 0 | M164: 0
A165: 2027-10-31 | B165: 0 | C165: 0 | D165: 0 | E165: 0 | F165: 0 | G165: 0 | H165: 0 | I165: 0 | J165: 0 | K165: 0 | M165: 0
A166: 2027-11-30 | B166: 0 | C166: 0 | D166: 0 | E166: 0 | F166: 0 | G166: 0 | H166: 0 | I166: 0 | J166: 0 | K166: 0 | M166: 0
A167: 2027-12-31 | B167: 0 | C167: 0 | D167: 0 | E167: 0 | F167: 0 | G167: 0 | H167: 0 | I167: 0 | J167: 0 | K167: 0 | M167: 0
A168: 2028-01-31 | B168: 0 | C168: 0 | D168: 0 | E168: 0 | F168: 0 | G168: 0 | H168: 0 | I168: 0 | J168: 0 | K168: 0 | M168: 0
A169: 2028-02-29 | B169: 0 | C169: 0 | D169: 0 | E169: 0 | F169: 0 | G169: 0 | H169: 0 | I169: 0 | J169: 0 | K169: 0 | M169: 0
A170: 2028-03-31 | B170: 0 | C170: 0 | D170: 0 | E170: 0 | F170: 0 | G170: 0 | H170: 0 | I170: 0 | J170: 0 | K170: 0 | M170: 0
A171: 2028-04-30 | B171: 0 | C171: 0 | D171: 0 | E171: 0 | F171: 0 | G171: 0 | H171: 0 | I171: 0 | J171: 0 | K171: 0 | M171: 0
A172: 2028-05-31 | B172: 0 | C172: 0 | D172: 0 | E172: 0 | F172: 0 | G172: 0 | H172: 0 | I172: 0 | J172: 0 | K172: 0 | M172: 0
A173: 2028-06-30 | B173: 0 | C173: 0 | D173: 0 | E173: 0 | F173: 0 | G173: 0 | H173: 0 | I173: 0 | J173: 0 | K173: 0 | M173: 0
A174: 2028-07-31 | B174: 0 | C174: 0 | D174: 0 | E174: 0 | F174: 0 | G174: 0 | H174: 0 | I174: 0 | J174: 0 | K174: 0 | M174: 0
A175: 2028-08-31 | B175: 0 | C175: 0 | D175: 0 | E175: 0 | F175: 0 | G175: 0 | H175: 0 | I175: 0 | J175: 0 | K175: 0 | M175: 0
A176: 2028-09-30 | B176: 0 | C176: 0 | D176: 0 | E176: 0 | F176: 0 | G176: 0 | H176: 0 | I176: 0 | J176: 0 | K176: 0 | M176: 0
A177: 2028-10-31 | B177: 0 | C177: 0 | D177: 0 | E177: 0 | F177: 0 | G177: 0 | H177: 0 | I177: 0 | J177: 0 | K177: 0 | M177: 0
A178: 2028-11-30 | B178: 0 | C178: 0 | D178: 0 | E178: 0 | F178: 0 | G178: 0 | H178: 0 | I178: 0 | J178: 0 | K178: 0 | M178: 0
A179: 2028-12-31 | B179: 0 | C179: 0 | D179: 0 | E179: 0 | F179: 0 | G179: 0 | H179: 0 | I179: 0 | J179: 0 | K179: 0 | M179: 0
A180: 2029-01-31 | B180: 0 | C180: 0 | D180: 0 | E180: 0 | F180: 0 | G180: 0 | H180: 0 | I180: 0 | J180: 0 | K180: 0 | M180: 0
A181: 2029-02-28 | B181: 0 | C181: 0 | D181: 0 | E181: 0 | F181: 0 | G181: 0 | H181: 0 | I181: 0 | J181: 0 | K181: 0 | M181: 0
A182: 2029-03-31 | B182: 0 | C182: 0 | D182: 0 | E182: 0 | F182: 0 | G182: 0 | H182: 0 | I182: 0 | J182: 0 | K182: 0 | M182: 0
A183: 2029-04-30 | B183: 0 | C183: 0 | D183: 0 | E183: 0 | F183: 0 | G183: 0 | H183: 0 | I183: 0 | J183: 0 | K183: 0 | M183: 0
A184: 2029-05-31 | B184: 0 | C184: 0 | D184: 0 | E184: 0 | F184: 0 | G184: 0 | H184: 0 | I184: 0 | J184: 0 | K184: 0 | M184: 0
A185: 2029-06-30 | B185: 0 | C185: 0 | D185: 0 | E185: 0 | F185: 0 | G185: 0 | H185: 0 | I185: 0 | J185: 0 | K185: 0 | M185: 0
A186: 2029-07-31 | B186: 0 | C186: 0 | D186: 0 | E186: 0 | F186: 0 | G186: 0 | H186: 0 | I186: 0 | J186: 0 | K186: 0 | M186: 0
A187: 2029-08-31 | B187: 0 | C187: 0 | D187: 0 | E187: 0 | F187: 0 | G187: 0 | H187: 0 | I187: 0 | J187: 0 | K187: 0 | M187: 0
A188: 2029-09-30 | B188: 0 | C188: 0 | D188: 0 | E188: 0 | F188: 0 | G188: 0 | H188: =IF(B188=0,0,IF(B188="ESTINZIONE",I188,0)) -> 0 | I188: 0 | J188: 0 | K188: =-E188-F188-G188-H188 -> 0 | M188: 0
A189: 2029-10-31 | B189: 0 | C189: =IF(B189=0,0,E189-D189) -> 0 | D189: 0 | E189: =+IF(B189=0,0,E188) -> 0 | F189: =+IF(B189=0,0,F188) -> 0 | G189: 0 | H189: 0 | I189: 0 | J189: 0 | K189: 0 | M189: 0
A190: 2029-11-30 | B190: 0 | C190: 0 | D190: 0 | E190: 0 | F190: 0 | G190: 0 | H190: 0 | I190: 0 | J190: 0 | K190: 0 | M190: 0
A191: 2029-12-31 | B191: 0 | C191: 0 | D191: 0 | E191: 0 | F191: 0 | G191: 0 | H191: 0 | I191: 0 | J191: 0 | K191: 0 | M191: 0
A192: 2030-01-31 | B192: 0 | C192: 0 | D192: 0 | E192: 0 | F192: 0 | G192: 0 | H192: 0 | I192: 0 | J192: 0 | K192: 0 | M192: 0
A193: 2030-02-28 | B193: 0 | C193: 0 | D193: 0 | E193: 0 | F193: 0 | G193: 0 | H193: 0 | I193: 0 | J193: 0 | K193: 0 | M193: 0
A194: 2030-03-31 | B194: 0 | C194: 0 | D194: 0 | E194: 0 | F194: 0 | G194: 0 | H194: 0 | I194: 0 | J194: 0 | K194: 0 | M194: 0
A195: 2030-04-30 | B195: 0 | C195: 0 | D195: 0 | E195: 0 | F195: 0 | G195: 0 | H195: 0 | I195: 0 | J195: 0 | K195: 0 | M195: 0
A196: 2030-05-31 | B196: 0 | C196: 0 | D196: 0 | E196: 0 | F196: 0 | G196: 0 | H196: 0 | I196: 0 | J196: 0 | K196: 0 | M196: 0
A197: 2030-06-30 | B197: 0 | C197: 0 | D197: 0 | E197: 0 | F197: 0 | G197: 0 | H197: 0 | I197: 0 | J197: 0 | K197: 0 | M197: 0
A198: 2030-07-31 | B198: 0 | C198: 0 | D198: 0 | E198: 0 | F198: 0 | G198: 0 | H198: 0 | I198: 0 | J198: 0 | K198: 0 | M198: 0
A199: 2030-08-31 | B199: 0 | C199: 0 | D199: 0 | E199: 0 | F199: 0 | G199: 0 | H199: 0 | I199: 0 | J199: 0 | K199: 0 | M199: 0
A200: 2030-09-30 | B200: 0 | C200: 0 | D200: 0 | E200: 0 | F200: 0 | G200: 0 | H200: 0 | I200: 0 | J200: 0 | K200: 0 | M200: 0
A201: 2030-10-31 | B201: 0 | C201: 0 | D201: 0 | E201: 0 | F201: 0 | G201: 0 | H201: 0 | I201: 0 | J201: 0 | K201: 0 | M201: 0
A202: 2030-11-30 | B202: 0 | C202: 0 | D202: 0 | E202: 0 | F202: 0 | G202: 0 | H202: 0 | I202: 0 | J202: 0 | K202: 0 | M202: 0
A203: 2030-12-31 | B203: 0 | C203: 0 | D203: 0 | E203: 0 | F203: 0 | G203: 0 | H203: 0 | I203: 0 | J203: 0 | K203: 0 | M203: 0
A204: 2031-01-31 | B204: 0 | C204: 0 | D204: 0 | E204: 0 | F204: 0 | G204: 0 | H204: 0 | I204: 0 | J204: 0 | K204: 0 | M204: 0
... 183 more rows

Sheet 8) OUTPUT TASSAZIONE
B1: BUSINESS PLAN
B2: CALCOLO IMPOSTE SUI REDDITI REGIME FORFETTARIO
C3: =+'4) INPUT INPS'!L3 -> 2016 | D3: CHECK | E3: =+C3+1 -> 2017 | F3: CHECK | G3: =+E3+1 -> 2018 | H3: CHECK | I3: 2019 | J3: CHECK
B4: RICAVI | C4: =+'3) INPUT VENDITE'!CD4 -> 26016 | D4: =+IF(C4>'1) INPUT BASE'!$G$5,"USCITA REGIME","OK") -> OK | E4: =+'3) INPUT VENDITE'!CD5 -> 27816 | F4: =+IF(E4>'1) INPUT BASE'!$G$5,"USCITA REGIME","OK") -> OK | G4: =+'3) INPUT VENDITE'!CD6 -> 27816 | H4: =+IF(G4>'1) INPUT BASE'!$G$5,"USCITA REGIME","OK") -> OK | I4: =+'3) INPUT VENDITE'!CD7 -> 1800 | J4: =+IF(I4>'1) INPUT BASE'!$G$5,"USCITA REGIME","OK") -> OK
B5: ALIQUOTA REDDITIVITA' FORFETTARIA | C5: =+'1) INPUT BASE'!$G$6 -> 0.4 | E5: =+'1) INPUT BASE'!$G$6 -> 0.4 | G5: =+'1) INPUT BASE'!$G$6 -> 0.4 | I5: =+'1) INPUT BASE'!$G$6 -> 0.4
B6: TOTALE | C6: =+C4*C5 -> 10406.4 | E6: =+E4*E5 -> 11126.4 | G6: =+G4*G5 -> 11126.4 | I6: =+I4*I5 -> 720
B7: CONTRIBUTI VERSATI | C7: =+'4) INPUT INPS'!S19 -> 0 | E7: =+'4) INPUT INPS'!S20 -> 0 | G7: =+'4) INPUT INPS'!S21 -> 0 | I7: =+'4) INPUT INPS'!S22 -> 0
B8: BASE IMPONIBILE | C8: =+C6-C7 -> 10406.4 | E8: =+E6-E7 -> 11126.4 | G8: 11126.4 | I8: =+I6-I7 -> 720
B9: ALIQUOTA IMPOSTA FORFETTARIA | C9: =+'1) INPUT BASE'!$G$7 -> 0.05 | E9: =+'1) INPUT BASE'!$G$7 -> 0.05 | G9: =+'1) INPUT BASE'!$G$7 -> 0.05 | I9: =+'1) INPUT BASE'!$G$7 -> 0.05
B10: IMPOSTA DOVUTA | C10: =+C8*C9 -> 520.32 | E10: =+E8*E9 -> 556.32 | G10: =+G8*G9 -> 556.32 | I10: =+I8*I9 -> 36
B11: ACCONTI VERSATI | C11: 0 | E11: =+C15+C16 -> 520.32 | G11: =+E15+E16 -> 36 | I11: =+G15+G16 -> 520.32
B12: CREDITO DICHIARAZIONE PRECEDENTE | E12: =+C14 -> 0 | G12: =+E14 -> 0 | I12: =+G14 -> 0
B13: SALDO | C13: =IF(C10-C11<0,0,C10-C11) -> 520.32 | E13: =IF(E10-E11-C14<0,0,E10-E11-C14) -> 36 | G13: =IF(G10-G11-E14-G12<0,0,G10-G11-E14-G12) -> 520.32 | I13: =IF(I10-I11-G14<0,0,I10-I11-G14) -> 0
B14: CREDITO | C14: =+IF(C13=0,-(C10-C11),0) -> 0 | E14: =+IF(E13=0,-(E10-E11),0) -> 0 | G14: =+IF(G13=0,-(G10-G11-G12),0) -> 0 | I14: =+IF(I13=0,-(I10-I11),0) -> 484.32
B15: I ACCONTO | C15: =+C13*0.4 -> 208.128 | E15: =+E13*0.4 -> 14.4 | G15: =+G13*0.4 -> 208.128 | I15: =+I13*0.4 -> 0
B16: II ACCONTO | C16: =+C13*0.6 -> 312.192 | E16: =+E13*0.6 -> 21.6 | G16: =+G13*0.6 -> 312.192 | I16: =+I13*0.6 -> 0
B19: FLUSSI
B20: =+DATE(E3,6,30) -> 2017-06-30 | C20: =+C13+C15 -> 728.448
B21: =+DATE(E3,11,30) -> 2017-11-30 | C21: =+C16 -> 312.192
B22: =+EOMONTH(B20,12) -> 2018-06-30 | C22: =+E13+E15 -> 50.4
B23: =+EOMONTH(B21,12) -> 2018-11-30 | C23: =+E16 -> 21.6
B24: 2019-06-30 | C24: =+G13+G15 -> 728.448
B25: 2019-11-30 | C25: =+G16 -> 312.192
B26: =+EOMONTH(B24,12) -> 2020-06-30 | C26: =+I13+I15 -> 0
B27: 2020-11-30 | C27: =+I16 -> 0

Sheet 9) OUTPUT FLUSSI DI CASSA
A1: BUSINESS PLAN PER L'EXTRALBERGHIERO
A2: DOTT. LEONE GABRIELE
A3: WWW.BNBMAKER.COM - WWW.LEONEADVISOR.IT
A4: ENTRATE | B4: =+'3) INPUT VENDITE'!B2 -> 2016-04-30 | C4: =+'3) INPUT VENDITE'!C2 -> 2016-05-31 | D4: =+'3) INPUT VENDITE'!D2 -> 2016-06-30 | E4: =+'3) INPUT VENDITE'!E2 -> 2016-07-31 | F4: =+'3) INPUT VENDITE'!F2 -> 2016-08-31 | G4: =+'3) INPUT VENDITE'!G2 -> 2016-09-30 | H4: =+'3) INPUT VENDITE'!H2 -> 2016-10-31 | I4: =+'3) INPUT VENDITE'!I2 -> 2016-11-30 | J4: =+'3) INPUT VENDITE'!J2 -> 2016-12-31 | K4: =+'3) INPUT VENDITE'!K2 -> 2017-01-31 | L4: =+'3) INPUT VENDITE'!L2 -> 2017-02-28 | M4: =+'3) INPUT VENDITE'!M2 -> 2017-03-31 | N4: =+'3) INPUT VENDITE'!N2 -> TOTALE | P4: =+'3) INPUT VENDITE'!P2 -> 2017-04-30 | Q4: =+'3) INPUT VENDITE'!Q2 -> 2017-05-31 | R4: =+'3) INPUT VENDITE'!R2 -> 2017-06-30 | S4: =+'3) INPUT VENDITE'!S2 -> 2017-07-31 | T4: =+'3) INPUT VENDITE'!T2 -> 2017-08-31 | U4: =+'3) INPUT VENDITE'!U2 -> 2017-09-30 | V4: =+'3) INPUT VENDITE'!V2 -> 2017-10-31 | W4: =+'3) INPUT VENDITE'!W2 -> 2017-11-30 | X4: =+'3) INPUT VENDITE'!X2 -> 2017-12-31 | Y4: =+'3) INPUT VENDITE'!Y2 -> 2018-01-31 | Z4: =+'3) INPUT VENDITE'!Z2 -> 2018-02-28 | AA4: =+'3) INPUT VENDITE'!AA2 -> 2018-03-31 | AB4: =+'3) INPUT VENDITE'!AB2 -> TOTALE | AD4: =+'3) INPUT VENDITE'!AD2 -> 2018-04-30 | AE4: =+'3) INPUT VENDITE'!AE2 -> 2018-05-31 | AF4: =+'3) INPUT VENDITE'!AF2 -> 2018-06-30 | AG4: =+'3) INPUT VENDITE'!AG2 -> 2018-07-31 | AH4: =+'3) INPUT VENDITE'!AH2 -> 2018-08-31 | AI4: =+'3) INPUT VENDITE'!AI2 -> 2018-09-30 | AJ4: =+'3) INPUT VENDITE'!AJ2 -> 2018-10-31 | AK4: =+'3) INPUT VENDITE'!AK2 -> 2018-11-30 | AL4: =+'3) INPUT VENDITE'!AL2 -> 2018-12-31 | AM4: =+'3) INPUT VENDITE'!AM2 -> 2019-01-31 | AN4: =+'3) INPUT VENDITE'!AN2 -> 2019-02-28 | AO4: =+'3) INPUT VENDITE'!AO2 -> 2019-03-31 | AP4: =+'3) INPUT VENDITE'!AP2 -> TOTALE
A5: =+'3) INPUT VENDITE'!A4 -> CAMERE QUADRUPLE | B5: =+'3) INPUT VENDITE'!B4 -> 0 | C5: =+'3) INPUT VENDITE'!C4 -> 0 | D5: =+'3) INPUT VENDITE'!D4 -> 0 | E5: =+'3) INPUT VENDITE'!E4 -> 0 | F5: =+'3) INPUT VENDITE'!F4 -> 0 | G5: =+'3) INPUT VENDITE'!G4 -> 0 | H5: =+'3) INPUT VENDITE'!H4 -> 0 | I5: =+'3) INPUT VENDITE'!I4 -> 0 | J5: =+'3) INPUT VENDITE'!J4 -> 0 | K5: =+'3) INPUT VENDITE'!K4 -> 0 | L5: =+'3) INPUT VENDITE'!L4 -> 0 | M5: =+'3) INPUT VENDITE'!M4 -> 0 | N5: =SUM(B5:M5) -> 0 | P5: =+'3) INPUT VENDITE'!P4 -> 0 | Q5: =+'3) INPUT VENDITE'!Q4 -> 0 | R5: =+'3) INPUT VENDITE'!R4 -> 0 | S5: =+'3) INPUT VENDITE'!S4 -> 0 | T5: =+'3) INPUT VENDITE'!T4 -> 0 | U5: =+'3) INPUT VENDITE'!U4 -> 0 | V5: =+'3) INPUT VENDITE'!V4 -> 0 | W5: =+'3) INPUT VENDITE'!W4 -> 0 | X5: =+'3) INPUT VENDITE'!X4 -> 0 | Y5: =+'3) INPUT VENDITE'!Y4 -> 0 | Z5: =+'3) INPUT VENDITE'!Z4 -> 0 | AA5: =+'3) INPUT VENDITE'!AA4 -> 0 | AB5: =SUM(P5:AA5) -> 0 | AD5: =+'3) INPUT VENDITE'!AD4 -> 0 | AE5: =+'3) INPUT VENDITE'!AE4 -> 0 | AF5: =+'3) INPUT VENDITE'!AF4 -> 0 | AG5: =+'3) INPUT VENDITE'!AG4 -> 0 | AH5: =+'3) INPUT VENDITE'!AH4 -> 0 | AI5: =+'3) INPUT VENDITE'!AI4 -> 0 | AJ5: =+'3) INPUT VENDITE'!AJ4 -> 0 | AK5: =+'3) INPUT VENDITE'!AK4 -> 0 | AL5: =+'3) INPUT VENDITE'!AL4 -> 0 | AM5: =+'3) INPUT VENDITE'!AM4 -> 0 | AN5: =+'3) INPUT VENDITE'!AN4 -> 0 | AO5: =+'3) INPUT VENDITE'!AO4 -> 0 | AP5: =SUM(AD5:AO5) -> 0
A6: =+'3) INPUT VENDITE'!A5 -> CAMERE TRIPLE | B6: =+'3) INPUT VENDITE'!B5 -> 0 | C6: =+'3) INPUT VENDITE'!C5 -> 0 | D6: =+'3) INPUT VENDITE'!D5 -> 0 | E6: =+'3) INPUT VENDITE'!E5 -> 0 | F6: =+'3) INPUT VENDITE'!F5 -> 0 | G6: =+'3) INPUT VENDITE'!G5 -> 0 | H6: =+'3) INPUT VENDITE'!H5 -> 0 | I6: =+'3) INPUT VENDITE'!I5 -> 0 | J6: =+'3) INPUT VENDITE'!J5 -> 0 | K6: =+'3) INPUT VENDITE'!K5 -> 0 | L6: =+'3) INPUT VENDITE'!L5 -> 0 | M6: =+'3) INPUT VENDITE'!M5 -> 0 | N6: 0 | P6: =+'3) INPUT VENDITE'!P5 -> 0 | Q6: =+'3) INPUT VENDITE'!Q5 -> 0 | R6: =+'3) INPUT VENDITE'!R5 -> 0 | S6: =+'3) INPUT VENDITE'!S5 -> 0 | T6: =+'3) INPUT VENDITE'!T5 -> 0 | U6: =+'3) INPUT VENDITE'!U5 -> 0 | V6: =+'3) INPUT VENDITE'!V5 -> 0 | W6: =+'3) INPUT VENDITE'!W5 -> 0 | X6: =+'3) INPUT VENDITE'!X5 -> 0 | Y6: =+'3) INPUT VENDITE'!Y5 -> 0 | Z6: =+'3) INPUT VENDITE'!Z5 -> 0 | AA6: =+'3) INPUT VENDITE'!AA5 -> 0 | AB6: =SUM(P6:AA6) -> 0 | AD6: =+'3) INPUT VENDITE'!AD5 -> 0 | AE6: =+'3) INPUT VENDITE'!AE5 -> 0 | AF6: =+'3) INPUT VENDITE'!AF5 -> 0 | AG6: =+'3) INPUT VENDITE'!AG5 -> 0 | AH6: =+'3) INPUT VENDITE'!AH5 -> 0 | AI6: =+'3) INPUT VENDITE'!AI5 -> 0 | AJ6: =+'3) INPUT VENDITE'!AJ5 -> 0 | AK6: =+'3) INPUT VENDITE'!AK5 -> 0 | AL6: =+'3) INPUT VENDITE'!AL5 -> 0 | AM6: =+'3) INPUT VENDITE'!AM5 -> 0 | AN6: =+'3) INPUT VENDITE'!AN5 -> 0 | AO6: =+'3) INPUT VENDITE'!AO5 -> 0 | AP6: =SUM(AD6:AO6) -> 0
A7: =+'3) INPUT VENDITE'!A6 -> CAMERE DOPPIE | B7: =+'3) INPUT VENDITE'!B6 -> 600 | C7: =+'3) INPUT VENDITE'!C6 -> 2170 | D7: =+'3) INPUT VENDITE'!D6 -> 4860 | E7: =+'3) INPUT VENDITE'!E6 -> 5022 | F7: =+'3) INPUT VENDITE'!F6 -> 5022 | G7: =+'3) INPUT VENDITE'!G6 -> 2100 | H7: =+'3) INPUT VENDITE'!H6 -> 620 | I7: =+'3) INPUT VENDITE'!I6 -> 600 | J7: =+'3) INPUT VENDITE'!J6 -> 5022 | K7: =+'3) INPUT VENDITE'!K6 -> 620 | L7: =+'3) INPUT VENDITE'!L6 -> 560 | M7: =+'3) INPUT VENDITE'!M6 -> 620 | N7: 27816 | P7: =+'3) INPUT VENDITE'!P6 -> 600 | Q7: =+'3) INPUT VENDITE'!Q6 -> 2170 | R7: =+'3) INPUT VENDITE'!R6 -> 4860 | S7: =+'3) INPUT VENDITE'!S6 -> 5022 | T7: =+'3) INPUT VENDITE'!T6 -> 5022 | U7: =+'3) INPUT VENDITE'!U6 -> 2100 | V7: =+'3) INPUT VENDITE'!V6 -> 620 | W7: =+'3) INPUT VENDITE'!W6 -> 600 | X7: =+'3) INPUT VENDITE'!X6 -> 5022 | Y7: =+'3) INPUT VENDITE'!Y6 -> 620 | Z7: =+'3) INPUT VENDITE'!Z6 -> 560 | AA7: =+'3) INPUT VENDITE'!AA6 -> 620 | AB7: 27816 | AD7: =+'3) INPUT VENDITE'!AD6 -> 600 | AE7: =+'3) INPUT VENDITE'!AE6 -> 2170 | AF7: =+'3) INPUT VENDITE'!AF6 -> 4860 | AG7: =+'3) INPUT VENDITE'!AG6 -> 5022 | AH7: =+'3) INPUT VENDITE'!AH6 -> 5022 | AI7: =+'3) INPUT VENDITE'!AI6 -> 2100 | AJ7: =+'3) INPUT VENDITE'!AJ6 -> 620 | AK7: =+'3) INPUT VENDITE'!AK6 -> 600 | AL7: =+'3) INPUT VENDITE'!AL6 -> 5022 | AM7: =+'3) INPUT VENDITE'!AM6 -> 620 | AN7: =+'3) INPUT VENDITE'!AN6 -> 560 | AO7: =+'3) INPUT VENDITE'!AO6 -> 620 | AP7: 27816
A8: =+'3) INPUT VENDITE'!A7 -> CAMERE SINGOLE | B8: =+'3) INPUT VENDITE'!B7 -> 0 | C8: =+'3) INPUT VENDITE'!C7 -> 0 | D8: =+'3) INPUT VENDITE'!D7 -> 0 | E8: =+'3) INPUT VENDITE'!E7 -> 0 | F8: =+'3) INPUT VENDITE'!F7 -> 0 | G8: =+'3) INPUT VENDITE'!G7 -> 0 | H8: =+'3) INPUT VENDITE'!H7 -> 0 | I8: =+'3) INPUT VENDITE'!I7 -> 0 | J8: =+'3) INPUT VENDITE'!J7 -> 0 | K8: =+'3) INPUT VENDITE'!K7 -> 0 | L8: =+'3) INPUT VENDITE'!L7 -> 0 | M8: =+'3) INPUT VENDITE'!M7 -> 0 | N8: 0 | P8: =+'3) INPUT VENDITE'!P7 -> 0 | Q8: =+'3) INPUT VENDITE'!Q7 -> 0 | R8: =+'3) INPUT VENDITE'!R7 -> 0 | S8: =+'3) INPUT VENDITE'!S7 -> 0 | T8: =+'3) INPUT VENDITE'!T7 -> 0 | U8: =+'3) INPUT VENDITE'!U7 -> 0 | V8: =+'3) INPUT VENDITE'!V7 -> 0 | W8: =+'3) INPUT VENDITE'!W7 -> 0 | X8: =+'3) INPUT VENDITE'!X7 -> 0 | Y8: =+'3) INPUT VENDITE'!Y7 -> 0 | Z8: =+'3) INPUT VENDITE'!Z7 -> 0 | AA8: =+'3) INPUT VENDITE'!AA7 -> 0 | AB8: 0 | AD8: =+'3) INPUT VENDITE'!AD7 -> 0 | AE8: =+'3) INPUT VENDITE'!AE7 -> 0 | AF8: =+'3) INPUT VENDITE'!AF7 -> 0 | AG8: =+'3) INPUT VENDITE'!AG7 -> 0 | AH8: =+'3) INPUT VENDITE'!AH7 -> 0 | AI8: =+'3) INPUT VENDITE'!AI7 -> 0 | AJ8: =+'3) INPUT VENDITE'!AJ7 -> 0 | AK8: =+'3) INPUT VENDITE'!AK7 -> 0 | AL8: =+'3) INPUT VENDITE'!AL7 -> 0 | AM8: =+'3) INPUT VENDITE'!AM7 -> 0 | AN8: =+'3) INPUT VENDITE'!AN7 -> 0 | AO8: =+'3) INPUT VENDITE'!AO7 -> 0 | AP8: 0
A9: =+'3) INPUT VENDITE'!A8 -> VISITE GUIDATE | B9: =+'3) INPUT VENDITE'!B8 -> 0 | C9: =+'3) INPUT VENDITE'!C8 -> 0 | D9: =+'3) INPUT VENDITE'!D8 -> 0 | E9: =+'3) INPUT VENDITE'!E8 -> 0 | F9: =+'3) INPUT VENDITE'!F8 -> 0 | G9: =+'3) INPUT VENDITE'!G8 -> 0 | H9: =+'3) INPUT VENDITE'!H8 -> 0 | I9: =+'3) INPUT VENDITE'!I8 -> 0 | J9: =+'3) INPUT VENDITE'!J8 -> 0 | K9: =+'3) INPUT VENDITE'!K8 -> 0 | L9: =+'3) INPUT VENDITE'!L8 -> 0 | M9: =+'3) INPUT VENDITE'!M8 -> 0 | N9: 0 | P9: =+'3) INPUT VENDITE'!P8 -> 0 | Q9: =+'3) INPUT VENDITE'!Q8 -> 0 | R9: =+'3) INPUT VENDITE'!R8 -> 0 | S9: =+'3) INPUT VENDITE'!S8 -> 0 | T9: =+'3) INPUT VENDITE'!T8 -> 0 | U9: =+'3) INPUT VENDITE'!U8 -> 0 | V9: =+'3) INPUT VENDITE'!V8 -> 0 | W9: =+'3) INPUT VENDITE'!W8 -> 0 | X9: =+'3) INPUT VENDITE'!X8 -> 0 | Y9: =+'3) INPUT VENDITE'!Y8 -> 0 | Z9: =+'3) INPUT VENDITE'!Z8 -> 0 | AA9: =+'3) INPUT VENDITE'!AA8 -> 0 | AB9: 0 | AD9: =+'3) INPUT VENDITE'!AD8 -> 0 | AE9: =+'3) INPUT VENDITE'!AE8 -> 0 | AF9: =+'3) INPUT VENDITE'!AF8 -> 0 | AG9: =+'3) INPUT VENDITE'!AG8 -> 0 | AH9: =+'3) INPUT VENDITE'!AH8 -> 0 | AI9: =+'3) INPUT VENDITE'!AI8 -> 0 | AJ9: =+'3) INPUT VENDITE'!AJ8 -> 0 | AK9: =+'3) INPUT VENDITE'!AK8 -> 0 | AL9: =+'3) INPUT VENDITE'!AL8 -> 0 | AM9: =+'3) INPUT VENDITE'!AM8 -> 0 | AN9: =+'3) INPUT VENDITE'!AN8 -> 0 | AO9: =+'3) INPUT VENDITE'!AO8 -> 0 | AP9: 0
A10: =+'3) INPUT VENDITE'!A9 -> Altri ricavi | B10: =+'3) INPUT VENDITE'!B9 -> 0 | C10: =+'3) INPUT VENDITE'!C9 -> 0 | D10: =+'3) INPUT VENDITE'!D9 -> 0 | E10: =+'3) INPUT VENDITE'!E9 -> 0 | F10: =+'3) INPUT VENDITE'!F9 -> 0 | G10: =+'3) INPUT VENDITE'!G9 -> 0 | H10: =+'3) INPUT VENDITE'!H9 -> 0 | I10: =+'3) INPUT VENDITE'!I9 -> 0 | J10: =+'3) INPUT VENDITE'!J9 -> 0 | K10: =+'3) INPUT VENDITE'!K9 -> 0 | L10: =+'3) INPUT VENDITE'!L9 -> 0 | M10: =+'3) INPUT VENDITE'!M9 -> 0 | N10: 0 | P10: =+'3) INPUT VENDITE'!P9 -> 0 | Q10: =+'3) INPUT VENDITE'!Q9 -> 0 | R10: =+'3) INPUT VENDITE'!R9 -> 0 | S10: =+'3) INPUT VENDITE'!S9 -> 0 | T10: =+'3) INPUT VENDITE'!T9 -> 0 | U10: =+'3) INPUT VENDITE'!U9 -> 0 | V10: =+'3) INPUT VENDITE'!V9 -> 0 | W10: =+'3) INPUT VENDITE'!W9 -> 0 | X10: =+'3) INPUT VENDITE'!X9 -> 0 | Y10: =+'3) INPUT VENDITE'!Y9 -> 0 | Z10: =+'3) INPUT VENDITE'!Z9 -> 0 | AA10: =+'3) INPUT VENDITE'!AA9 -> 0 | AB10: 0 | AD10: =+'3) INPUT VENDITE'!AD9 -> 0 | AE10: =+'3) INPUT VENDITE'!AE9 -> 0 | AF10: =+'3) INPUT VENDITE'!AF9 -> 0 | AG10: =+'3) INPUT VENDITE'!AG9 -> 0 | AH10: =+'3) INPUT VENDITE'!AH9 -> 0 | AI10: =+'3) INPUT VENDITE'!AI9 -> 0 | AJ10: =+'3) INPUT VENDITE'!AJ9 -> 0 | AK10: =+'3) INPUT VENDITE'!AK9 -> 0 | AL10: =+'3) INPUT VENDITE'!AL9 -> 0 | AM10: =+'3) INPUT VENDITE'!AM9 -> 0 | AN10: =+'3) INPUT VENDITE'!AN9 -> 0 | AO10: =+'3) INPUT VENDITE'!AO9 -> 0 | AP10: 0
A11: =+'3) INPUT VENDITE'!A10 -> Altri ricavi | B11: =+'3) INPUT VENDITE'!B10 -> 0 | C11: =+'3) INPUT VENDITE'!C10 -> 0 | D11: =+'3) INPUT VENDITE'!D10 -> 0 | E11: =+'3) INPUT VENDITE'!E10 -> 0 | F11: =+'3) INPUT VENDITE'!F10 -> 0 | G11: =+'3) INPUT VENDITE'!G10 -> 0 | H11: =+'3) INPUT VENDITE'!H10 -> 0 | I11: =+'3) INPUT VENDITE'!I10 -> 0 | J11: =+'3) INPUT VENDITE'!J10 -> 0 | K11: =+'3) INPUT VENDITE'!K10 -> 0 | L11: =+'3) INPUT VENDITE'!L10 -> 0 | M11: =+'3) INPUT VENDITE'!M10 -> 0 | N11: 0 | P11: =+'3) INPUT VENDITE'!P10 -> 0 | Q11: =+'3) INPUT VENDITE'!Q10 -> 0 | R11: =+'3) INPUT VENDITE'!R10 -> 0 | S11: =+'3) INPUT VENDITE'!S10 -> 0 | T11: =+'3) INPUT VENDITE'!T10 -> 0 | U11: =+'3) INPUT VENDITE'!U10 -> 0 | V11: =+'3) INPUT VENDITE'!V10 -> 0 | W11: =+'3) INPUT VENDITE'!W10 -> 0 | X11: =+'3) INPUT VENDITE'!X10 -> 0 | Y11: =+'3) INPUT VENDITE'!Y10 -> 0 | Z11: =+'3) INPUT VENDITE'!Z10 -> 0 | AA11: =+'3) INPUT VENDITE'!AA10 -> 0 | AB11: 0 | AD11: =+'3) INPUT VENDITE'!AD10 -> 0 | AE11: =+'3) INPUT VENDITE'!AE10 -> 0 | AF11: =+'3) INPUT VENDITE'!AF10 -> 0 | AG11: =+'3) INPUT VENDITE'!AG10 -> 0 | AH11: =+'3) INPUT VENDITE'!AH10 -> 0 | AI11: =+'3) INPUT VENDITE'!AI10 -> 0 | AJ11: =+'3) INPUT VENDITE'!AJ10 -> 0 | AK11: =+'3) INPUT VENDITE'!AK10 -> 0 | AL11: =+'3) INPUT VENDITE'!AL10 -> 0 | AM11: =+'3) INPUT VENDITE'!AM10 -> 0 | AN11: =+'3) INPUT VENDITE'!AN10 -> 0 | AO11: =+'3) INPUT VENDITE'!AO10 -> 0 | AP11: 0
A12: =+'3) INPUT VENDITE'!A11 -> Altri ricavi | B12: =+'3) INPUT VENDITE'!B11 -> 0 | C12: =+'3) INPUT VENDITE'!C11 -> 0 | D12: =+'3) INPUT VENDITE'!D11 -> 0 | E12: =+'3) INPUT VENDITE'!E11 -> 0 | F12: =+'3) INPUT VENDITE'!F11 -> 0 | G12: =+'3) INPUT VENDITE'!G11 -> 0 | H12: =+'3) INPUT VENDITE'!H11 -> 0 | I12: =+'3) INPUT VENDITE'!I11 -> 0 | J12: =+'3) INPUT VENDITE'!J11 -> 0 | K12: =+'3) INPUT VENDITE'!K11 -> 0 | L12: =+'3) INPUT VENDITE'!L11 -> 0 | M12: =+'3) INPUT VENDITE'!M11 -> 0 | N12: 0 | P12: =+'3) INPUT VENDITE'!P11 -> 0 | Q12: =+'3) INPUT VENDITE'!Q11 -> 0 | R12: =+'3) INPUT VENDITE'!R11 -> 0 | S12: =+'3) INPUT VENDITE'!S11 -> 0 | T12: =+'3) INPUT VENDITE'!T11 -> 0 | U12: =+'3) INPUT VENDITE'!U11 -> 0 | V12: =+'3) INPUT VENDITE'!V11 -> 0 | W12: =+'3) INPUT VENDITE'!W11 -> 0 | X12: =+'3) INPUT VENDITE'!X11 -> 0 | Y12: =+'3) INPUT VENDITE'!Y11 -> 0 | Z12: =+'3) INPUT VENDITE'!Z11 -> 0 | AA12: =+'3) INPUT VENDITE'!AA11 -> 0 | AB12: 0 | AD12: =+'3) INPUT VENDITE'!AD11 -> 0 | AE12: =+'3) INPUT VENDITE'!AE11 -> 0 | AF12: =+'3) INPUT VENDITE'!AF11 -> 0 | AG12: =+'3) INPUT VENDITE'!AG11 -> 0 | AH12: =+'3) INPUT VENDITE'!AH11 -> 0 | AI12: =+'3) INPUT VENDITE'!AI11 -> 0 | AJ12: =+'3) INPUT VENDITE'!AJ11 -> 0 | AK12: =+'3) INPUT VENDITE'!AK11 -> 0 | AL12: =+'3) INPUT VENDITE'!AL11 -> 0 | AM12: =+'3) INPUT VENDITE'!AM11 -> 0 | AN12: =+'3) INPUT VENDITE'!AN11 -> 0 | AO12: =+'3) INPUT VENDITE'!AO11 -> 0 | AP12: 0
A13: =+'3) INPUT VENDITE'!A12 -> Altri ricavi | B13: =+'3) INPUT VENDITE'!B12 -> 0 | C13: =+'3) INPUT VENDITE'!C12 -> 0 | D13: =+'3) INPUT VENDITE'!D12 -> 0 | E13: =+'3) INPUT VENDITE'!E12 -> 0 | F13: =+'3) INPUT VENDITE'!F12 -> 0 | G13: =+'3) INPUT VENDITE'!G12 -> 0 | H13: =+'3) INPUT VENDITE'!H12 -> 0 | I13: =+'3) INPUT VENDITE'!I12 -> 0 | J13: =+'3) INPUT VENDITE'!J12 -> 0 | K13: =+'3) INPUT VENDITE'!K12 -> 0 | L13: =+'3) INPUT VENDITE'!L12 -> 0 | M13: =+'3) INPUT VENDITE'!M12 -> 0 | N13: 0 | P13: =+'3) INPUT VENDITE'!P12 -> 0 | Q13: =+'3) INPUT VENDITE'!Q12 -> 0 | R13: =+'3) INPUT VENDITE'!R12 -> 0 | S13: =+'3) INPUT VENDITE'!S12 -> 0 | T13: =+'3) INPUT VENDITE'!T12 -> 0 | U13: =+'3) INPUT VENDITE'!U12 -> 0 | V13: =+'3) INPUT VENDITE'!V12 -> 0 | W13: =+'3) INPUT VENDITE'!W12 -> 0 | X13: =+'3) INPUT VENDITE'!X12 -> 0 | Y13: =+'3) INPUT VENDITE'!Y12 -> 0 | Z13: =+'3) INPUT VENDITE'!Z12 -> 0 | AA13: =+'3) INPUT VENDITE'!AA12 -> 0 | AB13: 0 | AD13: =+'3) INPUT VENDITE'!AD12 -> 0 | AE13: =+'3) INPUT VENDITE'!AE12 -> 0 | AF13: =+'3) INPUT VENDITE'!AF12 -> 0 | AG13: =+'3) INPUT VENDITE'!AG12 -> 0 | AH13: =+'3) INPUT VENDITE'!AH12 -> 0 | AI13: =+'3) INPUT VENDITE'!AI12 -> 0 | AJ13: =+'3) INPUT VENDITE'!AJ12 -> 0 | AK13: =+'3) INPUT VENDITE'!AK12 -> 0 | AL13: =+'3) INPUT VENDITE'!AL12 -> 0 | AM13: =+'3) INPUT VENDITE'!AM12 -> 0 | AN13: =+'3) INPUT VENDITE'!AN12 -> 0 | AO13: =+'3) INPUT VENDITE'!AO12 -> 0 | AP13: 0
A14: =+'3) INPUT VENDITE'!A13 -> Altri ricavi | B14: =+'3) INPUT VENDITE'!B13 -> 0 | C14: =+'3) INPUT VENDITE'!C13 -> 0 | D14: =+'3) INPUT VENDITE'!D13 -> 0 | E14: =+'3) INPUT VENDITE'!E13 -> 0 | F14: =+'3) INPUT VENDITE'!F13 -> 0 | G14: =+'3) INPUT VENDITE'!G13 -> 0 | H14: =+'3) INPUT VENDITE'!H13 -> 0 | I14: =+'3) INPUT VENDITE'!I13 -> 0 | J14: =+'3) INPUT VENDITE'!J13 -> 0 | K14: =+'3) INPUT VENDITE'!K13 -> 0 | L14: =+'3) INPUT VENDITE'!L13 -> 0 | M14: =+'3) INPUT VENDITE'!M13 -> 0 | N14: 0 | P14: =+'3) INPUT VENDITE'!P13 -> 0 | Q14: =+'3) INPUT VENDITE'!Q13 -> 0 | R14: =+'3) INPUT VENDITE'!R13 -> 0 | S14: =+'3) INPUT VENDITE'!S13 -> 0 | T14: =+'3) INPUT VENDITE'!T13 -> 0 | U14: =+'3) INPUT VENDITE'!U13 -> 0 | V14: =+'3) INPUT VENDITE'!V13 -> 0 | W14: =+'3) INPUT VENDITE'!W13 -> 0 | X14: =+'3) INPUT VENDITE'!X13 -> 0 | Y14: =+'3) INPUT VENDITE'!Y13 -> 0 | Z14: =+'3) INPUT VENDITE'!Z13 -> 0 | AA14: =+'3) INPUT VENDITE'!AA13 -> 0 | AB14: 0 | AD14: =+'3) INPUT VENDITE'!AD13 -> 0 | AE14: =+'3) INPUT VENDITE'!AE13 -> 0 | AF14: =+'3) INPUT VENDITE'!AF13 -> 0 | AG14: =+'3) INPUT VENDITE'!AG13 -> 0 | AH14: =+'3) INPUT VENDITE'!AH13 -> 0 | AI14: =+'3) INPUT VENDITE'!AI13 -> 0 | AJ14: =+'3) INPUT VENDITE'!AJ13 -> 0 | AK14: =+'3) INPUT VENDITE'!AK13 -> 0 | AL14: =+'3) INPUT VENDITE'!AL13 -> 0 | AM14: =+'3) INPUT VENDITE'!AM13 -> 0 | AN14: =+'3) INPUT VENDITE'!AN13 -> 0 | AO14: =+'3) INPUT VENDITE'!AO13 -> 0 | AP14: 0
A15: EROGAZIONE FINANZIAMENTO | B15: =IF(A123="LEVERED",'7) INPUT FINANZIAMENTO'!B11,0) -> 0 | N15: 0 | AB15: 0 | AP15: 0
A16: VERSAMENTO CAPITALE | B16: =IF($B$126="SI COMPENSA FLUSSI NEGATIVI CON CAPITALE",IF(SUM(B5:B15)-B69-B106-B118-B121<0,-(SUM(B5:B15)-B69-B106-B118-C121),0),'7) INPUT FINANZIAMENTO'!B10) -> 7608 | C16: =IF($B$126="SI COMPENSA FLUSSI NEGATIVI CON CAPITALE",IF(SUM(C5:C15)-C69-C106-C118-C121<0,-(SUM(C5:C15)-C69-C106-C118-C121),0),0) -> 0 | D16: =IF($B$126="SI COMPENSA FLUSSI NEGATIVI CON CAPITALE",IF(SUM(D5:D15)-D69-D106-D118-D121<0,-(SUM(D5:D15)-D69-D106-D118-D121),0),0) -> 0 | E16: =IF($B$126="SI COMPENSA FLUSSI NEGATIVI CON CAPITALE",IF(SUM(E5:E15)-E69-E106-E118-E121<0,-(SUM(E5:E15)-E69-E106-E118-E121),0),0) -> 0 | F16: 0 | G16: 0 | H16: 0 | I16: 0 | J16: 0 | K16: 0 | L16: 0 | M16: 600.6 | N16: 8208.6 | O16: 0 | P16: 8 | Q16: 0 | R16: 0 | S16: 0 | T16: 0 | U16: 0 | V16: 0 | W16: 180.192 | X16: 0 | Y16: 0 | Z16: 0 | AA16: 600.6 | AB16: 788.792 | AC16: 0 | AD16: 8 | AE16: 0 | AF16: 0 | AG16: 0 | AH16: 0 | AI16: 0 | AJ16: 0 | AK16: 0 | AL16: 0 | AM16: 0 | AN16: 0 | AO16: 600.6 | AP16: 608.6
A17: =+'3) INPUT VENDITE'!A14 -> TOTALE | B17: =SUM(B5:B16) -> 8208 | C17: =SUM(C5:C16) -> 2170 | D17: =SUM(D5:D16) -> 4860 | E17: 5022 | F17: 5022 | G17: 2100 | H17: 620 | I17: 600 | J17: 5022 | K17: 620 | L17: 560 | M17: 1220.6 | N17: =SUM(B17:M17) -> 36024.6 | P17: =SUM(P5:P16) -> 608 | Q17: =SUM(Q5:Q16) -> 2170 | R17: 4860 | S17: 5022 | T17: 5022 | U17: 2100 | V17: 620 | W17: 780.192 | X17: 5022 | Y17: 620 | Z17: 560 | AA17: 1220.6 | AB17: =SUM(P17:AA17) -> 28604.792 | AD17: =SUM(AD5:AD16) -> 608 | AE17: =SUM(AE5:AE16) -> 2170 | AF17: 4860 | AG17: 5022 | AH17: 5022 | AI17: 2100 | AJ17: 620 | AK17: 600 | AL17: 5022 | AM17: 620 | AN17: 560 | AO17: 1220.6 | AP17: =SUM(AD17:AO17) -> 28424.6
A19: INVESTIMENTI IMMATERIALI | B19: =+B4 -> 2016-04-30 | C19: 2016-05-31 | D19: 2016-06-30 | E19: 2016-07-31 | F19: 2016-08-31 | G19: 2016-09-30 | H19: 2016-10-31 | I19: 2016-11-30 | J19: 2016-12-31 | K19: 2017-01-31 | L19: 2017-02-28 | M19: 2017-03-31 | N19: TOTALE | P19: =+P4 -> 2017-04-30 | Q19: 2017-05-31 | R19: 2017-06-30 | S19: 2017-07-31 | T19: 2017-08-31 | U19: 2017-09-30 | V19: 2017-10-31 | W19: 2017-11-30 | X19: 2017-12-31 | Y19: 2018-01-31 | Z19: 2018-02-28 | AA19: 2018-03-31 | AB19: TOTALE | AD19: =+AD4 -> 2018-04-30 | AE19: 2018-05-31 | AF19: 2018-06-30 | AG19: 2018-07-31 | AH19: 2018-08-31 | AI19: 2018-09-30 | AJ19: 2018-10-31 | AK19: 2018-11-30 | AL19: 2018-12-31 | AM19: 2019-01-31 | AN19: 2019-02-28 | AO19: 2019-03-31 | AP19: TOTALE
A20: =+'2) INPUT INVESTIMENTI'!A9 -> Costi di costituzione | B20: =+'2) INPUT INVESTIMENTI'!D9 -> 500 | N20: =SUM(B20:M20) -> 500
A21: =+'2) INPUT INVESTIMENTI'!A10 -> Sito internet | B21: =+'2) INPUT INVESTIMENTI'!D10 -> 600 | N21: =SUM(B21:M21) -> 600
A22: =+'2) INPUT INVESTIMENTI'!A11 -> Elaborazione business plan | B22: =+'2) INPUT INVESTIMENTI'!D11 -> 0 | N22: 0
A23: =+'2) INPUT INVESTIMENTI'!A12 -> Promozione pre avvio | B23: =+'2) INPUT INVESTIMENTI'!D12 -> 1000 | N23: 1000
A24: =+'2) INPUT INVESTIMENTI'!A13 -> Altri investimenti immateriali | B24: =+'2) INPUT INVESTIMENTI'!D13 -> 0 | N24: 0
A25: =+'2) INPUT INVESTIMENTI'!A14 -> Altri investimenti immateriali | B25: =+'2) INPUT INVESTIMENTI'!D14 -> 0 | N25: 0
A26: =+'2) INPUT INVESTIMENTI'!A15 -> Altri investimenti immateriali | B26: =+'2) INPUT INVESTIMENTI'!D15 -> 0 | N26: 0
A27: =+'2) INPUT INVESTIMENTI'!A16 -> Altri investimenti immateriali | B27: =+'2) INPUT INVESTIMENTI'!D16 -> 0 | N27: 0
A28: =+'2) INPUT INVESTIMENTI'!A17 -> Altri investimenti immateriali | B28: =+'2) INPUT INVESTIMENTI'!D17 -> 0 | N28: 0
A29: =+'2) INPUT INVESTIMENTI'!A18 -> Altri investimenti immateriali | B29: =+'2) INPUT INVESTIMENTI'!D18 -> 0 | N29: 0
A30: =+'2) INPUT INVESTIMENTI'!A19 -> Altri investimenti immateriali | B30: =+'2) INPUT INVESTIMENTI'!D19 -> 0 | N30: 0
A31: INVESTIMENTI MATERIALI
A32: =+'2) INPUT INVESTIMENTI'!A21 -> Insegne/targhe | B32: =+'2) INPUT INVESTIMENTI'!D21 -> 150 | N32: 150
A33: =+'2) INPUT INVESTIMENTI'!A22 -> Ristrutturazioni | B33: =+'2) INPUT INVESTIMENTI'!D22 -> 0 | N33: 0
A34: =+'2) INPUT INVESTIMENTI'!A23 -> Impianto climatizzazione | B34: =+'2) INPUT INVESTIMENTI'!D23 -> 2000 | N34: 2000
A35: =+'2) INPUT INVESTIMENTI'!A24 -> Impianto riscaldamenti | B35: =+'2) INPUT INVESTIMENTI'!D24 -> 0 | N35: 0
A36: =+'2) INPUT INVESTIMENTI'!A25 -> Arredo camere | B36: =+'2) INPUT INVESTIMENTI'!D25 -> 2000 | N36: 2000
A37: =+'2) INPUT INVESTIMENTI'!A26 -> Arredo salotto | B37: =+'2) INPUT INVESTIMENTI'!D26 -> 0 | N37: 0
A38: =+'2) INPUT INVESTIMENTI'!A27 -> Arredo cortile/area esterna | B38: =+'2) INPUT INVESTIMENTI'!D27 -> 0 | N38: 0
A39: =+'2) INPUT INVESTIMENTI'!A28 -> Arredo cucina | B39: =+'2) INPUT INVESTIMENTI'!D28 -> 0 | N39: 0
A40: =+'2) INPUT INVESTIMENTI'!A29 -> Arredo servizi igienici | B40: =+'2) INPUT INVESTIMENTI'!D29 -> 0 | N40: 0
A41: =+'2) INPUT INVESTIMENTI'!A30 -> Arredo ufficio/stanza titolare | B41: =+'2) INPUT INVESTIMENTI'!D30 -> 0 | N41: 0
A42: =+'2) INPUT INVESTIMENTI'!A31 -> Altro arredo locale | B42: =+'2) INPUT INVESTIMENTI'!D31 -> 0 | N42: 0
A43: =+'2) INPUT INVESTIMENTI'!A32 -> Cucina | B43: =+'2) INPUT INVESTIMENTI'!D32 -> 0 | N43: 0
A44: =+'2) INPUT INVESTIMENTI'!A33 -> Mobili cucina | B44: =+'2) INPUT INVESTIMENTI'!D33 -> 0 | N44: 0
A45: =+'2) INPUT INVESTIMENTI'!A34 -> Mobili cucina | B45: =+'2) INPUT INVESTIMENTI'!D34 -> 0 | N45: 0
A46: =+'2) INPUT INVESTIMENTI'!A35 -> Frigorifero | B46: =+'2) INPUT INVESTIMENTI'!D35 -> 0 | N46: 0
A47: =+'2) INPUT INVESTIMENTI'!A36 -> Altri elettrodomestici | B47: =+'2) INPUT INVESTIMENTI'!D36 -> 0 | N47: 0
A48: =+'2) INPUT INVESTIMENTI'!A37 -> Altri elettrodomestici | B48: =+'2) INPUT INVESTIMENTI'!D37 -> 0 | N48: 0
A49: =+'2) INPUT INVESTIMENTI'!A38 -> Altri elettrodomestici | B49: =+'2) INPUT INVESTIMENTI'!D38 -> 0 | N49: 0
A50: =+'2) INPUT INVESTIMENTI'!A39 -> Altri elettrodomestici | B50: =+'2) INPUT INVESTIMENTI'!D39 -> 0 | N50: 0
A51: =+'2) INPUT INVESTIMENTI'!A40 -> Utensili/Attrezzatura cucina | B51: =+'2) INPUT INVESTIMENTI'!D40 -> 100 | N51: 100
A52: =+'2) INPUT INVESTIMENTI'!A41 -> Biancheria per la casa | B52: =+'2) INPUT INVESTIMENTI'!D41 -> 500 | N52: 500
A53: =+'2) INPUT INVESTIMENTI'!A42 -> Strumenti per pulizia locali | B53: =+'2) INPUT INVESTIMENTI'!D42 -> 0 | N53: 0
A54: =+'2) INPUT INVESTIMENTI'!A43 -> Telefono fisso | B54: =+'2) INPUT INVESTIMENTI'!D43 -> 0 | N54: 0
A55: =+'2) INPUT INVESTIMENTI'!A44 -> Telefoni cellulari | B55: =+'2) INPUT INVESTIMENTI'!D44 -> 0 | N55: 0
A56: =+'2) INPUT INVESTIMENTI'!A45 -> Segreteria telefonica | B56: =+'2) INPUT INVESTIMENTI'!D45 -> 50 | N56: 50
A57: =+'2) INPUT INVESTIMENTI'!A46 -> Fax | B57: =+'2) INPUT INVESTIMENTI'!D46 -> 0 | N57: 0
A58: =+'2) INPUT INVESTIMENTI'!A47 -> Computer | B58: =+'2) INPUT INVESTIMENTI'!D47 -> 500 | N58: 500
A59: =+'2) INPUT INVESTIMENTI'!A48 -> Software | B59: =+'2) INPUT INVESTIMENTI'!D48 -> 100 | N59: 100
A60: =+'2) INPUT INVESTIMENTI'!A49 -> Stampante | B60: =+'2) INPUT INVESTIMENTI'!D49 -> 100 | N60: 100
A61: =+'2) INPUT INVESTIMENTI'!A50 -> Altre attrezzature | B61: =+'2) INPUT INVESTIMENTI'!D50 -> 0 | N61: 0
A62: =+'2) INPUT INVESTIMENTI'!A51 -> Altre attrezzature | B62: =+'2) INPUT INVESTIMENTI'!D51 -> 0 | N62: 0
A63: =+'2) INPUT INVESTIMENTI'!A52 -> Altre attrezzature | B63: =+'2) INPUT INVESTIMENTI'!D52 -> 0 | N63: 0
A64: =+'2) INPUT INVESTIMENTI'!A53 -> Altri investimenti materiali | B64: =+'2) INPUT INVESTIMENTI'!D53 -> 0 | N64: 0
A65: =+'2) INPUT INVESTIMENTI'!A54 -> Altri investimenti materiali | B65: =+'2) INPUT INVESTIMENTI'!D54 -> 0 | N65: 0
A66: =+'2) INPUT INVESTIMENTI'!A55 -> Altri investimenti materiali | B66: =+'2) INPUT INVESTIMENTI'!D55 -> 0 | N66: 0
A67: =+'2) INPUT INVESTIMENTI'!A56 -> Altri investimenti materiali | B67: =+'2) INPUT INVESTIMENTI'!D56 -> 0 | N67: 0
A68: =+'2) INPUT INVESTIMENTI'!A57 -> Altri investimenti materiali | B68: =+'2) INPUT INVESTIMENTI'!D57 -> 0 | N68: 0
A69: TOTALE | B69: =SUM(B20:B68) -> 7600 | N69: 7600
A71: USCITE FISSE | B71: =+B4 -> 2016-04-30 | C71: 2016-05-31 | D71: 2016-06-30 | E71: 2016-07-31 | F71: 2016-08-31 | G71: 2016-09-30 | H71: 2016-10-31 | I71: 2016-11-30 | J71: 2016-12-31 | K71: 2017-01-31 | L71: 2017-02-28 | M71: 2017-03-31 | N71: TOTALE | P71: =+P4 -> 2017-04-30 | Q71: 2017-05-31 | R71: 2017-06-30 | S71: 2017-07-31 | T71: 2017-08-31 | U71: 2017-09-30 | V71: 2017-10-31 | W71: 2017-11-30 | X71: 2017-12-31 | Y71: 2018-01-31 | Z71: 2018-02-28 | AA71: 2018-03-31 | AB71: TOTALE | AD71: =+AD4 -> 2018-04-30 | AE71: 2018-05-31 | AF71: 2018-06-30 | AG71: 2018-07-31 | AH71: 2018-08-31 | AI71: 2018-09-30 | AJ71: 2018-10-31 | AK71: 2018-11-30 | AL71: 2018-12-31 | AM71: 2019-01-31 | AN71: 2019-02-28 | AO71: 2019-03-31 | AP71: TOTALE
A72: =+'5) INPUT COSTI FISSI'!A3 -> Contributi | B72: =+'5) INPUT COSTI FISSI'!B3 -> 0 | C72: =+'5) INPUT COSTI FISSI'!C3 -> 0 | D72: =+'5) INPUT COSTI FISSI'!D3 -> 0 | E72: =+'5) INPUT COSTI FISSI'!E3 -> 0 | F72: =+'5) INPUT COSTI FISSI'!F3 -> 0 | G72: =+'5) INPUT COSTI FISSI'!G3 -> 0 | H72: =+'5) INPUT COSTI FISSI'!H3 -> 0 | I72: =+'5) INPUT COSTI FISSI'!I3 -> 0 | J72: =+'5) INPUT COSTI FISSI'!J3 -> 0 | K72: =+'5) INPUT COSTI FISSI'!K3 -> 0 | L72: =+'5) INPUT COSTI FISSI'!L3 -> 0 | M72: =+'5) INPUT COSTI FISSI'!M3 -> 0 | N72: =+'5) INPUT COSTI FISSI'!N3 -> 0 | P72: =+'5) INPUT COSTI FISSI'!P3 -> 0 | Q72: =+'5) INPUT COSTI FISSI'!Q3 -> 0 | R72: =+'5) INPUT COSTI FISSI'!R3 -> 0 | S72: =+'5) INPUT COSTI FISSI'!S3 -> 0 | T72: =+'5) INPUT COSTI FISSI'!T3 -> 0 | U72: =+'5) INPUT COSTI FISSI'!U3 -> 0 | V72: =+'5) INPUT COSTI FISSI'!V3 -> 0 | W72: =+'5) INPUT COSTI FISSI'!W3 -> 0 | X72: =+'5) INPUT COSTI FISSI'!X3 -> 0 | Y72: =+'5) INPUT COSTI FISSI'!Y3 -> 0 | Z72: =+'5) INPUT COSTI FISSI'!Z3 -> 0 | AA72: =+'5) INPUT COSTI FISSI'!AA3 -> 0 | AB72: =+'5) INPUT COSTI FISSI'!AB3 -> 0 | AD72: =+'5) INPUT COSTI FISSI'!AD3 -> 0 | AE72: =+'5) INPUT COSTI FISSI'!AE3 -> 0 | AF72: =+'5) INPUT COSTI FISSI'!AF3 -> 0 | AG72: =+'5) INPUT COSTI FISSI'!AG3 -> 0 | AH72: =+'5) INPUT COSTI FISSI'!AH3 -> 0 | AI72: =+'5) INPUT COSTI FISSI'!AI3 -> 0 | AJ72: =+'5) INPUT COSTI FISSI'!AJ3 -> 0 | AK72: =+'5) INPUT COSTI FISSI'!AK3 -> 0 | AL72: =+'5) INPUT COSTI FISSI'!AL3 -> 0 | AM72: =+'5) INPUT COSTI FISSI'!AM3 -> 0 | AN72: =+'5) INPUT COSTI FISSI'!AN3 -> 0 | AO72: =+'5) INPUT COSTI FISSI'!AO3 -> 0 | AP72: =+'5) INPUT COSTI FISSI'!AP3 -> 0
A73: =+'5) INPUT COSTI FISSI'!A4 -> Imposta di registro | B73: =+'5) INPUT COSTI FISSI'!B4 -> 0 | C73: =+'5) INPUT COSTI FISSI'!C4 -> 0 | D73: =+'5) INPUT COSTI FISSI'!D4 -> 0 | E73: =+'5) INPUT COSTI FISSI'!E4 -> 0 | F73: =+'5) INPUT COSTI FISSI'!F4 -> 0 | G73: =+'5) INPUT COSTI FISSI'!G4 -> 0 | H73: =+'5) INPUT COSTI FISSI'!H4 -> 0 | I73: =+'5) INPUT COSTI FISSI'!I4 -> 0 | J73: =+'5) INPUT COSTI FISSI'!J4 -> 0 | K73: =+'5) INPUT COSTI FISSI'!K4 -> 0 | L73: =+'5) INPUT COSTI FISSI'!L4 -> 0 | M73: =+'5) INPUT COSTI FISSI'!M4 -> 0 | N73: =+'5) INPUT COSTI FISSI'!N4 -> 0 | P73: =+'5) INPUT COSTI FISSI'!P4 -> 0 | Q73: =+'5) INPUT COSTI FISSI'!Q4 -> 0 | R73: =+'5) INPUT COSTI FISSI'!R4 -> 0 | S73: =+'5) INPUT COSTI FISSI'!S4 -> 0 | T73: =+'5) INPUT COSTI FISSI'!T4 -> 0 | U73: =+'5) INPUT COSTI FISSI'!U4 -> 0 | V73: =+'5) INPUT COSTI FISSI'!V4 -> 0 | W73: =+'5) INPUT COSTI FISSI'!W4 -> 0 | X73: =+'5) INPUT COSTI FISSI'!X4 -> 0 | Y73: =+'5) INPUT COSTI FISSI'!Y4 -> 0 | Z73: =+'5) INPUT COSTI FISSI'!Z4 -> 0 | AA73: =+'5) INPUT COSTI FISSI'!AA4 -> 0 | AB73: =+'5) INPUT COSTI FISSI'!AB4 -> 0 | AD73: =+'5) INPUT COSTI FISSI'!AD4 -> 0 | AE73: =+'5) INPUT COSTI FISSI'!AE4 -> 0 | AF73: =+'5) INPUT COSTI FISSI'!AF4 -> 0 | AG73: =+'5) INPUT COSTI FISSI'!AG4 -> 0 | AH73: =+'5) INPUT COSTI FISSI'!AH4 -> 0 | AI73: =+'5) INPUT COSTI FISSI'!AI4 -> 0 | AJ73: =+'5) INPUT COSTI FISSI'!AJ4 -> 0 | AK73: =+'5) INPUT COSTI FISSI'!AK4 -> 0 | AL73: =+'5) INPUT COSTI FISSI'!AL4 -> 0 | AM73: =+'5) INPUT COSTI FISSI'!AM4 -> 0 | AN73: =+'5) INPUT COSTI FISSI'!AN4 -> 0 | AO73: =+'5) INPUT COSTI FISSI'!AO4 -> 0 | AP73: =+'5) INPUT COSTI FISSI'!AP4 -> 0
A74: =+'5) INPUT COSTI FISSI'!A5 -> Affitto | B74: =+'5) INPUT COSTI FISSI'!B5 -> 0 | C74: =+'5) INPUT COSTI FISSI'!C5 -> 0 | D74: =+'5) INPUT COSTI FISSI'!D5 -> 0 | E74: =+'5) INPUT COSTI FISSI'!E5 -> 0 | F74: =+'5) INPUT COSTI FISSI'!F5 -> 0 | G74: =+'5) INPUT COSTI FISSI'!G5 -> 0 | H74: =+'5) INPUT COSTI FISSI'!H5 -> 0 | I74: =+'5) INPUT COSTI FISSI'!I5 -> 0 | J74: =+'5) INPUT COSTI FISSI'!J5 -> 0 | K74: =+'5) INPUT COSTI FISSI'!K5 -> 0 | L74: =+'5) INPUT COSTI FISSI'!L5 -> 0 | M74: =+'5) INPUT COSTI FISSI'!M5 -> 0 | N74: =+'5) INPUT COSTI FISSI'!N5 -> 0 | P74: =+'5) INPUT COSTI FISSI'!P5 -> 0 | Q74: =+'5) INPUT COSTI FISSI'!Q5 -> 0 | R74: =+'5) INPUT COSTI FISSI'!R5 -> 0 | S74: =+'5) INPUT COSTI FISSI'!S5 -> 0 | T74: =+'5) INPUT COSTI FISSI'!T5 -> 0 | U74: =+'5) INPUT COSTI FISSI'!U5 -> 0 | V74: =+'5) INPUT COSTI FISSI'!V5 -> 0 | W74: =+'5) INPUT COSTI FISSI'!W5 -> 0 | X74: =+'5) INPUT COSTI FISSI'!X5 -> 0 | Y74: =+'5) INPUT COSTI FISSI'!Y5 -> 0 | Z74: =+'5) INPUT COSTI FISSI'!Z5 -> 0 | AA74: =+'5) INPUT COSTI FISSI'!AA5 -> 0 | AB74: =+'5) INPUT COSTI FISSI'!AB5 -> 0 | AD74: =+'5) INPUT COSTI FISSI'!AD5 -> 0 | AE74: =+'5) INPUT COSTI FISSI'!AE5 -> 0 | AF74: =+'5) INPUT COSTI FISSI'!AF5 -> 0 | AG74: =+'5) INPUT COSTI FISSI'!AG5 -> 0 | AH74: =+'5) INPUT COSTI FISSI'!AH5 -> 0 | AI74: =+'5) INPUT COSTI FISSI'!AI5 -> 0 | AJ74: =+'5) INPUT COSTI FISSI'!AJ5 -> 0 | AK74: =+'5) INPUT COSTI FISSI'!AK5 -> 0 | AL74: =+'5) INPUT COSTI FISSI'!AL5 -> 0 | AM74: =+'5) INPUT COSTI FISSI'!AM5 -> 0 | AN74: =+'5) INPUT COSTI FISSI'!AN5 -> 0 | AO74: =+'5) INPUT COSTI FISSI'!AO5 -> 0 | AP74: =+'5) INPUT COSTI FISSI'!AP5 -> 0
A75: =+'5) INPUT COSTI FISSI'!A6 -> Condominio | B75: =+'5) INPUT COSTI FISSI'!B6 -> 100 | C75: =+'5) INPUT COSTI FISSI'!C6 -> 100 | D75: =+'5) INPUT COSTI FISSI'!D6 -> 100 | E75: =+'5) INPUT COSTI FISSI'!E6 -> 100 | F75: =+'5) INPUT COSTI FISSI'!F6 -> 100 | G75: =+'5) INPUT COSTI FISSI'!G6 -> 100 | H75: =+'5) INPUT COSTI FISSI'!H6 -> 100 | I75: =+'5) INPUT COSTI FISSI'!I6 -> 100 | J75: =+'5) INPUT COSTI FISSI'!J6 -> 100 | K75: =+'5) INPUT COSTI FISSI'!K6 -> 100 | L75: =+'5) INPUT COSTI FISSI'!L6 -> 100 | M75: =+'5) INPUT COSTI FISSI'!M6 -> 100 | N75: =+'5) INPUT COSTI FISSI'!N6 -> 1200 | P75: =+'5) INPUT COSTI FISSI'!P6 -> 100 | Q75: =+'5) INPUT COSTI FISSI'!Q6 -> 100 | R75: =+'5) INPUT COSTI FISSI'!R6 -> 100 | S75: =+'5) INPUT COSTI FISSI'!S6 -> 100 | T75: =+'5) INPUT COSTI FISSI'!T6 -> 100 | U75: =+'5) INPUT COSTI FISSI'!U6 -> 100 | V75: =+'5) INPUT COSTI FISSI'!V6 -> 100 | W75: =+'5) INPUT COSTI FISSI'!W6 -> 100 | X75: =+'5) INPUT COSTI FISSI'!X6 -> 100 | Y75: =+'5) INPUT COSTI FISSI'!Y6 -> 100 | Z75: =+'5) INPUT COSTI FISSI'!Z6 -> 100 | AA75: =+'5) INPUT COSTI FISSI'!AA6 -> 100 | AB75: =+'5) INPUT COSTI FISSI'!AB6 -> 1200 | AD75: =+'5) INPUT COSTI FISSI'!AD6 -> 100 | AE75: =+'5) INPUT COSTI FISSI'!AE6 -> 100 | AF75: =+'5) INPUT COSTI FISSI'!AF6 -> 100 | AG75: =+'5) INPUT COSTI FISSI'!AG6 -> 100 | AH75: =+'5) INPUT COSTI FISSI'!AH6 -> 100 | AI75: =+'5) INPUT COSTI FISSI'!AI6 -> 100 | AJ75: =+'5) INPUT COSTI FISSI'!AJ6 -> 100 | AK75: =+'5) INPUT COSTI FISSI'!AK6 -> 100 | AL75: =+'5) INPUT COSTI FISSI'!AL6 -> 100 | AM75: =+'5) INPUT COSTI FISSI'!AM6 -> 100 | AN75: =+'5) INPUT COSTI FISSI'!AN6 -> 100 | AO75: =+'5) INPUT COSTI FISSI'!AO6 -> 100 | AP75: =+'5) INPUT COSTI FISSI'!AP6 -> 1200
A76: =+'5) INPUT COSTI FISSI'!A7 -> Collaboratori occasionali/stagionali | B76: =+'5) INPUT COSTI FISSI'!B7 -> 0 | C76: =+'5) INPUT COSTI FISSI'!C7 -> 0 | D76: =+'5) INPUT COSTI FISSI'!D7 -> 0 | E76: =+'5) INPUT COSTI FISSI'!E7 -> 0 | F76: =+'5) INPUT COSTI FISSI'!F7 -> 0 | G76: =+'5) INPUT COSTI FISSI'!G7 -> 0 | H76: =+'5) INPUT COSTI FISSI'!H7 -> 0 | I76: =+'5) INPUT COSTI FISSI'!I7 -> 0 | J76: =+'5) INPUT COSTI FISSI'!J7 -> 0 | K76: =+'5) INPUT COSTI FISSI'!K7 -> 0 | L76: =+'5) INPUT COSTI FISSI'!L7 -> 0 | M76: =+'5) INPUT COSTI FISSI'!M7 -> 0 | N76: =+'5) INPUT COSTI FISSI'!N7 -> 0 | P76: =+'5) INPUT COSTI FISSI'!P7 -> 0 | Q76: =+'5) INPUT COSTI FISSI'!Q7 -> 0 | R76: =+'5) INPUT COSTI FISSI'!R7 -> 0 | S76: =+'5) INPUT COSTI FISSI'!S7 -> 0 | T76: =+'5) INPUT COSTI FISSI'!T7 -> 0 | U76: =+'5) INPUT COSTI FISSI'!U7 -> 0 | V76: =+'5) INPUT COSTI FISSI'!V7 -> 0 | W76: =+'5) INPUT COSTI FISSI'!W7 -> 0 | X76: =+'5) INPUT COSTI FISSI'!X7 -> 0 | Y76: =+'5) INPUT COSTI FISSI'!Y7 -> 0 | Z76: =+'5) INPUT COSTI FISSI'!Z7 -> 0 | AA76: =+'5) INPUT COSTI FISSI'!AA7 -> 0 | AB76: =+'5) INPUT COSTI FISSI'!AB7 -> 0 | AD76: =+'5) INPUT COSTI FISSI'!AD7 -> 0 | AE76: =+'5) INPUT COSTI FISSI'!AE7 -> 0 | AF76: =+'5) INPUT COSTI FISSI'!AF7 -> 0 | AG76: =+'5) INPUT COSTI FISSI'!AG7 -> 0 | AH76: =+'5) INPUT COSTI FISSI'!AH7 -> 0 | AI76: =+'5) INPUT COSTI FISSI'!AI7 -> 0 | AJ76: =+'5) INPUT COSTI FISSI'!AJ7 -> 0 | AK76: =+'5) INPUT COSTI FISSI'!AK7 -> 0 | AL76: =+'5) INPUT COSTI FISSI'!AL7 -> 0 | AM76: =+'5) INPUT COSTI FISSI'!AM7 -> 0 | AN76: =+'5) INPUT COSTI FISSI'!AN7 -> 0 | AO76: =+'5) INPUT COSTI FISSI'!AO7 -> 0 | AP76: =+'5) INPUT COSTI FISSI'!AP7 -> 0
A77: =+'5) INPUT COSTI FISSI'!A8 -> Commercialista, consulente del lavoro, legale | B77: =+'5) INPUT COSTI FISSI'!B8 -> 0 | C77: =+'5) INPUT COSTI FISSI'!C8 -> 0 | D77: =+'5) INPUT COSTI FISSI'!D8 -> 0 | E77: =+'5) INPUT COSTI FISSI'!E8 -> 0 | F77: =+'5) INPUT COSTI FISSI'!F8 -> 0 | G77: =+'5) INPUT COSTI FISSI'!G8 -> 0 | H77: =+'5) INPUT COSTI FISSI'!H8 -> 0 | I77: =+'5) INPUT COSTI FISSI'!I8 -> 0 | J77: =+'5) INPUT COSTI FISSI'!J8 -> 0 | K77: =+'5) INPUT COSTI FISSI'!K8 -> 0 | L77: =+'5) INPUT COSTI FISSI'!L8 -> 0 | M77: =+'5) INPUT COSTI FISSI'!M8 -> 150 | N77: =+'5) INPUT COSTI FISSI'!N8 -> 150 | P77: =+'5) INPUT COSTI FISSI'!P8 -> 0 | Q77: =+'5) INPUT COSTI FISSI'!Q8 -> 0 | R77: =+'5) INPUT COSTI FISSI'!R8 -> 0 | S77: =+'5) INPUT COSTI FISSI'!S8 -> 0 | T77: =+'5) INPUT COSTI FISSI'!T8 -> 0 | U77: =+'5) INPUT COSTI FISSI'!U8 -> 0 | V77: =+'5) INPUT COSTI FISSI'!V8 -> 0 | W77: =+'5) INPUT COSTI FISSI'!W8 -> 0 | X77: =+'5) INPUT COSTI FISSI'!X8 -> 0 | Y77: =+'5) INPUT COSTI FISSI'!Y8 -> 0 | Z77: =+'5) INPUT COSTI FISSI'!Z8 -> 0 | AA77: =+'5) INPUT COSTI FISSI'!AA8 -> 150 | AB77: =+'5) INPUT COSTI FISSI'!AB8 -> 150 | AD77: =+'5) INPUT COSTI FISSI'!AD8 -> 0 | AE77: =+'5) INPUT COSTI FISSI'!AE8 -> 0 | AF77: =+'5) INPUT COSTI FISSI'!AF8 -> 0 | AG77: =+'5) INPUT COSTI FISSI'!AG8 -> 0 | AH77: =+'5) INPUT COSTI FISSI'!AH8 -> 0 | AI77: =+'5) INPUT COSTI FISSI'!AI8 -> 0 | AJ77: =+'5) INPUT COSTI FISSI'!AJ8 -> 0 | AK77: =+'5) INPUT COSTI FISSI'!AK8 -> 0 | AL77: =+'5) INPUT COSTI FISSI'!AL8 -> 0 | AM77: =+'5) INPUT COSTI FISSI'!AM8 -> 0 | AN77: =+'5) INPUT COSTI FISSI'!AN8 -> 0 | AO77: =+'5) INPUT COSTI FISSI'!AO8 -> 150 | AP77: =+'5) INPUT COSTI FISSI'!AP8 -> 150
A78: =+'5) INPUT COSTI FISSI'!A9 -> Promozione post avvio | B78: =+'5) INPUT COSTI FISSI'!B9 -> 100 | C78: =+'5) INPUT COSTI FISSI'!C9 -> 100 | D78: =+'5) INPUT COSTI FISSI'!D9 -> 100 | E78: =+'5) INPUT COSTI FISSI'!E9 -> 100 | F78: =+'5) INPUT COSTI FISSI'!F9 -> 100 | G78: =+'5) INPUT COSTI FISSI'!G9 -> 100 | H78: =+'5) INPUT COSTI FISSI'!H9 -> 100 | I78: =+'5) INPUT COSTI FISSI'!I9 -> 100 | J78: =+'5) INPUT COSTI FISSI'!J9 -> 100 | K78: =+'5) INPUT COSTI FISSI'!K9 -> 100 | L78: =+'5) INPUT COSTI FISSI'!L9 -> 100 | M78: =+'5) INPUT COSTI FISSI'!M9 -> 100 | N78: =+'5) INPUT COSTI FISSI'!N9 -> 1200 | P78: =+'5) INPUT COSTI FISSI'!P9 -> 100 | Q78: =+'5) INPUT COSTI FISSI'!Q9 -> 100 | R78: =+'5) INPUT COSTI FISSI'!R9 -> 100 | S78: =+'5) INPUT COSTI FISSI'!S9 -> 100 | T78: =+'5) INPUT COSTI FISSI'!T9 -> 100 | U78: =+'5) INPUT COSTI FISSI'!U9 -> 100 | V78: =+'5) INPUT COSTI FISSI'!V9 -> 100 | W78: =+'5) INPUT COSTI FISSI'!W9 -> 100 | X78: =+'5) INPUT COSTI FISSI'!X9 -> 100 | Y78: =+'5) INPUT COSTI FISSI'!Y9 -> 100 | Z78: =+'5) INPUT COSTI FISSI'!Z9 -> 100 | AA78: =+'5) INPUT COSTI FISSI'!AA9 -> 100 | AB78: =+'5) INPUT COSTI FISSI'!AB9 -> 1200 | AD78: =+'5) INPUT COSTI FISSI'!AD9 -> 100 | AE78: =+'5) INPUT COSTI FISSI'!AE9 -> 100 | AF78: =+'5) INPUT COSTI FISSI'!AF9 -> 100 | AG78: =+'5) INPUT COSTI FISSI'!AG9 -> 100 | AH78: =+'5) INPUT COSTI FISSI'!AH9 -> 100 | AI78: =+'5) INPUT COSTI FISSI'!AI9 -> 100 | AJ78: =+'5) INPUT COSTI FISSI'!AJ9 -> 100 | AK78: =+'5) INPUT COSTI FISSI'!AK9 -> 100 | AL78: =+'5) INPUT COSTI FISSI'!AL9 -> 100 | AM78: =+'5) INPUT COSTI FISSI'!AM9 -> 100 | AN78: =+'5) INPUT COSTI FISSI'!AN9 -> 100 | AO78: =+'5) INPUT COSTI FISSI'!AO9 -> 100 | AP78: =+'5) INPUT COSTI FISSI'!AP9 -> 1200
A79: =+'5) INPUT COSTI FISSI'!A10 -> Dominio, hosting e manutenzione sito internet | B79: =+'5) INPUT COSTI FISSI'!B10 -> 0 | C79: =+'5) INPUT COSTI FISSI'!C10 -> 0 | D79: =+'5) INPUT COSTI FISSI'!D10 -> 0 | E79: =+'5) INPUT COSTI FISSI'!E10 -> 0 | F79: =+'5) INPUT COSTI FISSI'!F10 -> 0 | G79: =+'5) INPUT COSTI FISSI'!G10 -> 0 | H79: =+'5) INPUT COSTI FISSI'!H10 -> 0 | I79: =+'5) INPUT COSTI FISSI'!I10 -> 0 | J79: =+'5) INPUT COSTI FISSI'!J10 -> 0 | K79: =+'5) INPUT COSTI FISSI'!K10 -> 0 | L79: =+'5) INPUT COSTI FISSI'!L10 -> 0 | M79: =+'5) INPUT COSTI FISSI'!M10 -> 100 | N79: =+'5) INPUT COSTI FISSI'!N10 -> 100 | P79: =+'5) INPUT COSTI FISSI'!P10 -> 0 | Q79: =+'5) INPUT COSTI FISSI'!Q10 -> 0 | R79: =+'5) INPUT COSTI FISSI'!R10 -> 0 | S79: =+'5) INPUT COSTI FISSI'!S10 -> 0 | T79: =+'5) INPUT COSTI FISSI'!T10 -> 0 | U79: =+'5) INPUT COSTI FISSI'!U10 -> 0 | V79: =+'5) INPUT COSTI FISSI'!V10 -> 0 | W79: =+'5) INPUT COSTI FISSI'!W10 -> 0 | X79: =+'5) INPUT COSTI FISSI'!X10 -> 0 | Y79: =+'5) INPUT COSTI FISSI'!Y10 -> 0 | Z79: =+'5) INPUT COSTI FISSI'!Z10 -> 0 | AA79: =+'5) INPUT COSTI FISSI'!AA10 -> 100 | AB79: =+'5) INPUT COSTI FISSI'!AB10 -> 100 | AD79: =+'5) INPUT COSTI FISSI'!AD10 -> 0 | AE79: =+'5) INPUT COSTI FISSI'!AE10 -> 0 | AF79: =+'5) INPUT COSTI FISSI'!AF10 -> 0 | AG79: =+'5) INPUT COSTI FISSI'!AG10 -> 0 | AH79: =+'5) INPUT COSTI FISSI'!AH10 -> 0 | AI79: =+'5) INPUT COSTI FISSI'!AI10 -> 0 | AJ79: =+'5) INPUT COSTI FISSI'!AJ10 -> 0 | AK79: =+'5) INPUT COSTI FISSI'!AK10 -> 0 | AL79: =+'5) INPUT COSTI FISSI'!AL10 -> 0 | AM79: =+'5) INPUT COSTI FISSI'!AM10 -> 0 | AN79: =+'5) INPUT COSTI FISSI'!AN10 -> 0 | AO79: =+'5) INPUT COSTI FISSI'!AO10 -> 100 | AP79: =+'5) INPUT COSTI FISSI'!AP10 -> 100
A80: =+'5) INPUT COSTI FISSI'!A11 -> Noleggio POS | B80: =+'5) INPUT COSTI FISSI'!B11 -> 0 | C80: =+'5) INPUT COSTI FISSI'!C11 -> 0 | D80: =+'5) INPUT COSTI FISSI'!D11 -> 0 | E80: =+'5) INPUT COSTI FISSI'!E11 -> 0 | F80: =+'5) INPUT COSTI FISSI'!F11 -> 0 | G80: =+'5) INPUT COSTI FISSI'!G11 -> 0 | H80: =+'5) INPUT COSTI FISSI'!H11 -> 0 | I80: =+'5) INPUT COSTI FISSI'!I11 -> 0 | J80: =+'5) INPUT COSTI FISSI'!J11 -> 0 | K80: =+'5) INPUT COSTI FISSI'!K11 -> 0 | L80: =+'5) INPUT COSTI FISSI'!L11 -> 0 | M80: =+'5) INPUT COSTI FISSI'!M11 -> 0 | N80: =+'5) INPUT COSTI FISSI'!N11 -> 0 | P80: =+'5) INPUT COSTI FISSI'!P11 -> 0 | Q80: =+'5) INPUT COSTI FISSI'!Q11 -> 0 | R80: =+'5) INPUT COSTI FISSI'!R11 -> 0 | S80: =+'5) INPUT COSTI FISSI'!S11 -> 0 | T80: =+'5) INPUT COSTI FISSI'!T11 -> 0 | U80: =+'5) INPUT COSTI FISSI'!U11 -> 0 | V80: =+'5) INPUT COSTI FISSI'!V11 -> 0 | W80: =+'5) INPUT COSTI FISSI'!W11 -> 0 | X80: =+'5) INPUT COSTI FISSI'!X11 -> 0 | Y80: =+'5) INPUT COSTI FISSI'!Y11 -> 0 | Z80: =+'5) INPUT COSTI FISSI'!Z11 -> 0 | AA80: =+'5) INPUT COSTI FISSI'!AA11 -> 0 | AB80: =+'5) INPUT COSTI FISSI'!AB11 -> 0 | AD80: =+'5) INPUT COSTI FISSI'!AD11 -> 0 | AE80: =+'5) INPUT COSTI FISSI'!AE11 -> 0 | AF80: =+'5) INPUT COSTI FISSI'!AF11 -> 0 | AG80: =+'5) INPUT COSTI FISSI'!AG11 -> 0 | AH80: =+'5) INPUT COSTI FISSI'!AH11 -> 0 | AI80: =+'5) INPUT COSTI FISSI'!AI11 -> 0 | AJ80: =+'5) INPUT COSTI FISSI'!AJ11 -> 0 | AK80: =+'5) INPUT COSTI FISSI'!AK11 -> 0 | AL80: =+'5) INPUT COSTI FISSI'!AL11 -> 0 | AM80: =+'5) INPUT COSTI FISSI'!AM11 -> 0 | AN80: =+'5) INPUT COSTI FISSI'!AN11 -> 0 | AO80: =+'5) INPUT COSTI FISSI'!AO11 -> 0 | AP80: =+'5) INPUT COSTI FISSI'!AP11 -> 0
A81: =+'5) INPUT COSTI FISSI'!A12 -> Manutenzioni e riparazioni | B81: =+'5) INPUT COSTI FISSI'!B12 -> 0 | C81: =+'5) INPUT COSTI FISSI'!C12 -> 0 | D81: =+'5) INPUT COSTI FISSI'!D12 -> 0 | E81: =+'5) INPUT COSTI FISSI'!E12 -> 0 | F81: =+'5) INPUT COSTI FISSI'!F12 -> 0 | G81: =+'5) INPUT COSTI FISSI'!G12 -> 0 | H81: =+'5) INPUT COSTI FISSI'!H12 -> 0 | I81: =+'5) INPUT COSTI FISSI'!I12 -> 0 | J81: =+'5) INPUT COSTI FISSI'!J12 -> 0 | K81: =+'5) INPUT COSTI FISSI'!K12 -> 0 | L81: =+'5) INPUT COSTI FISSI'!L12 -> 0 | M81: =+'5) INPUT COSTI FISSI'!M12 -> 500 | N81: =+'5) INPUT COSTI FISSI'!N12 -> 500 | P81: =+'5) INPUT COSTI FISSI'!P12 -> 0 | Q81: =+'5) INPUT COSTI FISSI'!Q12 -> 0 | R81: =+'5) INPUT COSTI FISSI'!R12 -> 0 | S81: =+'5) INPUT COSTI FISSI'!S12 -> 0 | T81: =+'5) INPUT COSTI FISSI'!T12 -> 0 | U81: =+'5) INPUT COSTI FISSI'!U12 -> 0 | V81: =+'5) INPUT COSTI FISSI'!V12 -> 0 | W81: =+'5) INPUT COSTI FISSI'!W12 -> 0 | X81: =+'5) INPUT COSTI FISSI'!X12 -> 0 | Y81: =+'5) INPUT COSTI FISSI'!Y12 -> 0 | Z81: =+'5) INPUT COSTI FISSI'!Z12 -> 0 | AA81: =+'5) INPUT COSTI FISSI'!AA12 -> 500 | AB81: =+'5) INPUT COSTI FISSI'!AB12 -> 500 | AD81: =+'5) INPUT COSTI FISSI'!AD12 -> 0 | AE81: =+'5) INPUT COSTI FISSI'!AE12 -> 0 | AF81: =+'5) INPUT COSTI FISSI'!AF12 -> 0 | AG81: =+'5) INPUT COSTI FISSI'!AG12 -> 0 | AH81: =+'5) INPUT COSTI FISSI'!AH12 -> 0 | AI81: =+'5) INPUT COSTI FISSI'!AI12 -> 0 | AJ81: =+'5) INPUT COSTI FISSI'!AJ12 -> 0 | AK81: =+'5) INPUT COSTI FISSI'!AK12 -> 0 | AL81: =+'5) INPUT COSTI FISSI'!AL12 -> 0 | AM81: =+'5) INPUT COSTI FISSI'!AM12 -> 0 | AN81: =+'5) INPUT COSTI FISSI'!AN12 -> 0 | AO81: =+'5) INPUT COSTI FISSI'!AO12 -> 500 | AP81: =+'5) INPUT COSTI FISSI'!AP12 -> 500
A82: =+'5) INPUT COSTI FISSI'!A13 -> Energia elettrica | B82: =+'5) INPUT COSTI FISSI'!B13 -> 0 | C82: =+'5) INPUT COSTI FISSI'!C13 -> 100 | D82: =+'5) INPUT COSTI FISSI'!D13 -> 0 | E82: =+'5) INPUT COSTI FISSI'!E13 -> 100 | F82: =+'5) INPUT COSTI FISSI'!F13 -> 0 | G82: =+'5) INPUT COSTI FISSI'!G13 -> 100 | H82: =+'5) INPUT COSTI FISSI'!H13 -> 0 | I82: =+'5) INPUT COSTI FISSI'!I13 -> 100 | J82: =+'5) INPUT COSTI FISSI'!J13 -> 0 | K82: =+'5) INPUT COSTI FISSI'!K13 -> 100 | L82: =+'5) INPUT COSTI FISSI'!L13 -> 0 | M82: =+'5) INPUT COSTI FISSI'!M13 -> 100 | N82: =+'5) INPUT COSTI FISSI'!N13 -> 600 | P82: =+'5) INPUT COSTI FISSI'!P13 -> 0 | Q82: =+'5) INPUT COSTI FISSI'!Q13 -> 100 | R82: =+'5) INPUT COSTI FISSI'!R13 -> 0 | S82: =+'5) INPUT COSTI FISSI'!S13 -> 100 | T82: =+'5) INPUT COSTI FISSI'!T13 -> 0 | U82: =+'5) INPUT COSTI FISSI'!U13 -> 100 | V82: =+'5) INPUT COSTI FISSI'!V13 -> 0 | W82: =+'5) INPUT COSTI FISSI'!W13 -> 100 | X82: =+'5) INPUT COSTI FISSI'!X13 -> 0 | Y82: =+'5) INPUT COSTI FISSI'!Y13 -> 100 | Z82: =+'5) INPUT COSTI FISSI'!Z13 -> 0 | AA82: =+'5) INPUT COSTI FISSI'!AA13 -> 100 | AB82: =+'5) INPUT COSTI FISSI'!AB13 -> 600 | AD82: =+'5) INPUT COSTI FISSI'!AD13 -> 0 | AE82: =+'5) INPUT COSTI FISSI'!AE13 -> 100 | AF82: =+'5) INPUT COSTI FISSI'!AF13 -> 0 | AG82: =+'5) INPUT COSTI FISSI'!AG13 -> 100 | AH82: =+'5) INPUT COSTI FISSI'!AH13 -> 0 | AI82: =+'5) INPUT COSTI FISSI'!AI13 -> 100 | AJ82: =+'5) INPUT COSTI FISSI'!AJ13 -> 0 | AK82: =+'5) INPUT COSTI FISSI'!AK13 -> 100 | AL82: =+'5) INPUT COSTI FISSI'!AL13 -> 0 | AM82: =+'5) INPUT COSTI FISSI'!AM13 -> 100 | AN82: =+'5) INPUT COSTI FISSI'!AN13 -> 0 | AO82: =+'5) INPUT COSTI FISSI'!AO13 -> 100 | AP82: =+'5) INPUT COSTI FISSI'!AP13 -> 600
A83: =+'5) INPUT COSTI FISSI'!A14 -> Spese telefoniche/Internet | B83: =+'5) INPUT COSTI FISSI'!B14 -> 30 | C83: =+'5) INPUT COSTI FISSI'!C14 -> 30 | D83: =+'5) INPUT COSTI FISSI'!D14 -> 30 | E83: =+'5) INPUT COSTI FISSI'!E14 -> 30 | F83: =+'5) INPUT COSTI FISSI'!F14 -> 30 | G83: =+'5) INPUT COSTI FISSI'!G14 -> 30 | H83: =+'5) INPUT COSTI FISSI'!H14 -> 30 | I83: =+'5) INPUT COSTI FISSI'!I14 -> 30 | J83: =+'5) INPUT COSTI FISSI'!J14 -> 30 | K83: =+'5) INPUT COSTI FISSI'!K14 -> 30 | L83: =+'5) INPUT COSTI FISSI'!L14 -> 30 | M83: =+'5) INPUT COSTI FISSI'!M14 -> 30 | N83: =+'5) INPUT COSTI FISSI'!N14 -> 360 | P83: =+'5) INPUT COSTI FISSI'!P14 -> 30 | Q83: =+'5) INPUT COSTI FISSI'!Q14 -> 30 | R83: =+'5) INPUT COSTI FISSI'!R14 -> 30 | S83: =+'5) INPUT COSTI FISSI'!S14 -> 30 | T83: =+'5) INPUT COSTI FISSI'!T14 -> 30 | U83: =+'5) INPUT COSTI FISSI'!U14 -> 30 | V83: =+'5) INPUT COSTI FISSI'!V14 -> 30 | W83: =+'5) INPUT COSTI FISSI'!W14 -> 30 | X83: =+'5) INPUT COSTI FISSI'!X14 -> 30 | Y83: =+'5) INPUT COSTI FISSI'!Y14 -> 30 | Z83: =+'5) INPUT COSTI FISSI'!Z14 -> 30 | AA83: =+'5) INPUT COSTI FISSI'!AA14 -> 30 | AB83: =+'5) INPUT COSTI FISSI'!AB14 -> 360 | AD83: =+'5) INPUT COSTI FISSI'!AD14 -> 30 | AE83: =+'5) INPUT COSTI FISSI'!AE14 -> 30 | AF83: =+'5) INPUT COSTI FISSI'!AF14 -> 30 | AG83: =+'5) INPUT COSTI FISSI'!AG14 -> 30 | AH83: =+'5) INPUT COSTI FISSI'!AH14 -> 30 | AI83: =+'5) INPUT COSTI FISSI'!AI14 -> 30 | AJ83: =+'5) INPUT COSTI FISSI'!AJ14 -> 30 | AK83: =+'5) INPUT COSTI FISSI'!AK14 -> 30 | AL83: =+'5) INPUT COSTI FISSI'!AL14 -> 30 | AM83: =+'5) INPUT COSTI FISSI'!AM14 -> 30 | AN83: =+'5) INPUT COSTI FISSI'!AN14 -> 30 | AO83: =+'5) INPUT COSTI FISSI'!AO14 -> 30 | AP83: =+'5) INPUT COSTI FISSI'!AP14 -> 360
A84: =+'5) INPUT COSTI FISSI'!A15 -> Acqua | B84: =+'5) INPUT COSTI FISSI'!B15 -> 0 | C84: =+'5) INPUT COSTI FISSI'!C15 -> 60 | D84: =+'5) INPUT COSTI FISSI'!D15 -> 0 | E84: =+'5) INPUT COSTI FISSI'!E15 -> 60 | F84: =+'5) INPUT COSTI FISSI'!F15 -> 0 | G84: =+'5) INPUT COSTI FISSI'!G15 -> 60 | H84: =+'5) INPUT COSTI FISSI'!H15 -> 0 | I84: =+'5) INPUT COSTI FISSI'!I15 -> 60 | J84: =+'5) INPUT COSTI FISSI'!J15 -> 0 | K84: =+'5) INPUT COSTI FISSI'!K15 -> 60 | L84: =+'5) INPUT COSTI FISSI'!L15 -> 0 | M84: =+'5) INPUT COSTI FISSI'!M15 -> 60 | N84: =+'5) INPUT COSTI FISSI'!N15 -> 360 | P84: =+'5) INPUT COSTI FISSI'!P15 -> 0 | Q84: =+'5) INPUT COSTI FISSI'!Q15 -> 60 | R84: =+'5) INPUT COSTI FISSI'!R15 -> 0 | S84: =+'5) INPUT COSTI FISSI'!S15 -> 60 | T84: =+'5) INPUT COSTI FISSI'!T15 -> 0 | U84: =+'5) INPUT COSTI FISSI'!U15 -> 60 | V84: =+'5) INPUT COSTI FISSI'!V15 -> 0 | W84: =+'5) INPUT COSTI FISSI'!W15 -> 60 | X84: =+'5) INPUT COSTI FISSI'!X15 -> 0 | Y84: =+'5) INPUT COSTI FISSI'!Y15 -> 60 | Z84: =+'5) INPUT COSTI FISSI'!Z15 -> 0 | AA84: =+'5) INPUT COSTI FISSI'!AA15 -> 60 | AB84: =+'5) INPUT COSTI FISSI'!AB15 -> 360 | AD84: =+'5) INPUT COSTI FISSI'!AD15 -> 0 | AE84: =+'5) INPUT COSTI FISSI'!AE15 -> 60 | AF84: =+'5) INPUT COSTI FISSI'!AF15 -> 0 | AG84: =+'5) INPUT COSTI FISSI'!AG15 -> 60 | AH84: =+'5) INPUT COSTI FISSI'!AH15 -> 0 | AI84: =+'5) INPUT COSTI FISSI'!AI15 -> 60 | AJ84: =+'5) INPUT COSTI FISSI'!AJ15 -> 0 | AK84: =+'5) INPUT COSTI FISSI'!AK15 -> 60 | AL84: =+'5) INPUT COSTI FISSI'!AL15 -> 0 | AM84: =+'5) INPUT COSTI FISSI'!AM15 -> 60 | AN84: =+'5) INPUT COSTI FISSI'!AN15 -> 0 | AO84: =+'5) INPUT COSTI FISSI'!AO15 -> 60 | AP84: =+'5) INPUT COSTI FISSI'!AP15 -> 360
A85: =+'5) INPUT COSTI FISSI'!A16 -> Metano/gas | B85: =+'5) INPUT COSTI FISSI'!B16 -> 0 | C85: =+'5) INPUT COSTI FISSI'!C16 -> 0 | D85: =+'5) INPUT COSTI FISSI'!D16 -> 0 | E85: =+'5) INPUT COSTI FISSI'!E16 -> 0 | F85: =+'5) INPUT COSTI FISSI'!F16 -> 0 | G85: =+'5) INPUT COSTI FISSI'!G16 -> 0 | H85: =+'5) INPUT COSTI FISSI'!H16 -> 0 | I85: =+'5) INPUT COSTI FISSI'!I16 -> 0 | J85: =+'5) INPUT COSTI FISSI'!J16 -> 0 | K85: =+'5) INPUT COSTI FISSI'!K16 -> 0 | L85: =+'5) INPUT COSTI FISSI'!L16 -> 0 | M85: =+'5) INPUT COSTI FISSI'!M16 -> 0 | N85: =+'5) INPUT COSTI FISSI'!N16 -> 0 | P85: =+'5) INPUT COSTI FISSI'!P16 -> 0 | Q85: =+'5) INPUT COSTI FISSI'!Q16 -> 0 | R85: =+'5) INPUT COSTI FISSI'!R16 -> 0 | S85: =+'5) INPUT COSTI FISSI'!S16 -> 0 | T85: =+'5) INPUT COSTI FISSI'!T16 -> 0 | U85: =+'5) INPUT COSTI FISSI'!U16 -> 0 | V85: =+'5) INPUT COSTI FISSI'!V16 -> 0 | W85: =+'5) INPUT COSTI FISSI'!W16 -> 0 | X85: =+'5) INPUT COSTI FISSI'!X16 -> 0 | Y85: =+'5) INPUT COSTI FISSI'!Y16 -> 0 | Z85: =+'5) INPUT COSTI FISSI'!Z16 -> 0 | AA85: =+'5) INPUT COSTI FISSI'!AA16 -> 0 | AB85: =+'5) INPUT COSTI FISSI'!AB16 -> 0 | AD85: =+'5) INPUT COSTI FISSI'!AD16 -> 0 | AE85: =+'5) INPUT COSTI FISSI'!AE16 -> 0 | AF85: =+'5) INPUT COSTI FISSI'!AF16 -> 0 | AG85: =+'5) INPUT COSTI FISSI'!AG16 -> 0 | AH85: =+'5) INPUT COSTI FISSI'!AH16 -> 0 | AI85: =+'5) INPUT COSTI FISSI'!AI16 -> 0 | AJ85: =+'5) INPUT COSTI FISSI'!AJ16 -> 0 | AK85: =+'5) INPUT COSTI FISSI'!AK16 -> 0 | AL85: =+'5) INPUT COSTI FISSI'!AL16 -> 0 | AM85: =+'5) INPUT COSTI FISSI'!AM16 -> 0 | AN85: =+'5) INPUT COSTI FISSI'!AN16 -> 0 | AO85: =+'5) INPUT COSTI FISSI'!AO16 -> 0 | AP85: =+'5) INPUT COSTI FISSI'!AP16 -> 0
A86: =+'5) INPUT COSTI FISSI'!A17 -> Condominio | B86: =+'5) INPUT COSTI FISSI'!B17 -> 0 | C86: =+'5) INPUT COSTI FISSI'!C17 -> 0 | D86: =+'5) INPUT COSTI FISSI'!D17 -> 0 | E86: =+'5) INPUT COSTI FISSI'!E17 -> 0 | F86: =+'5) INPUT COSTI FISSI'!F17 -> 0 | G86: =+'5) INPUT COSTI FISSI'!G17 -> 0 | H86: =+'5) INPUT COSTI FISSI'!H17 -> 0 | I86: =+'5) INPUT COSTI FISSI'!I17 -> 0 | J86: =+'5) INPUT COSTI FISSI'!J17 -> 0 | K86: =+'5) INPUT COSTI FISSI'!K17 -> 0 | L86: =+'5) INPUT COSTI FISSI'!L17 -> 0 | M86: =+'5) INPUT COSTI FISSI'!M17 -> 0 | N86: =+'5) INPUT COSTI FISSI'!N17 -> 0 | P86: =+'5) INPUT COSTI FISSI'!P17 -> 0 | Q86: =+'5) INPUT COSTI FISSI'!Q17 -> 0 | R86: =+'5) INPUT COSTI FISSI'!R17 -> 0 | S86: =+'5) INPUT COSTI FISSI'!S17 -> 0 | T86: =+'5) INPUT COSTI FISSI'!T17 -> 0 | U86: =+'5) INPUT COSTI FISSI'!U17 -> 0 | V86: =+'5) INPUT COSTI FISSI'!V17 -> 0 | W86: =+'5) INPUT COSTI FISSI'!W17 -> 0 | X86: =+'5) INPUT COSTI FISSI'!X17 -> 0 | Y86: =+'5) INPUT COSTI FISSI'!Y17 -> 0 | Z86: =+'5) INPUT COSTI FISSI'!Z17 -> 0 | AA86: =+'5) INPUT COSTI FISSI'!AA17 -> 0 | AB86: =+'5) INPUT COSTI FISSI'!AB17 -> 0 | AD86: =+'5) INPUT COSTI FISSI'!AD17 -> 0 | AE86: =+'5) INPUT COSTI FISSI'!AE17 -> 0 | AF86: =+'5) INPUT COSTI FISSI'!AF17 -> 0 | AG86: =+'5) INPUT COSTI FISSI'!AG17 -> 0 | AH86: =+'5) INPUT COSTI FISSI'!AH17 -> 0 | AI86: =+'5) INPUT COSTI FISSI'!AI17 -> 0 | AJ86: =+'5) INPUT COSTI FISSI'!AJ17 -> 0 | AK86: =+'5) INPUT COSTI FISSI'!AK17 -> 0 | AL86: =+'5) INPUT COSTI FISSI'!AL17 -> 0 | AM86: =+'5) INPUT COSTI FISSI'!AM17 -> 0 | AN86: =+'5) INPUT COSTI FISSI'!AN17 -> 0 | AO86: =+'5) INPUT COSTI FISSI'!AO17 -> 0 | AP86: =+'5) INPUT COSTI FISSI'!AP17 -> 0
A87: =+'5) INPUT COSTI FISSI'!A18 -> Marche da bollo | B87: =+'5) INPUT COSTI FISSI'!B18 -> 0 | C87: =+'5) INPUT COSTI FISSI'!C18 -> 0 | D87: =+'5) INPUT COSTI FISSI'!D18 -> 0 | E87: =+'5) INPUT COSTI FISSI'!E18 -> 0 | F87: =+'5) INPUT COSTI FISSI'!F18 -> 0 | G87: =+'5) INPUT COSTI FISSI'!G18 -> 0 | H87: =+'5) INPUT COSTI FISSI'!H18 -> 0 | I87: =+'5) INPUT COSTI FISSI'!I18 -> 0 | J87: =+'5) INPUT COSTI FISSI'!J18 -> 0 | K87: =+'5) INPUT COSTI FISSI'!K18 -> 0 | L87: =+'5) INPUT COSTI FISSI'!L18 -> 0 | M87: =+'5) INPUT COSTI FISSI'!M18 -> 0 | N87: =+'5) INPUT COSTI FISSI'!N18 -> 0 | P87: =+'5) INPUT COSTI FISSI'!P18 -> 0 | Q87: =+'5) INPUT COSTI FISSI'!Q18 -> 0 | R87: =+'5) INPUT COSTI FISSI'!R18 -> 0 | S87: =+'5) INPUT COSTI FISSI'!S18 -> 0 | T87: =+'5) INPUT COSTI FISSI'!T18 -> 0 | U87: =+'5) INPUT COSTI FISSI'!U18 -> 0 | V87: =+'5) INPUT COSTI FISSI'!V18 -> 0 | W87: =+'5) INPUT COSTI FISSI'!W18 -> 0 | X87: =+'5) INPUT COSTI FISSI'!X18 -> 0 | Y87: =+'5) INPUT COSTI FISSI'!Y18 -> 0 | Z87: =+'5) INPUT COSTI FISSI'!Z18 -> 0 | AA87: =+'5) INPUT COSTI FISSI'!AA18 -> 0 | AB87: =+'5) INPUT COSTI FISSI'!AB18 -> 0 | AD87: =+'5) INPUT COSTI FISSI'!AD18 -> 0 | AE87: =+'5) INPUT COSTI FISSI'!AE18 -> 0 | AF87: =+'5) INPUT COSTI FISSI'!AF18 -> 0 | AG87: =+'5) INPUT COSTI FISSI'!AG18 -> 0 | AH87: =+'5) INPUT COSTI FISSI'!AH18 -> 0 | AI87: =+'5) INPUT COSTI FISSI'!AI18 -> 0 | AJ87: =+'5) INPUT COSTI FISSI'!AJ18 -> 0 | AK87: =+'5) INPUT COSTI FISSI'!AK18 -> 0 | AL87: =+'5) INPUT COSTI FISSI'!AL18 -> 0 | AM87: =+'5) INPUT COSTI FISSI'!AM18 -> 0 | AN87: =+'5) INPUT COSTI FISSI'!AN18 -> 0 | AO87: =+'5) INPUT COSTI FISSI'!AO18 -> 0 | AP87: =+'5) INPUT COSTI FISSI'!AP18 -> 0
A88: =+'5) INPUT COSTI FISSI'!A19 -> Assicurazioni | B88: =+'5) INPUT COSTI FISSI'!B19 -> 150 | C88: =+'5) INPUT COSTI FISSI'!C19 -> 0 | D88: =+'5) INPUT COSTI FISSI'!D19 -> 0 | E88: =+'5) INPUT COSTI FISSI'!E19 -> 0 | F88: =+'5) INPUT COSTI FISSI'!F19 -> 0 | G88: =+'5) INPUT COSTI FISSI'!G19 -> 0 | H88: =+'5) INPUT COSTI FISSI'!H19 -> 0 | I88: =+'5) INPUT COSTI FISSI'!I19 -> 0 | J88: =+'5) INPUT COSTI FISSI'!J19 -> 0 | K88: =+'5) INPUT COSTI FISSI'!K19 -> 0 | L88: =+'5) INPUT COSTI FISSI'!L19 -> 0 | M88: =+'5) INPUT COSTI FISSI'!M19 -> 0 | N88: =+'5) INPUT COSTI FISSI'!N19 -> 150 | P88: =+'5) INPUT COSTI FISSI'!P19 -> 150 | Q88: =+'5) INPUT COSTI FISSI'!Q19 -> 0 | R88: =+'5) INPUT COSTI FISSI'!R19 -> 0 | S88: =+'5) INPUT COSTI FISSI'!S19 -> 0 | T88: =+'5) INPUT COSTI FISSI'!T19 -> 0 | U88: =+'5) INPUT COSTI FISSI'!U19 -> 0 | V88: =+'5) INPUT COSTI FISSI'!V19 -> 0 | W88: =+'5) INPUT COSTI FISSI'!W19 -> 0 | X88: =+'5) INPUT COSTI FISSI'!X19 -> 0 | Y88: =+'5) INPUT COSTI FISSI'!Y19 -> 0 | Z88: =+'5) INPUT COSTI FISSI'!Z19 -> 0 | AA88: =+'5) INPUT COSTI FISSI'!AA19 -> 0 | AB88: =+'5) INPUT COSTI FISSI'!AB19 -> 150 | AD88: =+'5) INPUT COSTI FISSI'!AD19 -> 150 | AE88: =+'5) INPUT COSTI FISSI'!AE19 -> 0 | AF88: =+'5) INPUT COSTI FISSI'!AF19 -> 0 | AG88: =+'5) INPUT COSTI FISSI'!AG19 -> 0 | AH88: =+'5) INPUT COSTI FISSI'!AH19 -> 0 | AI88: =+'5) INPUT COSTI FISSI'!AI19 -> 0 | AJ88: =+'5) INPUT COSTI FISSI'!AJ19 -> 0 | AK88: =+'5) INPUT COSTI FISSI'!AK19 -> 0 | AL88: =+'5) INPUT COSTI FISSI'!AL19 -> 0 | AM88: =+'5) INPUT COSTI FISSI'!AM19 -> 0 | AN88: =+'5) INPUT COSTI FISSI'!AN19 -> 0 | AO88: =+'5) INPUT COSTI FISSI'!AO19 -> 0 | AP88: =+'5) INPUT COSTI FISSI'!AP19 -> 150
A89: =+'5) INPUT COSTI FISSI'!A20 -> Prodotti per la pulizia dei locali | B89: =+'5) INPUT COSTI FISSI'!B20 -> 50 | C89: =+'5) INPUT COSTI FISSI'!C20 -> 0 | D89: =+'5) INPUT COSTI FISSI'!D20 -> 0 | E89: =+'5) INPUT COSTI FISSI'!E20 -> 50 | F89: =+'5) INPUT COSTI FISSI'!F20 -> 0 | G89: =+'5) INPUT COSTI FISSI'!G20 -> 0 | H89: =+'5) INPUT COSTI FISSI'!H20 -> 50 | I89: =+'5) INPUT COSTI FISSI'!I20 -> 0 | J89: =+'5) INPUT COSTI FISSI'!J20 -> 0 | K89: =+'5) INPUT COSTI FISSI'!K20 -> 50 | L89: =+'5) INPUT COSTI FISSI'!L20 -> 0 | M89: =+'5) INPUT COSTI FISSI'!M20 -> 0 | N89: =+'5) INPUT COSTI FISSI'!N20 -> 200 | P89: =+'5) INPUT COSTI FISSI'!P20 -> 50 | Q89: =+'5) INPUT COSTI FISSI'!Q20 -> 0 | R89: =+'5) INPUT COSTI FISSI'!R20 -> 0 | S89: =+'5) INPUT COSTI FISSI'!S20 -> 50 | T89: =+'5) INPUT COSTI FISSI'!T20 -> 0 | U89: =+'5) INPUT COSTI FISSI'!U20 -> 0 | V89: =+'5) INPUT COSTI FISSI'!V20 -> 50 | W89: =+'5) INPUT COSTI FISSI'!W20 -> 0 | X89: =+'5) INPUT COSTI FISSI'!X20 -> 0 | Y89: =+'5) INPUT COSTI FISSI'!Y20 -> 50 | Z89: =+'5) INPUT COSTI FISSI'!Z20 -> 0 | AA89: =+'5) INPUT COSTI FISSI'!AA20 -> 0 | AB89: =+'5) INPUT COSTI FISSI'!AB20 -> 200 | AD89: =+'5) INPUT COSTI FISSI'!AD20 -> 50 | AE89: =+'5) INPUT COSTI FISSI'!AE20 -> 0 | AF89: =+'5) INPUT COSTI FISSI'!AF20 -> 0 | AG89: =+'5) INPUT COSTI FISSI'!AG20 -> 50 | AH89: =+'5) INPUT COSTI FISSI'!AH20 -> 0 | AI89: =+'5) INPUT COSTI FISSI'!AI20 -> 0 | AJ89: =+'5) INPUT COSTI FISSI'!AJ20 -> 50 | AK89: =+'5) INPUT COSTI FISSI'!AK20 -> 0 | AL89: =+'5) INPUT COSTI FISSI'!AL20 -> 0 | AM89: =+'5) INPUT COSTI FISSI'!AM20 -> 50 | AN89: =+'5) INPUT COSTI FISSI'!AN20 -> 0 | AO89: =+'5) INPUT COSTI FISSI'!AO20 -> 0 | AP89: =+'5) INPUT COSTI FISSI'!AP20 -> 200
A90: =+'5) INPUT COSTI FISSI'!A21 -> Pulizia | B90: =+'5) INPUT COSTI FISSI'!B21 -> 0 | C90: =+'5) INPUT COSTI FISSI'!C21 -> 0 | D90: =+'5) INPUT COSTI FISSI'!D21 -> 0 | E90: =+'5) INPUT COSTI FISSI'!E21 -> 0 | F90: =+'5) INPUT COSTI FISSI'!F21 -> 0 | G90: =+'5) INPUT COSTI FISSI'!G21 -> 0 | H90: =+'5) INPUT COSTI FISSI'!H21 -> 0 | I90: =+'5) INPUT COSTI FISSI'!I21 -> 0 | J90: =+'5) INPUT COSTI FISSI'!J21 -> 0 | K90: =+'5) INPUT COSTI FISSI'!K21 -> 0 | L90: =+'5) INPUT COSTI FISSI'!L21 -> 0 | M90: =+'5) INPUT COSTI FISSI'!M21 -> 0 | N90: =+'5) INPUT COSTI FISSI'!N21 -> 0 | P90: =+'5) INPUT COSTI FISSI'!P21 -> 0 | Q90: =+'5) INPUT COSTI FISSI'!Q21 -> 0 | R90: =+'5) INPUT COSTI FISSI'!R21 -> 0 | S90: =+'5) INPUT COSTI FISSI'!S21 -> 0 | T90: =+'5) INPUT COSTI FISSI'!T21 -> 0 | U90: =+'5) INPUT COSTI FISSI'!U21 -> 0 | V90: =+'5) INPUT COSTI FISSI'!V21 -> 0 | W90: =+'5) INPUT COSTI FISSI'!W21 -> 0 | X90: =+'5) INPUT COSTI FISSI'!X21 -> 0 | Y90: =+'5) INPUT COSTI FISSI'!Y21 -> 0 | Z90: =+'5) INPUT COSTI FISSI'!Z21 -> 0 | AA90: =+'5) INPUT COSTI FISSI'!AA21 -> 0 | AB90: =+'5) INPUT COSTI FISSI'!AB21 -> 0 | AD90: =+'5) INPUT COSTI FISSI'!AD21 -> 0 | AE90: =+'5) INPUT COSTI FISSI'!AE21 -> 0 | AF90: =+'5) INPUT COSTI FISSI'!AF21 -> 0 | AG90: =+'5) INPUT COSTI FISSI'!AG21 -> 0 | AH90: =+'5) INPUT COSTI FISSI'!AH21 -> 0 | AI90: =+'5) INPUT COSTI FISSI'!AI21 -> 0 | AJ90: =+'5) INPUT COSTI FISSI'!AJ21 -> 0 | AK90: =+'5) INPUT COSTI FISSI'!AK21 -> 0 | AL90: =+'5) INPUT COSTI FISSI'!AL21 -> 0 | AM90: =+'5) INPUT COSTI FISSI'!AM21 -> 0 | AN90: =+'5) INPUT COSTI FISSI'!AN21 -> 0 | AO90: =+'5) INPUT COSTI FISSI'!AO21 -> 0 | AP90: =+'5) INPUT COSTI FISSI'!AP21 -> 0
A91: =+'5) INPUT COSTI FISSI'!A22 -> Guardianaggio | B91: =+'5) INPUT COSTI FISSI'!B22 -> 0 | C91: =+'5) INPUT COSTI FISSI'!C22 -> 0 | D91: =+'5) INPUT COSTI FISSI'!D22 -> 0 | E91: =+'5) INPUT COSTI FISSI'!E22 -> 0 | F91: =+'5) INPUT COSTI FISSI'!F22 -> 0 | G91: =+'5) INPUT COSTI FISSI'!G22 -> 0 | H91: =+'5) INPUT COSTI FISSI'!H22 -> 0 | I91: =+'5) INPUT COSTI FISSI'!I22 -> 0 | J91: =+'5) INPUT COSTI FISSI'!J22 -> 0 | K91: =+'5) INPUT COSTI FISSI'!K22 -> 0 | L91: =+'5) INPUT COSTI FISSI'!L22 -> 0 | M91: =+'5) INPUT COSTI FISSI'!M22 -> 0 | N91: =+'5) INPUT COSTI FISSI'!N22 -> 0 | P91: =+'5) INPUT COSTI FISSI'!P22 -> 0 | Q91: =+'5) INPUT COSTI FISSI'!Q22 -> 0 | R91: =+'5) INPUT COSTI FISSI'!R22 -> 0 | S91: =+'5) INPUT COSTI FISSI'!S22 -> 0 | T91: =+'5) INPUT COSTI FISSI'!T22 -> 0 | U91: =+'5) INPUT COSTI FISSI'!U22 -> 0 | V91: =+'5) INPUT COSTI FISSI'!V22 -> 0 | W91: =+'5) INPUT COSTI FISSI'!W22 -> 0 | X91: =+'5) INPUT COSTI FISSI'!X22 -> 0 | Y91: =+'5) INPUT COSTI FISSI'!Y22 -> 0 | Z91: =+'5) INPUT COSTI FISSI'!Z22 -> 0 | AA91: =+'5) INPUT COSTI FISSI'!AA22 -> 0 | AB91: =+'5) INPUT COSTI FISSI'!AB22 -> 0 | AD91: =+'5) INPUT COSTI FISSI'!AD22 -> 0 | AE91: =+'5) INPUT COSTI FISSI'!AE22 -> 0 | AF91: =+'5) INPUT COSTI FISSI'!AF22 -> 0 | AG91: =+'5) INPUT COSTI FISSI'!AG22 -> 0 | AH91: =+'5) INPUT COSTI FISSI'!AH22 -> 0 | AI91: =+'5) INPUT COSTI FISSI'!AI22 -> 0 | AJ91: =+'5) INPUT COSTI FISSI'!AJ22 -> 0 | AK91: =+'5) INPUT COSTI FISSI'!AK22 -> 0 | AL91: =+'5) INPUT COSTI FISSI'!AL22 -> 0 | AM91: =+'5) INPUT COSTI FISSI'!AM22 -> 0 | AN91: =+'5) INPUT COSTI FISSI'!AN22 -> 0 | AO91: =+'5) INPUT COSTI FISSI'!AO22 -> 0 | AP91: =+'5) INPUT COSTI FISSI'!AP22 -> 0
A92: =+'5) INPUT COSTI FISSI'!A23 -> Cancelleria | B92: =+'5) INPUT COSTI FISSI'!B23 -> 100 | C92: =+'5) INPUT COSTI FISSI'!C23 -> 0 | D92: =+'5) INPUT COSTI FISSI'!D23 -> 0 | E92: =+'5) INPUT COSTI FISSI'!E23 -> 0 | F92: =+'5) INPUT COSTI FISSI'!F23 -> 0 | G92: =+'5) INPUT COSTI FISSI'!G23 -> 0 | H92: =+'5) INPUT COSTI FISSI'!H23 -> 0 | I92: =+'5) INPUT COSTI FISSI'!I23 -> 0 | J92: =+'5) INPUT COSTI FISSI'!J23 -> 0 | K92: =+'5) INPUT COSTI FISSI'!K23 -> 0 | L92: =+'5) INPUT COSTI FISSI'!L23 -> 0 | M92: =+'5) INPUT COSTI FISSI'!M23 -> 0 | N92: =+'5) INPUT COSTI FISSI'!N23 -> 100 | P92: =+'5) INPUT COSTI FISSI'!P23 -> 100 | Q92: =+'5) INPUT COSTI FISSI'!Q23 -> 0 | R92: =+'5) INPUT COSTI FISSI'!R23 -> 0 | S92: =+'5) INPUT COSTI FISSI'!S23 -> 0 | T92: =+'5) INPUT COSTI FISSI'!T23 -> 0 | U92: =+'5) INPUT COSTI FISSI'!U23 -> 0 | V92: =+'5) INPUT COSTI FISSI'!V23 -> 0 | W92: =+'5) INPUT COSTI FISSI'!W23 -> 0 | X92: =+'5) INPUT COSTI FISSI'!X23 -> 0 | Y92: =+'5) INPUT COSTI FISSI'!Y23 -> 0 | Z92: =+'5) INPUT COSTI FISSI'!Z23 -> 0 | AA92: =+'5) INPUT COSTI FISSI'!AA23 -> 0 | AB92: =+'5) INPUT COSTI FISSI'!AB23 -> 100 | AD92: =+'5) INPUT COSTI FISSI'!AD23 -> 100 | AE92: =+'5) INPUT COSTI FISSI'!AE23 -> 0 | AF92: =+'5) INPUT COSTI FISSI'!AF23 -> 0 | AG92: =+'5) INPUT COSTI FISSI'!AG23 -> 0 | AH92: =+'5) INPUT COSTI FISSI'!AH23 -> 0 | AI92: =+'5) INPUT COSTI FISSI'!AI23 -> 0 | AJ92: =+'5) INPUT COSTI FISSI'!AJ23 -> 0 | AK92: =+'5) INPUT COSTI FISSI'!AK23 -> 0 | AL92: =+'5) INPUT COSTI FISSI'!AL23 -> 0 | AM92: =+'5) INPUT COSTI FISSI'!AM23 -> 0 | AN92: =+'5) INPUT COSTI FISSI'!AN23 -> 0 | AO92: =+'5) INPUT COSTI FISSI'!AO23 -> 0 | AP92: =+'5) INPUT COSTI FISSI'!AP23 -> 100
A93: =+'5) INPUT COSTI FISSI'!A24 -> Imposta sui rifiuti | B93: =+'5) INPUT COSTI FISSI'!B24 -> 0 | C93: =+'5) INPUT COSTI FISSI'!C24 -> 0 | D93: =+'5) INPUT COSTI FISSI'!D24 -> 0 | E93: =+'5) INPUT COSTI FISSI'!E24 -> 0 | F93: =+'5) INPUT COSTI FISSI'!F24 -> 0 | G93: =+'5) INPUT COSTI FISSI'!G24 -> 0 | H93: =+'5) INPUT COSTI FISSI'!H24 -> 0 | I93: =+'5) INPUT COSTI FISSI'!I24 -> 0 | J93: =+'5) INPUT COSTI FISSI'!J24 -> 0 | K93: =+'5) INPUT COSTI FISSI'!K24 -> 0 | L93: =+'5) INPUT COSTI FISSI'!L24 -> 0 | M93: =+'5) INPUT COSTI FISSI'!M24 -> 0 | N93: =+'5) INPUT COSTI FISSI'!N24 -> 0 | P93: =+'5) INPUT COSTI FISSI'!P24 -> 0 | Q93: =+'5) INPUT COSTI FISSI'!Q24 -> 0 | R93: =+'5) INPUT COSTI FISSI'!R24 -> 0 | S93: =+'5) INPUT COSTI FISSI'!S24 -> 0 | T93: =+'5) INPUT COSTI FISSI'!T24 -> 0 | U93: =+'5) INPUT COSTI FISSI'!U24 -> 0 | V93: =+'5) INPUT COSTI FISSI'!V24 -> 0 | W93: =+'5) INPUT COSTI FISSI'!W24 -> 0 | X93: =+'5) INPUT COSTI FISSI'!X24 -> 0 | Y93: =+'5) INPUT COSTI FISSI'!Y24 -> 0 | Z93: =+'5) INPUT COSTI FISSI'!Z24 -> 0 | AA93: =+'5) INPUT COSTI FISSI'!AA24 -> 0 | AB93: =+'5) INPUT COSTI FISSI'!AB24 -> 0 | AD93: =+'5) INPUT COSTI FISSI'!AD24 -> 0 | AE93: =+'5) INPUT COSTI FISSI'!AE24 -> 0 | AF93: =+'5) INPUT COSTI FISSI'!AF24 -> 0 | AG93: =+'5) INPUT COSTI FISSI'!AG24 -> 0 | AH93: =+'5) INPUT COSTI FISSI'!AH24 -> 0 | AI93: =+'5) INPUT COSTI FISSI'!AI24 -> 0 | AJ93: =+'5) INPUT COSTI FISSI'!AJ24 -> 0 | AK93: =+'5) INPUT COSTI FISSI'!AK24 -> 0 | AL93: =+'5) INPUT COSTI FISSI'!AL24 -> 0 | AM93: =+'5) INPUT COSTI FISSI'!AM24 -> 0 | AN93: =+'5) INPUT COSTI FISSI'!AN24 -> 0 | AO93: =+'5) INPUT COSTI FISSI'!AO24 -> 0 | AP93: =+'5) INPUT COSTI FISSI'!AP24 -> 0
A94: =+'5) INPUT COSTI FISSI'!A25 -> Imu | B94: =+'5) INPUT COSTI FISSI'!B25 -> 0 | C94: =+'5) INPUT COSTI FISSI'!C25 -> 0 | D94: =+'5) INPUT COSTI FISSI'!D25 -> 0 | E94: =+'5) INPUT COSTI FISSI'!E25 -> 0 | F94: =+'5) INPUT COSTI FISSI'!F25 -> 0 | G94: =+'5) INPUT COSTI FISSI'!G25 -> 0 | H94: =+'5) INPUT COSTI FISSI'!H25 -> 0 | I94: =+'5) INPUT COSTI FISSI'!I25 -> 0 | J94: =+'5) INPUT COSTI FISSI'!J25 -> 0 | K94: =+'5) INPUT COSTI FISSI'!K25 -> 0 | L94: =+'5) INPUT COSTI FISSI'!L25 -> 0 | M94: =+'5) INPUT COSTI FISSI'!M25 -> 0 | N94: =+'5) INPUT COSTI FISSI'!N25 -> 0 | P94: =+'5) INPUT COSTI FISSI'!P25 -> 0 | Q94: =+'5) INPUT COSTI FISSI'!Q25 -> 0 | R94: =+'5) INPUT COSTI FISSI'!R25 -> 0 | S94: =+'5) INPUT COSTI FISSI'!S25 -> 0 | T94: =+'5) INPUT COSTI FISSI'!T25 -> 0 | U94: =+'5) INPUT COSTI FISSI'!U25 -> 0 | V94: =+'5) INPUT COSTI FISSI'!V25 -> 0 | W94: =+'5) INPUT COSTI FISSI'!W25 -> 0 | X94: =+'5) INPUT COSTI FISSI'!X25 -> 0 | Y94: =+'5) INPUT COSTI FISSI'!Y25 -> 0 | Z94: =+'5) INPUT COSTI FISSI'!Z25 -> 0 | AA94: =+'5) INPUT COSTI FISSI'!AA25 -> 0 | AB94: =+'5) INPUT COSTI FISSI'!AB25 -> 0 | AD94: =+'5) INPUT COSTI FISSI'!AD25 -> 0 | AE94: =+'5) INPUT COSTI FISSI'!AE25 -> 0 | AF94: =+'5) INPUT COSTI FISSI'!AF25 -> 0 | AG94: =+'5) INPUT COSTI FISSI'!AG25 -> 0 | AH94: =+'5) INPUT COSTI FISSI'!AH25 -> 0 | AI94: =+'5) INPUT COSTI FISSI'!AI25 -> 0 | AJ94: =+'5) INPUT COSTI FISSI'!AJ25 -> 0 | AK94: =+'5) INPUT COSTI FISSI'!AK25 -> 0 | AL94: =+'5) INPUT COSTI FISSI'!AL25 -> 0 | AM94: =+'5) INPUT COSTI FISSI'!AM25 -> 0 | AN94: =+'5) INPUT COSTI FISSI'!AN25 -> 0 | AO94: =+'5) INPUT COSTI FISSI'!AO25 -> 0 | AP94: =+'5) INPUT COSTI FISSI'!AP25 -> 0
A95: =+'5) INPUT COSTI FISSI'!A26 -> Tasi | B95: =+'5) INPUT COSTI FISSI'!B26 -> 0 | C95: =+'5) INPUT COSTI FISSI'!C26 -> 0 | D95: =+'5) INPUT COSTI FISSI'!D26 -> 0 | E95: =+'5) INPUT COSTI FISSI'!E26 -> 0 | F95: =+'5) INPUT COSTI FISSI'!F26 -> 0 | G95: =+'5) INPUT COSTI FISSI'!G26 -> 0 | H95: =+'5) INPUT COSTI FISSI'!H26 -> 0 | I95: =+'5) INPUT COSTI FISSI'!I26 -> 0 | J95: =+'5) INPUT COSTI FISSI'!J26 -> 0 | K95: =+'5) INPUT COSTI FISSI'!K26 -> 0 | L95: =+'5) INPUT COSTI FISSI'!L26 -> 0 | M95: =+'5) INPUT COSTI FISSI'!M26 -> 0 | N95: =+'5) INPUT COSTI FISSI'!N26 -> 0 | P95: =+'5) INPUT COSTI FISSI'!P26 -> 0 | Q95: =+'5) INPUT COSTI FISSI'!Q26 -> 0 | R95: =+'5) INPUT COSTI FISSI'!R26 -> 0 | S95: =+'5) INPUT COSTI FISSI'!S26 -> 0 | T95: =+'5) INPUT COSTI FISSI'!T26 -> 0 | U95: =+'5) INPUT COSTI FISSI'!U26 -> 0 | V95: =+'5) INPUT COSTI FISSI'!V26 -> 0 | W95: =+'5) INPUT COSTI FISSI'!W26 -> 0 | X95: =+'5) INPUT COSTI FISSI'!X26 -> 0 | Y95: =+'5) INPUT COSTI FISSI'!Y26 -> 0 | Z95: =+'5) INPUT COSTI FISSI'!Z26 -> 0 | AA95: =+'5) INPUT COSTI FISSI'!AA26 -> 0 | AB95: =+'5) INPUT COSTI FISSI'!AB26 -> 0 | AD95: =+'5) INPUT COSTI FISSI'!AD26 -> 0 | AE95: =+'5) INPUT COSTI FISSI'!AE26 -> 0 | AF95: =+'5) INPUT COSTI FISSI'!AF26 -> 0 | AG95: =+'5) INPUT COSTI FISSI'!AG26 -> 0 | AH95: =+'5) INPUT COSTI FISSI'!AH26 -> 0 | AI95: =+'5) INPUT COSTI FISSI'!AI26 -> 0 | AJ95: =+'5) INPUT COSTI FISSI'!AJ26 -> 0 | AK95: =+'5) INPUT COSTI FISSI'!AK26 -> 0 | AL95: =+'5) INPUT COSTI FISSI'!AL26 -> 0 | AM95: =+'5) INPUT COSTI FISSI'!AM26 -> 0 | AN95: =+'5) INPUT COSTI FISSI'!AN26 -> 0 | AO95: =+'5) INPUT COSTI FISSI'!AO26 -> 0 | AP95: =+'5) INPUT COSTI FISSI'!AP26 -> 0
A96: =+'5) INPUT COSTI FISSI'!A27 -> Collaborazioni occasionali (stagionali) | B96: =+'5) INPUT COSTI FISSI'!B27 -> 0 | C96: =+'5) INPUT COSTI FISSI'!C27 -> 0 | D96: =+'5) INPUT COSTI FISSI'!D27 -> 0 | E96: =+'5) INPUT COSTI FISSI'!E27 -> 0 | F96: =+'5) INPUT COSTI FISSI'!F27 -> 0 | G96: =+'5) INPUT COSTI FISSI'!G27 -> 0 | H96: =+'5) INPUT COSTI FISSI'!H27 -> 0 | I96: =+'5) INPUT COSTI FISSI'!I27 -> 0 | J96: =+'5) INPUT COSTI FISSI'!J27 -> 0 | K96: =+'5) INPUT COSTI FISSI'!K27 -> 0 | L96: =+'5) INPUT COSTI FISSI'!L27 -> 0 | M96: =+'5) INPUT COSTI FISSI'!M27 -> 0 | N96: =+'5) INPUT COSTI FISSI'!N27 -> 0 | P96: =+'5) INPUT COSTI FISSI'!P27 -> 0 | Q96: =+'5) INPUT COSTI FISSI'!Q27 -> 0 | R96: =+'5) INPUT COSTI FISSI'!R27 -> 0 | S96: =+'5) INPUT COSTI FISSI'!S27 -> 0 | T96: =+'5) INPUT COSTI FISSI'!T27 -> 0 | U96: =+'5) INPUT COSTI FISSI'!U27 -> 0 | V96: =+'5) INPUT COSTI FISSI'!V27 -> 0 | W96: =+'5) INPUT COSTI FISSI'!W27 -> 0 | X96: =+'5) INPUT COSTI FISSI'!X27 -> 0 | Y96: =+'5) INPUT COSTI FISSI'!Y27 -> 0 | Z96: =+'5) INPUT COSTI FISSI'!Z27 -> 0 | AA96: =+'5) INPUT COSTI FISSI'!AA27 -> 0 | AB96: =+'5) INPUT COSTI FISSI'!AB27 -> 0 | AD96: =+'5) INPUT COSTI FISSI'!AD27 -> 0 | AE96: =+'5) INPUT COSTI FISSI'!AE27 -> 0 | AF96: =+'5) INPUT COSTI FISSI'!AF27 -> 0 | AG96: =+'5) INPUT COSTI FISSI'!AG27 -> 0 | AH96: =+'5) INPUT COSTI FISSI'!AH27 -> 0 | AI96: =+'5) INPUT COSTI FISSI'!AI27 -> 0 | AJ96: =+'5) INPUT COSTI FISSI'!AJ27 -> 0 | AK96: =+'5) INPUT COSTI FISSI'!AK27 -> 0 | AL96: =+'5) INPUT COSTI FISSI'!AL27 -> 0 | AM96: =+'5) INPUT COSTI FISSI'!AM27 -> 0 | AN96: =+'5) INPUT COSTI FISSI'!AN27 -> 0 | AO96: =+'5) INPUT COSTI FISSI'!AO27 -> 0 | AP96: =+'5) INPUT COSTI FISSI'!AP27 -> 0
A97: =+'5) INPUT COSTI FISSI'!A28 -> Altri costi fissi | B97: =+'5) INPUT COSTI FISSI'!B28 -> 0 | C97: =+'5) INPUT COSTI FISSI'!C28 -> 0 | D97: =+'5) INPUT COSTI FISSI'!D28 -> 0 | E97: =+'5) INPUT COSTI FISSI'!E28 -> 0 | F97: =+'5) INPUT COSTI FISSI'!F28 -> 0 | G97: =+'5) INPUT COSTI FISSI'!G28 -> 0 | H97: =+'5) INPUT COSTI FISSI'!H28 -> 0 | I97: =+'5) INPUT COSTI FISSI'!I28 -> 0 | J97: =+'5) INPUT COSTI FISSI'!J28 -> 0 | K97: =+'5) INPUT COSTI FISSI'!K28 -> 0 | L97: =+'5) INPUT COSTI FISSI'!L28 -> 0 | M97: =+'5) INPUT COSTI FISSI'!M28 -> 0 | N97: =+'5) INPUT COSTI FISSI'!N28 -> 0 | P97: =+'5) INPUT COSTI FISSI'!P28 -> 0 | Q97: =+'5) INPUT COSTI FISSI'!Q28 -> 0 | R97: =+'5) INPUT COSTI FISSI'!R28 -> 0 | S97: =+'5) INPUT COSTI FISSI'!S28 -> 0 | T97: =+'5) INPUT COSTI FISSI'!T28 -> 0 | U97: =+'5) INPUT COSTI FISSI'!U28 -> 0 | V97: =+'5) INPUT COSTI FISSI'!V28 -> 0 | W97: =+'5) INPUT COSTI FISSI'!W28 -> 0 | X97: =+'5) INPUT COSTI FISSI'!X28 -> 0 | Y97: =+'5) INPUT COSTI FISSI'!Y28 -> 0 | Z97: =+'5) INPUT COSTI FISSI'!Z28 -> 0 | AA97: =+'5) INPUT COSTI FISSI'!AA28 -> 0 | AB97: =+'5) INPUT COSTI FISSI'!AB28 -> 0 | AD97: =+'5) INPUT COSTI FISSI'!AD28 -> 0 | AE97: =+'5) INPUT COSTI FISSI'!AE28 -> 0 | AF97: =+'5) INPUT COSTI FISSI'!AF28 -> 0 | AG97: =+'5) INPUT COSTI FISSI'!AG28 -> 0 | AH97: =+'5) INPUT COSTI FISSI'!AH28 -> 0 | AI97: =+'5) INPUT COSTI FISSI'!AI28 -> 0 | AJ97: =+'5) INPUT COSTI FISSI'!AJ28 -> 0 | AK97: =+'5) INPUT COSTI FISSI'!AK28 -> 0 | AL97: =+'5) INPUT COSTI FISSI'!AL28 -> 0 | AM97: =+'5) INPUT COSTI FISSI'!AM28 -> 0 | AN97: =+'5) INPUT COSTI FISSI'!AN28 -> 0 | AO97: =+'5) INPUT COSTI FISSI'!AO28 -> 0 | AP97: =+'5) INPUT COSTI FISSI'!AP28 -> 0
A98: =+'5) INPUT COSTI FISSI'!A29 -> Altri costi fissi | B98: =+'5) INPUT COSTI FISSI'!B29 -> 0 | C98: =+'5) INPUT COSTI FISSI'!C29 -> 0 | D98: =+'5) INPUT COSTI FISSI'!D29 -> 0 | E98: =+'5) INPUT COSTI FISSI'!E29 -> 0 | F98: =+'5) INPUT COSTI FISSI'!F29 -> 0 | G98: =+'5) INPUT COSTI FISSI'!G29 -> 0 | H98: =+'5) INPUT COSTI FISSI'!H29 -> 0 | I98: =+'5) INPUT COSTI FISSI'!I29 -> 0 | J98: =+'5) INPUT COSTI FISSI'!J29 -> 0 | K98: =+'5) INPUT COSTI FISSI'!K29 -> 0 | L98: =+'5) INPUT COSTI FISSI'!L29 -> 0 | M98: =+'5) INPUT COSTI FISSI'!M29 -> 0 | N98: =+'5) INPUT COSTI FISSI'!N29 -> 0 | P98: =+'5) INPUT COSTI FISSI'!P29 -> 0 | Q98: =+'5) INPUT COSTI FISSI'!Q29 -> 0 | R98: =+'5) INPUT COSTI FISSI'!R29 -> 0 | S98: =+'5) INPUT COSTI FISSI'!S29 -> 0 | T98: =+'5) INPUT COSTI FISSI'!T29 -> 0 | U98: =+'5) INPUT COSTI FISSI'!U29 -> 0 | V98: =+'5) INPUT COSTI FISSI'!V29 -> 0 | W98: =+'5) INPUT COSTI FISSI'!W29 -> 0 | X98: =+'5) INPUT COSTI FISSI'!X29 -> 0 | Y98: =+'5) INPUT COSTI FISSI'!Y29 -> 0 | Z98: =+'5) INPUT COSTI FISSI'!Z29 -> 0 | AA98: =+'5) INPUT COSTI FISSI'!AA29 -> 0 | AB98: =+'5) INPUT COSTI FISSI'!AB29 -> 0 | AD98: =+'5) INPUT COSTI FISSI'!AD29 -> 0 | AE98: =+'5) INPUT COSTI FISSI'!AE29 -> 0 | AF98: =+'5) INPUT COSTI FISSI'!AF29 -> 0 | AG98: =+'5) INPUT COSTI FISSI'!AG29 -> 0 | AH98: =+'5) INPUT COSTI FISSI'!AH29 -> 0 | AI98: =+'5) INPUT COSTI FISSI'!AI29 -> 0 | AJ98: =+'5) INPUT COSTI FISSI'!AJ29 -> 0 | AK98: =+'5) INPUT COSTI FISSI'!AK29 -> 0 | AL98: =+'5) INPUT COSTI FISSI'!AL29 -> 0 | AM98: =+'5) INPUT COSTI FISSI'!AM29 -> 0 | AN98: =+'5) INPUT COSTI FISSI'!AN29 -> 0 | AO98: =+'5) INPUT COSTI FISSI'!AO29 -> 0 | AP98: =+'5) INPUT COSTI FISSI'!AP29 -> 0
A99: =+'5) INPUT COSTI FISSI'!A30 -> Altri costi fissi | B99: =+'5) INPUT COSTI FISSI'!B30 -> 0 | C99: =+'5) INPUT COSTI FISSI'!C30 -> 0 | D99: =+'5) INPUT COSTI FISSI'!D30 -> 0 | E99: =+'5) INPUT COSTI FISSI'!E30 -> 0 | F99: =+'5) INPUT COSTI FISSI'!F30 -> 0 | G99: =+'5) INPUT COSTI FISSI'!G30 -> 0 | H99: =+'5) INPUT COSTI FISSI'!H30 -> 0 | I99: =+'5) INPUT COSTI FISSI'!I30 -> 0 | J99: =+'5) INPUT COSTI FISSI'!J30 -> 0 | K99: =+'5) INPUT COSTI FISSI'!K30 -> 0 | L99: =+'5) INPUT COSTI FISSI'!L30 -> 0 | M99: =+'5) INPUT COSTI FISSI'!M30 -> 0 | N99: =+'5) INPUT COSTI FISSI'!N30 -> 0 | P99: =+'5) INPUT COSTI FISSI'!P30 -> 0 | Q99: =+'5) INPUT COSTI FISSI'!Q30 -> 0 | R99: =+'5) INPUT COSTI FISSI'!R30 -> 0 | S99: =+'5) INPUT COSTI FISSI'!S30 -> 0 | T99: =+'5) INPUT COSTI FISSI'!T30 -> 0 | U99: =+'5) INPUT COSTI FISSI'!U30 -> 0 | V99: =+'5) INPUT COSTI FISSI'!V30 -> 0 | W99: =+'5) INPUT COSTI FISSI'!W30 -> 0 | X99: =+'5) INPUT COSTI FISSI'!X30 -> 0 | Y99: =+'5) INPUT COSTI FISSI'!Y30 -> 0 | Z99: =+'5) INPUT COSTI FISSI'!Z30 -> 0 | AA99: =+'5) INPUT COSTI FISSI'!AA30 -> 0 | AB99: =+'5) INPUT COSTI FISSI'!AB30 -> 0 | AD99: =+'5) INPUT COSTI FISSI'!AD30 -> 0 | AE99: =+'5) INPUT COSTI FISSI'!AE30 -> 0 | AF99: =+'5) INPUT COSTI FISSI'!AF30 -> 0 | AG99: =+'5) INPUT COSTI FISSI'!AG30 -> 0 | AH99: =+'5) INPUT COSTI FISSI'!AH30 -> 0 | AI99: =+'5) INPUT COSTI FISSI'!AI30 -> 0 | AJ99: =+'5) INPUT COSTI FISSI'!AJ30 -> 0 | AK99: =+'5) INPUT COSTI FISSI'!AK30 -> 0 | AL99: =+'5) INPUT COSTI FISSI'!AL30 -> 0 | AM99: =+'5) INPUT COSTI FISSI'!AM30 -> 0 | AN99: =+'5) INPUT COSTI FISSI'!AN30 -> 0 | AO99: =+'5) INPUT COSTI FISSI'!AO30 -> 0 | AP99: =+'5) INPUT COSTI FISSI'!AP30 -> 0
A100: =+'5) INPUT COSTI FISSI'!A31 -> Altri costi fissi | B100: =+'5) INPUT COSTI FISSI'!B31 -> 0 | C100: =+'5) INPUT COSTI FISSI'!C31 -> 0 | D100: =+'5) INPUT COSTI FISSI'!D31 -> 0 | E100: =+'5) INPUT COSTI FISSI'!E31 -> 0 | F100: =+'5) INPUT COSTI FISSI'!F31 -> 0 | G100: =+'5) INPUT COSTI FISSI'!G31 -> 0 | H100: =+'5) INPUT COSTI FISSI'!H31 -> 0 | I100: =+'5) INPUT COSTI FISSI'!I31 -> 0 | J100: =+'5) INPUT COSTI FISSI'!J31 -> 0 | K100: =+'5) INPUT COSTI FISSI'!K31 -> 0 | L100: =+'5) INPUT COSTI FISSI'!L31 -> 0 | M100: =+'5) INPUT COSTI FISSI'!M31 -> 0 | N100: =+'5) INPUT COSTI FISSI'!N31 -> 0 | P100: =+'5) INPUT COSTI FISSI'!P31 -> 0 | Q100: =+'5) INPUT COSTI FISSI'!Q31 -> 0 | R100: =+'5) INPUT COSTI FISSI'!R31 -> 0 | S100: =+'5) INPUT COSTI FISSI'!S31 -> 0 | T100: =+'5) INPUT COSTI FISSI'!T31 -> 0 | U100: =+'5) INPUT COSTI FISSI'!U31 -> 0 | V100: =+'5) INPUT COSTI FISSI'!V31 -> 0 | W100: =+'5) INPUT COSTI FISSI'!W31 -> 0 | X100: =+'5) INPUT COSTI FISSI'!X31 -> 0 | Y100: =+'5) INPUT COSTI FISSI'!Y31 -> 0 | Z100: =+'5) INPUT COSTI FISSI'!Z31 -> 0 | AA100: =+'5) INPUT COSTI FISSI'!AA31 -> 0 | AB100: =+'5) INPUT COSTI FISSI'!AB31 -> 0 | AD100: =+'5) INPUT COSTI FISSI'!AD31 -> 0 | AE100: =+'5) INPUT COSTI FISSI'!AE31 -> 0 | AF100: =+'5) INPUT COSTI FISSI'!AF31 -> 0 | AG100: =+'5) INPUT COSTI FISSI'!AG31 -> 0 | AH100: =+'5) INPUT COSTI FISSI'!AH31 -> 0 | AI100: =+'5) INPUT COSTI FISSI'!AI31 -> 0 | AJ100: =+'5) INPUT COSTI FISSI'!AJ31 -> 0 | AK100: =+'5) INPUT COSTI FISSI'!AK31 -> 0 | AL100: =+'5) INPUT COSTI FISSI'!AL31 -> 0 | AM100: =+'5) INPUT COSTI FISSI'!AM31 -> 0 | AN100: =+'5) INPUT COSTI FISSI'!AN31 -> 0 | AO100: =+'5) INPUT COSTI FISSI'!AO31 -> 0 | AP100: =+'5) INPUT COSTI FISSI'!AP31 -> 0
A101: =+'5) INPUT COSTI FISSI'!A32 -> Altri costi fissi | B101: =+'5) INPUT COSTI FISSI'!B32 -> 0 | C101: =+'5) INPUT COSTI FISSI'!C32 -> 0 | D101: =+'5) INPUT COSTI FISSI'!D32 -> 0 | E101: =+'5) INPUT COSTI FISSI'!E32 -> 0 | F101: =+'5) INPUT COSTI FISSI'!F32 -> 0 | G101: =+'5) INPUT COSTI FISSI'!G32 -> 0 | H101: =+'5) INPUT COSTI FISSI'!H32 -> 0 | I101: =+'5) INPUT COSTI FISSI'!I32 -> 0 | J101: =+'5) INPUT COSTI FISSI'!J32 -> 0 | K101: =+'5) INPUT COSTI FISSI'!K32 -> 0 | L101: =+'5) INPUT COSTI FISSI'!L32 -> 0 | M101: =+'5) INPUT COSTI FISSI'!M32 -> 0 | N101: =+'5) INPUT COSTI FISSI'!N32 -> 0 | P101: =+'5) INPUT COSTI FISSI'!P32 -> 0 | Q101: =+'5) INPUT COSTI FISSI'!Q32 -> 0 | R101: =+'5) INPUT COSTI FISSI'!R32 -> 0 | S101: =+'5) INPUT COSTI FISSI'!S32 -> 0 | T101: =+'5) INPUT COSTI FISSI'!T32 -> 0 | U101: =+'5) INPUT COSTI FISSI'!U32 -> 0 | V101: =+'5) INPUT COSTI FISSI'!V32 -> 0 | W101: =+'5) INPUT COSTI FISSI'!W32 -> 0 | X101: =+'5) INPUT COSTI FISSI'!X32 -> 0 | Y101: =+'5) INPUT COSTI FISSI'!Y32 -> 0 | Z101: =+'5) INPUT COSTI FISSI'!Z32 -> 0 | AA101: =+'5) INPUT COSTI FISSI'!AA32 -> 0 | AB101: =+'5) INPUT COSTI FISSI'!AB32 -> 0 | AD101: =+'5) INPUT COSTI FISSI'!AD32 -> 0 | AE101: =+'5) INPUT COSTI FISSI'!AE32 -> 0 | AF101: =+'5) INPUT COSTI FISSI'!AF32 -> 0 | AG101: =+'5) INPUT COSTI FISSI'!AG32 -> 0 | AH101: =+'5) INPUT COSTI FISSI'!AH32 -> 0 | AI101: =+'5) INPUT COSTI FISSI'!AI32 -> 0 | AJ101: =+'5) INPUT COSTI FISSI'!AJ32 -> 0 | AK101: =+'5) INPUT COSTI FISSI'!AK32 -> 0 | AL101: =+'5) INPUT COSTI FISSI'!AL32 -> 0 | AM101: =+'5) INPUT COSTI FISSI'!AM32 -> 0 | AN101: =+'5) INPUT COSTI FISSI'!AN32 -> 0 | AO101: =+'5) INPUT COSTI FISSI'!AO32 -> 0 | AP101: =+'5) INPUT COSTI FISSI'!AP32 -> 0
A102: =+'5) INPUT COSTI FISSI'!A33 -> Altri costi fissi | B102: =+'5) INPUT COSTI FISSI'!B33 -> 0 | C102: =+'5) INPUT COSTI FISSI'!C33 -> 0 | D102: =+'5) INPUT COSTI FISSI'!D33 -> 0 | E102: =+'5) INPUT COSTI FISSI'!E33 -> 0 | F102: =+'5) INPUT COSTI FISSI'!F33 -> 0 | G102: =+'5) INPUT COSTI FISSI'!G33 -> 0 | H102: =+'5) INPUT COSTI FISSI'!H33 -> 0 | I102: =+'5) INPUT COSTI FISSI'!I33 -> 0 | J102: =+'5) INPUT COSTI FISSI'!J33 -> 0 | K102: =+'5) INPUT COSTI FISSI'!K33 -> 0 | L102: =+'5) INPUT COSTI FISSI'!L33 -> 0 | M102: =+'5) INPUT COSTI FISSI'!M33 -> 0 | N102: =+'5) INPUT COSTI FISSI'!N33 -> 0 | P102: =+'5) INPUT COSTI FISSI'!P33 -> 0 | Q102: =+'5) INPUT COSTI FISSI'!Q33 -> 0 | R102: =+'5) INPUT COSTI FISSI'!R33 -> 0 | S102: =+'5) INPUT COSTI FISSI'!S33 -> 0 | T102: =+'5) INPUT COSTI FISSI'!T33 -> 0 | U102: =+'5) INPUT COSTI FISSI'!U33 -> 0 | V102: =+'5) INPUT COSTI FISSI'!V33 -> 0 | W102: =+'5) INPUT COSTI FISSI'!W33 -> 0 | X102: =+'5) INPUT COSTI FISSI'!X33 -> 0 | Y102: =+'5) INPUT COSTI FISSI'!Y33 -> 0 | Z102: =+'5) INPUT COSTI FISSI'!Z33 -> 0 | AA102: =+'5) INPUT COSTI FISSI'!AA33 -> 0 | AB102: =+'5) INPUT COSTI FISSI'!AB33 -> 0 | AD102: =+'5) INPUT COSTI FISSI'!AD33 -> 0 | AE102: =+'5) INPUT COSTI FISSI'!AE33 -> 0 | AF102: =+'5) INPUT COSTI FISSI'!AF33 -> 0 | AG102: =+'5) INPUT COSTI FISSI'!AG33 -> 0 | AH102: =+'5) INPUT COSTI FISSI'!AH33 -> 0 | AI102: =+'5) INPUT COSTI FISSI'!AI33 -> 0 | AJ102: =+'5) INPUT COSTI FISSI'!AJ33 -> 0 | AK102: =+'5) INPUT COSTI FISSI'!AK33 -> 0 | AL102: =+'5) INPUT COSTI FISSI'!AL33 -> 0 | AM102: =+'5) INPUT COSTI FISSI'!AM33 -> 0 | AN102: =+'5) INPUT COSTI FISSI'!AN33 -> 0 | AO102: =+'5) INPUT COSTI FISSI'!AO33 -> 0 | AP102: =+'5) INPUT COSTI FISSI'!AP33 -> 0
A103: =+'5) INPUT COSTI FISSI'!A34 -> Altri costi fissi | B103: =+'5) INPUT COSTI FISSI'!B34 -> 0 | C103: =+'5) INPUT COSTI FISSI'!C34 -> 0 | D103: =+'5) INPUT COSTI FISSI'!D34 -> 0 | E103: =+'5) INPUT COSTI FISSI'!E34 -> 0 | F103: =+'5) INPUT COSTI FISSI'!F34 -> 0 | G103: =+'5) INPUT COSTI FISSI'!G34 -> 0 | H103: =+'5) INPUT COSTI FISSI'!H34 -> 0 | I103: =+'5) INPUT COSTI FISSI'!I34 -> 0 | J103: =+'5) INPUT COSTI FISSI'!J34 -> 0 | K103: =+'5) INPUT COSTI FISSI'!K34 -> 0 | L103: =+'5) INPUT COSTI FISSI'!L34 -> 0 | M103: =+'5) INPUT COSTI FISSI'!M34 -> 0 | N103: =+'5) INPUT COSTI FISSI'!N34 -> 0 | P103: =+'5) INPUT COSTI FISSI'!P34 -> 0 | Q103: =+'5) INPUT COSTI FISSI'!Q34 -> 0 | R103: =+'5) INPUT COSTI FISSI'!R34 -> 0 | S103: =+'5) INPUT COSTI FISSI'!S34 -> 0 | T103: =+'5) INPUT COSTI FISSI'!T34 -> 0 | U103: =+'5) INPUT COSTI FISSI'!U34 -> 0 | V103: =+'5) INPUT COSTI FISSI'!V34 -> 0 | W103: =+'5) INPUT COSTI FISSI'!W34 -> 0 | X103: =+'5) INPUT COSTI FISSI'!X34 -> 0 | Y103: =+'5) INPUT COSTI FISSI'!Y34 -> 0 | Z103: =+'5) INPUT COSTI FISSI'!Z34 -> 0 | AA103: =+'5) INPUT COSTI FISSI'!AA34 -> 0 | AB103: =+'5) INPUT COSTI FISSI'!AB34 -> 0 | AD103: =+'5) INPUT COSTI FISSI'!AD34 -> 0 | AE103: =+'5) INPUT COSTI FISSI'!AE34 -> 0 | AF103: =+'5) INPUT COSTI FISSI'!AF34 -> 0 | AG103: =+'5) INPUT COSTI FISSI'!AG34 -> 0 | AH103: =+'5) INPUT COSTI FISSI'!AH34 -> 0 | AI103: =+'5) INPUT COSTI FISSI'!AI34 -> 0 | AJ103: =+'5) INPUT COSTI FISSI'!AJ34 -> 0 | AK103: =+'5) INPUT COSTI FISSI'!AK34 -> 0 | AL103: =+'5) INPUT COSTI FISSI'!AL34 -> 0 | AM103: =+'5) INPUT COSTI FISSI'!AM34 -> 0 | AN103: =+'5) INPUT COSTI FISSI'!AN34 -> 0 | AO103: =+'5) INPUT COSTI FISSI'!AO34 -> 0 | AP103: =+'5) INPUT COSTI FISSI'!AP34 -> 0
A104: =+'5) INPUT COSTI FISSI'!A35 -> Altri costi fissi | B104: =+'5) INPUT COSTI FISSI'!B35 -> 0 | C104: =+'5) INPUT COSTI FISSI'!C35 -> 0 | D104: =+'5) INPUT COSTI FISSI'!D35 -> 0 | E104: =+'5) INPUT COSTI FISSI'!E35 -> 0 | F104: =+'5) INPUT COSTI FISSI'!F35 -> 0 | G104: =+'5) INPUT COSTI FISSI'!G35 -> 0 | H104: =+'5) INPUT COSTI FISSI'!H35 -> 0 | I104: =+'5) INPUT COSTI FISSI'!I35 -> 0 | J104: =+'5) INPUT COSTI FISSI'!J35 -> 0 | K104: =+'5) INPUT COSTI FISSI'!K35 -> 0 | L104: =+'5) INPUT COSTI FISSI'!L35 -> 0 | M104: =+'5) INPUT COSTI FISSI'!M35 -> 0 | N104: =+'5) INPUT COSTI FISSI'!N35 -> 0 | P104: =+'5) INPUT COSTI FISSI'!P35 -> 0 | Q104: =+'5) INPUT COSTI FISSI'!Q35 -> 0 | R104: =+'5) INPUT COSTI FISSI'!R35 -> 0 | S104: =+'5) INPUT COSTI FISSI'!S35 -> 0 | T104: =+'5) INPUT COSTI FISSI'!T35 -> 0 | U104: =+'5) INPUT COSTI FISSI'!U35 -> 0 | V104: =+'5) INPUT COSTI FISSI'!V35 -> 0 | W104: =+'5) INPUT COSTI FISSI'!W35 -> 0 | X104: =+'5) INPUT COSTI FISSI'!X35 -> 0 | Y104: =+'5) INPUT COSTI FISSI'!Y35 -> 0 | Z104: =+'5) INPUT COSTI FISSI'!Z35 -> 0 | AA104: =+'5) INPUT COSTI FISSI'!AA35 -> 0 | AB104: =+'5) INPUT COSTI FISSI'!AB35 -> 0 | AD104: =+'5) INPUT COSTI FISSI'!AD35 -> 0 | AE104: =+'5) INPUT COSTI FISSI'!AE35 -> 0 | AF104: =+'5) INPUT COSTI FISSI'!AF35 -> 0 | AG104: =+'5) INPUT COSTI FISSI'!AG35 -> 0 | AH104: =+'5) INPUT COSTI FISSI'!AH35 -> 0 | AI104: =+'5) INPUT COSTI FISSI'!AI35 -> 0 | AJ104: =+'5) INPUT COSTI FISSI'!AJ35 -> 0 | AK104: =+'5) INPUT COSTI FISSI'!AK35 -> 0 | AL104: =+'5) INPUT COSTI FISSI'!AL35 -> 0 | AM104: =+'5) INPUT COSTI FISSI'!AM35 -> 0 | AN104: =+'5) INPUT COSTI FISSI'!AN35 -> 0 | AO104: =+'5) INPUT COSTI FISSI'!AO35 -> 0 | AP104: =+'5) INPUT COSTI FISSI'!AP35 -> 0
A105: RATA FINANZIAMENTO | B105: =IF($A$123="LEVERED",_xlfn.IFNA(VLOOKUP(B4,'7) INPUT FINANZIAMENTO'!$A$27:$K$387,5,FALSE),0),0) -> 0 | C105: =IF($A$123="LEVERED",_xlfn.IFNA(VLOOKUP(C4,'7) INPUT FINANZIAMENTO'!$A$27:$K$387,5,FALSE),0),0) -> 0 | D105: =IF($A$123="LEVERED",_xlfn.IFNA(VLOOKUP(D4,'7) INPUT FINANZIAMENTO'!$A$27:$K$387,5,FALSE),0),0) -> 0 | E105: =IF($A$123="LEVERED",_xlfn.IFNA(VLOOKUP(E4,'7) INPUT FINANZIAMENTO'!$A$27:$K$387,5,FALSE),0),0) -> 0 | F105: =IF($A$123="LEVERED",_xlfn.IFNA(VLOOKUP(F4,'7) INPUT FINANZIAMENTO'!$A$27:$K$387,5,FALSE),0),0) -> 0 | G105: =IF($A$123="LEVERED",_xlfn.IFNA(VLOOKUP(G4,'7) INPUT FINANZIAMENTO'!$A$27:$K$387,5,FALSE),0),0) -> 0 | H105: =IF($A$123="LEVERED",_xlfn.IFNA(VLOOKUP(H4,'7) INPUT FINANZIAMENTO'!$A$27:$K$387,5,FALSE),0),0) -> 0 | I105: =IF($A$123="LEVERED",_xlfn.IFNA(VLOOKUP(I4,'7) INPUT FINANZIAMENTO'!$A$27:$K$387,5,FALSE),0),0) -> 0 | J105: =IF($A$123="LEVERED",_xlfn.IFNA(VLOOKUP(J4,'7) INPUT FINANZIAMENTO'!$A$27:$K$387,5,FALSE),0),0) -> 0 | K105: =IF($A$123="LEVERED",_xlfn.IFNA(VLOOKUP(K4,'7) INPUT FINANZIAMENTO'!$A$27:$K$387,5,FALSE),0),0) -> 0 | L105: =IF($A$123="LEVERED",_xlfn.IFNA(VLOOKUP(L4,'7) INPUT FINANZIAMENTO'!$A$27:$K$387,5,FALSE),0),0) -> 0 | M105: =IF($A$123="LEVERED",_xlfn.IFNA(VLOOKUP(M4,'7) INPUT FINANZIAMENTO'!$A$27:$K$387,5,FALSE),0),0) -> 0 | N105: =SUM(B105:M105) -> 0 | P105: =IF($A$123="LEVERED",_xlfn.IFNA(VLOOKUP(P4,'7) INPUT FINANZIAMENTO'!$A$27:$K$387,5,FALSE),0),0) -> 0 | Q105: =IF($A$123="LEVERED",_xlfn.IFNA(VLOOKUP(Q4,'7) INPUT FINANZIAMENTO'!$A$27:$K$387,5,FALSE),0),0) -> 0 | R105: =IF($A$123="LEVERED",_xlfn.IFNA(VLOOKUP(R4,'7) INPUT FINANZIAMENTO'!$A$27:$K$387,5,FALSE),0),0) -> 0 | S105: =IF($A$123="LEVERED",_xlfn.IFNA(VLOOKUP(S4,'7) INPUT FINANZIAMENTO'!$A$27:$K$387,5,FALSE),0),0) -> 0 | T105: =IF($A$123="LEVERED",_xlfn.IFNA(VLOOKUP(T4,'7) INPUT FINANZIAMENTO'!$A$27:$K$387,5,FALSE),0),0) -> 0 | U105: =IF($A$123="LEVERED",_xlfn.IFNA(VLOOKUP(U4,'7) INPUT FINANZIAMENTO'!$A$27:$K$387,5,FALSE),0),0) -> 0 | V105: =IF($A$123="LEVERED",_xlfn.IFNA(VLOOKUP(V4,'7) INPUT FINANZIAMENTO'!$A$27:$K$387,5,FALSE),0),0) -> 0 | W105: =IF($A$123="LEVERED",_xlfn.IFNA(VLOOKUP(W4,'7) INPUT FINANZIAMENTO'!$A$27:$K$387,5,FALSE),0),0) -> 0 | X105: =IF($A$123="LEVERED",_xlfn.IFNA(VLOOKUP(X4,'7) INPUT FINANZIAMENTO'!$A$27:$K$387,5,FALSE),0),0) -> 0 | Y105: =IF($A$123="LEVERED",_xlfn.IFNA(VLOOKUP(Y4,'7) INPUT FINANZIAMENTO'!$A$27:$K$387,5,FALSE),0),0) -> 0 | Z105: =IF($A$123="LEVERED",_xlfn.IFNA(VLOOKUP(Z4,'7) INPUT FINANZIAMENTO'!$A$27:$K$387,5,FALSE),0),0) -> 0 | AA105: =IF($A$123="LEVERED",_xlfn.IFNA(VLOOKUP(AA4,'7) INPUT FINANZIAMENTO'!$A$27:$K$387,5,FALSE),0),0) -> 0 | AB105: =SUM(P105:AA105) -> 0 | AD105: =IF($A$123="LEVERED",_xlfn.IFNA(VLOOKUP(AD4,'7) INPUT FINANZIAMENTO'!$A$27:$K$387,5,FALSE),0),0) -> 0 | AE105: =IF($A$123="LEVERED",_xlfn.IFNA(VLOOKUP(AE4,'7) INPUT FINANZIAMENTO'!$A$27:$K$387,5,FALSE),0),0) -> 0 | AF105: =IF($A$123="LEVERED",_xlfn.IFNA(VLOOKUP(AF4,'7) INPUT FINANZIAMENTO'!$A$27:$K$387,5,FALSE),0),0) -> 0 | AG105: =IF($A$123="LEVERED",_xlfn.IFNA(VLOOKUP(AG4,'7) INPUT FINANZIAMENTO'!$A$27:$K$387,5,FALSE),0),0) -> 0 | AH105: =IF($A$123="LEVERED",_xlfn.IFNA(VLOOKUP(AH4,'7) INPUT FINANZIAMENTO'!$A$27:$K$387,5,FALSE),0),0) -> 0 | AI105: =IF($A$123="LEVERED",_xlfn.IFNA(VLOOKUP(AI4,'7) INPUT FINANZIAMENTO'!$A$27:$K$387,5,FALSE),0),0) -> 0 | AJ105: =IF($A$123="LEVERED",_xlfn.IFNA(VLOOKUP(AJ4,'7) INPUT FINANZIAMENTO'!$A$27:$K$387,5,FALSE),0),0) -> 0 | AK105: =IF($A$123="LEVERED",_xlfn.IFNA(VLOOKUP(AK4,'7) INPUT FINANZIAMENTO'!$A$27:$K$387,5,FALSE),0),0) -> 0 | AL105: =IF($A$123="LEVERED",_xlfn.IFNA(VLOOKUP(AL4,'7) INPUT FINANZIAMENTO'!$A$27:$K$387,5,FALSE),0),0) -> 0 | AM105: =IF($A$123="LEVERED",_xlfn.IFNA(VLOOKUP(AM4,'7) INPUT FINANZIAMENTO'!$A$27:$K$387,5,FALSE),0),0) -> 0 | AN105: =IF($A$123="LEVERED",_xlfn.IFNA(VLOOKUP(AN4,'7) INPUT FINANZIAMENTO'!$A$27:$K$387,5,FALSE),0),0) -> 0 | AO105: =IF($A$123="LEVERED",_xlfn.IFNA(VLOOKUP(AO4,'7) INPUT FINANZIAMENTO'!$A$27:$K$387,5,FALSE),0),0) -> 0 | AP105: =SUM(AD105:AO105) -> 0
A106: TOTALE | B106: =SUM(B72:B105) -> 530 | C106: =SUM(C72:C105) -> 390 | D106: =SUM(D72:D105) -> 230 | E106: 440 | F106: 230 | G106: 390 | H106: 280 | I106: 390 | J106: 230 | K106: 440 | L106: 230 | M106: 1140 | N106: 4920 | P106: 530 | Q106: 390 | R106: 230 | S106: 440 | T106: 230 | U106: 390 | V106: 280 | W106: 390 | X106: 230 | Y106: 440 | Z106: 230 | AA106: 1140 | AB106: 4920 | AD106: 530 | AE106: 390 | AF106: 230 | AG106: 440 | AH106: 230 | AI106: 390 | AJ106: 280 | AK106: 390 | AL106: 230 | AM106: 440 | AN106: 230 | AO106: 1140 | AP106: 4920
A108: USCITE VARIABILI | B108: =+B71 -> 2016-04-30 | C108: =+C71 -> 2016-05-31 | D108: 2016-06-30 | E108: 2016-07-31 | F108: 2016-08-31 | G108: 2016-09-30 | H108: 2016-10-31 | I108: 2016-11-30 | J108: 2016-12-31 | K108: 2017-01-31 | L108: 2017-02-28 | M108: 2017-03-31 | N108: TOTALE | P108: 2017-04-30 | Q108: 2017-05-31 | R108: 2017-06-30 | S108: 2017-07-31 | T108: 2017-08-31 | U108: 2017-09-30 | V108: 2017-10-31 | W108: 2017-11-30 | X108: 2017-12-31 | Y108: 2018-01-31 | Z108: 2018-02-28 | AA108: 2018-03-31 | AB108: TOTALE | AD108: 2018-04-30 | AE108: 2018-05-31 | AF108: 2018-06-30 | AG108: 2018-07-31 | AH108: 2018-08-31 | AI108: 2018-09-30 | AJ108: 2018-10-31 | AK108: 2018-11-30 | AL108: 2018-12-31 | AM108: 2019-01-31 | AN108: 2019-02-28 | AO108: 2019-03-31 | AP108: TOTALE
A109: =+'6) INPUT COSTI VARIABILI'!B40 -> Materie prime colazione | B109: =+'6) INPUT COSTI VARIABILI'!C40 -> 36 | C109: =+'6) INPUT COSTI VARIABILI'!D40 -> 93 | D109: =+'6) INPUT COSTI VARIABILI'!E40 -> 162 | E109: =+'6) INPUT COSTI VARIABILI'!F40 -> 167.4 | F109: =+'6) INPUT COSTI VARIABILI'!G40 -> 167.4 | G109: =+'6) INPUT COSTI VARIABILI'!H40 -> 90 | H109: =+'6) INPUT COSTI VARIABILI'!I40 -> 37.2 | I109: =+'6) INPUT COSTI VARIABILI'!J40 -> 36 | J109: =+'6) INPUT COSTI VARIABILI'!K40 -> 167.4 | K109: =+'6) INPUT COSTI VARIABILI'!L40 -> 37.2 | L109: =+'6) INPUT COSTI VARIABILI'!M40 -> 33.6 | M109: =+'6) INPUT COSTI VARIABILI'!N40 -> 37.2 | N109: =SUM(B109:M109) -> 1064.4 | P109: =+'6) INPUT COSTI VARIABILI'!R40 -> 36 | Q109: =+'6) INPUT COSTI VARIABILI'!S40 -> 93 | R109: =+'6) INPUT COSTI VARIABILI'!T40 -> 162 | S109: =+'6) INPUT COSTI VARIABILI'!U40 -> 167.4 | T109: =+'6) INPUT COSTI VARIABILI'!V40 -> 167.4 | U109: =+'6) INPUT COSTI VARIABILI'!W40 -> 90 | V109: =+'6) INPUT COSTI VARIABILI'!X40 -> 37.2 | W109: =+'6) INPUT COSTI VARIABILI'!Y40 -> 36 | X109: =+'6) INPUT COSTI VARIABILI'!Z40 -> 167.4 | Y109: =+'6) INPUT COSTI VARIABILI'!AA40 -> 37.2 | Z109: =+'6) INPUT COSTI VARIABILI'!AB40 -> 33.6 | AA109: =+'6) INPUT COSTI VARIABILI'!AC40 -> 37.2 | AB109: =SUM(P109:AA109) -> 1064.4 | AD109: =+'6) INPUT COSTI VARIABILI'!AG40 -> 36 | AE109: =+'6) INPUT COSTI VARIABILI'!AH40 -> 93 | AF109: =+'6) INPUT COSTI VARIABILI'!AI40 -> 162 | AG109: =+'6) INPUT COSTI VARIABILI'!AJ40 -> 167.4 | AH109: =+'6) INPUT COSTI VARIABILI'!AK40 -> 167.4 | AI109: =+'6) INPUT COSTI VARIABILI'!AL40 -> 90 | AJ109: =+'6) INPUT COSTI VARIABILI'!AM40 -> 37.2 | AK109: =+'6) INPUT COSTI VARIABILI'!AN40 -> 36 | AL109: =+'6) INPUT COSTI VARIABILI'!AO40 -> 167.4 | AM109: =+'6) INPUT COSTI VARIABILI'!AP40 -> 37.2 | AN109: =+'6) INPUT COSTI VARIABILI'!AQ40 -> 33.6 | AO109: =+'6) INPUT COSTI VARIABILI'!AR40 -> 37.2 | AP109: =SUM(AD109:AO109) -> 1064.4
A110: =+'6) INPUT COSTI VARIABILI'!B41 -> Materiale di consumo ospiti | B110: =+'6) INPUT COSTI VARIABILI'!C41 -> 6 | C110: =+'6) INPUT COSTI VARIABILI'!D41 -> 21.7 | D110: =+'6) INPUT COSTI VARIABILI'!E41 -> 48.6 | E110: =+'6) INPUT COSTI VARIABILI'!F41 -> 50.22 | F110: =+'6) INPUT COSTI VARIABILI'!G41 -> 50.22 | G110: =+'6) INPUT COSTI VARIABILI'!H41 -> 21 | H110: =+'6) INPUT COSTI VARIABILI'!I41 -> 6.2 | I110: =+'6) INPUT COSTI VARIABILI'!J41 -> 6 | J110: =+'6) INPUT COSTI VARIABILI'!K41 -> 50.22 | K110: =+'6) INPUT COSTI VARIABILI'!L41 -> 6.2 | L110: =+'6) INPUT COSTI VARIABILI'!M41 -> 5.6 | M110: =+'6) INPUT COSTI VARIABILI'!N41 -> 6.2 | N110: =SUM(B110:M110) -> 278.16 | P110: =+'6) INPUT COSTI VARIABILI'!R41 -> 6 | Q110: =+'6) INPUT COSTI VARIABILI'!S41 -> 21.7 | R110: =+'6) INPUT COSTI VARIABILI'!T41 -> 48.6 | S110: =+'6) INPUT COSTI VARIABILI'!U41 -> 50.22 | T110: =+'6) INPUT COSTI VARIABILI'!V41 -> 50.22 | U110: =+'6) INPUT COSTI VARIABILI'!W41 -> 21 | V110: =+'6) INPUT COSTI VARIABILI'!X41 -> 6.2 | W110: =+'6) INPUT COSTI VARIABILI'!Y41 -> 6 | X110: =+'6) INPUT COSTI VARIABILI'!Z41 -> 50.22 | Y110: =+'6) INPUT COSTI VARIABILI'!AA41 -> 6.2 | Z110: =+'6) INPUT COSTI VARIABILI'!AB41 -> 5.6 | AA110: =+'6) INPUT COSTI VARIABILI'!AC41 -> 6.2 | AB110: =SUM(P110:AA110) -> 278.16 | AD110: =+'6) INPUT COSTI VARIABILI'!AG41 -> 6 | AE110: =+'6) INPUT COSTI VARIABILI'!AH41 -> 21.7 | AF110: =+'6) INPUT COSTI VARIABILI'!AI41 -> 48.6 | AG110: =+'6) INPUT COSTI VARIABILI'!AJ41 -> 50.22 | AH110: =+'6) INPUT COSTI VARIABILI'!AK41 -> 50.22 | AI110: =+'6) INPUT COSTI VARIABILI'!AL41 -> 21 | AJ110: =+'6) INPUT COSTI VARIABILI'!AM41 -> 6.2 | AK110: =+'6) INPUT COSTI VARIABILI'!AN41 -> 6 | AL110: =+'6) INPUT COSTI VARIABILI'!AO41 -> 50.22 | AM110: =+'6) INPUT COSTI VARIABILI'!AP41 -> 6.2 | AN110: =+'6) INPUT COSTI VARIABILI'!AQ41 -> 5.6 | AO110: =+'6) INPUT COSTI VARIABILI'!AR41 -> 6.2 | AP110: =SUM(AD110:AO110) -> 278.16
A111: =+'6) INPUT COSTI VARIABILI'!B42 -> Materiale di consumo pulizia | B111: =+'6) INPUT COSTI VARIABILI'!C42 -> 6 | C111: =+'6) INPUT COSTI VARIABILI'!D42 -> 21.7 | D111: =+'6) INPUT COSTI VARIABILI'!E42 -> 48.6 | E111: =+'6) INPUT COSTI VARIABILI'!F42 -> 50.22 | F111: =+'6) INPUT COSTI VARIABILI'!G42 -> 50.22 | G111: =+'6) INPUT COSTI VARIABILI'!H42 -> 21 | H111: =+'6) INPUT COSTI VARIABILI'!I42 -> 6.2 | I111: =+'6) INPUT COSTI VARIABILI'!J42 -> 6 | J111: =+'6) INPUT COSTI VARIABILI'!K42 -> 50.22 | K111: =+'6) INPUT COSTI VARIABILI'!L42 -> 6.2 | L111: =+'6) INPUT COSTI VARIABILI'!M42 -> 5.6 | M111: =+'6) INPUT COSTI VARIABILI'!N42 -> 6.2 | N111: 278.16 | P111: =+'6) INPUT COSTI VARIABILI'!R42 -> 6 | Q111: =+'6) INPUT COSTI VARIABILI'!S42 -> 21.7 | R111: =+'6) INPUT COSTI VARIABILI'!T42 -> 48.6 | S111: =+'6) INPUT COSTI VARIABILI'!U42 -> 50.22 | T111: =+'6) INPUT COSTI VARIABILI'!V42 -> 50.22 | U111: =+'6) INPUT COSTI VARIABILI'!W42 -> 21 | V111: =+'6) INPUT COSTI VARIABILI'!X42 -> 6.2 | W111: =+'6) INPUT COSTI VARIABILI'!Y42 -> 6 | X111: =+'6) INPUT COSTI VARIABILI'!Z42 -> 50.22 | Y111: =+'6) INPUT COSTI VARIABILI'!AA42 -> 6.2 | Z111: =+'6) INPUT COSTI VARIABILI'!AB42 -> 5.6 | AA111: =+'6) INPUT COSTI VARIABILI'!AC42 -> 6.2 | AB111: 278.16 | AD111: =+'6) INPUT COSTI VARIABILI'!AG42 -> 6 | AE111: =+'6) INPUT COSTI VARIABILI'!AH42 -> 21.7 | AF111: =+'6) INPUT COSTI VARIABILI'!AI42 -> 48.6 | AG111: =+'6) INPUT COSTI VARIABILI'!AJ42 -> 50.22 | AH111: =+'6) INPUT COSTI VARIABILI'!AK42 -> 50.22 | AI111: =+'6) INPUT COSTI VARIABILI'!AL42 -> 21 | AJ111: =+'6) INPUT COSTI VARIABILI'!AM42 -> 6.2 | AK111: =+'6) INPUT COSTI VARIABILI'!AN42 -> 6 | AL111: =+'6) INPUT COSTI VARIABILI'!AO42 -> 50.22 | AM111: =+'6) INPUT COSTI VARIABILI'!AP42 -> 6.2 | AN111: =+'6) INPUT COSTI VARIABILI'!AQ42 -> 5.6 | AO111: =+'6) INPUT COSTI VARIABILI'!AR42 -> 6.2 | AP111: 278.16
A112: =+'6) INPUT COSTI VARIABILI'!B43 -> Servizi di lavanderia | B112: =+'6) INPUT COSTI VARIABILI'!C43 -> 30 | C112: =+'6) INPUT COSTI VARIABILI'!D43 -> 108.5 | D112: =+'6) INPUT COSTI VARIABILI'!E43 -> 243 | E112: =+'6) INPUT COSTI VARIABILI'!F43 -> 251.1 | F112: =+'6) INPUT COSTI VARIABILI'!G43 -> 251.1 | G112: =+'6) INPUT COSTI VARIABILI'!H43 -> 105 | H112: =+'6) INPUT COSTI VARIABILI'!I43 -> 31 | I112: =+'6) INPUT COSTI VARIABILI'!J43 -> 30 | J112: =+'6) INPUT COSTI VARIABILI'!K43 -> 251.1 | K112: =+'6) INPUT COSTI VARIABILI'!L43 -> 31 | L112: =+'6) INPUT COSTI VARIABILI'!M43 -> 28 | M112: =+'6) INPUT COSTI VARIABILI'!N43 -> 31 | N112: 1390.8 | P112: =+'6) INPUT COSTI VARIABILI'!R43 -> 30 | Q112: =+'6) INPUT COSTI VARIABILI'!S43 -> 108.5 | R112: =+'6) INPUT COSTI VARIABILI'!T43 -> 243 | S112: =+'6) INPUT COSTI VARIABILI'!U43 -> 251.1 | T112: =+'6) INPUT COSTI VARIABILI'!V43 -> 251.1 | U112: =+'6) INPUT COSTI VARIABILI'!W43 -> 105 | V112: =+'6) INPUT COSTI VARIABILI'!X43 -> 31 | W112: =+'6) INPUT COSTI VARIABILI'!Y43 -> 30 | X112: =+'6) INPUT COSTI VARIABILI'!Z43 -> 251.1 | Y112: =+'6) INPUT COSTI VARIABILI'!AA43 -> 31 | Z112: =+'6) INPUT COSTI VARIABILI'!AB43 -> 28 | AA112: =+'6) INPUT COSTI VARIABILI'!AC43 -> 31 | AB112: 1390.8 | AD112: =+'6) INPUT COSTI VARIABILI'!AG43 -> 30 | AE112: =+'6) INPUT COSTI VARIABILI'!AH43 -> 108.5 | AF112: =+'6) INPUT COSTI VARIABILI'!AI43 -> 243 | AG112: =+'6) INPUT COSTI VARIABILI'!AJ43 -> 251.1 | AH112: =+'6) INPUT COSTI VARIABILI'!AK43 -> 251.1 | AI112: =+'6) INPUT COSTI VARIABILI'!AL43 -> 105 | AJ112: =+'6) INPUT COSTI VARIABILI'!AM43 -> 31 | AK112: =+'6) INPUT COSTI VARIABILI'!AN43 -> 30 | AL112: =+'6) INPUT COSTI VARIABILI'!AO43 -> 251.1 | AM112: =+'6) INPUT COSTI VARIABILI'!AP43 -> 31 | AN112: =+'6) INPUT COSTI VARIABILI'!AQ43 -> 28 | AO112: =+'6) INPUT COSTI VARIABILI'!AR43 -> 31 | AP112: 1390.8
A113: =+'6) INPUT COSTI VARIABILI'!B44 -> Visite guidate | B113: =+'6) INPUT COSTI VARIABILI'!C44 -> 0 | C113: =+'6) INPUT COSTI VARIABILI'!D44 -> 0 | D113: =+'6) INPUT COSTI VARIABILI'!E44 -> 0 | E113: =+'6) INPUT COSTI VARIABILI'!F44 -> 0 | F113: =+'6) INPUT COSTI VARIABILI'!G44 -> 0 | G113: =+'6) INPUT COSTI VARIABILI'!H44 -> 0 | H113: =+'6) INPUT COSTI VARIABILI'!I44 -> 0 | I113: =+'6) INPUT COSTI VARIABILI'!J44 -> 0 | J113: =+'6) INPUT COSTI VARIABILI'!K44 -> 0 | K113: =+'6) INPUT COSTI VARIABILI'!L44 -> 0 | L113: =+'6) INPUT COSTI VARIABILI'!M44 -> 0 | M113: =+'6) INPUT COSTI VARIABILI'!N44 -> 0 | N113: 0 | P113: =+'6) INPUT COSTI VARIABILI'!R44 -> 0 | Q113: =+'6) INPUT COSTI VARIABILI'!S44 -> 0 | R113: =+'6) INPUT COSTI VARIABILI'!T44 -> 0 | S113: =+'6) INPUT COSTI VARIABILI'!U44 -> 0 | T113: =+'6) INPUT COSTI VARIABILI'!V44 -> 0 | U113: =+'6) INPUT COSTI VARIABILI'!W44 -> 0 | V113: =+'6) INPUT COSTI VARIABILI'!X44 -> 0 | W113: =+'6) INPUT COSTI VARIABILI'!Y44 -> 0 | X113: =+'6) INPUT COSTI VARIABILI'!Z44 -> 0 | Y113: =+'6) INPUT COSTI VARIABILI'!AA44 -> 0 | Z113: =+'6) INPUT COSTI VARIABILI'!AB44 -> 0 | AA113: =+'6) INPUT COSTI VARIABILI'!AC44 -> 0 | AB113: 0 | AD113: =+'6) INPUT COSTI VARIABILI'!AG44 -> 0 | AE113: =+'6) INPUT COSTI VARIABILI'!AH44 -> 0 | AF113: =+'6) INPUT COSTI VARIABILI'!AI44 -> 0 | AG113: =+'6) INPUT COSTI VARIABILI'!AJ44 -> 0 | AH113: =+'6) INPUT COSTI VARIABILI'!AK44 -> 0 | AI113: =+'6) INPUT COSTI VARIABILI'!AL44 -> 0 | AJ113: =+'6) INPUT COSTI VARIABILI'!AM44 -> 0 | AK113: =+'6) INPUT COSTI VARIABILI'!AN44 -> 0 | AL113: =+'6) INPUT COSTI VARIABILI'!AO44 -> 0 | AM113: =+'6) INPUT COSTI VARIABILI'!AP44 -> 0 | AN113: =+'6) INPUT COSTI VARIABILI'!AQ44 -> 0 | AO113: =+'6) INPUT COSTI VARIABILI'!AR44 -> 0 | AP113: 0
A114: =+'6) INPUT COSTI VARIABILI'!B45 -> Altri costi variabili | B114: =+'6) INPUT COSTI VARIABILI'!C45 -> 0 | C114: =+'6) INPUT COSTI VARIABILI'!D45 -> 0 | D114: =+'6) INPUT COSTI VARIABILI'!E45 -> 0 | E114: =+'6) INPUT COSTI VARIABILI'!F45 -> 0 | F114: =+'6) INPUT COSTI VARIABILI'!G45 -> 0 | G114: =+'6) INPUT COSTI VARIABILI'!H45 -> 0 | H114: =+'6) INPUT COSTI VARIABILI'!I45 -> 0 | I114: =+'6) INPUT COSTI VARIABILI'!J45 -> 0 | J114: =+'6) INPUT COSTI VARIABILI'!K45 -> 0 | K114: =+'6) INPUT COSTI VARIABILI'!L45 -> 0 | L114: =+'6) INPUT COSTI VARIABILI'!M45 -> 0 | M114: =+'6) INPUT COSTI VARIABILI'!N45 -> 0 | N114: 0 | P114: =+'6) INPUT COSTI VARIABILI'!R45 -> 0 | Q114: =+'6) INPUT COSTI VARIABILI'!S45 -> 0 | R114: =+'6) INPUT COSTI VARIABILI'!T45 -> 0 | S114: =+'6) INPUT COSTI VARIABILI'!U45 -> 0 | T114: =+'6) INPUT COSTI VARIABILI'!V45 -> 0 | U114: =+'6) INPUT COSTI VARIABILI'!W45 -> 0 | V114: =+'6) INPUT COSTI VARIABILI'!X45 -> 0 | W114: =+'6) INPUT COSTI VARIABILI'!Y45 -> 0 | X114: =+'6) INPUT COSTI VARIABILI'!Z45 -> 0 | Y114: =+'6) INPUT COSTI VARIABILI'!AA45 -> 0 | Z114: =+'6) INPUT COSTI VARIABILI'!AB45 -> 0 | AA114: =+'6) INPUT COSTI VARIABILI'!AC45 -> 0 | AB114: 0 | AD114: =+'6) INPUT COSTI VARIABILI'!AG45 -> 0 | AE114: =+'6) INPUT COSTI VARIABILI'!AH45 -> 0 | AF114: =+'6) INPUT COSTI VARIABILI'!AI45 -> 0 | AG114: =+'6) INPUT COSTI VARIABILI'!AJ45 -> 0 | AH114: =+'6) INPUT COSTI VARIABILI'!AK45 -> 0 | AI114: =+'6) INPUT COSTI VARIABILI'!AL45 -> 0 | AJ114: =+'6) INPUT COSTI VARIABILI'!AM45 -> 0 | AK114: =+'6) INPUT COSTI VARIABILI'!AN45 -> 0 | AL114: =+'6) INPUT COSTI VARIABILI'!AO45 -> 0 | AM114: =+'6) INPUT COSTI VARIABILI'!AP45 -> 0 | AN114: =+'6) INPUT COSTI VARIABILI'!AQ45 -> 0 | AO114: =+'6) INPUT COSTI VARIABILI'!AR45 -> 0 | AP114: 0
A115: =+'6) INPUT COSTI VARIABILI'!B46 -> Altri costi variabili | B115: =+'6) INPUT COSTI VARIABILI'!C46 -> 0 | C115: =+'6) INPUT COSTI VARIABILI'!D46 -> 0 | D115: =+'6) INPUT COSTI VARIABILI'!E46 -> 0 | E115: =+'6) INPUT COSTI VARIABILI'!F46 -> 0 | F115: =+'6) INPUT COSTI VARIABILI'!G46 -> 0 | G115: =+'6) INPUT COSTI VARIABILI'!H46 -> 0 | H115: =+'6) INPUT COSTI VARIABILI'!I46 -> 0 | I115: =+'6) INPUT COSTI VARIABILI'!J46 -> 0 | J115: =+'6) INPUT COSTI VARIABILI'!K46 -> 0 | K115: =+'6) INPUT COSTI VARIABILI'!L46 -> 0 | L115: =+'6) INPUT COSTI VARIABILI'!M46 -> 0 | M115: =+'6) INPUT COSTI VARIABILI'!N46 -> 0 | N115: 0 | P115: =+'6) INPUT COSTI VARIABILI'!R46 -> 0 | Q115: =+'6) INPUT COSTI VARIABILI'!S46 -> 0 | R115: =+'6) INPUT COSTI VARIABILI'!T46 -> 0 | S115: =+'6) INPUT COSTI VARIABILI'!U46 -> 0 | T115: =+'6) INPUT COSTI VARIABILI'!V46 -> 0 | U115: =+'6) INPUT COSTI VARIABILI'!W46 -> 0 | V115: =+'6) INPUT COSTI VARIABILI'!X46 -> 0 | W115: =+'6) INPUT COSTI VARIABILI'!Y46 -> 0 | X115: =+'6) INPUT COSTI VARIABILI'!Z46 -> 0 | Y115: =+'6) INPUT COSTI VARIABILI'!AA46 -> 0 | Z115: =+'6) INPUT COSTI VARIABILI'!AB46 -> 0 | AA115: =+'6) INPUT COSTI VARIABILI'!AC46 -> 0 | AB115: 0 | AD115: =+'6) INPUT COSTI VARIABILI'!AG46 -> 0 | AE115: =+'6) INPUT COSTI VARIABILI'!AH46 -> 0 | AF115: =+'6) INPUT COSTI VARIABILI'!AI46 -> 0 | AG115: =+'6) INPUT COSTI VARIABILI'!AJ46 -> 0 | AH115: =+'6) INPUT COSTI VARIABILI'!AK46 -> 0 | AI115: =+'6) INPUT COSTI VARIABILI'!AL46 -> 0 | AJ115: =+'6) INPUT COSTI VARIABILI'!AM46 -> 0 | AK115: =+'6) INPUT COSTI VARIABILI'!AN46 -> 0 | AL115: =+'6) INPUT COSTI VARIABILI'!AO46 -> 0 | AM115: =+'6) INPUT COSTI VARIABILI'!AP46 -> 0 | AN115: =+'6) INPUT COSTI VARIABILI'!AQ46 -> 0 | AO115: =+'6) INPUT COSTI VARIABILI'!AR46 -> 0 | AP115: 0
A116: =+'6) INPUT COSTI VARIABILI'!B47 -> Altri costi variabili | B116: =+'6) INPUT COSTI VARIABILI'!C47 -> 0 | C116: =+'6) INPUT COSTI VARIABILI'!D47 -> 0 | D116: =+'6) INPUT COSTI VARIABILI'!E47 -> 0 | E116: =+'6) INPUT COSTI VARIABILI'!F47 -> 0 | F116: =+'6) INPUT COSTI VARIABILI'!G47 -> 0 | G116: =+'6) INPUT COSTI VARIABILI'!H47 -> 0 | H116: =+'6) INPUT COSTI VARIABILI'!I47 -> 0 | I116: =+'6) INPUT COSTI VARIABILI'!J47 -> 0 | J116: =+'6) INPUT COSTI VARIABILI'!K47 -> 0 | K116: =+'6) INPUT COSTI VARIABILI'!L47 -> 0 | L116: =+'6) INPUT COSTI VARIABILI'!M47 -> 0 | M116: =+'6) INPUT COSTI VARIABILI'!N47 -> 0 | N116: 0 | P116: =+'6) INPUT COSTI VARIABILI'!R47 -> 0 | Q116: =+'6) INPUT COSTI VARIABILI'!S47 -> 0 | R116: =+'6) INPUT COSTI VARIABILI'!T47 -> 0 | S116: =+'6) INPUT COSTI VARIABILI'!U47 -> 0 | T116: =+'6) INPUT COSTI VARIABILI'!V47 -> 0 | U116: =+'6) INPUT COSTI VARIABILI'!W47 -> 0 | V116: =+'6) INPUT COSTI VARIABILI'!X47 -> 0 | W116: =+'6) INPUT COSTI VARIABILI'!Y47 -> 0 | X116: =+'6) INPUT COSTI VARIABILI'!Z47 -> 0 | Y116: =+'6) INPUT COSTI VARIABILI'!AA47 -> 0 | Z116: =+'6) INPUT COSTI VARIABILI'!AB47 -> 0 | AA116: =+'6) INPUT COSTI VARIABILI'!AC47 -> 0 | AB116: 0 | AD116: =+'6) INPUT COSTI VARIABILI'!AG47 -> 0 | AE116: =+'6) INPUT COSTI VARIABILI'!AH47 -> 0 | AF116: =+'6) INPUT COSTI VARIABILI'!AI47 -> 0 | AG116: =+'6) INPUT COSTI VARIABILI'!AJ47 -> 0 | AH116: =+'6) INPUT COSTI VARIABILI'!AK47 -> 0 | AI116: =+'6) INPUT COSTI VARIABILI'!AL47 -> 0 | AJ116: =+'6) INPUT COSTI VARIABILI'!AM47 -> 0 | AK116: =+'6) INPUT COSTI VARIABILI'!AN47 -> 0 | AL116: =+'6) INPUT COSTI VARIABILI'!AO47 -> 0 | AM116: =+'6) INPUT COSTI VARIABILI'!AP47 -> 0 | AN116: =+'6) INPUT COSTI VARIABILI'!AQ47 -> 0 | AO116: =+'6) INPUT COSTI VARIABILI'!AR47 -> 0 | AP116: 0
A117: =+'6) INPUT COSTI VARIABILI'!B48 -> Altri costi variabili | B117: =+'6) INPUT COSTI VARIABILI'!C48 -> 0 | C117: =+'6) INPUT COSTI VARIABILI'!D48 -> 0 | D117: =+'6) INPUT COSTI VARIABILI'!E48 -> 0 | E117: =+'6) INPUT COSTI VARIABILI'!F48 -> 0 | F117: =+'6) INPUT COSTI VARIABILI'!G48 -> 0 | G117: =+'6) INPUT COSTI VARIABILI'!H48 -> 0 | H117: =+'6) INPUT COSTI VARIABILI'!I48 -> 0 | I117: =+'6) INPUT COSTI VARIABILI'!J48 -> 0 | J117: =+'6) INPUT COSTI VARIABILI'!K48 -> 0 | K117: =+'6) INPUT COSTI VARIABILI'!L48 -> 0 | L117: =+'6) INPUT COSTI VARIABILI'!M48 -> 0 | M117: =+'6) INPUT COSTI VARIABILI'!N48 -> 0 | N117: 0 | P117: =+'6) INPUT COSTI VARIABILI'!R48 -> 0 | Q117: =+'6) INPUT COSTI VARIABILI'!S48 -> 0 | R117: =+'6) INPUT COSTI VARIABILI'!T48 -> 0 | S117: =+'6) INPUT COSTI VARIABILI'!U48 -> 0 | T117: =+'6) INPUT COSTI VARIABILI'!V48 -> 0 | U117: =+'6) INPUT COSTI VARIABILI'!W48 -> 0 | V117: =+'6) INPUT COSTI VARIABILI'!X48 -> 0 | W117: =+'6) INPUT COSTI VARIABILI'!Y48 -> 0 | X117: =+'6) INPUT COSTI VARIABILI'!Z48 -> 0 | Y117: =+'6) INPUT COSTI VARIABILI'!AA48 -> 0 | Z117: =+'6) INPUT COSTI VARIABILI'!AB48 -> 0 | AA117: =+'6) INPUT COSTI VARIABILI'!AC48 -> 0 | AB117: 0 | AD117: =+'6) INPUT COSTI VARIABILI'!AG48 -> 0 | AE117: =+'6) INPUT COSTI VARIABILI'!AH48 -> 0 | AF117: =+'6) INPUT COSTI VARIABILI'!AI48 -> 0 | AG117: =+'6) INPUT COSTI VARIABILI'!AJ48 -> 0 | AH117: =+'6) INPUT COSTI VARIABILI'!AK48 -> 0 | AI117: =+'6) INPUT COSTI VARIABILI'!AL48 -> 0 | AJ117: =+'6) INPUT COSTI VARIABILI'!AM48 -> 0 | AK117: =+'6) INPUT COSTI VARIABILI'!AN48 -> 0 | AL117: =+'6) INPUT COSTI VARIABILI'!AO48 -> 0 | AM117: =+'6) INPUT COSTI VARIABILI'!AP48 -> 0 | AN117: =+'6) INPUT COSTI VARIABILI'!AQ48 -> 0 | AO117: =+'6) INPUT COSTI VARIABILI'!AR48 -> 0 | AP117: 0
A118: TOTALE | B118: =SUM(B109:B117) -> 78 | C118: =SUM(C109:C117) -> 244.9 | D118: =SUM(D109:D117) -> 502.2 | E118: 518.94 | F118: 518.94 | G118: 237 | H118: 80.6 | I118: 78 | J118: 518.94 | K118: 80.6 | L118: 72.8 | M118: 80.6 | N118: 3011.52 | P118: 78 | Q118: 244.9 | R118: 502.2 | S118: 518.94 | T118: 518.94 | U118: 237 | V118: 80.6 | W118: 78 | X118: 518.94 | Y118: 80.6 | Z118: 72.8 | AA118: 80.6 | AB118: 3011.52 | AD118: 78 | AE118: 244.9 | AF118: 502.2 | AG118: 518.94 | AH118: 518.94 | AI118: 237 | AJ118: 80.6 | AK118: 78 | AL118: 518.94 | AM118: 80.6 | AN118: 72.8 | AO118: 80.6 | AP118: 3011.52
B120: =+B108 -> 2016-04-30 | C120: =+C108 -> 2016-05-31 | D120: 2016-06-30 | E120: 2016-07-31 | F120: 2016-08-31 | G120: 2016-09-30 | H120: 2016-10-31 | I120: 2016-11-30 | J120: 2016-12-31 | K120: 2017-01-31 | L120: 2017-02-28 | M120: 2017-03-31 | N120: TOTALE | P120: 2017-04-30 | Q120: 2017-05-31 | R120: 2017-06-30 | S120: 2017-07-31 | T120: 2017-08-31 | U120: 2017-09-30 | V120: 2017-10-31 | W120: 2017-11-30 | X120: 2017-12-31 | Y120: 2018-01-31 | Z120: 2018-02-28 | AA120: 2018-03-31 | AB120: TOTALE | AD120: 2018-04-30 | AE120: 2018-05-31 | AF120: 2018-06-30 | AG120: 2018-07-31 | AH120: 2018-08-31 | AI120: 2018-09-30 | AJ120: 2018-10-31 | AK120: 2018-11-30 | AL120: 2018-12-31 | AM120: 2019-01-31 | AN120: 2019-02-28 | AO120: 2019-03-31 | AP120: TOTALE
A121: IMPOSTE SUI REDDITI | B121: =_xlfn.IFNA(VLOOKUP(B120,'8) OUTPUT TASSAZIONE'!$B$20:$C$27,2,FALSE),0) -> 0 | C121: =_xlfn.IFNA(VLOOKUP(C120,'8) OUTPUT TASSAZIONE'!$B$20:$C$27,2,FALSE),0) -> 0 | D121: =_xlfn.IFNA(VLOOKUP(D120,'8) OUTPUT TASSAZIONE'!$B$20:$C$27,2,FALSE),0) -> 0 | E121: =_xlfn.IFNA(VLOOKUP(E120,'8) OUTPUT TASSAZIONE'!$B$20:$C$27,2,FALSE),0) -> 0 | F121: =_xlfn.IFNA(VLOOKUP(F120,'8) OUTPUT TASSAZIONE'!$B$20:$C$27,2,FALSE),0) -> 0 | G121: =_xlfn.IFNA(VLOOKUP(G120,'8) OUTPUT TASSAZIONE'!$B$20:$C$27,2,FALSE),0) -> 0 | H121: =_xlfn.IFNA(VLOOKUP(H120,'8) OUTPUT TASSAZIONE'!$B$20:$C$27,2,FALSE),0) -> 0 | I121: =_xlfn.IFNA(VLOOKUP(I120,'8) OUTPUT TASSAZIONE'!$B$20:$C$27,2,FALSE),0) -> 0 | J121: =_xlfn.IFNA(VLOOKUP(J120,'8) OUTPUT TASSAZIONE'!$B$20:$C$27,2,FALSE),0) -> 0 | K121: =_xlfn.IFNA(VLOOKUP(K120,'8) OUTPUT TASSAZIONE'!$B$20:$C$27,2,FALSE),0) -> 0 | L121: =_xlfn.IFNA(VLOOKUP(L120,'8) OUTPUT TASSAZIONE'!$B$20:$C$27,2,FALSE),0) -> 0 | M121: =_xlfn.IFNA(VLOOKUP(M120,'8) OUTPUT TASSAZIONE'!$B$20:$C$27,2,FALSE),0) -> 0 | N121: =SUM(B121:M121) -> 0 | P121: =_xlfn.IFNA(VLOOKUP(P120,'8) OUTPUT TASSAZIONE'!$B$20:$C$27,2,FALSE),0) -> 0 | Q121: =_xlfn.IFNA(VLOOKUP(Q120,'8) OUTPUT TASSAZIONE'!$B$20:$C$27,2,FALSE),0) -> 0 | R121: =_xlfn.IFNA(VLOOKUP(R120,'8) OUTPUT TASSAZIONE'!$B$20:$C$27,2,FALSE),0) -> 728.448 | S121: =_xlfn.IFNA(VLOOKUP(S120,'8) OUTPUT TASSAZIONE'!$B$20:$C$27,2,FALSE),0) -> 0 | T121: =_xlfn.IFNA(VLOOKUP(T120,'8) OUTPUT TASSAZIONE'!$B$20:$C$27,2,FALSE),0) -> 0 | U121: =_xlfn.IFNA(VLOOKUP(U120,'8) OUTPUT TASSAZIONE'!$B$20:$C$27,2,FALSE),0) -> 0 | V121: =_xlfn.IFNA(VLOOKUP(V120,'8) OUTPUT TASSAZIONE'!$B$20:$C$27,2,FALSE),0) -> 0 | W121: =_xlfn.IFNA(VLOOKUP(W120,'8) OUTPUT TASSAZIONE'!$B$20:$C$27,2,FALSE),0) -> 312.192 | X121: =_xlfn.IFNA(VLOOKUP(X120,'8) OUTPUT TASSAZIONE'!$B$20:$C$27,2,FALSE),0) -> 0 | Y121: =_xlfn.IFNA(VLOOKUP(Y120,'8) OUTPUT TASSAZIONE'!$B$20:$C$27,2,FALSE),0) -> 0 | Z121: =_xlfn.IFNA(VLOOKUP(Z120,'8) OUTPUT TASSAZIONE'!$B$20:$C$27,2,FALSE),0) -> 0 | AA121: =_xlfn.IFNA(VLOOKUP(AA120,'8) OUTPUT TASSAZIONE'!$B$20:$C$27,2,FALSE),0) -> 0 | AB121: =SUM(P121:AA121) -> 1040.64 | AD121: =_xlfn.IFNA(VLOOKUP(AD120,'8) OUTPUT TASSAZIONE'!$B$20:$C$27,2,FALSE),0) -> 0 | AE121: =_xlfn.IFNA(VLOOKUP(AE120,'8) OUTPUT TASSAZIONE'!$B$20:$C$27,2,FALSE),0) -> 0 | AF121: =_xlfn.IFNA(VLOOKUP(AF120,'8) OUTPUT TASSAZIONE'!$B$20:$C$27,2,FALSE),0) -> 50.4 | AG121: =_xlfn.IFNA(VLOOKUP(AG120,'8) OUTPUT TASSAZIONE'!$B$20:$C$27,2,FALSE),0) -> 0 | AH121: =_xlfn.IFNA(VLOOKUP(AH120,'8) OUTPUT TASSAZIONE'!$B$20:$C$27,2,FALSE),0) -> 0 | AI121: =_xlfn.IFNA(VLOOKUP(AI120,'8) OUTPUT TASSAZIONE'!$B$20:$C$27,2,FALSE),0) -> 0 | AJ121: =_xlfn.IFNA(VLOOKUP(AJ120,'8) OUTPUT TASSAZIONE'!$B$20:$C$27,2,FALSE),0) -> 0 | AK121: =_xlfn.IFNA(VLOOKUP(AK120,'8) OUTPUT TASSAZIONE'!$B$20:$C$27,2,FALSE),0) -> 21.6 | AL121: =_xlfn.IFNA(VLOOKUP(AL120,'8) OUTPUT TASSAZIONE'!$B$20:$C$27,2,FALSE),0) -> 0 | AM121: =_xlfn.IFNA(VLOOKUP(AM120,'8) OUTPUT TASSAZIONE'!$B$20:$C$27,2,FALSE),0) -> 0 | AN121: =_xlfn.IFNA(VLOOKUP(AN120,'8) OUTPUT TASSAZIONE'!$B$20:$C$27,2,FALSE),0) -> 0 | AO121: =_xlfn.IFNA(VLOOKUP(AO120,'8) OUTPUT TASSAZIONE'!$B$20:$C$27,2,FALSE),0) -> 0 | AP121: =SUM(AD121:AO121) -> 72
A123: UNLEVERED | B123: =+B120 -> 2016-04-30 | C123: =+C120 -> 2016-05-31 | D123: 2016-06-30 | E123: 2016-07-31 | F123: 2016-08-31 | G123: 2016-09-30 | H123: 2016-10-31 | I123: 2016-11-30 | J123: 2016-12-31 | K123: 2017-01-31 | L123: 2017-02-28 | M123: 2017-03-31 | N123: TOTALE | P123: 2017-04-30 | Q123: 2017-05-31 | R123: 2017-06-30 | S123: 2017-07-31 | T123: 2017-08-31 | U123: 2017-09-30 | V123: 2017-10-31 | W123: 2017-11-30 | X123: 2017-12-31 | Y123: 2018-01-31 | Z123: 2018-02-28 | AA123: 2018-03-31 | AB123: TOTALE | AD123: 2018-04-30 | AE123: 2018-05-31 | AF123: 2018-06-30 | AG123: 2018-07-31 | AH123: 2018-08-31 | AI123: 2018-09-30 | AJ123: 2018-10-31 | AK123: 2018-11-30 | AL123: 2018-12-31 | AM123: 2019-01-31 | AN123: 2019-02-28 | AO123: 2019-03-31 | AP123: TOTALE
A124: CASH FLOW | B124: =+B17-B69-B106-B118-B121 -> 0 | C124: =+C17-C69-C106-C118-C121 -> 1535.1 | D124: =+D17-D69-D106-D118-D121 -> 4127.8 | E124: 4063.06 | F124: 4273.06 | G124: 1473 | H124: 259.4 | I124: 132 | J124: 4273.06 | K124: 99.4 | L124: 257.2 | M124: =+M17-M69-M106-M118-M121 -> -9.947598301e-14 | N124: =SUM(B124:M124) -> 20493.08 | P124: =+P17-P69-P106-P118-P121 -> 0 | Q124: =+Q17-Q69-Q106-Q118-Q121 -> 1535.1 | R124: 3399.352 | S124: 4063.06 | T124: 4273.06 | U124: 1473 | V124: 259.4 | W124: 0 | X124: 4273.06 | Y124: 99.4 | Z124: =+Z17-Z69-Z106-Z118-Z121 -> 257.2 | AA124: -9.947598301e-14 | AB124: =SUM(O124:AA124) -> 19632.632 | AD124: =+AD17-AD69-AD106-AD118-AD121 -> 0 | AE124: =+AE17-AE69-AE106-AE118-AE121 -> 1535.1 | AF124: 4077.4 | AG124: 4063.06 | AH124: 4273.06 | AI124: 1473 | AJ124: 259.4 | AK124: 110.4 | AL124: 4273.06 | AM124: 99.4 | AN124: 257.2 | AO124: -9.947598301e-14 | AP124: =SUM(AC124:AO124) -> 20421.08
A126: OPZIONE CAPITALE | B126: SI COMPENSA FLUSSI NEGATIVI CON CAPITALE
A127: FABBISOGNO DI CAPIALE | B127: =+B16 -> 7608 | C127: 0 | D127: 0 | E127: 0 | F127: 0 | G127: 0 | H127: 0 | I127: 0 | J127: 0 | K127: 0 | L127: 0 | M127: 600.6 | N127: 8208.6 | O127: 0 | P127: 8 | Q127: 0 | R127: 0 | S127: 0 | T127: 0 | U127: 0 | V127: 0 | W127: 180.192 | X127: 0 | Y127: 0 | Z127: 0 | AA127: 600.6 | AB127: 788.792 | AC127: 0 | AD127: 8 | AE127: 0 | AF127: 0 | AG127: 0 | AH127: 0 | AI127: 0 | AJ127: 0 | AK127: 0 | AL127: 0 | AM127: 0 | AN127: 0 | AO127: 600.6 | AP127: 608.6
